Workbook

Sheet Contents
B1: REGULATORY REPORTING STATEMENT
B2: ='1.0 Business & other details '!C14 -> SA Power Networks
B3: =RCP_1to5 -> 2015-16 to 2019-20
B4: CONTENTS
E7: 1. Business details | L7: 2. Expenditure | S7: 3. Economic benchmarking
E27: 4. Alternative control services | L27: 5. Network information | S27: 6. Service & quality
E34: 7. Other templates

Sheet Instructions
B1: REGULATORY REPORTING STATEMENT
B2: ='1.0 Business & other details '!C14 -> SA Power Networks
B3: =FRCP_span -> 2015-20
B4: 1.1 INSTRUCTIONS
B6: INSTRUCTIONS FOR USE
B7: =CONCATENATE('1.0 Business & other details '!C14, " must fill out and submit the regulatory templates in this spreadsheet as part of its regulatory proposal.") -> SA Power Networks must fill out and submit the regulatory templates in this spreadsheet as part of its regulatory proposal.

Sheet 1.0 Business & other details
B1: REGULATORY REPORTING STATEMENT
B2: =TradingName -> SA Power Networks
B3: =RCP_1to5 -> 2015-16 to 2019-20
B4: 1.0 BUSINESS & OTHER DETAILS
B7: Instructions
B8: Complete the following business details regulatory template before entering data or values in any other regulatory template. This regulatory template is linked to other cells within the spreadsheet and automatically generates column headings.
B10: TABLE 1.2.1 - SUBMISSION PARTICULARS INPUT SHEETS
B12: Entity details
B14: Trading name | C14: SA Power Networks
B15: ACN / ABN | C15: 13332330749
B18: Business address | C18: Address 1 | E18: 1 Anzac Highway
D19: Address 2
C20: Suburb | E20: Keswick
D21: State | E21: SA | F21: p/code | G21: 5035
B23: Postal address | C23: Address 1 | E23: GPO Box 77
D24: Address 2
C25: Suburb | E25: Adelaide
D26: State | E26: SA | F26: p/code | G26: 5001
B29: Contact name/s | C29: Richard Sibly | F29: Wayne Lissner
B30: Contact phone/s | C30: 884045613 | F30: 884045391
B31: Contact email address/s | C31: richard.sibly@sapowernetworks.com.au | F31: wayne.lissner@sapowernetworks.com.au
B33: Regulatory control period details
B35: Forthcoming regulatory control period | C35: 2015-16 | D35: 2016-17 | E35: 2017-18 | F35: 2018-19 | G35: 2019-20
B38: Current regulatory control period | C38: 2010-11 | D38: 2011-12 | E38: 2012-13 | F38: 2013-14 | G38: 2014-15
B41: Previous regulatory control period | C41: 2005-06 | D41: 2006-07 | E41: 2007-08 | F41: 2008-09 | G41: 2009-10
B44: Sector | C44: Electricity
B45: Segment | C45: Distribution
B46: Source | C46: Regulatory proposal
B47: Regulatory Year Ending | C47: 2020
B48: Reporting Period Type | C48: Financial
B49: RIN Type | C49: Reset
B50: Security Classification | C50: Public
B51: Estimated or actual | C51: Consolidated
B52: RIN response - version no. | C52: 1
B53: RIN response - amendment reason | C53: Revised Proposal RIN Submission
B54: RIN template - version no. | C54: 2
B55: $ real | C55: June 2015

Sheet 2.1 Expenditure summary
C1: REGULATORY REPORTING STATEMENT
C2: =TradingName -> SA Power Networks
C3: =RCP_1to5 -> 2015-16 to 2019-20
C4: 2.1 EXPENDITURE SUMMARY & RECONCILIATION
C8: TABLE 2.1.1 - STANDARD CONTROL SERVICES CAPEX
D10: =CONCATENATE("Forecast ($000's real, ", DollarReal, ")") -> Forecast ($000's real, June 2015)
E11: Forthcoming regulatory period
D12: =CRCP_y5 -> 2014-15 | E12: =FRCP -> 2015-16 | F12: 2016-17 | G12: 2017-18 | H12: 2018-19 | I12: 2019-20
A13: ED_EXP211_00001 | C13: Replacement expenditure | D13: 111737.4928 | E13: 122508.8035 | F13: 139872.597 | G13: 145685.4099 | H13: 147809.9078 | I13: 144477.3588
A14: ED_EXP211_00002 | C14: Connections | D14: 90101.41973 | E14: 101485.1921 | F14: 105247.6715 | G14: 107864.1531 | H14: 115327.1869 | I14: 122635.8247
A15: ED_EXP211_00003 | C15: Augmentation Expenditure | D15: 111194.3658 | E15: 121935.3055 | F15: 138633.0815 | G15: 132246.705 | H15: 118065.8842 | I15: 98183.88329
A16: ED_EXP211_00004 | C16: Non-network | D16: 101718.508 | E16: 129325.5216 | F16: 127656.103 | G16: 106085.9285 | H16: 103733.3763 | I16: 94809.70555
A17: ED_EXP211_00005 | C17: capitalised network overheads | D17: 15719.40967 | E17: 17476.21708 | F17: 17264.07237 | G17: 17765.70549 | H17: 18215.98379 | I17: 18660.39621
A18: ED_EXP211_00006 | C18: capitalised corporate overheads | D18: 0 | E18: 2479.437885 | F18: -9673.618748 | G18: -9649.485877 | H18: -9630.21593 | I18: -9693.941259
A19: ED_EXP211_00007 | C19: balancing item
A20: ED_EXP211_00007
A21: ED_EXP211_00007
A22: ED_EXP211_00007
A23: ED_EXP211_00007
A24: ED_EXP211_00007
A25: ED_EXP211_00007
A26: ED_EXP211_00007
A27: ED_EXP211_00007
A28: ED_EXP211_00007
A29: ED_EXP211_00007
A30: ED_EXP211_00007
A31: ED_EXP211_00007
A32: ED_EXP211_00007
A33: ED_EXP211_00007
A34: ED_EXP211_00007
A35: ED_EXP211_00007 | C35: balancing item | D35: -35760.73503 | E35: -2352.905 | F35: -2991.015 | G35: -3042.262 | H35: -3698.292 | I35: -3782.343
C36: TOTAL GROSS CAPEX (includes capcons) | D36: =SUM(D13:D35) -> 394710.461 | E36: 492857.5726 | F36: =SUM(F13:F35) -> 516008.8917 | G36: 496956.1542 | H36: 489823.8311 | I36: 465290.8843
A37: ED_EXP211_00009 | C37: capcons | D37: -70137 | E37: -71303.2662 | F37: -71610.38167 | G37: -73381.84651 | H37: -78100.86116 | I37: -83314.96162
C39: TABLE 2.1.2 - STANDARD CONTROL SERVICES OPEX BY CATEGORY
D41: Forecast ($000's real June 2015)
D43: =CRCP_y5 -> 2014-15
A44: ED_EXP212_00001 | C44: Vegetation management
A45: ED_EXP212_00002 | C45: Maintenance
A46: ED_EXP212_00003 | C46: Emergency response
A47: ED_EXP212_00004 | C47: Non-network
A48: ED_EXP212_00004 | C48: network overheads
A49: ED_EXP212_00004 | C49: corporate overheads
A50: ED_EXP212_00004
A51: ED_EXP212_00004
A52: ED_EXP212_00004
A53: ED_EXP212_00004
A54: ED_EXP212_00004
A55: ED_EXP212_00004
A56: ED_EXP212_00004
A57: ED_EXP212_00004
A58: ED_EXP212_00004
A59: ED_EXP212_00004
A60: ED_EXP212_00004
A61: ED_EXP212_00004
A62: ED_EXP212_00004
A63: ED_EXP212_00004
A64: ED_EXP212_00004
A65: ED_EXP212_00007 | C65: balancing item
C66: TOTAL OPEX | D66: =SUM(D44:D65) -> 0
C68: TABLE 2.1.3 - ALTERNATIVE CONTROL SERVICES CAPEX
D70: =CONCATENATE("Forecast ($000's real, ", DollarReal, ")") -> Forecast ($000's real, June 2015)
E71: Forthcoming regulatory period
D72: =CRCP_y5 -> 2014-15 | E72: =FRCP -> 2015-16 | F72: 2016-17 | G72: 2017-18 | H72: 2018-19 | I72: 2019-20
A73: ED_EXP213_00001 | C73: Connections | D73: 0 | E73: 0 | F73: 0 | G73: 0 | H73: 0 | I73: 0
A74: ED_EXP213_00002 | C74: Metering | D74: 12868.674 | E74: 3688.205108 | F74: 3307.817827 | G74: 4066.104842 | H74: 3203.464073 | I74: 4598.236035
A75: ED_EXP213_00003 | C75: Public lighting | D75: 0 | E75: 0 | F75: 0 | G75: 0 | H75: 0 | I75: 0
A76: ED_EXP213_00003 | C76: Fee and quoted | D76: 0 | E76: 0 | F76: 0 | G76: 0 | H76: 0 | I76: 0
A77: ED_EXP213_00003 | C77: Capitalised Network Overheads | D77: 235.3254388 | E77: 68.44335925 | F77: 55.76604424 | G77: 70.7086859 | H77: 58.10241799 | I77: 89.17536665
A78: ED_EXP213_00003 | C78: Capitalised Corporate Overheads | D78: -126.6962887 | E78: 0 | F78: 0 | G78: 0 | H78: 0 | I78: 0
A79: ED_EXP213_00003
A80: ED_EXP213_00003
A81: ED_EXP213_00003
A82: ED_EXP213_00003
A83: ED_EXP213_00003
A84: ED_EXP213_00003
A85: ED_EXP213_00003
A86: ED_EXP213_00003
A87: ED_EXP213_00003
A88: ED_EXP213_00003
A89: ED_EXP213_00003
A90: ED_EXP213_00003
A91: ED_EXP213_00003
A92: ED_EXP213_00005 | C92: balancing item | D92: 0 | E92: 0 | F92: 0 | G92: 0 | H92: 0 | I92: 0
C93: TOTAL CAPEX | D93: =SUM(D73:D92) -> 12977.30315 | E93: 3756.648467 | F93: 3363.583872 | G93: 4136.813527 | H93: 3261.566491 | I93: 4687.411401
C95: TABLE 2.1.4 - ALTERNATIVE CONTROL SERVICES OPEX
D97: =CONCATENATE("Forecast ($000's real, ", DollarReal, ")") -> Forecast ($000's real, June 2015)
E98: Forthcoming regulatory period
E99: =FRCP -> 2015-16 | F99: 2016-17 | G99: 2017-18 | H99: 2018-19 | I99: 2019-20
A100: ED_EXP214_00001 | C100: Connections | D100: 0 | E100: 0 | F100: 0 | G100: 0 | H100: 0 | I100: 0
A101: ED_EXP214_00002 | C101: Metering | D101: 5563.708 | E101: 8779.128356 | F101: 8714.049295 | G101: 8112.246957 | H101: 8136.272036 | I101: 8044.386308
A102: ED_EXP214_00003 | C102: Public lighting | D102: 0 | E102: 0 | F102: 0 | G102: 0 | H102: 0 | I102: 0
A103: ED_EXP214_00004 | C103: Fee and quoted | D103: 0 | E103: 0 | F103: 0 | G103: 0 | H103: 0 | I103: 0
A104: ED_EXP214_00004 | C104: Network Overheads | D104: 179.4544822 | E104: 347.4116245 | F104: 349.9549569 | G104: 336.7643303 | H104: 341.6562146 | I104: 340.5219958
A105: ED_EXP214_00004 | C105: Corporate Overheads | D105: 848.2535684 | E105: 886.3726334 | F105: 883.7727529 | G105: 826.3263516 | H105: 831.4283 | I105: 824.9292565
A106: ED_EXP214_00004 | C106: Non-network | D106: 190.135 | E106: 227.6766873 | F106: 225.6700522 | G106: 210.0988012 | H106: 210.5004953 | I106: 208.1430964
A107: ED_EXP214_00004
A108: ED_EXP214_00004
A109: ED_EXP214_00004
A110: ED_EXP214_00004
A111: ED_EXP214_00004
A112: ED_EXP214_00004
A113: ED_EXP214_00004
A114: ED_EXP214_00004
A115: ED_EXP214_00004
A116: ED_EXP214_00004
A117: ED_EXP214_00004
A118: ED_EXP214_00004
A119: ED_EXP214_00005 | C119: balancing item | D119: -190.135 | E119: -227.6766873 | F119: -225.6700522 | G119: -210.0988012 | H119: -210.5004953 | I119: -208.1430964
C120: TOTAL OPEX | D120: =SUM(D100:D119) -> 6591.416051 | E120: =SUM(E100:E119) -> 10012.91261 | F120: 9947.777004 | G120: 9275.337639 | H120: 9309.35655 | I120: 9209.83756
C122: TABLE 2.1.5 - DUAL FUNCTION ASSETS CAPEX
D124: =CONCATENATE("Forecast ($000's real, ", DollarReal, ")") -> Forecast ($000's real, June 2015)
E125: Forthcoming regulatory period
D126: =CRCP_y5 -> 2014-15 | E126: =FRCP -> 2015-16 | F126: 2016-17 | G126: 2017-18 | H126: 2018-19 | I126: 2019-20
A127: ED_EXP215_00001 | C127: Replacement expenditure
A128: ED_EXP215_00002 | C128: Connections
A129: ED_EXP215_00003 | C129: Augmentation Expenditure
A130: ED_EXP215_00004 | C130: Non-network
A131: ED_EXP215_00005 | C131: capitalised network overheads
A132: ED_EXP215_00006 | C132: capitalised corporate overheads
A133: ED_EXP215_00006
A134: ED_EXP215_00006
A135: ED_EXP215_00006
A136: ED_EXP215_00006
A137: ED_EXP215_00006
A138: ED_EXP215_00006
A139: ED_EXP215_00006
A140: ED_EXP215_00006
A141: ED_EXP215_00006
A142: ED_EXP215_00006
A143: ED_EXP215_00006
A144: ED_EXP215_00006
A145: ED_EXP215_00006
A146: ED_EXP215_00006
A147: ED_EXP215_00006
A148: ED_EXP215_00007 | C148: balancing item
C149: TOTAL GROSS CAPEX (includes capcons) | D149: =SUM(D127:D148) -> 0 | E149: =SUM(E127:E148) -> 0 | F149: 0 | G149: 0 | H149: 0 | I149: 0
A150: ED_EXP215_00009 | C150: capcons
C152: TABLE 2.1.6 - DUAL FUNCTION ASSETS OPEX BY CATEGORY
D154: Forecast ($000's real June 2015)
D156: =CRCP_y5 -> 2014-15
A157: ED_EXP216_00001 | C157: Vegetation management
A158: ED_EXP216_00002 | C158: Maintenance
A159: ED_EXP216_00003 | C159: Emergency response
A160: ED_EXP216_00004 | C160: Non-network
A161: ED_EXP216_00005 | C161: network overheads
A162: ED_EXP216_00006 | C162: corporate overheads
A163: ED_EXP216_00006
A164: ED_EXP216_00006
A165: ED_EXP216_00006
A166: ED_EXP216_00006
A167: ED_EXP216_00006
A168: ED_EXP216_00006
A169: ED_EXP216_00006
A170: ED_EXP216_00006
A171: ED_EXP216_00006
A172: ED_EXP216_00006
A173: ED_EXP216_00006
A174: ED_EXP216_00006
A175: ED_EXP216_00006
A176: ED_EXP216_00006
A177: ED_EXP216_00006
A178: ED_EXP216_00007 | C178: balancing item
C179: TOTAL OPEX | D179: =SUM(D157:D178) -> 0

Sheet 2.2 Repex
C1: REGULATORY REPORTING STATEMENT
C2: ='[2]1.0 Business & other details '!C14 -> 0
C3: =RCP_1to5 -> 2015-16 to 2019-20
C4: 2.2 REPEX
C6: TABLE 2.2.1 - REPLACEMENT EXPENDITURE, VOLUMES AND ASSET FAILURES BY ASSET CATEGORY
E9: =CONCATENATE("EXPENDITURE ($000's, real ", DollarReal,")") -> EXPENDITURE ($000's, real June 2015) | K9: ASSET REPLACEMENTS | Q9: ASSET FAILURES
C10: ASSET GROUP | D10: ASSET CATEGORY | E10: =CRCP_y5 -> 2014-15 | F10: =FRCP -> 2015-16 | G10: 2016-17 | H10: 2017-18 | I10: 2018-19 | J10: 2019-20 | K10: =CRCP_y5 -> 2014-15 | L10: =FRCP -> 2015-16 | M10: 2016-17 | N10: 2017-18 | O10: 2018-19 | P10: 2019-20 | Q10: =CRCP_y5 -> 2014-15 | R10: =FRCP -> 2015-16 | S10: 2016-17 | T10: 2017-18 | U10: 2018-19 | V10: 2019-20
A11: ED_REP221_00001 | C11: POLES BY: Highest operating voltage; Material type; Staking (if wood) | D11: Staking of a wooden pole
A12: ED_REP221_00002 | D12: ˂ = 1 kV; Wood
A13: ED_REP221_00003 | D13: > 1 kV & < = 11 kV; Wood
A14: ED_REP221_00004 | D14: ˃ 11 kV & < = 22 kV; Wood
A15: ED_REP221_00005 | D15: > 22 kV & < = 66 kV; Wood
A16: ED_REP221_00006 | D16: > 66 kV & < = 132 kV; Wood
A17: ED_REP221_00007 | D17: > 132 kV; Wood
A18: ED_REP221_00008 | D18: ˂ = 1 kV; Concrete
A19: ED_REP221_00009 | D19: > 1 kV & < = 11 kV; Concrete
A20: ED_REP221_00010 | D20: ˃ 11 kV & < = 22 kV; Concrete
A21: ED_REP221_00011 | D21: > 22 kV & < = 66 kV; Concrete
A22: ED_REP221_00012 | D22: > 66 kV & < = 132 kV; Concrete
A23: ED_REP221_00013 | D23: > 132 kV; Concrete
A24: ED_REP221_00014 | D24: ˂ = 1 kV; Steel
A25: ED_REP221_00015 | D25: > 1 kV & < = 11 kV; Steel
A26: ED_REP221_00016 | D26: ˃ 11 kV & < = 22 kV; Steel
A27: ED_REP221_00017 | D27: > 22 kV & < = 66 kV; Steel
A28: ED_REP221_00018 | D28: > 66 kV & < = 132 kV; Steel
A29: ED_REP221_00019 | D29: > 132 kV; Steel
A30: ED_REP221_00020 | D30: Other
A31: ED_REP221_00033 | C31: POLE TOP STRUCTURES BY: Highest operating voltage | D31: ˂ = 1 kV
A32: ED_REP221_00034 | D32: > 1 kV & < = 11 kV
A33: ED_REP221_00035 | D33: ˃ 11 kV & < = 22 kV
A34: ED_REP221_00036 | D34: > 22 kV & < = 66 kV
A35: ED_REP221_00037 | D35: > 66 kV & < = 132 kV
A36: ED_REP221_00038 | D36: > 132 kV
A37: ED_REP221_00039 | D37: Other
A38: ED_REP221_00040 | C38: OVERHEAD CONDUCTORS BY: Highest operating voltage; Number of phases (at HV) | D38: ˂ = 1 kV
A39: ED_REP221_00041 | D39: > 1 kV & < = 11 kV
A40: ED_REP221_00042 | D40: ˃ 11 kV & < = 22 kV ; SWER
A41: ED_REP221_00043 | D41: ˃ 11 kV & < = 22 kV ; Single-Phase
A42: ED_REP221_00044 | D42: ˃ 11 kV & < = 22 kV ; Multiple-Phase
A43: ED_REP221_00045 | D43: > 22 kV & < = 66 kV
A44: ED_REP221_00046 | D44: > 66 kV & < = 132 kV
A45: ED_REP221_00047 | D45: > 132 kV
A46: ED_REP221_00048 | D46: Other
A47: ED_REP221_00049 | C47: UNDERGROUND CABLES BY: Highest operating voltage | D47: ˂ = 1 kV
A48: ED_REP221_00050 | D48: > 1 kV & < = 11 kV
A49: ED_REP221_00051 | D49: > 11 kV & < = 22 kV
A50: ED_REP221_00052 | D50: > 22 kV & < = 33 kV
A51: ED_REP221_00053 | D51: > 33 kV & < = 66 kV
A52: ED_REP221_00054 | D52: > 66 kV & < = 132 kV
A53: ED_REP221_00055 | D53: > 132 kV
A54: ED_REP221_00056 | D54: Other
A55: ED_REP221_00057 | C55: SERVICE LINES BY: Connection voltage; Customer type; Connection complexity | D55: ˂ = 11 kV ; Residential ; Simple Type
A56: ED_REP221_00058 | D56: ˂ = 11 kV ; Commercial & Industrial ; Simple Type
A57: ED_REP221_00059 | D57: ˂ = 11 kV ; Residential ; Complex Type
A58: ED_REP221_00060 | D58: ˂ = 11 kV ; Commercial & Industrial ; Complex Type
A59: ED_REP221_00061 | D59: ˂ = 11 kV ; Subdivision ; Complex Type
A60: ED_REP221_00062 | D60: > 11 kV & < = 22 kV ; Commercial & Industrial
A61: ED_REP221_00063 | D61: > 11 kV & < = 22 kV ; Subdivision
A62: ED_REP221_00064 | D62: > 22 kV & < = 33 kV ; Commercial & Industrial
A63: ED_REP221_00065 | D63: > 22 kV & < = 33 kV ; Subdivision
A64: ED_REP221_00066 | D64: > 33 kV & < = 66 kV ; Commercial & Industrial
A65: ED_REP221_00067 | D65: > 33 kV & < = 66 kV ; Subdivision
A66: ED_REP221_00068 | D66: > 66 kV & < = 132 kV ; Commercial & Industrial
A67: ED_REP221_00069 | D67: > 66 kV & < = 132 kV ; Subdivision
A68: ED_REP221_00070 | D68: > 132 kV ; Commercial & Industrial
A69: ED_REP221_00071 | D69: > 132 kV ; Subdivision
A70: ED_REP221_00072 | D70: Other
A71: ED_REP221_00073 | C71: TRANSFORMERS BY: Mounting type; Highest operating voltage; Ampere rating; Number of phases (at LV) | D71: Pole Mounted ; < = 22kV ; < = 60 kVA ; Single Phase
A72: ED_REP221_00074 | D72: Pole Mounted ; < = 22kV ; > 60 kVA and < = 600 kVA ; Single Phase
A73: ED_REP221_00075 | D73: Pole Mounted ; < = 22kV ; > 600 kVA ; Single Phase
A74: ED_REP221_00076 | D74: Pole Mounted ; < = 22kV ; < = 60 kVA ; Multiple Phase
A75: ED_REP221_00077 | D75: Pole Mounted ; < = 22kV ; > 60 kVA and < = 600 kVA ; Multiple Phase
A76: ED_REP221_00078 | D76: Pole Mounted ; < = 22kV ; > 600 kVA ; Multiple Phase
A77: ED_REP221_00079 | D77: Kiosk Mounted ; < = 22kV ; < = 60 kVA ; Single Phase
A78: ED_REP221_00080 | D78: Kiosk Mounted ; < = 22kV ; > 60 kVA and < = 600 kVA ; Single Phase
A79: ED_REP221_00081 | D79: Kiosk Mounted ; < = 22kV ; > 600 kVA ; Single Phase
A80: ED_REP221_00082 | D80: Kiosk Mounted ; < = 22kV ; < = 60 kVA ; Multiple Phase
A81: ED_REP221_00083 | D81: Kiosk Mounted ; < = 22kV ; > 60 kVA and < = 600 kVA ; Multiple Phase
A82: ED_REP221_00084 | D82: Kiosk Mounted ; < = 22kV ; > 600 kVA ; Multiple Phase
A83: ED_REP221_00085 | D83: Ground Outdoor / Indoor Chamber Mounted; ˂ 22 kV ; < = 60 kVA ; Single Phase
A84: ED_REP221_00086 | D84: Ground Outdoor / Indoor Chamber Mounted; ˂ 22 kV ; > 60 kVA and < = 600 kVA ; Single Phase
A85: ED_REP221_00087 | D85: Ground Outdoor / Indoor Chamber Mounted; ˂ 22 kV ; > 600 kVA ; Single Phase
A86: ED_REP221_00088 | D86: Ground Outdoor / Indoor Chamber Mounted; ˂ 22 kV ; < = 60 kVA ; Multiple Phase
A87: ED_REP221_00089 | D87: Ground Outdoor / Indoor Chamber Mounted; ˂ 22 kV ; > 60 kVA and < = 600 kVA ; Multiple Phase
A88: ED_REP221_00090 | D88: Ground Outdoor / Indoor Chamber Mounted; ˂ 22 kV ; > 600 kVA ; Multiple Phase
A89: ED_REP221_00091 | D89: Ground Outdoor / Indoor Chamber Mounted; > = 22 kV & < = 33 kV ; < = 15 MVA
A90: ED_REP221_00092 | D90: Ground Outdoor / Indoor Chamber Mounted; > = 22 kV & < = 33 kV ; > 15 MVA and < = 40 MVA
A91: ED_REP221_00093 | D91: Ground Outdoor / Indoor Chamber Mounted; > = 22 kV & < = 33 kV ; > 40 MVA
A92: ED_REP221_00094 | D92: Ground Outdoor / Indoor Chamber Mounted; > 33 kV & < = 66 kV ; < = 15 MVA
A93: ED_REP221_00095 | D93: Ground Outdoor / Indoor Chamber Mounted; > 33 kV & < = 66 kV ; > 15 MVA and < = 40 MVA
A94: ED_REP221_00096 | D94: Ground Outdoor / Indoor Chamber Mounted; > 33 kV & < = 66 kV ; > 40 MVA
A95: ED_REP221_00097 | D95: Ground Outdoor / Indoor Chamber Mounted; > 66 kV & < = 132 kV ; < = 100 MVA
A96: ED_REP221_00098 | D96: Ground Outdoor / Indoor Chamber Mounted; > 66 kV & < = 132 kV ; > 100 MVA
A97: ED_REP221_00099 | D97: Ground Outdoor / Indoor Chamber Mounted; > 132 kV ; < = 100 MVA
A98: ED_REP221_00100 | D98: Ground Outdoor / Indoor Chamber Mounted; > 132 kV ; > 100 MVA
A99: ED_REP221_00101 | D99: Other
A100: ED_REP221_00102 | C100: SWITCHGEAR BY: Highest operating voltage; Switch function | D100: ˂ = 11 kV ; Fuse
A101: ED_REP221_00103 | D101: ˂ = 11 kV ; Switch
A102: ED_REP221_00104 | D102: ˂ = 11 kV ; Circuit Breaker
A103: ED_REP221_00107 | D103: > 11 kV & < = 22 kV ; Switch
A104: ED_REP221_00108 | D104: > 11 kV & < = 22 kV ; Circuit Breaker
A105: ED_REP221_00111 | D105: > 22 kV & < = 33 kV ; Switch
A106: ED_REP221_00112 | D106: > 22 kV & < = 33 kV ; Circuit Breaker
A107: ED_REP221_00115 | D107: > 33 kV & < = 66 kV ; Switch
A108: ED_REP221_00116 | D108: > 33 kV & < = 66 kV ; Circuit Breaker
A109: ED_REP221_00118 | D109: > 66 kV & < = 132 kV ; Switch
A110: ED_REP221_00119 | D110: > 66 kV & < = 132 kV ; Circuit Breaker
A111: ED_REP221_00120 | D111: > 132 kV ; Switch
A112: ED_REP221_00121 | D112: > 132 kV ; Circuit Breaker
A113: ED_REP221_00122 | D113: Other
A114: ED_REP221_00123 | C114: PUBLIC LIGHTING BY: Asset type ; Lighting obligation | D114: Luminaires ; Major Road
A115: ED_REP221_00124 | D115: Luminaires ; Minor Road
A116: ED_REP221_00125 | D116: Brackets ; Major Road
A117: ED_REP221_00126 | D117: Brackets ; Minor Road
A118: ED_REP221_00127 | D118: Lamps ; Major Road
A119: ED_REP221_00128 | D119: Lamps ; Minor Road
A120: ED_REP221_00129 | D120: Poles / Columns ; Major Road
A121: ED_REP221_00130 | D121: Poles / Columns ; Minor Road
A122: ED_REP221_00131 | D122: Other
A123: ED_REP221_00132 | C123: SCADA, NETWORK CONTROL AND PROTECTION SYSTEMS BY: Function | D123: Field Devices
A124: ED_REP221_00133 | D124: Local Network Wiring Assets
A125: ED_REP221_00134 | D125: Communications Network Assets
A126: ED_REP221_00135 | D126: Master Station Assets
A127: ED_REP221_00136 | D127: Communications Site Infrastructure
A128: ED_REP221_00137 | D128: Communications Linear Assets
A129: ED_REP221_00138 | D129: AFLC
A130: ED_REP221_00139 | D130: Other
A131: ED_REP221_00140 | C131: OTHER BY: DNSP defined | D131: Non Category Substation asset replacement/refurbishment
A132: ED_REP221_00141 | D132: Ground Outdoor / Indoor Chamber Mounted; > = 22 kV & < = 33 kV ; < = 15 MVA REFURBISHED
A133: ED_REP221_00142 | D133: Ground Outdoor / Indoor Chamber Mounted; > 33 kV & < = 66 kV ; < = 15 MVA REFURBISHED
A134: ED_REP221_00143 | D134: Ground Outdoor / Indoor Chamber Mounted; > 33 kV & < = 66 kV ; > 15 MVA and < = 40 MVA REFURBISHED
A135: ED_REP221_00144 | D135: ˂ = 11 kV ; Circuit Breaker REFURBISHED
A136: ED_REP221_00145 | D136: > 22 kV & < = 33 kV ; Circuit Breaker REFURBISHED
A137: ED_REP221_00146 | D137: > 33 kV & < = 66 kV ; Circuit Breaker REFURBISHED
A138: ED_REP221_00147 | D138: Pipe Buswork Substations
A139: ED_REP221_00148 | D139: Pole REFURBISHED; STOBIE Pole
A140: ED_REP221_00149 | D140: Line Ancillary Assets
A141: ED_REP221_00150 | D141: Distribution Earthing
A142: ED_REP221_00151 | D142: CBD (Distribution substations refurbishment)
A143: ED_REP221_00152 | D143: CBD (ducts & manholes)
A144: ED_REP221_00153 | D144: Asbestos
A145: ED_REP221_00154 | D145: Asset Condition Monitoring (Lines)
A146: ED_REP221_00155 | D146: Asset Condition Monitoring (Substations)
A147: ED_REP221_00156 | D147: POLE MOUNTED ; > 22 kV ; < ≈ 60 kVA ; SINGLE PHASE
A148: ED_REP221_00157 | D148: POLE MOUNTED ; > 22 kV ; > 60 kVA and < ≈ 600 kVA ; SINGLE PHASE
A149: ED_REP221_00158 | D149: POLE MOUNTED ; > 22 kV ; < ≈ 60 kVA ; MULTIPLE PHASE
A150: ED_REP221_00159 | D150: POLE MOUNTED ; > 22 kV ; > 60 kVA and < ≈ 600 Kva; MULTIPLE PHASE
A151: ED_REP221_00160 | D151: Sectionalisers
A152: ED_REP221_00161 | D152: Reclosers
A153: ED_REP221_00162 | D153: >=11kV & <=22kV;LOAD BREAK SWITCH;GROUND LEVEL(Switching Cubicle);SWITCHGEAR
A154: ED_REP221_00163 | D154: Strategic Line Maintenance Spares
A155: ED_REP221_00164 | D155: Standby Power Station
A156: ED_REP221_00165
A157: ED_REP221_00166
A158: ED_REP221_00167
A159: ED_REP221_00168
A160: ED_REP221_00169
A161: ED_REP221_00170
A162: ED_REP221_00171
A163: ED_REP221_00172
A164: ED_REP221_00173
A165: ED_REP221_00174
A166: ED_REP221_00175
A167: ED_REP221_00176
A168: ED_REP221_00177
A169: ED_REP221_00178
A170: ED_REP221_00179
A171: ED_REP221_00180

Sheet 2.3 Augex
C1: REGULATORY REPORTING STATEMENT | G1: Worksheet navigation
C2: =TradingName -> SA Power Networks
C3: =RCP_1to5 -> 2015-16 to 2019-20 | D3: New line on new route - single circuit | E3: New line on new route - dual circuit | F3: New line on new route - other | G3: Line rebuild over existing route - single circuit | H3: Line rebuild over existing route - dual circuit | I3: Reconductor - Single circuit | J3: Reconductor - Dual circuit | K3: Reconductor - Other | L3: Line upgrade - raising/retensoring | M3: Line upgrade - voltage upgrade | N3: Line upgrade - capacity | O3: String spare circuit | P3: Other - specify
C4: 2.3 AUGEX PROJECT DATA
C7: TABLE 2.3.1 - AUGEX ASSET DATA - SUBTRANSMISSION SUBSTATIONS, SWITCHING STATIONS AND ZONE SUBSTATIONS
C8: NOTE: DNSP MUST PROVIDE EXPENDITURE INFORMATION ON A PROJECT CLOSE BASIS.
A9: AUG231 | C9: AUG231_1 | D9: AUG231_2 | E9: AUG231_3 | F9: AUG231_4 | G9: AUG231_5 | H9: AUG231_6 | I9: ED_AUG231_00001 | J9: ED_AUG231_00002 | K9: ED_AUG231_00003 | L9: ED_AUG231_00004 | M9: ED_AUG231_00005 | N9: ED_AUG231_00006 | O9: ED_AUG231_00007 | P9: ED_AUG231_00008 | Q9: ED_AUG231_00009 | R9: ED_AUG231_00010 | S9: ED_AUG231_00011 | T9: ED_AUG231_00012 | U9: ED_AUG231_00013 | V9: ED_AUG231_00014 | W9: ED_AUG231_00015 | X9: ED_AUG231_00016 | Y9: ED_AUG231_00017 | Z9: ED_AUG231_00018 | AA9: ED_AUG231_00019 | AB9: ED_AUG231_00020 | AC9: ED_AUG231_00021 | AD9: ED_AUG231_00022 | AE9: ED_AUG231_00023
C10: PROJECT DESCRIPTION AND CHANGES | M10: PLANT AND EQUIPMENT EXPENDITURE AND VOLUME | W10: OTHER EXPENDITURE | Y10: TOTAL DIRECT EXPENDITURE ($000's) | Z10: YEARS INCURRED | AA10: ALL RELATED PARTY CONTRACTS | AC10: ALL NON RELATED PARTYCONTRACTS | AD10: LAND AND EASEMENTS
C11: SUBSTATION ID | D11: SUBSTATION TYPE | E11: PROJECT ID | F11: PROJECT TYPE | G11: PROJECT TRIGGER | H11: VOLTAGE (KV) | I11: SUBSTATION RATING NORMAL CYCLIC (MVA) | K11: SUBSTATION RATING N-1 EMERGENCY (MVA) | M11: TRANSFORMERS | P11: SWITCHGEAR | R11: CAPACITORS | T11: OTHER PLANT ITEM | U11: INSTALLATION (LABOUR) | W11: CIVIL WORKS | X11: OTHER DIRECT | AA11: RELATED PARTY MARGINS | AB11: TOTAL | AD11: LAND PURCHASE | AE11: EASEMENTS
I12: PRE | J12: POST | K12: PRE | L12: POST | M12: UNITS ADDED | N12: MVA ADDED | O12: EXPENDITURE ($000's) | P12: UNITS ADDED | Q12: EXPENDITURE ($000's) | R12: MVAR ADDED | S12: EXPENDITURE ($000's) | T12: EXPENDITURE ($000's) | U12: VOLUME | V12: EXPENDITURE ($000's) | W12: EXPENDITURE ($000's) | AA12: EXPENDITURE ($000's) | AD12: EXPENDITURE ($000's)
A13: AUG231_1 | Y13: =SUM(O13,Q13,S13,T13,V13,W13,X13) -> 0
A14: AUG231_2 | Y14: 0
A15: AUG231_3 | Y15: 0
A16: AUG231_4 | Y16: 0
A17: AUG231_5 | Y17: 0
A18: AUG231_6 | Y18: 0
A19: AUG231_7 | Y19: 0
A20: AUG231_8 | Y20: 0
A21: AUG231_9 | Y21: 0
A22: AUG231_10 | Y22: 0
A23: AUG231_11 | Y23: 0
A24: AUG231_12 | Y24: 0
A25: AUG231_13 | Y25: 0
A26: AUG231_14 | Y26: 0
A27: AUG231_15 | Y27: 0
A28: AUG231_16 | Y28: 0
A29: AUG231_17 | Y29: 0
A30: AUG231_18 | Y30: 0
A31: AUG231_19 | Y31: 0
A32: AUG231_20 | Y32: 0
A33: AUG231_21 | Y33: 0
A34: AUG231_22 | Y34: 0
A35: AUG231_23 | Y35: 0
A36: AUG231_24 | Y36: 0
A37: AUG231_25 | Y37: 0
A38: AUG231_26 | Y38: 0
A39: AUG231_27 | Y39: 0
A40: AUG231_28 | Y40: 0
A41: AUG231_29 | Y41: 0
A42: AUG231_30 | Y42: 0
A43: AUG231_31 | Y43: 0
A44: AUG231_32 | Y44: 0
A45: AUG231_33 | Y45: =SUM(O45,Q45,S45,T45,V45,W45,X45) -> 0
A46: AUG231_34 | Y46: 0
A47: AUG231_35 | Y47: 0
A48: AUG231_36 | Y48: 0
A49: AUG231_37 | Y49: 0
A50: AUG231_38 | Y50: 0
A51: AUG231_39 | Y51: 0
A52: AUG231_40 | Y52: 0
A53: AUG231_41 | Y53: 0
A54: AUG231_42 | Y54: 0
A55: AUG231_43 | Y55: 0
A56: AUG231_44 | Y56: 0
A57: AUG231_45 | Y57: 0
A58: AUG231_46 | Y58: 0
A59: AUG231_47 | Y59: 0
A60: AUG231_48 | Y60: 0
A61: AUG231_49 | Y61: 0
A62: AUG231_50 | Y62: 0
A63: AUG231_51 | Y63: 0
A64: AUG231_52 | Y64: 0
A65: AUG231_53 | E65: Non material projects - [actual]
A66: AUG231_54 | E66: Non material projects - [forecast]
A68: AUG232 | C68: AUG232_1 | D68: AUG232_2 | E68: AUG232_3 | F68: AUG232_4 | G68: AUG232_5 | H68: AUG232_6 | I68: ED_AUG232_00001 | J68: ED_AUG232_00002 | K68: ED_AUG232_00003 | L68: ED_AUG232_00004 | M68: ED_AUG232_00005 | N68: ED_AUG232_00006 | O68: ED_AUG232_00007 | P68: ED_AUG232_00008 | Q68: ED_AUG232_00009 | R68: ED_AUG232_00010 | S68: ED_AUG232_00011 | T68: ED_AUG232_00012 | U68: ED_AUG232_00013 | V68: ED_AUG232_00014 | W68: ED_AUG232_00015 | X68: ED_AUG232_00016 | Y68: ED_AUG232_00017 | Z68: ED_AUG232_00018 | AA68: ED_AUG232_00019 | AB68: ED_AUG232_00020 | AC68: ED_AUG232_00021
C69: TABLE 2.3.2 - AUGEX ASSET DATA - SUBTRANSMISSION LINES
C70: NOTE: DNSP MUST PROVIDE EXPENDITURE INFORMATION ON A PROJECT CLOSE BASIS.
C71: PROJECT DESCRIPTION AND CHANGES | I71: PLANT AND EQUIPMENT EXPENDITURE AND VOLUME | U71: OTHER EXPENDITURE | W71: TOTAL DIRECT EXPENDITURE ($000's) | X71: YEARS INCURRED | Y71: ALL RELATED PARTY CONTRACTS | AA71: ALL NON RELATED PARTY CONTRACTS | AB71: LAND AND EASEMENTS
C72: LINE ID | D72: PROJECT ID | E72: PROJECT TYPE | F72: PROJECT TRIGGER | G72: VOLTAGE (KV) | H72: ROUTE LINE LENGTH ADDED | I72: POLES/TOWERS (INCLUDING STRUCTURES, AND CIVIL WORKS) | L72: OVERHEAD LINES | O72: UNDERGROUND CABLES | R72: OTHER PLANT ITEM | S72: INSTALLATION (LABOUR) | U72: CIVIL WORKS | V72: OTHER DIRECT | Y72: RELATED PARTY MARGINS | Z72: TOTAL | AB72: LAND PURCHASE | AC72: EASEMENTS
H73: KM ADDED | I73: POLES/TOWERS ADDED | J73: POLES/TOWERS UPGRADED | K73: EXPENDITURE ($000's) | L73: CIRCUIT KM ADDED | M73: CIRCUIT KM UPGRADED | N73: EXPENDITURE ($000's) | O73: CIRCUIT KM ADDED | P73: CIRCUIT KM UPGRADED | Q73: EXPENDITURE ($000's) | R73: EXPENDITURE ($000's) | S73: VOLUME | T73: EXPENDITURE ($000's) | U73: EXPENDITURE ($000's) | Y73: EXPENDITURE ($000's) | AB73: EXPENDITURE ($000's)
A74: AUG232_1 | W74: =SUM(K74,N74,Q74,R74,T74,U74,V74) -> 0
A75: AUG232_2 | W75: 0
A76: AUG232_3 | W76: 0
A77: AUG232_4 | W77: 0
A78: AUG232_5 | W78: 0
A79: AUG232_6 | W79: 0
A80: AUG232_7 | W80: 0
A81: AUG232_8 | W81: 0
A82: AUG232_9 | W82: 0
A83: AUG232_10 | W83: 0
A84: AUG232_11 | W84: 0
A85: AUG232_12 | W85: 0
A86: AUG232_13 | W86: 0
A87: AUG232_14 | W87: 0
A88: AUG232_15 | W88: 0
A89: AUG232_16 | W89: 0
A90: AUG232_17 | W90: 0
A91: AUG232_18 | W91: 0
A92: AUG232_19 | W92: 0
A93: AUG232_20 | W93: 0
A94: AUG232_21 | W94: 0
A95: AUG232_22 | W95: 0
A96: AUG232_23 | W96: 0
A97: AUG232_24 | W97: 0
A98: AUG232_25 | W98: 0
A99: AUG232_26 | W99: 0
A100: AUG232_27 | W100: 0
A101: AUG232_28 | W101: 0
A102: AUG232_29 | W102: 0
A103: AUG232_30 | W103: 0
A104: AUG232_31 | W104: 0
A105: AUG232_32 | W105: 0
A106: AUG232_33 | W106: =SUM(K106,N106,Q106,R106,T106,U106,V106) -> 0
A107: AUG232_34 | W107: 0
A108: AUG232_35 | W108: 0
A109: AUG232_36 | W109: 0
A110: AUG232_37 | W110: 0
A111: AUG232_38 | W111: 0
A112: AUG232_39 | W112: 0
A113: AUG232_40 | W113: 0
A114: AUG232_41 | W114: 0
A115: AUG232_42 | W115: 0
A116: AUG232_43 | W116: 0
A117: AUG232_44 | W117: 0
A118: AUG232_45 | W118: 0
A119: AUG232_46 | W119: 0
A120: AUG232_47 | W120: 0
A121: AUG232_48 | W121: 0
A122: AUG232_49 | W122: 0
A123: AUG232_50 | W123: 0
A124: AUG232_51 | W124: 0
A125: AUG232_52 | W125: 0
A126: AUG232_53 | W126: 0
A127: AUG232_54 | W127: 0
A128: AUG232_55 | D128: Non material projects - [actual]
A129: AUG232_56 | D129: Non material projects - [forecast]
C132: TABLE 2.3.3 - AUGEX DATA - HV/LV FEEDERS AND DISTRIBUTION SUBSTATIONS
C133: NOTE: DNSP MUST PROVIDE EXPENDITURE INFORMATION ON AN AS INCURRED BASIS.
C134: Table 2.3.3.1 Descriptor metrics
D137: UNITS ADDED | K137: UNITS UPGRADED
A138: AUG2331 | C138: PROJECT TYPE | D138: =CRCP_y5 -> 2014-15 | E138: =FRCP -> 2015-16 | F138: 2016-17 | G138: 2017-18 | H138: 2018-19 | I138: 2019-20 | K138: =CRCP_y5 -> 2014-15 | L138: =FRCP -> 2015-16 | M138: 2016-17 | N138: 2017-18 | O138: 2018-19 | P138: 2019-20
A139: ED_AUG2331_00001 | C139: HV Feeder Augmentations - Overhead Lines (Circuit Line Length in KM) | J139: ED_AUG2333_00001
A140: ED_AUG2331_00002 | C140: HV Feeder Augmentations - Underground Cables (Circuit Line Length in KM) | J140: ED_AUG2333_00002
A141: ED_AUG2331_00003 | C141: LV Feeder Augmentations - Overhead Lines (Circuit Line Length in KM) | J141: ED_AUG2333_00003
A142: ED_AUG2331_00004 | C142: LV Feeder Augmentations - Underground Cables (Circuit Line Length in KM) | J142: ED_AUG2333_00004
A143: ED_AUG2331_00005 | C143: Distribution Substation Augmentations - Pole Mounted | J143: ED_AUG2333_00005
A144: ED_AUG2331_00006 | C144: Distribution Substation Augmentations - Ground Mounted | J144: ED_AUG2333_00006
A145: ED_AUG2331_00007 | C145: Distribution Substation Augmentations - Indoor | J145: ED_AUG2333_00007
C147: Table 2.3.3.2 Cost metrics
D150: =CONCATENATE("TOTAL DIRECT EXPENDITURE ($000's, real ", DollarReal,")") -> TOTAL DIRECT EXPENDITURE ($000's, real June 2015)
A151: AUG2332 | C151: PROJECT TYPE | D151: =CRCP_y5 -> 2014-15 | E151: =FRCP -> 2015-16 | F151: 2016-17 | G151: 2017-18 | H151: 2018-19 | I151: 2019-20
A152: ED_AUG2332_00001 | C152: HV Feeder Augmentations - Overhead Lines
A153: ED_AUG2332_00002 | C153: HV Feeder Augmentations - Underground Cables
A154: ED_AUG2332_00003 | C154: HV Feeder Non-Material Projects
A155: ED_AUG2332_00004 | C155: LV Feeder Augmentations - Overhead Lines
A156: ED_AUG2332_00005 | C156: LV Feeder Augmentations - Underground Cables
A157: ED_AUG2332_00006 | C157: LV Feeder Non-Material Projects
A158: ED_AUG2332_00007 | C158: Distribution Substation Augmentations - Pole Mounted
A159: ED_AUG2332_00008 | C159: Distribution Substation Augmentations - Ground Mounted
A160: ED_AUG2332_00009 | C160: Distribution Substation Augmentations - Indoor
C168: TABLE 2.3.4 - AUGEX DATA - TOTAL EXPENDITURE
C169: AUGMENTATION CAPEX | D169: =CONCATENATE("TOTAL DIRECT EXPENDITURE ($000's, real ", DollarReal,")") -> TOTAL DIRECT EXPENDITURE ($000's, real June 2015)
A170: AUG234 | D170: =CRCP_y5 -> 2014-15 | E170: =FRCP -> 2015-16 | F170: 2016-17 | G170: 2017-18 | H170: 2018-19 | I170: 2019-20
A171: ED_AUG234_00001 | C171: Subtransmission Substations, Switching Stations, Zone Substations
A172: ED_AUG234_00002 | C172: Subtransmission Lines
A173: ED_AUG234_00003 | C173: HV Feeders
A174: ED_AUG234_00004 | C174: HV Feeders - Land Purchases and Easements
A175: ED_AUG234_00005 | C175: Distribution Substations
A176: ED_AUG234_00006 | C176: Distribution Substations - Land Purchases and Easements
A177: ED_AUG234_00007 | C177: LV Feeders
A178: ED_AUG234_00008 | C178: LV Feeders - Land Purchases and Easements
A179: ED_AUG234_00009 | C179: Other Assets
A184: PROJECT TYPE FOR TBL 2.3.2
A185: New line on new route - other
A186: Line rebuild over existing route - single circuit
A187: Line rebuild over existing route - dual circuit
A188: Reconductor - Single circuit
A189: Reconductor - Dual circuit
A190: Reconductor - Other
A191: Line upgrade - raising/retensoring
A192: Line upgrade - voltage upgrade
A193: Line upgrade - capacity
A194: String spare circuit
A195: Other

Sheet 2.4 Augex model
C1: REGULATORY REPORTING STATEMENT | J1: Worksheet navigation
C2: =TradingName -> SA Power Networks
C3: =RCP_1to5 -> 2015-16 to 2019-20
C4: 2.4 AUGEX MODEL
A6: ED_AUG241 | H6: ED_AUG241_00001 | I6: ED_AUG241_00002 | J6: ED_AUG241_00003 | K6: ED_AUG241_00004 | L6: ED_AUG241_00005 | M6: ED_AUG241_00006 | N6: ED_AUG241_00007 | O6: ED_AUG241_00008 | P6: ED_AUG241_00009 | Q6: ED_AUG241_00010 | R6: ED_AUG241_00011 | S6: ED_AUG241_00012
C7: TABLE 2.4.1 - AUGEX MODEL INPUTS - ASSET STATUS - SUBTRANSMISSION LINES
C9: Line ID | D9: Primary type of area supplied by line | E9: Line voltage | F9: Originating substation | G9: Terminating substation | H9: =CRCP_y4 -> 2013-14 | M9: =PRCP_y5 -> 2009-10 | R9: =CONCATENATE("Average per annum growth rate in annual line maximum demand (50% PoE) from ", CRCP_y4, " to ", FRCP_y5) -> Average per annum growth rate in annual line maximum demand (50% PoE) from 2013-14 to 2019-20 | S9: Network Segment ID
H10: Route line length as at 30 June of year | I10: Maximum demand (weather corrected at 50% PoE) | K10: Line rating | M10: Route line length as at 30 June of year | N10: Maximum demand (weather corrected at 50% PoE) | P10: Line rating
K11: Thermal | L11: N-1 emergency | P11: Thermal | Q11: N-1 emergency
D12: CBD, urban, long rural, or short rural | E12: kV | F12: name | G12: name | H12: km | I12: MVA | J12: MW | K12: MVA | L12: MVA | M12: km | N12: MVA | O12: MW | P12: MVA | Q12: MVA | R12: %
A13: AUG241_1
A14: AUG241_2
A15: AUG241_3
A16: AUG241_4
A17: AUG241_5
A18: AUG241_6
A19: AUG241_7
A20: AUG241_8
A21: AUG241_9
A22: AUG241_10
A23: AUG241_11
A24: AUG241_12
A25: AUG241_13
A26: AUG241_14
A27: AUG241_15
A28: AUG241_16
A29: AUG241_17
A30: AUG241_18
A31: AUG241_19
A32: AUG241_20
A33: AUG241_21
A34: AUG241_22
A35: AUG241_23
A36: AUG241_24
A37: AUG241_25
A38: AUG241_26
A39: AUG241_27
A40: AUG241_28
A41: AUG241_29
A42: AUG241_30
A43: AUG241_31
A44: AUG241_32
A45: AUG241_33
A46: AUG241_34
A47: AUG241_35
A48: AUG241_36
A49: AUG241_37
A50: AUG241_38
A51: AUG241_39
A52: AUG241_40
A53: AUG241_41
A54: AUG241_42
A55: AUG241_43
A56: AUG241_44
A57: AUG241_45
A58: AUG241_46
A59: AUG241_47
A60: AUG241_48
A61: AUG241_49
A62: AUG241_50
A63: AUG241_51
A64: AUG241_52
A65: AUG241_53
A66: AUG241_54
A67: AUG241_55
A68: AUG241_56
A69: AUG241_57
A70: AUG241_58
A71: AUG241_59
A72: AUG241_60
A73: AUG241_61
A74: AUG241_62
A75: AUG241_63
A76: AUG241_64
A77: AUG241_65
A78: AUG241_66
A79: AUG241_67
A80: AUG241_68
A81: AUG241_69
A82: AUG241_70
A83: AUG241_71
A84: AUG241_72
A85: AUG241_73
A86: AUG241_74
A87: AUG241_75
A88: AUG241_76
A89: AUG241_77
A90: AUG241_78
A91: AUG241_79
A92: AUG241_80
A93: AUG241_81
A94: AUG241_82
A95: AUG241_83
A96: AUG241_84
A97: AUG241_85
A98: AUG241_86
A99: AUG241_87
A100: AUG241_88
A101: AUG241_89
A102: AUG241_90
A103: AUG241_91
A104: AUG241_92
A105: AUG241_93
A106: AUG241_94
A107: AUG241_95
A108: AUG241_96
A109: AUG241_97
A110: AUG241_98
A111: AUG241_99
A112: AUG241_100
A113: AUG241_101
A114: AUG241_102
A115: AUG241_103
A116: AUG241_104
A117: AUG241_105
A118: AUG241_106
A119: AUG241_107
A120: AUG241_108
A121: AUG241_109
A122: AUG241_110
A123: AUG241_111
A124: AUG241_112
A125: AUG241_113
A126: AUG241_114
A127: AUG241_115
A128: AUG241_116
A129: AUG241_117
A130: AUG241_118
A131: AUG241_119
A132: AUG241_120
A133: AUG241_121
A134: AUG241_122
A135: AUG241_123
A136: AUG241_124
A137: AUG241_125
A138: AUG241_126
A139: AUG241_127
A140: AUG241_128
A141: AUG241_129
A142: AUG241_130
A143: AUG241_131
A144: AUG241_132
A145: AUG241_133
A146: AUG241_134
A147: AUG241_135
A148: AUG241_136
A149: AUG241_137
A150: AUG241_138
A151: AUG241_139
A152: AUG241_140
A153: AUG241_141
A154: AUG241_142
A155: AUG241_143
A156: AUG241_144
A157: AUG241_145
A158: AUG241_146
A159: AUG241_147
A160: AUG241_148
A161: AUG241_149
A162: AUG241_150
A163: AUG241_151
A164: AUG241_152
A165: AUG241_153
A166: AUG241_154
A167: AUG241_155
A168: AUG241_156
A169: AUG241_157
A170: AUG241_158
A171: AUG241_159
A172: AUG241_160
A173: AUG241_161
A174: AUG241_162
A175: AUG241_163
A176: AUG241_164
A177: AUG241_165
A178: AUG241_166
A179: AUG241_167
A180: AUG241_168
A181: AUG241_169
A182: AUG241_170
A183: AUG241_171
A184: AUG241_172
A185: AUG241_173
A186: AUG241_174
A187: AUG241_175
A188: AUG241_176
A189: AUG241_177
A190: AUG241_178
A191: AUG241_179
A192: AUG241_180
A193: AUG241_181
A194: AUG241_182
A195: AUG241_183
A196: AUG241_184
A197: AUG241_185
A198: AUG241_186
A199: AUG241_187
A200: AUG241_188
A201: AUG241_189
A202: AUG241_190
... 7642 more rows

Sheet 2.5 Connections
C1: REGULATORY REPORTING STATEMENT
C2: =TradingName -> SA Power Networks
C3: =RCP_1to5 -> 2015-16 to 2019-20
C4: 2.5 CONNECTIONS
C9: 2.5.1 DESCRIPTOR METRICS | L9: 2.5.2 COST METRICS BY CONNECTION CLASSIFICATION
C10: <<<GROUP-ROW>>>
E12: VOLUMES & EXPENDITURE | N12: EXPENDITURE | W12: VOLUMES
C13: CONNECTION SUBCATEGORY | D13: DESCRIPTOR METRIC | E13: =CRCP_y5 -> 2014-15 | F13: =FRCP -> 2015-16 | G13: 2016-17 | H13: 2017-18 | I13: 2018-19 | J13: 2019-20 | L13: CONNECTION SUBCATEGORY | M13: CONNECTION CLASSICIATION | N13: =CRCP_y5 -> 2014-15 | O13: =FRCP -> 2015-16 | P13: 2016-17 | Q13: 2017-18 | R13: 2018-19 | S13: 2019-20 | U13: CONNECTION SUBCATEGORY | V13: CONNECTION CLASSICIATION | W13: =CRCP_y5 -> 2014-15 | X13: =FRCP_y1 -> 2015-16 | Y13: =FRCP_y2 -> 2016-17 | Z13: =FRCP_y3 -> 2017-18 | AA13: =FRCP_y4 -> 2018-19 | AB13: =FRCP_y5 -> 2019-20
A14: ED_CON251_00001 | C14: RESIDENTIAL | D14: Underground connections (000's) | E14: 9.9204193 | F14: 9.486712103 | G14: 8.565295255 | H14: 7.914734459 | I14: 8.023583153 | J14: 8.511292803 | K14: ED_CON252_00001 | L14: RESIDENTIAL | M14: Simple connection LV | N14: 5972.652443 | O14: 6641.84803 | P14: 6581.74514 | Q14: 5891.560501 | R14: 5986.349024 | S14: 6891.710137 | T14: ED_CON252_00001 | U14: RESIDENTIAL | V14: Simple connection LV | W14: 10.15664617 | X14: 9.712611452 | Y14: 8.769253655 | Z14: 8.103201585 | AA14: 8.214642204 | AB14: 8.713965286
A15: ED_CON251_00002 | D15: Overhead connections (000's) | E15: 0.3648762381 | F15: 0.3489243468 | G15: 0.3150343364 | H15: 0.2911064994 | I15: 0.2951099896 | J15: 0.3130481087 | K15: ED_CON252_00002 | M15: Complex connection LV | N15: 2796.865912 | O15: 3110.235951 | P15: 3082.091048 | Q15: 2758.892283 | R15: 2803.279729 | S15: 3227.241053 | T15: ED_CON252_00002 | V15: Complex connection LV | W15: 0.1286493727 | X15: 0.1230249976 | Y15: 0.1110759362 | Z15: 0.1026393736 | AA15: 0.1040509386 | AB15: 0.1103756249
A16: ED_CON251_00003 | D16: Distribution substation installed (MVA added) | E16: 9.466819357 | F16: 9.05294293 | G16: 8.173656825 | H16: 7.552842185 | I16: 7.656713895 | J16: 8.122123573 | K16: ED_CON252_00003 | M16: Complex connection HV | N16: 0 | O16: 0 | P16: 0 | Q16: 0 | R16: 0 | S16: 0 | T16: ED_CON252_00003 | V16: Complex connection HV | W16: 0 | X16: 0 | Y16: 0 | Z16: 0 | AA16: 0 | AB16: 0
A17: ED_CON251_00004 | D17: Distribution substations installed (000's) | E17: 0.1907559664 | F17: 0.1824163758 | G17: 0.164698802 | H17: 0.1521894161 | I17: 0.1521894161 | J17: 0.1614401767 | K17: ED_CON252_00004 | L17: COMMERCIAL/INDUSTRIAL | M17: Simple connection LV | N17: 613.767915 | O17: 687.622309 | P17: 820.3456211 | Q17: 789.4245278 | R17: 881.9751749 | S17: 1028.182145 | T17: ED_CON252_00004 | U17: COMMERCIAL/INDUSTRIAL | V17: Simple connection LV | W17: 1.043727824 | X17: 1.005534647 | Y17: 1.092995654 | Z17: 1.085767698 | AA17: 1.210271981 | AB17: 1.300046483
A18: ED_CON251_00005 | D18: Distribution substation installed (total spend $000's) | E18: 4725.321672 | F18: 5230.211112 | G18: 5060.648931 | H18: 4449.409684 | I18: 4438.396157 | J18: 5020.133823 | K18: ED_CON252_00005 | M18: Complex connection HV (customer connected at LV, minor HV works) | N18: 28617.53645 | O18: 32061.07066 | P18: 38249.42644 | Q18: 36807.69986 | R18: 41122.96538 | S18: 47940.01006 | T18: ED_CON252_00005 | V18: Complex connection HV (customer connected at LV, minor HV works) | W18: 0.1799530732 | X18: 0.1733680425 | Y18: 0.1884475266 | Z18: 0.1872013273 | AA18: 0.208667583 | AB18: 0.2241459453
A19: ED_CON251_00006 | D19: Augmentation HV (net circuit KM added) | E19: 4.25 | F19: 4.25 | G19: 4.25 | H19: 4.25 | I19: 4.25 | J19: 4.25 | K19: ED_CON252_00006 | M19: Complex connection HV (customer connected at LV, upstream asset works) | N19: 13025.86246 | O19: 14593.25814 | P19: 17410.01602 | Q19: 16753.7844 | R19: 18717.96658 | S19: 21820.8852 | T19: ED_CON252_00006 | V19: Complex connection HV (customer connected at LV, upstream asset works) | W19: 0.01270256987 | X19: 0.01223774418 | Y19: 0.01330217835 | Z19: 0.01321421134 | AA19: 0.01472947645 | AB19: 0.01582206672
A20: ED_CON251_00007 | D20: Augmentation HV (total spend $000's) | E20: 675.8624606 | F20: 782.2768417 | G20: 838.3412733 | H20: 797.6695663 | I20: 784.9006366 | J20: 836.9061107 | K20: ED_CON252_00007 | M20: Complex connection HV (customer connected at HV) | N20: 9142.133268 | O20: 10631.2308 | P20: 11668.33949 | Q20: 11303.27584 | R20: 11329.32432 | S20: 12295.37573 | T20: ED_CON252_00007 | V20: Complex connection HV (customer connected at HV) | W20: 0.005 | X20: 0.005 | Y20: 0.005 | Z20: 0.005 | AA20: 0.005 | AB20: 0.005
A21: ED_CON251_00008 | D21: Augmentation LV (net circuit KM added) | E21: 2 | F21: 2 | G21: 2 | H21: 2 | I21: 2 | J21: 2 | K21: ED_CON252_00008 | M21: Complex connection sub-transmission | N21: 12985.98476 | O21: 15101.18011 | P21: 8287.172933 | Q21: 16055.78955 | R21: 16092.79023 | S21: 8732.511173 | T21: ED_CON252_00008 | V21: Complex connection sub-transmission | W21: 0.001 | X21: 0.001 | Y21: 0 | Z21: 0.001 | AA21: 0.001 | AB21: 0
A22: ED_CON251_00009 | D22: Augmentation LV (total spend $000's) | E22: 540.6899685 | F22: 625.8214734 | G22: 670.6730186 | H22: 638.1356531 | I22: 627.9205093 | J22: 669.5248886 | K22: ED_CON252_00009 | L22: SUBDIVISION | M22: Complex connection LV | N22: 5115.797865 | O22: 5688.99909 | P22: 5637.250799 | Q22: 5045.508297 | R22: 5126.723813 | S22: 5902.425897 | T22: ED_CON252_00009 | U22: SUBDIVISION | V22: Complex connection LV | W22: 0.073957795 | X22: 0.07072459087 | Y22: 0.06385228252 | Z22: 0.05899547804 | AA22: 0.05980727821 | AB22: 0.06344638243
A23: ED_CON251_00010 | D23: Mean days to connect residential customer with LV single phase connection (0's) | E23: 20 | F23: 20 | G23: 20 | H23: 20 | I23: 20 | J23: 20 | K23: ED_CON252_00010 | M23: Complex connection HV (no upstream asset works) | N23: 8028.085867 | O23: 8927.595343 | P23: 8846.388124 | Q23: 7917.782314 | R23: 8045.231668 | S23: 9262.520369 | T23: ED_CON252_00010 | V23: Complex connection HV (no upstream asset works) | W23: 0.1194702842 | X23: 0.114247416 | Y23: 0.1031459948 | Z23: 0.0953003876 | AA23: 0.09661175711 | AB23: 0.1024903101
A24: ED_CON251_00011 | D24: Volume of GSL breaches for residential customers (0's) | E24: 80 | F24: 80 | G24: 80 | H24: 80 | I24: 80 | J24: 80 | K24: ED_CON252_00011 | M24: Complex connection HV (with upstream asset works) | N24: 1519.044763 | O24: 1689.246624 | P24: 1673.880894 | Q24: 1498.173532 | R24: 1522.289028 | S24: 1752.619901 | T24: ED_CON252_00011 | V24: Complex connection HV (with upstream asset works) | W24: 0.009102497847 | X24: 0.00870456503 | Y24: 0.007858742463 | Z24: 0.007260981912 | AA24: 0.00736089578 | AB24: 0.00780878553
A25: ED_CON251_00012 | D25: Volume of customer complaints relating to connection services (0's) | E25: 150 | F25: 150 | G25: 150 | H25: 150 | I25: 150 | J25: 150 | K25: ED_CON252_00012 | L25: EMBEDDED GENERATION | M25: Simple connection LV | N25: 296.7442548 | O25: 289.9065319 | P25: 279.6453337 | Q25: 271.949435 | R25: 279.6084229 | S25: 304.7169843 | T25: ED_CON252_00012 | U25: EMBEDDED GENERATION | V25: Simple connection LV | W25: 23.92747857 | X25: 23.37613017 | Y25: 22.54873555 | Z25: 21.92818959 | AA25: 22.54575931 | AB25: 24.57034633
A26: ED_CON251_00013 | D26: GSL payments ($000's) | E26: 18.86170169 | F26: 18.86170169 | G26: 18.86170169 | H26: 18.86170169 | I26: 18.86170169 | J26: 18.86170169 | K26: ED_CON252_00013 | M26: Complex connection HV (small capacity) | N26: 825.199449 | O26: 884.1422668 | P26: 943.0850846 | Q26: 1002.027902 | R26: 1060.97072 | S26: 1119.913538 | T26: ED_CON252_00013 | V26: Complex connection HV (small capacity) | W26: 0.05 | X26: 0.055 | Y26: 0.06 | Z26: 0.065 | AA26: 0.07 | AB26: 0.075
A27: ED_CON251_00014 | C27: COMMERCIAL/INDUSTRIAL | D27: Underground connections (000's) | E27: 1.056430394 | F27: 1.017772391 | G27: 1.106297833 | H27: 1.09898191 | I27: 1.225001458 | J27: 1.315868549 | K27: ED_CON252_00014 | M27: Complex connection HV (large capacity) | N27: 1161.744356 | O27: 1178.856356 | P27: 1768.284534 | Q27: 1768.284534 | R27: 2357.712711 | S27: 2357.712711 | T27: ED_CON252_00014 | V27: Complex connection HV (large capacity) | W27: 0.002 | X27: 0.002 | Y27: 0.003 | Z27: 0.003 | AA27: 0.004 | AB27: 0.004
A28: ED_CON251_00015 | D28: Overhead connections (000's) | E28: 0.1852458106 | F28: 0.1784671026 | G28: 0.1939901009 | H28: 0.1927072487 | I28: 0.2148048648 | J28: 0.2307384731
A29: ED_CON251_00016 | D29: Distribution substation installed (MVA added) | E29: 98.5333052 | F29: 94.92767169 | G29: 103.1844432 | H29: 102.5020868 | I29: 114.2559351 | J29: 122.7311123
A30: ED_CON251_00017 | D30: Distribution substations installed (000's) | E30: 0.2191193303 | F30: 0.2381782433 | G30: 0.2588948932 | H30: 0.2571828269 | I30: 0.2866738162 | J30: 0.3079384569
A31: ED_CON251_00018 | D31: Distribution substation installed total spend ($000's) | E31: 14761.54189 | F31: 16972.75545 | G31: 19771.24983 | H31: 18687.65383 | I31: 20497.10384 | J31: 23476.34376
A32: ED_CON251_00019 | D32: Augmentation HV (net circuit KM added) | E32: 20 | F32: 20 | G32: 20 | H32: 20 | I32: 20 | J32: 20
A33: ED_CON251_00020 | D33: Augmentation HV (total spend $000's) | E33: 9462.074449 | F33: 10951.87578 | G33: 11736.77783 | H33: 11167.37393 | I33: 10988.60891 | J33: 11716.68555
A34: ED_CON251_00021 | D34: Augmentation LV (net circuit KM added) | E34: 8.5 | F34: 8.5 | G34: 8.5 | H34: 8.5 | I34: 8.5 | J34: 8.5
A35: ED_CON251_00022 | D35: Augmentation LV (total spend $000's) | E35: 2703.449843 | F35: 3129.107367 | G35: 3353.365093 | H35: 3190.678265 | I35: 3139.602546 | J35: 3347.624443
A36: ED_CON251_00023 | C36: SUBDIVISION | D36: Underground connections (000's) | E36: 0.192290267 | F36: 0.1838839363 | G36: 0.1660159345 | H36: 0.1533882429 | I36: 0.1554989233 | J36: 0.1649605943
A37: ED_CON251_00024 | D37: Overhead connections (000's) | E37: 0.01024031008 | F37: 0.009792635659 | G37: 0.008841085271 | H37: 0.008168604651 | I37: 0.008281007752 | J37: 0.008784883721
A38: ED_CON251_00025 | D38: Distribution substation installed (MVA added) | E38: 20.27865848 | F38: 19.39213878 | G38: 17.50780469 | H38: 16.17610627 | I38: 16.39869563 | J38: 17.39651001
A39: ED_CON251_00026 | D39: Distribution substations installed (000's) | E39: 0.07623341947 | F39: 0.07290073213 | G39: 0.06581696813 | H39: 0.06081072351 | I39: 0.06164750215 | J39: 0.06539857881
A40: ED_CON251_00027 | D40: Distribution substation installed (total spend $000's) | E40: 3900.617287 | F40: 4317.396937 | G40: 4177.229496 | H40: 3672.254813 | I40: 3663.192836 | J40: 4143.569857
A41: ED_CON251_00028 | D41: Augmentation HV (net circuit KM added) | E41: 9 | F41: 9 | G41: 9 | H41: 9 | I41: 9 | J41: 9
A42: ED_CON251_00029 | D42: Augmentation HV (total spend $000's) | E42: 3379.312303 | F42: 3911.384209 | G42: 4191.706366 | H42: 3988.347832 | I42: 3924.503183 | J42: 4184.530554
A43: ED_CON251_00030 | D43: Augmentation LV (net circuit KM added) | E43: 8 | F43: 8 | G43: 8 | H43: 8 | I43: 8 | J43: 8
A44: ED_CON251_00031 | D44: Augmentation LV (total spend $000's) | E44: 3514.484795 | F44: 4067.839577 | G44: 4359.374621 | H44: 4147.881745 | I44: 4081.48331 | J44: 4351.911776
A45: ED_CON251_00032 | D45: Cost per lot ($) | E45: 2922.986386 | F45: 3235.306502 | G45: 3130.269916 | H45: 2751.859522 | I45: 2745.068793 | J45: 3105.046558
A46: ED_CON251_00033 | C46: EMBEDDED GENERATION | D46: Underground connections (000's)
A47: ED_CON251_00034 | D47: Overhead connections (000's)
A48: ED_CON251_00035 | D48: Distribution substation installed (MVA added)
A49: ED_CON251_00036 | D49: Distribution substations installed (000's)
A50: ED_CON251_00037 | D50: Distribution substation installed (total spend $000's)
A51: ED_CON251_00038 | D51: Augmentation HV (net circuit KM added)
A52: ED_CON251_00039 | D52: Augmentation HV (total spend $000's)
A53: ED_CON251_00040 | D53: Augmentation LV (net circuit KM added)
A54: ED_CON251_00041 | D54: Augmentation LV (total spend $000's)

Sheet 2.6 Non-network
C1: REGULATORY REPORTING STATEMENT
C2: =TradingName -> SA Power Networks
C3: =RCP_1to5 -> 2015-16 to 2019-20
C4: 2.6 NON NETWORK EXPENDITURE
C9: TABLE 2.6.1 NON-NETWORK EXPENDITURE | M9: TABLE 2.6.2 ANNUAL DESCRIPTOR METRICS - IT & COMMUNICATIONS EXPENDITURE | V9: TABLE 2.6.3 ANNUAL DESCRIPTOR METRICS - MOTOR VEHICLES
F11: EXPENDITURE | G11: EXPENDITURE Forthcoming Period | O11: VOLUMES Forecast | W11: ASSET REPORTING CATEGORY | Y11: VOLUMES / % Forecast
C12: SERVICE SUBCATEGORY | D12: ASSET CATEGORY | E12: ASSET REPORTING CATEGORY | F12: =CRCP_y5 -> 2014-15 | G12: =FRCP -> 2015-16 | H12: 2016-17 | I12: 2017-18 | J12: 2018-19 | K12: 2019-20 | M12: NON-NETWORK CATEGORY | N12: DESCRIPTOR METRIC | O12: =CRCP_y5 -> 2014-15 | P12: =FRCP -> 2015-16 | Q12: 2016-17 | R12: 2017-18 | S12: 2018-19 | T12: 2019-20 | V12: NON-NETWORK CATEGORY | W12: ASSET CATEGORY | X12: DESCRIPTOR METRIC | Y12: =CRCP_y5 -> 2014-15 | Z12: =FRCP -> 2015-16 | AA12: 2016-17 | AB12: 2017-18 | AC12: 2018-19 | AD12: 2019-20
A13: ED_NON261_00001 | C13: IT & COMMUNICATIONS | D13: Client device expenditure | E13: Opex | F13: 1942.253 | G13: 2205.43 | H13: 2371.509 | I13: 2465.722 | J13: 2668.167 | K13: 2745.017 | L13: ED_NON262_00001 | M13: IT & COMMUNICATIONS | N13: Employee numbers | O13: 1963.4 | P13: 2025 | Q13: 2066 | R13: 2115 | S13: 2141 | T13: 2155 | U13: ED_NON263_00001 | V13: MOTOR VEHICLES | W13: CAR | X13: Average kilometres travelled (000's) | Y13: 18780 | Z13: 18780 | AA13: 18780 | AB13: 18780 | AC13: 18780 | AD13: 18780
A14: ED_NON261_00002 | E14: Capex | F14: 4719.001 | G14: 3666.952 | H14: 2573.067 | I14: 2909.334 | J14: 3980.243 | K14: 3913.672 | L14: ED_NON262_00002 | N14: User numbers | O14: 2045 | P14: 2301 | Q14: 2404 | R14: 2450 | S14: 2524 | T14: 2541 | U14: ED_NON263_00002 | X14: Number purchased | Y14: 50 | Z14: 57 | AA14: 50 | AB14: 29 | AC14: 45 | AD14: 58
A15: ED_NON261_00003 | D15: Recurrent expenditure | E15: Opex | F15: 14148.219 | G15: 16063.662 | H15: 17273.253 | I15: 17959.776 | J15: 19434.396 | K15: 19994.002 | L15: ED_NON262_00003 | N15: Number of devices | O15: 4679.6 | P15: 5040.12 | Q15: 5287.1 | R15: 5394.74 | S15: 5495.36 | T15: 5558.54 | U15: ED_NON263_00003 | X15: Number leased | Y15: 2 | Z15: 2 | AA15: 2 | AB15: 2 | AC15: 2 | AD15: 2
A16: ED_NON261_00004 | E16: Capex | F16: 22753.625 | G16: 24258.609 | H16: 23549.83 | I16: 22159.402 | J16: 20708.6 | K16: 22447.627 | U16: ED_NON263_00004 | X16: Number in fleet | Y16: 158 | Z16: 158 | AA16: 158 | AB16: 158 | AC16: 158 | AD16: 158
A17: ED_NON261_00005 | D17: Non-recurrent expenditure | E17: Opex | F17: 1812.851 | G17: 985.458 | H17: 355.691 | I17: 1204 | J17: 155 | K17: 57 | U17: ED_NON263_00005 | X17: Proportion of total fleet expenditure allocated as regulatory expenditure (%) | Y17: 0.8876412408 | Z17: 0.8876412408 | AA17: 0.8876412408 | AB17: 0.8876412408 | AC17: 0.8876412408 | AD17: 0.8876412408
A18: ED_NON261_00006 | E18: Capex | F18: 25431.924 | G18: 23718.892 | H18: 29650.254 | I18: 27375.847 | J18: 30224.561 | K18: 20023.593 | U18: ED_NON263_00006 | W18: LIGHT COMMERCIAL VEHICLE | X18: Average kilometres travelled (000's) | Y18: 22168 | Z18: 22168 | AA18: 22168 | AB18: 22168 | AC18: 22168 | AD18: 22168
A19: ED_NON261_00007 | C19: MOTOR VEHICLES | D19: Car | E19: Opex | F19: 1077.655 | G19: 1089.728 | H19: 1105.648 | I19: 1125.052 | J19: 1144.474 | K19: 1164.72 | U19: ED_NON263_00007 | X19: Number purchased | Y19: 80 | Z19: 145 | AA19: 86 | AB19: 82 | AC19: 74 | AD19: 148
A20: ED_NON261_00008 | E20: Capex | F20: 2217.287 | G20: 2387.916 | H20: 2150.158 | I20: 1374.861 | J20: 1984.762 | K20: 2424.097 | U20: ED_NON263_00008 | X20: Number leased | Y20: 23 | Z20: 23 | AA20: 23 | AB20: 23 | AC20: 23 | AD20: 23
A21: ED_NON261_00009 | D21: Light commercial vehicle | E21: Opex | F21: 4741.099 | G21: 4794.212 | H21: 4864.251 | I21: 4949.618 | J21: 5035.065 | K21: 5124.135 | U21: ED_NON263_00009 | X21: Number in fleet | Y21: 440 | Z21: 440 | AA21: 442 | AB21: 444 | AC21: 446 | AD21: 447
A22: ED_NON261_00010 | E22: Capex | F22: 5190.208 | G22: 10090.247 | H22: 6265.443 | I22: 6400.861 | J22: 5232.745 | K22: 10260.812 | U22: ED_NON263_00010 | X22: Proportion of total fleet expenditure allocated as regulatory expenditure (%) | Y22: 0.8611612732 | Z22: 0.8611612732 | AA22: 0.8611612732 | AB22: 0.8611612732 | AC22: 0.8611612732 | AD22: 0.8611612732
A23: ED_NON261_00011 | D23: Elevated work platform (LCV) | E23: Opex | F23: 0 | G23: 0 | H23: 0 | I23: 0 | J23: 0 | K23: 0 | U23: ED_NON263_00011 | W23: ELEVATED WORK PLATFORM (LCV) | X23: Average kilometres travelled (000's) | Y23: 0 | Z23: 0 | AA23: 0 | AB23: 0 | AC23: 0 | AD23: 0
A24: ED_NON261_00012 | E24: Capex | F24: 0 | G24: 0 | H24: 0 | I24: 0 | J24: 0 | K24: 0 | U24: ED_NON263_00012 | X24: Number purchased | Y24: 0 | Z24: 0 | AA24: 0 | AB24: 0 | AC24: 0 | AD24: 0
A25: ED_NON261_00013 | D25: Elevated work platform (HCV) | E25: Opex | F25: 5411.543 | G25: 5472.167 | H25: 5552.11 | I25: 5649.549 | J25: 5747.078 | K25: 5848.744 | U25: ED_NON263_00013 | X25: Number leased | Y25: 0 | Z25: 0 | AA25: 0 | AB25: 0 | AC25: 0 | AD25: 0
A26: ED_NON261_00014 | E26: Capex | F26: 13086.642 | G26: 20571.244 | H26: 9738.262 | I26: 5396.592 | J26: 9799.768 | K26: 5938.784 | U26: ED_NON263_00014 | X26: Number in fleet | Y26: 0 | Z26: 0 | AA26: 0 | AB26: 0 | AC26: 0 | AD26: 0
A27: ED_NON261_00015 | D27: Heavy commercial vehicle | E27: Opex | F27: 1044.205 | G27: 1055.903 | H27: 1071.329 | I27: 1090.13 | J27: 1108.95 | K27: 1128.567 | U27: ED_NON263_00015 | X27: Proportion of total fleet expenditure allocated as regulatory expenditure (%) | Y27: 0 | Z27: 0 | AA27: 0 | AB27: 0 | AC27: 0 | AD27: 0
A28: ED_NON261_00016 | E28: Capex | F28: 0 | G28: 899.346 | H28: 1964.088 | I28: 2263.871 | J28: 940.695 | K28: 775.299 | U28: ED_NON263_00016 | W28: ELEVATED WORK PLATFORM (HCV) | X28: Average kilometres travelled (000's) | Y28: 17045 | Z28: 17045 | AA28: 17045 | AB28: 17045 | AC28: 17045 | AD28: 17045
A29: ED_NON261_00017 | C29: BUILDINGS AND PROPERTY | D29: Total buildings and property expenditure | E29: Opex | F29: 3612.986 | G29: 3620.472 | H29: 3614.925 | I29: 3628.092 | J29: 3655.992 | K29: 3693.535 | U29: ED_NON263_00017 | X29: Number purchased | Y29: 25 | Z29: 37 | AA29: 19 | AB29: 11 | AC29: 17 | AD29: 12
A30: ED_NON261_00018 | E30: Capex | F30: 11900 | G30: 18721.133 | H30: 24733.135 | I30: 18224.647 | J30: 15023.678 | K30: 15020.736 | U30: ED_NON263_00018 | X30: Number leased | Y30: 2 | Z30: 2 | AA30: 2 | AB30: 2 | AC30: 2 | AD30: 2
A31: ED_NON261_00019 | C31: OTHER | D31: Other expenditure | E31: Opex | F31: 2268.749 | G31: 2294.164 | H31: 2327.68 | I31: 2368.531 | J31: 2409.418 | K31: 2452.041 | U31: ED_NON263_00019 | X31: Number in fleet | Y31: 123 | Z31: 127 | AA31: 132 | AB31: 138 | AC31: 143 | AD31: 148
A32: ED_NON261_00020 | E32: Capex | F32: 16419.821 | G32: 25011.183 | H32: 27031.865 | I32: 19980.515 | J32: 15838.323 | K32: 14005.085 | U32: ED_NON263_00020 | X32: Proportion of total fleet expenditure allocated as regulatory expenditure (%) | Y32: 0.9053966028 | Z32: 0.9053966028 | AA32: 0.9053966028 | AB32: 0.9053966028 | AC32: 0.9053966028 | AD32: 0.9053966028
A33: ED_NON261_00021 | C33: OTHER - DNSP nominated | D33: Plant and equipment | E33: Opex | F33: 0 | G33: 0 | H33: 0 | I33: 0 | J33: 0 | K33: 0 | U33: ED_NON263_00021 | W33: HEAVY COMMERCIAL VEHICLE | X33: Average kilometres travelled (000's) | Y33: 35773 | Z33: 35773 | AA33: 35773 | AB33: 35773 | AC33: 35773 | AD33: 35773
A34: ED_NON261_00022 | E34: Capex | F34: 6000 | G34: 7376.703 | H34: 6868.107 | I34: 5765.117 | J34: 5712.396 | K34: 5719.632 | U34: ED_NON263_00022 | X34: Number purchased | Y34: 0 | Z34: 4 | AA34: 6 | AB34: 5 | AC34: 2 | AD34: 1
A35: ED_NON261_00023 | D35: Crane borer plant HCV | E35: Opex | F35: 1432.511 | G35: 1448.558 | H35: 1469.721 | I35: 1495.514 | J35: 1521.331 | K35: 1548.244 | U35: ED_NON263_00023 | X35: Number leased | Y35: 0 | Z35: 0 | AA35: 0 | AB35: 0 | AC35: 0 | AD35: 0
A36: ED_NON261_00024 | E36: Capex | F36: 656.4 | G36: 1013.056 | H36: 1126.767 | I36: 1467.898 | J36: 2098.474 | K36: 3183.89 | U36: ED_NON263_00024 | X36: Number in fleet | Y36: 30 | Z36: 30 | AA36: 30 | AB36: 30 | AC36: 30 | AD36: 30
A37: ED_NON261_00025 | D37: Trailers | E37: Opex | F37: 673.353 | G37: 680.896 | H37: 690.843 | I37: 702.968 | J37: 715.103 | K37: 727.753 | U37: ED_NON263_00025 | X37: Proportion of total fleet expenditure allocated as regulatory expenditure (%) | Y37: 0.8782551824 | Z37: 0.8782551824 | AA37: 0.8782551824 | AB37: 0.8782551824 | AC37: 0.8782551824 | AD37: 0.8782551824
A38: ED_NON261_00026 | E38: Capex | F38: 1953.693 | G38: 945.863 | H38: 1230.139 | I38: 403.155 | J38: 175.734 | K38: 227.421
A39: ED_NON261_00027 | D39: Other fleet assets | E39: Opex | F39: 162.885 | G39: 164.71 | H39: 167.116 | I39: 170.049 | J39: 172.984 | K39: 176.044
A40: ED_NON261_00028 | E40: Capex | F40: 366.964 | G40: 723.612 | H40: 1398.121 | I40: 1449.807 | J40: 258.433 | K40: 310.119
A41: ED_NON261_00029 | D41: TNOC Management Systems | E41: Opex | F41: 0 | G41: 0 | H41: 0 | I41: 0 | J41: 0 | K41: 0
A42: ED_NON261_00030 | E42: Capex | F42: 223.124 | G42: 360.336 | H42: 1486.03 | I42: 2098.384 | J42: 1209.461 | K42: 598.531
A43: ED_NON261_00031 | D43: Network Switching (DMS/SCADA) | E43: Opex | F43: 0 | G43: 0 | H43: 0 | I43: 0 | J43: 0 | K43: 0
A44: ED_NON261_00032 | E44: Capex | F44: 7219.64 | G44: 6124 | H44: 1212 | I44: 784 | J44: 0 | K44: 0
A45: ED_NON261_00033 | D45: Government Radio Network | E45: Opex | F45: 0 | G45: 0 | H45: 0 | I45: 0 | J45: 0 | K45: 0
A46: ED_NON261_00034 | E46: Capex | F46: 0 | G46: 985 | H46: 1000 | I46: 0 | J46: 0 | K46: 0
A47: ED_NON261_00035 | D47: Business Change - IT Program | E47: Opex | F47: 0 | G47: 0 | H47: 0 | I47: 0 | J47: 0 | K47: 0
A48: ED_NON261_00036 | E48: Capex | F48: 0 | G48: 7482.613 | H48: 12710.701 | I48: 8012.154 | J48: 6383.825 | K48: 3965.492
A49: ED_NON261_00037 | E49: Opex
A50: ED_NON261_00038 | E50: Capex
A51: ED_NON261_00039 | E51: Opex
A52: ED_NON261_00040 | E52: Capex
A53: ED_NON261_00041 | E53: Opex
A54: ED_NON261_00042 | E54: Capex

Sheet 2.10 Overheads
C1: REGULATORY REPORTING STATEMENT | E1: Worksheet navigation
C2: =TradingName -> SA Power Networks
C3: =RCP_1to5 -> 2015-16 to 2019-20
C4: 2.10 OVERHEADS
C8: TABLE 2.10.1 - NETWORK OVERHEADS EXPENDITURE
C9: <<<GROUP-ROW>>>
F11: EXPENDITURE | G11: EXPENDITURE Forthcoming Period
A12: OVE2102 | F12: =CRCP_y5 -> 2014-15 | G12: =FRCP -> 2015-16 | H12: 2016-17 | I12: 2017-18 | J12: 2018-19 | K12: 2019-20
A13: ED_OVE2102_00001 | C13: NETWORK OVERHEADS | D13: Total Overhead Expenditure - Standard Control Services | E13: Expenditure categories currently reported under annual RIN
A14: ED_OVE2102_00002 | E14: Network management | F14: 6217.91642 | G14: 6418.727714 | H14: 6620.240655 | I14: 6834.55438 | J14: 7060.777027 | K14: 7287.594896
A15: ED_OVE2102_00003 | E15: Network planning | F15: 662.7560473 | G15: 681.1915962 | H15: 699.5649158 | I15: 719.6777825 | J15: 741.1994176 | K15: 763.0492162
A16: ED_OVE2102_00004 | E16: Network control and operational switching | F16: 10576.0995 | G16: 10893.81719 | H16: 11211.62376 | I16: 11554.39775 | J16: 11918.62538 | K16: 12286.0993
A17: ED_OVE2102_00005 | E17: Quality and standard functions | F17: 8483.693799 | G17: 8741.315887 | H17: 8999.148436 | I17: 9276.135066 | J17: 9569.975965 | K17: 9865.863229
A18: ED_OVE2102_00006 | E18: Project governance and related functions | F18: 0 | G18: 0 | H18: 0 | I18: 0 | J18: 0 | K18: 0
A19: ED_OVE2102_00007 | E19: Other - DNSP to nominate
A20: ED_OVE2102_00008 | E20: other expenditure categories currently reported under annual rin :
A21: ED_OVE2102_00009 | E21: e.g. meter reading
A22: ED_OVE2102_00010 | E22: e.g. advertising/marketing
A23: ED_OVE2102_00011 | E23: e.g. GSL payments
A24: ED_OVE2102_00012 | E24: e.g. necf-related
A25: ED_OVE2102_00013 | E25: e.g. feed-in tariffs/ solar bonus -
A26: ED_OVE2102_00014 | E26: e.g. dsm initiatives
A27: ED_OVE2102_00015 | E27: e.g. non-network alternatives/ demand management
A28: ED_OVE2102_00016 | E28: e.g. levies
A29: ED_OVE2102_00017 | E29: Other Network Overheads | F29: 3084.527577 | G29: 3375.139491 | H29: 3472.639982 | I29: 3576.572886 | J29: 3686.379278 | K29: 3796.607775
A30: ED_OVE2102_00018 | E30: Network Telephony | F30: 6367.781538 | G30: 6683.351557 | H30: 14240.95155 | I30: 9491.310045 | J30: 9663.898547 | K30: 9843.77984
A31: ED_OVE2102_00019 | E31: Demand Management | F31: 1236.342 | G31: 1264.72497 | H31: 1292.738042 | I31: 1323.698686 | J31: 1357.115925 | K31: 1391.054017
A32: ED_OVE2102_00020 | E32: Guaranteed Service Level Payments | F32: 10268.04773 | G32: 10376.99129 | H32: 10477.93684 | I32: 10577.72041 | J32: 10685.97755 | K32: 10785.14191
A33: ED_OVE2102_00021 | E33: Call Centre | F33: 3054.674423 | G33: 3102.519813 | H33: 3148.364086 | I33: 3206.951728 | J33: 3273.790733 | K33: 3345.473185
A34: ED_OVE2102_00022 | E34: Full Retail Contestability | F34: 15366.40788 | G34: 16931.84554 | H34: 17590.06608 | I34: 18362.17612 | J34: 18751.65141 | K34: 19280.02508
A35: ED_OVE2102_00023 | E35: Network Insurance | F35: 3104.2935 | G35: 3147.566389 | H35: 3188.845737 | I35: 3230.83601 | J35: 3275.919218 | K35: 3318.737193
A36: ED_OVE2102_00024 | E36: Distribution Licence Fee | F36: 3436.121077 | G36: 2706.583678 | H36: 2443.68358 | I36: 2477.075361 | J36: 2513.302761 | K36: 2546.48733
A37: ED_OVE2102_00025 | E37: Sustation Property Maintenance | F37: 6964.244192 | G37: 7075.475298 | H37: 7182.435231 | I37: 7309.542408 | J37: 7451.654535 | K37: 7599.49355
A38: ED_OVE2102_00026 | E38: Other Network Operation costs | F38: 2085.607582 | G38: 1842.434443 | H38: 1938.634022 | I38: 2035.09943 | J38: 2109.169209 | K38: 2166.192853
A39: ED_OVE2102_00027 | E39: Other Customer Services | F39: 6816.420692 | G39: 7021.104407 | H39: 8251.309787 | I39: 8786.070706 | J39: 9020.262521 | K39: 9360.75915
A40: ED_OVE2102_00028
A41: ED_OVE2102_00013 | C41: NETWORK OVERHEADS | D41: Total Overhead Expenditure - Alternative Control Services | E41: Expenditure categories currently reported under annual RIN
A42: ED_OVE2102_00014 | E42: Network management | F42: 44.465842 | G42: 78.58481522 | H42: 78.26585802 | I42: 73.68630929 | J42: 74.63702527 | K42: 74.22746614
A43: ED_OVE2102_00015 | E43: Network planning
A44: ED_OVE2102_00016 | E44: Network control and operational switching
A45: ED_OVE2102_00017 | E45: Quality and standard functions
A46: ED_OVE2102_00018 | E46: Project governance and related functions
A47: ED_OVE2102_00019 | E47: Other - DNSP to nominate
A48: ED_OVE2102_00020 | E48: other expenditure categories currently reported under annual rin :
A49: ED_OVE2102_00021 | E49: e.g. meter reading
A50: ED_OVE2102_00022 | E50: e.g. advertising/marketing
A51: ED_OVE2102_00023 | E51: e.g. GSL payments
A52: ED_OVE2102_00024 | E52: e.g. necf-related
A53: ED_OVE2102_00025 | E53: e.g. feed-in tariffs/ solar bonus -
A54: ED_OVE2102_00026 | E54: e.g. dsm initiatives
A55: ED_OVE2102_00027 | E55: e.g. non-network alternatives/ demand management
A56: ED_OVE2102_00028 | E56: e.g. levies
A57: ED_OVE2102_00029 | E57: [expenditure category currently reported under annual RIN] - DNSP to nominate
A58: ED_OVE2102_00030 | E58: Other Customer Services | F58: 134.9886402 | G58: 163.3563014 | H58: 163.4651345 | I58: 153.4072082 | J58: 154.8054549 | K58: 154.0040347
A59: ED_OVE2102_00031 | E59: Full Retail Contestibility | F59: 0 | G59: 0 | H59: 0 | I59: 0 | J59: 0 | K59: 0
A60: ED_OVE2102_00032 | E60: Other Network Operation costs | F60: 0 | G60: 105.4705079 | H60: 108.2239644 | I60: 109.6708129 | J60: 112.2137345 | K60: 112.290495
A61: ED_OVE2102_00033
A62: ED_OVE2102_00034
A63: ED_OVE2102_00035
A64: ED_OVE2102_00036
A65: ED_OVE2102_00037
A66: ED_OVE2102_00038
A67: ED_OVE2102_00039
A68: ED_OVE2102_00040
A69: ED_OVE2102_00041 | C69: NETWORK OVERHEADS | D69: Total Overhead Expenditure - Negotiated Services | E69: Total | F69: 1269.615566 | G69: 1385.22735 | H69: 1283.921999 | I69: 1223.378238 | J69: 1137.703682 | K69: 1032.823448
A70: ED_OVE2102_00042 | C70: NETWORK OVERHEADS | D70: Total Overhead Expenditure - Unregulated Services | E70: Total | F70: 1361.423423 | G70: 0 | H70: 0 | I70: 0 | J70: 0 | K70: 0
A71: ED_OVE2102_00043 | C71: NETWORK OVERHEADS | D71: Capitalised Overheads - Standard Control Services | E71: Expenditure categories currently reported under annual RIN
A72: ED_OVE2102_00044 | E72: Network management | F72: 15954.73511 | G72: 17544.66044 | H72: 17319.83842 | I72: 17836.41418 | J72: 18274.08621 | K72: 18749.57158
A73: ED_OVE2102_00045 | E73: Network planning
A74: ED_OVE2102_00046 | E74: Network control and operational switching
A75: ED_OVE2102_00047 | E75: Quality and standard functions
A76: ED_OVE2102_00048 | E76: Project governance and related functions
A77: ED_OVE2102_00049 | E77: Other - DNSP to nominate
A78: ED_OVE2102_00050 | E78: other expenditure categories currently reported under annual rin :
A79: ED_OVE2102_00051 | E79: e.g. meter reading
A80: ED_OVE2102_00052 | E80: e.g. advertising/marketing
A81: ED_OVE2102_00053 | E81: e.g. GSL payments
A82: ED_OVE2102_00054 | E82: e.g. necf-related
A83: ED_OVE2102_00055 | E83: e.g. feed-in tariffs/ solar bonus -
A84: ED_OVE2102_00056 | E84: e.g. dsm initiatives
A85: ED_OVE2102_00057 | E85: e.g. non-network alternatives/ demand management
A86: ED_OVE2102_00058 | E86: e.g. levies
A87: ED_OVE2102_00059 | E87: [expenditure category currently reported under annual RIN] - DNSP to nominate
A88: ED_OVE2102_00060
A89: ED_OVE2102_00061
A90: ED_OVE2102_00062
A91: ED_OVE2102_00063
A92: ED_OVE2102_00064
A93: ED_OVE2102_00065
A94: ED_OVE2102_00066
A95: ED_OVE2102_00067
A96: ED_OVE2102_00068
A97: ED_OVE2102_00069
A98: ED_OVE2102_00070
C106: TABLE 2.10.2 - CORPORATE OVERHEADS EXPENDITURE
C107: <<<GROUP-ROW>>>
F109: EXPENDITURE | G109: EXPENDITURE Forthcoming Period
A110: OVE2102 | F110: =CRCP_y5 -> 2014-15 | G110: =FRCP -> 2015-16 | H110: 2016-17 | I110: 2017-18 | J110: 2018-19 | K110: 2019-20
A111: ED_OVE2102_00001 | C111: CORPORATE OVERHEADS | D111: Total Overhead Expenditure - Standard Control Services | E111: Expenditure categories currently reported under annual RIN
A112: ED_OVE2102_00002 | E112: [expenditure category currently reported under annual RIN] - DNSP to nominate
A113: ED_OVE2102_00003 | E113: CEO Planning and audit | F113: 2920.289423 | G113: 3204.015911 | H113: 3275.132274 | I113: 3354.487664 | J113: 3440.228355 | K113: 3527.889323
A114: ED_OVE2102_00004 | E114: Communications | F114: 2215.285038 | G114: 5239.75719 | H114: 4389.930109 | I114: 4362.241107 | J114: 4200.483035 | K114: 4497.804543
A115: ED_OVE2102_00005 | E115: Regulation and Company Secretary | F115: 8023.818231 | G115: 8258.453882 | H115: 8492.886148 | I115: 9917.162981 | J115: 10186.31754 | K115: 10457.83921
A116: ED_OVE2102_00006 | E116: Finance | F116: 13354.76781 | G116: 13724.1253 | H116: 14092.05707 | I116: 14498.62647 | J116: 14935.10646 | K116: 15380.35673
A117: ED_OVE2102_00007 | E117: HR and Training | F117: 9510.323077 | G117: 9794.157202 | H117: 10078.02063 | I117: 10382.97243 | J117: 10706.61731 | K117: 11032.39895
A118: ED_OVE2102_00008 | E118: Property | F118: 6198.249692 | G118: 6226.563157 | H118: 6247.951194 | I118: 6289.973505 | J118: 6345.99627 | K118: 6409.722598
A119: ED_OVE2102_00009 | E119: Information Systems | F119: 17749.00342 | G119: 19068.04853 | H119: 19814.77457 | I119: 21455.99185 | J119: 22083.14884 | K119: 22623.07779
A120: ED_OVE2102_00010 | E120: Risk Management | F120: 8027.004615 | G120: 8906.743288 | H120: 9292.245124 | I120: 9688.995941 | J120: 10002.8806 | K120: 10223.98923
A121: ED_OVE2102_00011 | E121: Other Allocated Costs | F121: -2125.350462 | G121: -2239.070716 | H121: -2354.88463 | I121: -2479.588921 | J121: -2610.62978 | K121: -2743.913986
A122: ED_OVE2102_00012
A123: ED_OVE2102_00013
A124: ED_OVE2102_00014
A125: ED_OVE2102_00015
A126: ED_OVE2102_00016
A127: ED_OVE2102_00017
A128: ED_OVE2102_00018
A129: ED_OVE2102_00019
A130: ED_OVE2102_00020
A131: ED_OVE2102_00021
A132: ED_OVE2102_00022 | C132: CORPORATE OVERHEADS | D132: Total Overhead Expenditure - Alternative Control Services | E132: Expenditure categories currently reported under annual RIN
A133: ED_OVE2102_00023 | E133: [expenditure category currently reported under annual RIN] - DNSP to nominate
A134: ED_OVE2102_00024 | E134: CEO Planning and audit | F134: 33.77917351 | G134: 40.23775568 | H134: 40.06816953 | I134: 37.44705721 | J134: 37.64748408 | K134: 37.33294797
A135: ED_OVE2102_00025 | E135: Communications | F135: 45.24271592 | G135: 54.50477941 | H135: 54.03060419 | I135: 50.26329036 | J135: 50.303215 | K135: 49.66191805
A136: ED_OVE2102_00026 | E136: Regulation and Company Secretary | F136: 123.8282346 | G136: 149.6323749 | H136: 149.5899972 | I136: 140.2614451 | J136: 141.4219631 | K136: 140.5817808
A137: ED_OVE2102_00027 | E137: Finance | F137: 301.2785815 | G137: 363.8385992 | H137: 363.4451594 | I137: 340.6720581 | J137: 343.4491406 | K137: 341.4560582
A138: ED_OVE2102_00028 | E138: HR and Training | F138: 92.76953471 | G138: 112.9358465 | H138: 112.969698 | I138: 105.9715765 | J138: 106.8881781 | K138: 106.2832628
A139: ED_OVE2102_00029 | E139: Property | F139: 34.50142738 | G139: 41.17526875 | H139: 39.99203638 | I139: 36.59269995 | J139: 36.08698236 | K139: 35.20200026
A140: ED_OVE2102_00030 | E140: Information Systems | F140: 155.6340586 | G140: 186.5014185 | H140: 185.6780158 | I140: 173.5061012 | J140: 174.4135129 | K140: 172.9410961
A141: ED_OVE2102_00031 | E141: Risk Management | F141: 55.01365081 | G141: 66.00121635 | H141: 65.82888553 | I141: 61.61260089 | J141: 62.02674256 | K141: 61.58427173
A142: ED_OVE2102_00032 | E142: Other Allocated Costs | F142: 6.206191348 | G142: -128.4546258 | H142: -127.8298131 | I142: -120.0004778 | J142: -120.8089187 | K142: -120.1140793
A143: ED_OVE2102_00033
A144: ED_OVE2102_00034
A145: ED_OVE2102_00035
A146: ED_OVE2102_00036
A147: ED_OVE2102_00037
A148: ED_OVE2102_00038
A149: ED_OVE2102_00039
A150: ED_OVE2102_00040
A151: ED_OVE2102_00041
A152: ED_OVE2102_00042
A153: ED_OVE2102_00043 | C153: CORPORATE OVERHEADS | D153: Total Overhead Expenditure - Negotiated Services | E153: Total | F153: 4240.089421 | G153: 5110.11428 | H153: 5093.87649 | I153: 4765.183631 | J153: 4794.945115 | K153: 4758.720661
A154: ED_OVE2102_00044 | C154: CORPORATE OVERHEADS | D154: Total Overhead Expenditure - Unregulated Services | E154: Total | F154: 3268.337924 | G154: 3938.968885 | H154: 3926.452502 | I154: 3673.090077 | J154: 3696.030769 | K154: 3668.108302
A155: ED_OVE2102_00045 | C155: CORPORATE OVERHEADS | D155: Capitalised Overheads - Standard Control Services | E155: Expenditure categories currently reported under annual RIN
A156: ED_OVE2102_00046 | E156: [expenditure category currently reported under annual RIN] - DNSP to nominate
A157: ED_OVE2102_00047 | E157: Other Allocated Costs - Standard Control | F157: 0 | G157: 2479.437885 | H157: -9673.618748 | I157: -9649.485877 | J157: -9630.21593 | K157: -9693.941259
A158: ED_OVE2102_00048 | E158: Other Allocated Costs - Alternative Control | F158: -126.6962887 | G158: 0 | H158: 0 | I158: 0 | J158: 0 | K158: 0
A159: ED_OVE2102_00049
A160: ED_OVE2102_00050
A161: ED_OVE2102_00051
A162: ED_OVE2102_00052
A163: ED_OVE2102_00053
A164: ED_OVE2102_00054
A165: ED_OVE2102_00055
A166: ED_OVE2102_00056
A167: ED_OVE2102_00057
A168: ED_OVE2102_00058
A169: ED_OVE2102_00059
A170: ED_OVE2102_00060
A171: ED_OVE2102_00061
A172: ED_OVE2102_00062
A173: ED_OVE2102_00063
A174: ED_OVE2102_00064
A175: ED_OVE2102_00065

Sheet 2.11 Labour
C1: REGULATORY REPORTING STATEMENT
C2: =TradingName -> SA Power Networks
C3: =RCP_1to5 -> 2015-16 to 2019-20
C4: 2.11 LABOUR
C6: TABLE 2.11.1 - COST METRICS PER ANNUM
C7: <<<GROUP-ROW>>>
F9: ASL (0'S) | G9: ASL (0'S) Forthcoming Period | L9: TOTAL LABOUR COST ($000's) | M9: TOTAL LABOUR COST ($000's) Forthcoming Period | R9: AVERAGE PRODUCTIVE WORK HOURS PER ASL (0'S) | S9: AVERAGE PRODUCTIVE WORK HOURS PER ASL (0'S) Forthcoming Period | X9: STAND-DOWN OCCURENCES PER ASL (0'S) | Y9: STAND-DOWN OCCURENCES PER ASL (0'S) Forthcoming Period
F11: =CRCP_y5 -> 2014-15 | G11: =FRCP -> 2015-16 | H11: 2016-17 | I11: 2017-18 | J11: 2018-19 | K11: 2019-20 | L11: =CRCP_y5 -> 2014-15 | M11: =FRCP -> 2015-16 | N11: 2016-17 | O11: 2017-18 | P11: 2018-19 | Q11: 2019-20 | R11: =CRCP_y5 -> 2014-15 | S11: =FRCP -> 2015-16 | T11: 2016-17 | U11: 2017-18 | V11: 2018-19 | W11: 2019-20 | X11: =CRCP_y5 -> 2014-15 | Y11: =FRCP -> 2015-16 | Z11: 2016-17 | AA11: 2017-18 | AB11: 2018-19 | AC11: 2019-20
A12: ED_LAB2111_00001 | C12: CORPORATE OVERHEADS INTERNAL LABOUR COSTS | D12: LABOUR CLASSIFICATION LEVEL | E12: Executive manager | F12: 26.4 | G12: 26.4 | H12: 26.4 | I12: 26.4 | J12: 26.4 | K12: 26.4 | L12: 9473.4 | M12: 9776 | N12: 9984.1 | O12: 10202.5 | P12: 10431.6 | Q12: 10665.9 | R12: 1854.9 | S12: 1854.9 | T12: 1854.9 | U12: 1854.9 | V12: 1854.9 | W12: 1854.9 | X12: 0 | Y12: 0 | Z12: 0 | AA12: 0 | AB12: 0 | AC12: 0
A13: ED_LAB2111_00002 | E13: Employee (optional) | F13: 26.4 | G13: 26.4 | H13: 26.4 | I13: 26.4 | J13: 26.4 | K13: 26.4 | L13: 9473.4 | M13: 9776 | N13: 9984.1 | O13: 10202.5 | P13: 10431.6 | Q13: 10665.9 | R13: 1854.9 | S13: 1854.9 | T13: 1854.9 | U13: 1854.9 | V13: 1854.9 | W13: 1854.9 | X13: 0 | Y13: 0 | Z13: 0 | AA13: 0 | AB13: 0 | AC13: 0
A14: ED_LAB2111_00003 | E14: Labour hire (optional) | F14: 0 | G14: 0 | H14: 0 | I14: 0 | J14: 0 | K14: 0 | L14: 0 | M14: 0 | N14: 0 | O14: 0 | P14: 0 | Q14: 0 | R14: 0 | S14: 0 | T14: 0 | U14: 0 | V14: 0 | W14: 0 | X14: 0 | Y14: 0 | Z14: 0 | AA14: 0 | AB14: 0 | AC14: 0
A15: ED_LAB2111_00004 | E15: Senior manager | F15: 13.4 | G15: 13.4 | H15: 13.4 | I15: 13.4 | J15: 13.4 | K15: 13.4 | L15: 2785.4 | M15: 2874.4 | N15: 2935.3 | O15: 2999.1 | P15: 3066.1 | Q15: 3134.6 | R15: 1808.5 | S15: 1808.5 | T15: 1808.5 | U15: 1808.5 | V15: 1808.5 | W15: 1808.5 | X15: 0 | Y15: 0 | Z15: 0 | AA15: 0 | AB15: 0 | AC15: 0
A16: ED_LAB2111_00005 | E16: Employee (optional) | F16: 13.4 | G16: 13.4 | H16: 13.4 | I16: 13.4 | J16: 13.4 | K16: 13.4 | L16: 2785.4 | M16: 2874.4 | N16: 2935.3 | O16: 2999.1 | P16: 3066.1 | Q16: 3134.6 | R16: 1808.5 | S16: 1808.5 | T16: 1808.5 | U16: 1808.5 | V16: 1808.5 | W16: 1808.5 | X16: 0 | Y16: 0 | Z16: 0 | AA16: 0 | AB16: 0 | AC16: 0
A17: ED_LAB2111_00006 | E17: Labour hire (optional) | F17: 0 | G17: 0 | H17: 0 | I17: 0 | J17: 0 | K17: 0 | L17: 0 | M17: 0 | N17: 0 | O17: 0 | P17: 0 | Q17: 0 | R17: 0 | S17: 0 | T17: 0 | U17: 0 | V17: 0 | W17: 0 | X17: 0 | Y17: 0 | Z17: 0 | AA17: 0 | AB17: 0 | AC17: 0
A18: ED_LAB2111_00007 | E18: Manager | F18: 28.5 | G18: 29.1 | H18: 29.8 | I18: 30.1 | J18: 30.5 | K18: 30.8 | L18: 4590.3 | M18: 4835.3 | N18: 5056.9 | O18: 5219.4 | P18: 5397.3 | Q18: 5583.8 | R18: 1645.1 | S18: 1645.1 | T18: 1645.1 | U18: 1645.1 | V18: 1645.1 | W18: 1645.1 | X18: 0.2 | Y18: 0.2 | Z18: 0.2 | AA18: 0.2 | AB18: 0.2 | AC18: 0.2
A19: ED_LAB2111_00008 | E19: Employee (optional) | F19: 27.4 | G19: 28 | H19: 28.7 | I19: 29 | J19: 29.4 | K19: 29.6 | L19: 4320.1 | M19: 4554.5 | N19: 4771.5 | O19: 4928.9 | P19: 5101.7 | Q19: 5255.6 | R19: 1635.1 | S19: 1635.1 | T19: 1635.1 | U19: 1635.1 | V19: 1635.1 | W19: 1635.1 | X19: 0.2 | Y19: 0.2 | Z19: 0.2 | AA19: 0.2 | AB19: 0.2 | AC19: 0.2
A20: ED_LAB2111_00009 | E20: Labour hire (optional) | F20: 1.1 | G20: 1.1 | H20: 1.1 | I20: 1.1 | J20: 1.1 | K20: 1.2 | L20: 270.2 | M20: 280.8 | N20: 285.4 | O20: 290.5 | P20: 295.6 | Q20: 328.2 | R20: 1895.3 | S20: 1895.3 | T20: 1895.3 | U20: 1895.3 | V20: 1895.3 | W20: 1895.3 | X20: 0 | Y20: 0 | Z20: 0 | AA20: 0 | AB20: 0 | AC20: 0
A21: ED_LAB2111_00010 | E21: Professional | F21: 42.9 | G21: 46.5 | H21: 50.7 | I21: 52.7 | J21: 55.1 | K21: 55.8 | L21: 7394.4 | M21: 8293.2 | N21: 9212.1 | O21: 9784.6 | P21: 10446 | Q21: 10786.6 | R21: 1651.9 | S21: 1651.9 | T21: 1651.9 | U21: 1651.9 | V21: 1651.9 | W21: 1651.9 | X21: 0 | Y21: 0 | Z21: 0 | AA21: 0 | AB21: 0 | AC21: 0
A22: ED_LAB2111_00011 | E22: Employee (optional) | F22: 34 | G22: 36.9 | H22: 40.2 | I22: 41.8 | J22: 43.7 | K22: 44.3 | L22: 5253.3 | M22: 5893.1 | N22: 6543.5 | O22: 6965.3 | P22: 7445.2 | Q22: 7705.8 | R22: 1593 | S22: 1593 | T22: 1593 | U22: 1593 | V22: 1593 | W22: 1593 | X22: 0 | Y22: 0 | Z22: 0 | AA22: 0 | AB22: 0 | AC22: 0
A23: ED_LAB2111_00012 | E23: Labour hire (optional) | F23: 8.9 | G23: 9.6 | H23: 10.5 | I23: 10.9 | J23: 11.4 | K23: 11.5 | L23: 2141.1 | M23: 2400.1 | N23: 2668.6 | O23: 2819.3 | P23: 3000.8 | Q23: 3080.8 | R23: 1876.8 | S23: 1876.8 | T23: 1876.8 | U23: 1876.8 | V23: 1876.8 | W23: 1876.8 | X23: 0 | Y23: 0 | Z23: 0 | AA23: 0 | AB23: 0 | AC23: 0
A24: ED_LAB2111_00013 | E24: Semi professional | F24: 142.1 | G24: 152.7 | H24: 166.4 | I24: 173.6 | J24: 182.2 | K24: 185.5 | L24: 21703.7 | M24: 24136.4 | N24: 26805.8 | O24: 28527.9 | P24: 30550.1 | Q24: 31744.1 | R24: 1635 | S24: 1635 | T24: 1635 | U24: 1635 | V24: 1635 | W24: 1635 | X24: 0 | Y24: 0 | Z24: 0 | AA24: 0 | AB24: 0 | AC24: 0
A25: ED_LAB2111_00014 | E25: Employee (optional) | F25: 98.8 | G25: 106.2 | H25: 115.7 | I25: 120.7 | J25: 126.7 | K25: 129 | L25: 12922.4 | M25: 14336.3 | N25: 15943.1 | O25: 16993.3 | P25: 18234.4 | Q25: 18984.5 | R25: 1541.1 | S25: 1541.1 | T25: 1541.1 | U25: 1541.1 | V25: 1541.1 | W25: 1541.1 | X25: 0 | Y25: 0 | Z25: 0 | AA25: 0 | AB25: 0 | AC25: 0
A26: ED_LAB2111_00015 | E26: Labour hire (optional) | F26: 43.3 | G26: 46.5 | H26: 50.7 | I26: 52.9 | J26: 55.5 | K26: 56.5 | L26: 8781.3 | M26: 9800.1 | N26: 10862.7 | O26: 11534.6 | P26: 12315.7 | Q26: 12759.6 | R26: 1849.3 | S26: 1849.3 | T26: 1849.3 | U26: 1849.3 | V26: 1849.3 | W26: 1849.3 | X26: 0 | Y26: 0 | Z26: 0 | AA26: 0 | AB26: 0 | AC26: 0
A27: ED_LAB2111_00016 | E27: Support staff | F27: 171.1 | G27: 175.7 | H27: 181 | I27: 182.5 | J27: 184.7 | K27: 186.1 | L27: 20399.3 | M27: 21646.9 | N27: 22752.7 | O27: 23420 | P27: 24196.5 | Q27: 24902.6 | R27: 1600.5 | S27: 1600.5 | T27: 1600.5 | U27: 1600.5 | V27: 1600.5 | W27: 1600.5 | X27: 0.1 | Y27: 0.1 | Z27: 0.1 | AA27: 0.1 | AB27: 0.1 | AC27: 0.1
A28: ED_LAB2111_00017 | E28: Employee (optional) | F28: 148.3 | G28: 152.3 | H28: 156.9 | I28: 158.2 | J28: 160.1 | K28: 161.3 | L28: 16485.9 | M28: 17473 | N28: 18382.6 | O28: 18935.6 | P28: 19576.4 | Q28: 20162.5 | R28: 1555.7 | S28: 1555.7 | T28: 1555.7 | U28: 1555.7 | V28: 1555.7 | W28: 1555.7 | X28: 0.1 | Y28: 0.1 | Z28: 0.1 | AA28: 0.1 | AB28: 0.1 | AC28: 0.1
A29: ED_LAB2111_00018 | E29: Labour hire (optional) | F29: 22.8 | G29: 23.4 | H29: 24.1 | I29: 24.3 | J29: 24.6 | K29: 24.8 | L29: 3913.4 | M29: 4173.9 | N29: 4370.1 | O29: 4484.4 | P29: 4620.1 | Q29: 4740.1 | R29: 1891.7 | S29: 1891.7 | T29: 1891.7 | U29: 1891.7 | V29: 1891.7 | W29: 1891.7 | X29: 0 | Y29: 0 | Z29: 0 | AA29: 0 | AB29: 0 | AC29: 0
A30: ED_LAB2111_00019 | E30: Intern, junior staff, apprentice | F30: 0 | G30: 0 | H30: 0 | I30: 0 | J30: 0 | K30: 0 | L30: 0 | M30: 0 | N30: 0 | O30: 0 | P30: 0 | Q30: 0 | R30: 0 | S30: 0 | T30: 0 | U30: 0 | V30: 0 | W30: 0 | X30: 0 | Y30: 0 | Z30: 0 | AA30: 0 | AB30: 0 | AC30: 0
A31: ED_LAB2111_00020 | E31: Employee (optional) | F31: 0 | G31: 0 | H31: 0 | I31: 0 | J31: 0 | K31: 0 | L31: 0 | M31: 0 | N31: 0 | O31: 0 | P31: 0 | Q31: 0 | R31: 0 | S31: 0 | T31: 0 | U31: 0 | V31: 0 | W31: 0 | X31: 0 | Y31: 0 | Z31: 0 | AA31: 0 | AB31: 0 | AC31: 0
A32: ED_LAB2111_00021 | E32: Labour hire (optional) | F32: 0 | G32: 0 | H32: 0 | I32: 0 | J32: 0 | K32: 0 | L32: 0 | M32: 0 | N32: 0 | O32: 0 | P32: 0 | Q32: 0 | R32: 0 | S32: 0 | T32: 0 | U32: 0 | V32: 0 | W32: 0 | X32: 0 | Y32: 0 | Z32: 0 | AA32: 0 | AB32: 0 | AC32: 0
A33: ED_LAB2111_00022 | C33: NETWORK OVERHEADS INTERNAL LABOUR COSTS | D33: LABOUR CLASSIFICATION LEVEL | E33: Executive manager | F33: 22.5 | G33: 22.5 | H33: 22.5 | I33: 22.5 | J33: 22.5 | K33: 22.5 | L33: 7157.2 | M33: 7385.8 | N33: 7542.8 | O33: 7707.5 | P33: 7880.3 | Q33: 8057 | R33: 1901.7 | S33: 1901.7 | T33: 1901.7 | U33: 1901.7 | V33: 1901.7 | W33: 1901.7 | X33: 0 | Y33: 0 | Z33: 0 | AA33: 0 | AB33: 0 | AC33: 0
A34: ED_LAB2111_00023 | E34: Employee (optional) | F34: 22.5 | G34: 22.5 | H34: 22.5 | I34: 22.5 | J34: 22.5 | K34: 22.5 | L34: 7157.2 | M34: 7385.8 | N34: 7542.8 | O34: 7707.5 | P34: 7880.3 | Q34: 8057 | R34: 1901.7 | S34: 1901.7 | T34: 1901.7 | U34: 1901.7 | V34: 1901.7 | W34: 1901.7 | X34: 0 | Y34: 0 | Z34: 0 | AA34: 0 | AB34: 0 | AC34: 0
A35: ED_LAB2111_00024 | E35: Labour hire (optional) | F35: 0 | G35: 0 | H35: 0 | I35: 0 | J35: 0 | K35: 0 | L35: 0 | M35: 0 | N35: 0 | O35: 0 | P35: 0 | Q35: 0 | R35: 0 | S35: 0 | T35: 0 | U35: 0 | V35: 0 | W35: 0 | X35: 0 | Y35: 0 | Z35: 0 | AA35: 0 | AB35: 0 | AC35: 0
A36: ED_LAB2111_00025 | E36: Senior manager | F36: 32.1 | G36: 32.1 | H36: 32.1 | I36: 32.1 | J36: 32.1 | K36: 32.1 | L36: 6436.8 | M36: 6643.8 | N36: 6786.2 | O36: 6934.6 | P36: 7090.3 | Q36: 7249.5 | R36: 1741.7 | S36: 1741.7 | T36: 1741.7 | U36: 1741.7 | V36: 1741.7 | W36: 1741.7 | X36: 0 | Y36: 0 | Z36: 0 | AA36: 0 | AB36: 0 | AC36: 0
A37: ED_LAB2111_00026 | E37: Employee (optional) | F37: 32.1 | G37: 32.1 | H37: 32.1 | I37: 32.1 | J37: 32.1 | K37: 32.1 | L37: 6436.8 | M37: 6643.8 | N37: 6786.2 | O37: 6934.6 | P37: 7090.3 | Q37: 7249.5 | R37: 1741.7 | S37: 1741.7 | T37: 1741.7 | U37: 1741.7 | V37: 1741.7 | W37: 1741.7 | X37: 0 | Y37: 0 | Z37: 0 | AA37: 0 | AB37: 0 | AC37: 0
A38: ED_LAB2111_00027 | E38: Labour hire (optional) | F38: 0 | G38: 0 | H38: 0 | I38: 0 | J38: 0 | K38: 0 | L38: 0 | M38: 0 | N38: 0 | O38: 0 | P38: 0 | Q38: 0 | R38: 0 | S38: 0 | T38: 0 | U38: 0 | V38: 0 | W38: 0 | X38: 0 | Y38: 0 | Z38: 0 | AA38: 0 | AB38: 0 | AC38: 0
A39: ED_LAB2111_00028 | E39: Manager | F39: 91.2 | G39: 92.6 | H39: 94.4 | I39: 95.3 | J39: 96.2 | K39: 97.2 | L39: 13382.5 | M39: 14023.6 | N39: 14609.7 | O39: 15076.2 | P39: 15563.5 | Q39: 16063 | R39: 1657.6 | S39: 1657.6 | T39: 1657.6 | U39: 1657.6 | V39: 1657.6 | W39: 1657.6 | X39: 7.2 | Y39: 7.2 | Z39: 7.2 | AA39: 7.2 | AB39: 7.2 | AC39: 7.2
A40: ED_LAB2111_00029 | E40: Employee (optional) | F40: 91.2 | G40: 92.6 | H40: 94.4 | I40: 95.3 | J40: 96.2 | K40: 97.2 | L40: 13382.5 | M40: 14023.6 | N40: 14609.7 | O40: 15076.2 | P40: 15563.5 | Q40: 16063 | R40: 1657.6 | S40: 1657.6 | T40: 1657.6 | U40: 1657.6 | V40: 1657.6 | W40: 1657.6 | X40: 7.2 | Y40: 7.2 | Z40: 7.2 | AA40: 7.2 | AB40: 7.2 | AC40: 7.2
A41: ED_LAB2111_00030 | E41: Labour hire (optional) | F41: 0 | G41: 0 | H41: 0 | I41: 0 | J41: 0 | K41: 0 | L41: 0 | M41: 0 | N41: 0 | O41: 0 | P41: 0 | Q41: 0 | R41: 0 | S41: 0 | T41: 0 | U41: 0 | V41: 0 | W41: 0 | X41: 0 | Y41: 0 | Z41: 0 | AA41: 0 | AB41: 0 | AC41: 0
A42: ED_LAB2111_00031 | E42: Professional | F42: 101.4 | G42: 101.7 | H42: 102.3 | I42: 103.4 | J42: 104 | K42: 103.8 | L42: 13190.2 | M42: 13681.4 | N42: 14064.7 | O42: 14514.2 | P42: 14896.2 | Q42: 15199.1 | R42: 1572.2 | S42: 1572.2 | T42: 1572.2 | U42: 1572.2 | V42: 1572.2 | W42: 1572.2 | X42: 0.3 | Y42: 0.3 | Z42: 0.3 | AA42: 0.3 | AB42: 0.3 | AC42: 0.3
A43: ED_LAB2111_00032 | E43: Employee (optional) | F43: 94.5 | G43: 94.7 | H43: 95.3 | I43: 96.3 | J43: 96.9 | K43: 96.7 | L43: 11843.4 | M43: 12261.4 | N43: 12621.2 | O43: 13024.1 | P43: 13379.8 | Q43: 13655.8 | R43: 1551 | S43: 1551 | T43: 1551 | U43: 1551 | V43: 1551 | W43: 1551 | X43: 0.3 | Y43: 0.3 | Z43: 0.3 | AA43: 0.3 | AB43: 0.3 | AC43: 0.3
A44: ED_LAB2111_00033 | E44: Labour hire (optional) | F44: 6.9 | G44: 7 | H44: 7 | I44: 7.1 | J44: 7.1 | K44: 7.1 | L44: 1346.8 | M44: 1420 | N44: 1443.5 | O44: 1490.1 | P44: 1516.4 | Q44: 1543.3 | R44: 1862.7 | S44: 1862.7 | T44: 1862.7 | U44: 1862.7 | V44: 1862.7 | W44: 1862.7 | X44: 0 | Y44: 0 | Z44: 0 | AA44: 0 | AB44: 0 | AC44: 0
A45: ED_LAB2111_00034 | E45: Semi professional | F45: 333 | G45: 350.9 | H45: 372.1 | I45: 372.4 | J45: 369.3 | K45: 367.6 | L45: 48657.9 | M45: 52916 | N45: 57225.2 | O45: 58528.6 | P45: 59328.9 | Q45: 60342.8 | R45: 1646.5 | S45: 1646.5 | T45: 1646.5 | U45: 1646.5 | V45: 1646.5 | W45: 1646.5 | X45: 5.8 | Y45: 5.8 | Z45: 5.8 | AA45: 5.8 | AB45: 5.8 | AC45: 5.8
A46: ED_LAB2111_00035 | E46: Employee (optional) | F46: 304.1 | G46: 320.4 | H46: 339.8 | I46: 340.1 | J46: 337.2 | K46: 335.7 | L46: 42370.2 | M46: 46020 | N46: 49801 | O46: 50972.9 | P46: 51687.1 | Q46: 52614.2 | R46: 1624.2 | S46: 1624.2 | T46: 1624.2 | U46: 1624.2 | V46: 1624.2 | W46: 1624.2 | X46: 6.3 | Y46: 6.3 | Z46: 6.3 | AA46: 6.3 | AB46: 6.3 | AC46: 6.3
A47: ED_LAB2111_00036 | E47: Labour hire (optional) | F47: 28.9 | G47: 30.5 | H47: 32.3 | I47: 32.3 | J47: 32.1 | K47: 31.9 | L47: 6287.7 | M47: 6896 | N47: 7424.2 | O47: 7555.7 | P47: 7641.8 | Q47: 7728.6 | R47: 1881.2 | S47: 1881.2 | T47: 1881.2 | U47: 1881.2 | V47: 1881.2 | W47: 1881.2 | X47: 0.1 | Y47: 0.1 | Z47: 0.1 | AA47: 0.1 | AB47: 0.1 | AC47: 0.1
A48: ED_LAB2111_00037 | E48: Support staff | F48: 162.8 | G48: 165.1 | H48: 172.2 | I48: 182.8 | J48: 188.2 | K48: 188.4 | L48: 19960.1 | M48: 20925 | N48: 22262.8 | O48: 24105.7 | P48: 25339.3 | Q48: 25909.2 | R48: 1644.5 | S48: 1644.5 | T48: 1644.5 | U48: 1644.5 | V48: 1644.5 | W48: 1644.5 | X48: 2.7 | Y48: 2.7 | Z48: 2.7 | AA48: 2.7 | AB48: 2.7 | AC48: 2.7
A49: ED_LAB2111_00038 | E49: Employee (optional) | F49: 134.3 | G49: 136.2 | H49: 142 | I49: 150.8 | J49: 155.2 | K49: 155.4 | L49: 14980.1 | M49: 15677 | N49: 16687.7 | O49: 18093.7 | P49: 19029.7 | Q49: 19488 | R49: 1599.5 | S49: 1599.5 | T49: 1599.5 | U49: 1599.5 | V49: 1599.5 | W49: 1599.5 | X49: 3.2 | Y49: 3.2 | Z49: 3.2 | AA49: 3.2 | AB49: 3.2 | AC49: 3.2
A50: ED_LAB2111_00039 | E50: Labour hire (optional) | F50: 28.5 | G50: 28.9 | H50: 30.2 | I50: 32 | J50: 33 | K50: 33 | L50: 4980 | M50: 5248 | N50: 5575.1 | O50: 6012 | P50: 6309.6 | Q50: 6421.2 | R50: 1856.3 | S50: 1856.3 | T50: 1856.3 | U50: 1856.3 | V50: 1856.3 | W50: 1856.3 | X50: 0.1 | Y50: 0.1 | Z50: 0.1 | AA50: 0.1 | AB50: 0.1 | AC50: 0.1
A51: ED_LAB2111_00040 | E51: Intern, junior staff, apprentice | F51: 14.5 | G51: 14.5 | H51: 14.5 | I51: 14.5 | J51: 14.5 | K51: 14.5 | L51: 1303.5 | M51: 1347.7 | N51: 1377.1 | O51: 1406.5 | P51: 1436.7 | Q51: 1467.1 | R51: 1585.9 | S51: 1585.9 | T51: 1585.9 | U51: 1585.9 | V51: 1585.9 | W51: 1585.9 | X51: 5.4 | Y51: 5.4 | Z51: 5.4 | AA51: 5.4 | AB51: 5.4 | AC51: 5.4
A52: ED_LAB2111_00041 | E52: Employee (optional) | F52: 13.7 | G52: 13.7 | H52: 13.7 | I52: 13.7 | J52: 13.7 | K52: 13.7 | L52: 1201.3 | M52: 1241.5 | N52: 1269.2 | O52: 1296.7 | P52: 1324.9 | Q52: 1353.3 | R52: 1568.9 | S52: 1568.9 | T52: 1568.9 | U52: 1568.9 | V52: 1568.9 | W52: 1568.9 | X52: 4.9 | Y52: 4.9 | Z52: 4.9 | AA52: 4.9 | AB52: 4.9 | AC52: 4.9
A53: ED_LAB2111_00042 | E53: Labour hire (optional) | F53: 0.8 | G53: 0.8 | H53: 0.8 | I53: 0.8 | J53: 0.8 | K53: 0.8 | L53: 102.2 | M53: 106.2 | N53: 107.9 | O53: 109.8 | P53: 111.8 | Q53: 113.8 | R53: 1877.7 | S53: 1877.7 | T53: 1877.7 | U53: 1877.7 | V53: 1877.7 | W53: 1877.7 | X53: 13.4 | Y53: 13.4 | Z53: 13.4 | AA53: 13.4 | AB53: 13.4 | AC53: 13.4
A54: ED_LAB2111_00043 | C54: TOTAL DIRECT NETWORK LABOUR INTERNAL LABOUR COSTS | D54: LABOUR CLASSIFICATION LEVEL | E54: Skilled electrical worker | F54: 541 | G54: 550.5 | H54: 567.6 | I54: 582.7 | J54: 597.9 | K54: 613.1 | L54: 74796.6 | M54: 78536.6 | N54: 82608.2 | O54: 86584.3 | P54: 90744.1 | Q54: 95047.6 | R54: 1944.6 | S54: 1944.6 | T54: 1944.6 | U54: 1944.6 | V54: 1944.6 | W54: 1944.6 | X54: 80.8 | Y54: 80.8 | Z54: 80.8 | AA54: 80.8 | AB54: 80.8 | AC54: 80.8
A55: ED_LAB2111_00044 | E55: Employee (optional) | F55: 523 | G55: 532.2 | H55: 548.7 | I55: 563.3 | J55: 578 | K55: 592.7 | L55: 70985.7 | M55: 74510.2 | N55: 78380.8 | O55: 82168.2 | P55: 86134 | Q55: 90238 | R55: 1940.6 | S55: 1940.6 | T55: 1940.6 | U55: 1940.6 | V55: 1940.6 | W55: 1940.6 | X55: 83 | Y55: 83 | Z55: 83 | AA55: 83 | AB55: 83 | AC55: 83
A56: ED_LAB2111_00045 | E56: Labour hire (optional) | F56: 18 | G56: 18.3 | H56: 18.9 | I56: 19.4 | J56: 19.9 | K56: 20.4 | L56: 3810.9 | M56: 4026.4 | N56: 4227.4 | O56: 4416.1 | P56: 4610.1 | Q56: 4809.6 | R56: 2060.9 | S56: 2060.9 | T56: 2060.9 | U56: 2060.9 | V56: 2060.9 | W56: 2060.9 | X56: 17.2 | Y56: 17.2 | Z56: 17.2 | AA56: 17.2 | AB56: 17.2 | AC56: 17.2
A57: ED_LAB2111_00046 | E57: Skilled non electical worker | F57: 26.9 | G57: 26.9 | H57: 26.9 | I57: 26.9 | J57: 26.9 | K57: 26.9 | L57: 2837.5 | M57: 2931.7 | N57: 2990.6 | O57: 3061.7 | P57: 3135.8 | Q57: 3202 | R57: 1701.9 | S57: 1701.9 | T57: 1701.9 | U57: 1701.9 | V57: 1701.9 | W57: 1701.9 | X57: 7.1 | Y57: 7.1 | Z57: 7.1 | AA57: 7.1 | AB57: 7.1 | AC57: 7.1
A58: ED_LAB2111_00047 | E58: Employee (optional) | F58: 23.8 | G58: 23.8 | H58: 23.8 | I58: 23.8 | J58: 23.8 | K58: 23.8 | L58: 2362.2 | M58: 2437.8 | N58: 2488.5 | O58: 2550.7 | P58: 2615.7 | Q58: 2672.7 | R58: 1657.1 | S58: 1657.1 | T58: 1657.1 | U58: 1657.1 | V58: 1657.1 | W58: 1657.1 | X58: 7.8 | Y58: 7.8 | Z58: 7.8 | AA58: 7.8 | AB58: 7.8 | AC58: 7.8
A59: ED_LAB2111_00048 | E59: Labour hire (optional) | F59: 3.1 | G59: 3.1 | H59: 3.1 | I59: 3.1 | J59: 3.1 | K59: 3.1 | L59: 475.3 | M59: 493.9 | N59: 502.1 | O59: 511 | P59: 520.1 | Q59: 529.3 | R59: 2045.5 | S59: 2045.5 | T59: 2045.5 | U59: 2045.5 | V59: 2045.5 | W59: 2045.5 | X59: 1.8 | Y59: 1.8 | Z59: 1.8 | AA59: 1.8 | AB59: 1.8 | AC59: 1.8
A60: ED_LAB2111_00049 | E60: Apprentice | F60: 135.3 | G60: 135.3 | H60: 135.3 | I60: 135.3 | J60: 135.3 | K60: 135.3 | L60: 8340.6 | M60: 8613.9 | N60: 8798.4 | O60: 8994 | P60: 9198.6 | Q60: 9404.1 | R60: 1747.5 | S60: 1747.5 | T60: 1747.5 | U60: 1747.5 | V60: 1747.5 | W60: 1747.5 | X60: 37.7 | Y60: 37.7 | Z60: 37.7 | AA60: 37.7 | AB60: 37.7 | AC60: 37.7
A61: ED_LAB2111_00050 | E61: Employee (optional) | F61: 133.8 | G61: 133.8 | H61: 133.8 | I61: 133.8 | J61: 133.8 | K61: 133.8 | L61: 8201.1 | M61: 8468.9 | N61: 8651 | O61: 8844 | P61: 9045.9 | Q61: 9248.7 | R61: 1744 | S61: 1744 | T61: 1744 | U61: 1744 | V61: 1744 | W61: 1744 | X61: 38.1 | Y61: 38.1 | Z61: 38.1 | AA61: 38.1 | AB61: 38.1 | AC61: 38.1
A62: ED_LAB2111_00051 | E62: Labour hire (optional) | F62: 1.5 | G62: 1.5 | H62: 1.5 | I62: 1.5 | J62: 1.5 | K62: 1.5 | L62: 139.5 | M62: 145 | N62: 147.4 | O62: 150 | P62: 152.7 | Q62: 155.4 | R62: 2063.5 | S62: 2063.5 | T62: 2063.5 | U62: 2063.5 | V62: 2063.5 | W62: 2063.5 | X62: 0 | Y62: 0 | Z62: 0 | AA62: 0 | AB62: 0 | AC62: 0
A63: ED_LAB2111_00052 | E63: Unskilled worker | F63: 59.1 | G63: 59.1 | H63: 59.1 | I63: 66.2 | J63: 73.1 | K63: 73.1 | L63: 6181.7 | M63: 6389.2 | N63: 6519.3 | O63: 7456.3 | P63: 8417.1 | Q63: 8598.4 | R63: 1697.9 | S63: 1697.9 | T63: 1697.9 | U63: 1697.9 | V63: 1697.9 | W63: 1697.9 | X63: 10.5 | Y63: 10.5 | Z63: 10.5 | AA63: 10.5 | AB63: 10.5 | AC63: 10.5
A64: ED_LAB2111_00053 | E64: Employee (optional) | F64: 50.1 | G64: 50.1 | H64: 50.1 | I64: 56.1 | J64: 62 | K64: 62 | L64: 4806.7 | M64: 4960.2 | N64: 5066.6 | O64: 5797.2 | P64: 6561.4 | Q64: 6709.9 | R64: 1654.1 | S64: 1654.1 | T64: 1654.1 | U64: 1654.1 | V64: 1654.1 | W64: 1654.1 | X64: 12.4 | Y64: 12.4 | Z64: 12.4 | AA64: 12.4 | AB64: 12.4 | AC64: 12.4
A65: ED_LAB2111_00054 | E65: Labour hire (optional) | F65: 9 | G65: 9 | H65: 9 | I65: 10.1 | J65: 11.1 | K65: 11.1 | L65: 1375 | M65: 1429 | N65: 1452.7 | O65: 1659.1 | P65: 1855.7 | Q65: 1888.5 | R65: 1941.5 | S65: 1941.5 | T65: 1941.5 | U65: 1941.5 | V65: 1941.5 | W65: 1941.5 | X65: 0 | Y65: 0 | Z65: 0 | AA65: 0 | AB65: 0 | AC65: 0

Sheet 2.12 Input tables
C1: REGULATORY REPORTING STATEMENT
C2: =TradingName -> SA Power Networks
C3: =RCP_1to5 -> 2015-16 to 2019-20
C4: 2.12 INPUT TABLES
E7: DIRECT MATERIAL EXPENDITURE | F7: DIRECT MATERIAL EXPENDITURE Forthcoming Period | K7: DIRECT LABOUR EXPENDITURE | L7: DIRECT LABOUR EXPENDITURE Forthcoming Period | Q7: CONTRACT EXPENDITURE | R7: CONTRACT EXPENDITURE Forthcoming Period | W7: OTHER EXPENDITURE | X7: OTHER EXPENDITURE Forthcoming Period | AC7: RELATED PARTY CONTRACT EXPENDITURE | AD7: RELATED PARTY CONTRACT EXPENDITURE Forthcoming Period | AI7: RELATED PARTY CONTRACT MARGIN | AJ7: RELATED PARTY CONTRACT MARGIN Forthcoming Period
E8: =CRCP_y5 -> 2014-15 | F8: =FRCP -> 2015-16 | G8: 2016-17 | H8: 2017-18 | I8: 2018-19 | J8: 2019-20 | K8: =CRCP_y5 -> 2014-15 | L8: =FRCP -> 2015-16 | M8: 2016-17 | N8: 2017-18 | O8: 2018-19 | P8: 2019-20 | Q8: =CRCP_y5 -> 2014-15 | R8: =FRCP -> 2015-16 | S8: 2016-17 | T8: 2017-18 | U8: 2018-19 | V8: 2019-20 | W8: =CRCP_y5 -> 2014-15 | X8: =FRCP -> 2015-16 | Y8: 2016-17 | Z8: 2017-18 | AA8: 2018-19 | AB8: 2019-20 | AC8: =CRCP_y5 -> 2014-15 | AD8: =FRCP -> 2015-16 | AE8: 2016-17 | AF8: 2017-18 | AG8: 2018-19 | AH8: 2019-20 | AI8: =CRCP_y5 -> 2014-15 | AJ8: =FRCP -> 2015-16 | AK8: 2016-17 | AL8: 2017-18 | AM8: 2018-19 | AN8: 2019-20
A9: ED_INP212_00001 | C9: VEGETATION MANAGEMENT | D9: South Australia
A10: ED_INP212_00002 | D10: Zone - DNSP to nominate
A11: ED_INP212_00003
A12: ED_INP212_00004
A13: ED_INP212_00005
A14: ED_INP212_00006
A15: ED_INP212_00007
A16: ED_INP212_00008
A17: ED_INP212_00009
A18: ED_INP212_00010
A19: ED_INP212_00011
A20: ED_INP212_00012
A21: ED_INP212_00013
A22: ED_INP212_00014
A23: ED_INP212_00015
A24: ED_INP212_00016
A25: ED_INP212_00017
A26: ED_INP212_00018
A27: ED_INP212_00019
A28: ED_INP212_00020
A29: ED_INP212_00021
A30: ED_INP212_00022
A31: ED_INP212_00023 | C31: ROUTINE MAINTENANCE | D31: Pole top, overhead line & service line maintenance | E31: 0.6206341191 | F31: 0.6272190212 | G31: 0.6333204981 | H31: 0.6393517402 | I31: 0.6458951536 | J31: 0.6518889692 | K31: 11.55974818 | L31: 11.9330771 | M31: 12.30771045 | N31: 12.70614177 | O31: 13.12671301 | P31: 13.54839083 | Q31: 21.52566696 | R31: 17.35722452 | S31: 17.61370292 | T31: 17.94147484 | U31: 18.31540947 | V31: 18.71644105 | W31: 8.11062026 | X31: 8.347939663 | Y31: 8.573126865 | Z31: 8.831289573 | AA31: 9.110804001 | AB31: 9.402851625 | AC31: 0 | AD31: 0 | AE31: 0 | AF31: 0 | AG31: 0 | AH31: 0 | AI31: 0 | AJ31: 0 | AK31: 0 | AL31: 0 | AM31: 0 | AN31: 0
A32: ED_INP212_00024 | D32: Pole inspection and treatment | E32: 0.2959127184 | F32: 0.29905234 | G32: 0.3019614689 | H32: 0.3048371104 | I32: 0.3079569506 | J32: 0.3108147475 | K32: 391.6884286 | L32: 471.8252486 | M32: 490.1948436 | N32: 505.4886273 | O32: 520.0509872 | P32: 518.2692751 | Q32: 3624.357998 | R32: 7576.534341 | S32: 7614.61078 | T32: 7668.146283 | U32: 7730.856775 | V32: 5981.611236 | W32: 0.414493839 | X32: 16.49495782 | Y32: 15.93868032 | Z32: 15.81116067 | AA32: 15.76394244 | AB32: 12.7115327 | AC32: 0 | AD32: 0 | AE32: 0 | AF32: 0 | AG32: 0 | AH32: 0 | AI32: 0 | AJ32: 0 | AK32: 0 | AL32: 0 | AM32: 0 | AN32: 0
A33: ED_INP212_00025 | D33: Overhead asset inspection | E33: 29.51184006 | F33: 29.82495945 | G33: 30.11509144 | H33: 30.40188369 | I33: 30.71303024 | J33: 30.99804281 | K33: 907.6031268 | L33: 977.969428 | M33: 1015.146339 | N33: 1048.770328 | O33: 1082.513028 | P33: 1129.622985 | Q33: 3897.810238 | R33: 5974.211554 | S33: 6291.430586 | T33: 6420.661574 | U33: 6519.634877 | V33: 6539.002386 | W33: 144.7896688 | X33: 158.8011953 | Y33: 163.3889918 | Z33: 168.1383897 | AA33: 173.1897454 | AB33: 181.4706739 | AC33: 0 | AD33: 0 | AE33: 0 | AF33: 0 | AG33: 0 | AH33: 0 | AI33: 0 | AJ33: 0 | AK33: 0 | AL33: 0 | AM33: 0 | AN33: 0
A34: ED_INP212_00026 | D34: Network underground cable maintenance | E34: 10.33546125 | F34: 10.44512006 | G34: 10.54672836 | H34: 10.64716704 | I34: 10.75613493 | J34: 10.85595034 | K34: 64.86982462 | L34: 66.96483403 | M34: 69.06716354 | N34: 71.30304013 | O34: 73.66315925 | P34: 76.02948815 | Q34: 0 | R34: 0 | S34: 0 | T34: 0 | U34: 0 | V34: 0 | W34: 26.21413468 | X34: 26.98116884 | Y34: 27.70899081 | Z34: 28.5433921 | AA34: 29.44680375 | AB34: 30.39072364 | AC34: 0 | AD34: 0 | AE34: 0 | AF34: 0 | AG34: 0 | AH34: 0 | AI34: 0 | AJ34: 0 | AK34: 0 | AL34: 0 | AM34: 0 | AN34: 0
A35: ED_INP212_00027 | D35: Distribution substation equipment & property maintenance | E35: 3.718143201 | F35: 3.757592545 | G35: 3.794145748 | H35: 3.830278183 | I35: 3.869478973 | J35: 3.90538719 | K35: 171.0786755 | L35: 176.6037626 | M35: 182.1481548 | N35: 188.0447455 | O35: 194.2689962 | P35: 200.5096238 | Q35: 2.134092445 | R35: 1.720825738 | S35: 1.746253457 | T35: 1.778749341 | U35: 1.815821877 | V35: 1.855580853 | W35: 1.084815635 | X35: 1.116557695 | Y35: 1.146677044 | Z35: 1.181206948 | AA35: 1.218592698 | AB35: 1.257654794 | AC35: 0 | AD35: 0 | AE35: 0 | AF35: 0 | AG35: 0 | AH35: 0 | AI35: 0 | AJ35: 0 | AK35: 0 | AL35: 0 | AM35: 0 | AN35: 0
A36: ED_INP212_00028 | D36: Zone substation equipment maintenance | E36: 116.9915004 | F36: 118.2327753 | G36: 119.3829231 | H36: 120.5198314 | I36: 121.7532855 | J36: 122.8831388 | K36: 605.9929366 | L36: 625.5638374 | M36: 645.2031202 | N36: 666.0899567 | O36: 688.1374268 | P36: 710.2429066 | Q36: 140.1165346 | R36: 112.982987 | S36: 114.652476 | T36: 116.7860343 | U36: 119.2200785 | V36: 121.8305042 | W36: 213.1837916 | X36: 219.4216191 | Y36: 225.3405575 | Z36: 232.1262413 | AA36: 239.4731449 | AB36: 247.1494777 | AC36: 0 | AD36: 0 | AE36: 0 | AF36: 0 | AG36: 0 | AH36: 0 | AI36: 0 | AJ36: 0 | AK36: 0 | AL36: 0 | AM36: 0 | AN36: 0
A37: ED_INP212_00029 | D37: Zone substation property maintenance | E37: 35.17691494 | F37: 35.55014054 | G37: 35.89596609 | H37: 36.2378108 | I37: 36.60868486 | J37: 36.94840828 | K37: 283.9021732 | L37: 293.070962 | M37: 302.2717872 | N37: 312.0570799 | O37: 322.3861189 | P37: 332.7423349 | Q37: 636.9393847 | R37: 513.5961607 | S37: 521.1852959 | T37: 530.8839892 | U37: 541.9486264 | V37: 553.8150558 | W37: 71.99816967 | X37: 74.10485968 | Y37: 76.10385185 | Z37: 78.39556837 | AA37: 80.87682462 | AB37: 83.46933835 | AC37: 0 | AD37: 0 | AE37: 0 | AF37: 0 | AG37: 0 | AH37: 0 | AI37: 0 | AJ37: 0 | AK37: 0 | AL37: 0 | AM37: 0 | AN37: 0
A38: ED_INP212_00030 | D38: Public lighting maintenance | E38: 0 | F38: 0 | G38: 0 | H38: 0 | I38: 0 | J38: 0 | K38: 0 | L38: 0 | M38: 0 | N38: 0 | O38: 0 | P38: 0 | Q38: 0 | R38: 0 | S38: 0 | T38: 0 | U38: 0 | V38: 0 | W38: 0 | X38: 0 | Y38: 0 | Z38: 0 | AA38: 0 | AB38: 0 | AC38: 0 | AD38: 0 | AE38: 0 | AF38: 0 | AG38: 0 | AH38: 0 | AI38: 0 | AJ38: 0 | AK38: 0 | AL38: 0 | AM38: 0 | AN38: 0
A39: ED_INP212_00031 | D39: Scada & network control maintenance | E39: 0 | F39: 0 | G39: 0 | H39: 0 | I39: 0 | J39: 0 | K39: 0 | L39: 0 | M39: 0 | N39: 0 | O39: 0 | P39: 0 | Q39: 0 | R39: 0 | S39: 0 | T39: 0 | U39: 0 | V39: 0 | W39: 0 | X39: 0 | Y39: 0 | Z39: 0 | AA39: 0 | AB39: 0 | AC39: 0 | AD39: 0 | AE39: 0 | AF39: 0 | AG39: 0 | AH39: 0 | AI39: 0 | AJ39: 0 | AK39: 0 | AL39: 0 | AM39: 0 | AN39: 0
A40: ED_INP212_00032 | D40: Protection systems maintenance | E40: 19.67702296 | F40: 19.88579535 | G40: 20.07924089 | H40: 20.27045965 | I40: 20.47791666 | J40: 20.66794883 | K40: 790.1467471 | L40: 815.6650043 | M40: 841.272424 | N40: 868.5065135 | O40: 897.253939 | P40: 926.0770026 | Q40: 11.86779468 | R40: 9.569597878 | S40: 9.711002698 | T40: 9.891713929 | U40: 10.09787616 | V40: 10.31897781 | W40: 159.1906754 | X40: 163.8486467 | Y40: 168.2684939 | Z40: 173.3355658 | AA40: 178.8217172 | AB40: 184.5538631 | AC40: 0 | AD40: 0 | AE40: 0 | AF40: 0 | AG40: 0 | AH40: 0 | AI40: 0 | AJ40: 0 | AK40: 0 | AL40: 0 | AM40: 0 | AN40: 0
A41: ED_INP212_00033 | D41: Subtransmission asset maintenance - for dnsps with dual function assets | E41: 0 | F41: 0 | G41: 0 | H41: 0 | I41: 0 | J41: 0 | K41: 0 | L41: 0 | M41: 0 | N41: 0 | O41: 0 | P41: 0 | Q41: 0 | R41: 0 | S41: 0 | T41: 0 | U41: 0 | V41: 0 | W41: 0 | X41: 0 | Y41: 0 | Z41: 0 | AA41: 0 | AB41: 0 | AC41: 0 | AD41: 0 | AE41: 0 | AF41: 0 | AG41: 0 | AH41: 0 | AI41: 0 | AJ41: 0 | AK41: 0 | AL41: 0 | AM41: 0 | AN41: 0
A42: ED_INP212_00034 | D42: Other | E42: 258.0181929 | F42: 260.7557552 | G42: 263.2923416 | H42: 265.799729 | I42: 268.520043 | J42: 271.011871 | K42: 2611.927108 | L42: 2696.280841 | M42: 2780.929312 | N42: 2870.954939 | O42: 2965.983084 | P42: 3061.261261 | Q42: 1149.677575 | R42: 927.042671 | S42: 940.7410838 | T42: 958.2472554 | U42: 978.21896 | V42: 999.6379021 | W42: 415.242792 | X42: 427.392932 | Y42: 438.9219347 | Z42: 452.139198 | AA42: 466.4496142 | AB42: 481.4016976 | AC42: 0 | AD42: 0 | AE42: 0 | AF42: 0 | AG42: 0 | AH42: 0 | AI42: 0 | AJ42: 0 | AK42: 0 | AL42: 0 | AM42: 0 | AN42: 0
A43: ED_INP212_00035 | D43: [other maintenance activity 2]
A44: ED_INP212_00036 | C44: NON-ROUTINE MAINTENANCE | D44: Pole top, overhead line & service line maintenance | E44: 31.92838951 | F44: 32.2671484 | G44: 32.58103757 | H44: 32.89131353 | I44: 33.22793803 | J44: 33.53628859 | K44: 432.3928663 | L44: 446.3572501 | M44: 460.3704263 | N44: 475.2737668 | O44: 491.0052518 | P44: 506.7781283 | Q44: 9.100126779 | R44: 7.337888483 | S44: 7.446316529 | T44: 7.584884406 | U44: 7.742967897 | V44: 7.912506812 | W44: 582.1572404 | X44: 599.1913518 | Y44: 615.3546482 | Z44: 633.8848327 | AA44: 653.9475829 | AB44: 674.9099302 | AC44: 0 | AD44: 0 | AE44: 0 | AF44: 0 | AG44: 0 | AH44: 0 | AI44: 0 | AJ44: 0 | AK44: 0 | AL44: 0 | AM44: 0 | AN44: 0
A45: ED_INP212_00037 | D45: Pole inspection and treatment | E45: 0 | F45: 0 | G45: 0 | H45: 0 | I45: 0 | J45: 0 | K45: 0 | L45: 0 | M45: 0 | N45: 0 | O45: 0 | P45: 0 | Q45: 0 | R45: 0 | S45: 0 | T45: 0 | U45: 0 | V45: 0 | W45: 0 | X45: 0 | Y45: 0 | Z45: 0 | AA45: 0 | AB45: 0 | AC45: 0 | AD45: 0 | AE45: 0 | AF45: 0 | AG45: 0 | AH45: 0 | AI45: 0 | AJ45: 0 | AK45: 0 | AL45: 0 | AM45: 0 | AN45: 0
A46: ED_INP212_00038 | D46: Overhead asset inspection | E46: 0 | F46: 0 | G46: 0 | H46: 0 | I46: 0 | J46: 0 | K46: 0 | L46: 0 | M46: 0 | N46: 0 | O46: 0 | P46: 0 | Q46: 0 | R46: 0 | S46: 0 | T46: 0 | U46: 0 | V46: 0 | W46: 0 | X46: 0 | Y46: 0 | Z46: 0 | AA46: 0 | AB46: 0 | AC46: 0 | AD46: 0 | AE46: 0 | AF46: 0 | AG46: 0 | AH46: 0 | AI46: 0 | AJ46: 0 | AK46: 0 | AL46: 0 | AM46: 0 | AN46: 0
A47: ED_INP212_00039 | D47: Network underground cable maintenance | E47: 41.43689658 | F47: 41.87654032 | G47: 42.28390798 | H47: 42.68658639 | I47: 43.12346011 | J47: 43.52363972 | K47: 122.4327693 | L47: 126.3868081 | M47: 130.3546626 | N47: 134.5745686 | O47: 139.0289651 | P47: 143.4950817 | Q47: 18.12548673 | R47: 14.61548872 | S47: 14.83145397 | T47: 15.10745124 | U47: 15.42231941 | V47: 15.7600043 | W47: 162.2258642 | X47: 166.9726461 | Y47: 171.4767638 | Z47: 176.6404463 | AA47: 182.2311987 | AB47: 188.0726359 | AC47: 0 | AD47: 0 | AE47: 0 | AF47: 0 | AG47: 0 | AH47: 0 | AI47: 0 | AJ47: 0 | AK47: 0 | AL47: 0 | AM47: 0 | AN47: 0
A48: ED_INP212_00040 | D48: Distribution substation equipment & property maintenance | E48: 97.06372973 | F48: 98.09357185 | G48: 99.04780896 | H48: 99.99106174 | I48: 101.0144152 | J48: 101.9518147 | K48: 360.9465142 | L48: 372.6034957 | M48: 384.3012074 | N48: 396.7419973 | O48: 409.8740934 | P48: 423.0407418 | Q48: 140.3060509 | R48: 113.1358035 | S48: 114.8075506 | T48: 116.9439947 | U48: 119.3813311 | V48: 121.9952876 | W48: 365.0978093 | X48: 375.7806907 | Y48: 385.9174436 | Z48: 397.5385819 | AA48: 410.1208631 | AB48: 423.2673235 | AC48: 0 | AD48: 0 | AE48: 0 | AF48: 0 | AG48: 0 | AH48: 0 | AI48: 0 | AJ48: 0 | AK48: 0 | AL48: 0 | AM48: 0 | AN48: 0
A49: ED_INP212_00041 | D49: Zone substation equipment maintenance | E49: 184.9280791 | F49: 186.8901583 | G49: 188.7081931 | H49: 190.5053003 | I49: 192.4550172 | J49: 194.2409725 | K49: 1847.327315 | L49: 1906.987845 | M49: 1966.856832 | N49: 2030.5289 | O49: 2097.739079 | P49: 2165.126097 | Q49: 418.3276018 | R49: 337.3185194 | S49: 342.3028944 | T49: 348.6727801 | U49: 355.9397874 | V49: 363.733394 | W49: 594.5649767 | X49: 611.9621425 | Y49: 628.4699334 | Z49: 647.3950587 | AA49: 667.8854138 | AB49: 689.2945395 | AC49: 0 | AD49: 0 | AE49: 0 | AF49: 0 | AG49: 0 | AH49: 0 | AI49: 0 | AJ49: 0 | AK49: 0 | AL49: 0 | AM49: 0 | AN49: 0
A50: ED_INP212_00042 | D50: Zone substation property maintenance | E50: 71.28056958 | F50: 72.03685345 | G50: 72.73761536 | H50: 73.43031072 | I50: 74.18182956 | J50: 74.87022643 | K50: 295.3832212 | L50: 304.9227973 | M50: 314.4957053 | N50: 324.6767168 | O50: 335.4234637 | P50: 346.1984867 | Q50: 238.9718179 | R50: 192.6949583 | S50: 195.5423085 | T50: 199.1811388 | U50: 203.3324545 | V50: 207.7845928 | W50: 73.50579047 | X50: 75.65659396 | Y50: 77.69744444 | Z50: 80.03714885 | AA50: 82.57036188 | AB50: 85.2171621 | AC50: 0 | AD50: 0 | AE50: 0 | AF50: 0 | AG50: 0 | AH50: 0 | AI50: 0 | AJ50: 0 | AK50: 0 | AL50: 0 | AM50: 0 | AN50: 0
A51: ED_INP212_00043 | D51: Public lighting maintenance | E51: 0 | F51: 0 | G51: 0 | H51: 0 | I51: 0 | J51: 0 | K51: 0 | L51: 0 | M51: 0 | N51: 0 | O51: 0 | P51: 0 | Q51: 0 | R51: 0 | S51: 0 | T51: 0 | U51: 0 | V51: 0 | W51: 0 | X51: 0 | Y51: 0 | Z51: 0 | AA51: 0 | AB51: 0 | AC51: 0 | AD51: 0 | AE51: 0 | AF51: 0 | AG51: 0 | AH51: 0 | AI51: 0 | AJ51: 0 | AK51: 0 | AL51: 0 | AM51: 0 | AN51: 0
A52: ED_INP212_00044 | D52: SCADA & network control maintenance | E52: 129.1893793 | F52: 130.5600732 | G52: 131.8301388 | H52: 133.0855845 | I52: 134.4476422 | J52: 135.6952973 | K52: 488.0506997 | L52: 503.8125862 | M52: 519.6295456 | N52: 536.4512519 | O52: 554.2077018 | P52: 572.0108711 | Q52: 21.98185482 | R52: 17.72507166 | S52: 17.98698555 | T52: 18.32170385 | U52: 18.70356318 | V52: 19.11309372 | W52: 126.0727249 | X52: 129.7616541 | Y52: 133.2619985 | Z52: 137.2749192 | AA52: 141.6197343 | AB52: 146.1593674 | AC52: 0 | AD52: 0 | AE52: 0 | AF52: 0 | AG52: 0 | AH52: 0 | AI52: 0 | AJ52: 0 | AK52: 0 | AL52: 0 | AM52: 0 | AN52: 0
A53: ED_INP212_00045 | D53: Protection systems maintenance | E53: 77.61036589 | F53: 78.43380864 | G53: 79.196799 | H53: 79.95100651 | I53: 80.76926108 | J53: 81.51878839 | K53: 284.4789234 | L53: 293.6663388 | M53: 302.8858555 | N53: 312.6910272 | O53: 323.0410497 | P53: 333.4183045 | Q53: 6.329578769 | R53: 5.103856713 | S53: 5.179273668 | T53: 5.275654336 | U53: 5.385609057 | V53: 5.503531581 | W53: 62.6303408 | X53: 64.46292508 | Y53: 66.20182429 | Z53: 68.1953609 | AA53: 70.35377583 | AB53: 72.60897231 | AC53: 0 | AD53: 0 | AE53: 0 | AF53: 0 | AG53: 0 | AH53: 0 | AI53: 0 | AJ53: 0 | AK53: 0 | AL53: 0 | AM53: 0 | AN53: 0
A54: ED_INP212_00046 | D54: Subtransmission asset maintenance - for DNSP with dual function assets | E54: 0 | F54: 0 | G54: 0 | H54: 0 | I54: 0 | J54: 0 | K54: 0 | L54: 0 | M54: 0 | N54: 0 | O54: 0 | P54: 0 | Q54: 0 | R54: 0 | S54: 0 | T54: 0 | U54: 0 | V54: 0 | W54: 0 | X54: 0 | Y54: 0 | Z54: 0 | AA54: 0 | AB54: 0 | AC54: 0 | AD54: 0 | AE54: 0 | AF54: 0 | AG54: 0 | AH54: 0 | AI54: 0 | AJ54: 0 | AK54: 0 | AL54: 0 | AM54: 0 | AN54: 0
A55: ED_INP212_00047 | D55: Other | E55: 187.4816215 | F55: 189.4707937 | G55: 191.3139324 | H55: 193.1358546 | I55: 195.1124938 | J55: 196.9231101 | K55: 1505.882268 | L55: 1554.515628 | M55: 1603.318916 | N55: 1655.222354 | O55: 1710.009947 | P55: 1764.941693 | Q55: 466.9821977 | R55: 376.5511595 | S55: 382.1152542 | T55: 389.2260048 | U55: 397.3382188 | V55: 406.0382795 | W55: 927.6235146 | X55: 954.7660823 | Y55: 980.5210722 | Z55: 1010.047519 | AA55: 1042.015994 | AB55: 1075.417908 | AC55: 0 | AD55: 0 | AE55: 0 | AF55: 0 | AG55: 0 | AH55: 0 | AI55: 0 | AJ55: 0 | AK55: 0 | AL55: 0 | AM55: 0 | AN55: 0
A56: ED_INP212_00048 | D56: [other maintenance activity 2]
A57: ED_INP212_00049 | C57: OVERHEADS | D57: Network overheads | E57: 4354.87381 | F57: 4689.919699 | G57: 4564.740973 | H57: 4667.660138 | I57: 4782.155187 | J57: 4892.078617 | K57: 43770.81635 | L57: 47193.51432 | M57: 50118.08121 | N57: 52473.80495 | O57: 53952.40063 | P57: 55844.44713 | Q57: 5778.994127 | R57: 6310.172911 | S57: 6176.9953 | T57: 6530.527218 | U57: 6680.501267 | V57: 6861.985981 | W57: 35383.23053 | X57: 35492.36352 | Y57: 42660.5829 | Z57: 38120.45303 | AA57: 38891.95896 | AB57: 39486.11252 | AC57: 14571.35928 | AD57: 14468.89115 | AE57: 14907.57595 | AF57: 15142.55177 | AG57: 15388.42477 | AH57: 15641.82674 | AI57: 0 | AJ57: 0 | AK57: 0 | AL57: 0 | AM57: 0 | AN57: 0
A58: ED_INP212_00050 | D58: Corporate overheads | E58: 999.2124591 | F58: 1119.44711 | G58: 1281.212131 | H58: 1300.514464 | I58: 1321.048103 | J58: 1328.679511 | K58: 38002.80455 | L58: 29925.7022 | M58: 31742.91362 | N58: 34631.78276 | O58: 35986.58325 | P58: 37246.70306 | Q58: -19.47695946 | R58: 894.9991562 | S58: 1053.645268 | T58: 1248.56026 | U58: 1345.22127 | V58: 1344.612861 | W58: 27612.43698 | X58: 43608.45876 | Y58: 30461.47133 | Z58: 31466.79156 | AA58: 31838.42252 | AB58: 32620.03735 | AC58: 0 | AD58: 0 | AE58: 0 | AF58: 0 | AG58: 0 | AH58: 0 | AI58: 0 | AJ58: 0 | AK58: 0 | AL58: 0 | AM58: 0 | AN58: 0
A59: ED_INP212_00051 | C59: AUGMENTATION | D59: Subtransmission substations, switching stations, zone substations | E59: 17193.31252 | F59: 0 | G59: 0 | H59: 0 | I59: 0 | J59: 0 | K59: 12879.18092 | L59: 0 | M59: 0 | N59: 0 | O59: 0 | P59: 0 | Q59: 16302.18255 | R59: 0 | S59: 0 | T59: 0 | U59: 0 | V59: 0 | W59: 160.1359262 | X59: 0 | Y59: 0 | Z59: 0 | AA59: 0 | AB59: 0 | AC59: 0 | AD59: 0 | AE59: 0 | AF59: 0 | AG59: 0 | AH59: 0 | AI59: 0 | AJ59: 0 | AK59: 0 | AL59: 0 | AM59: 0 | AN59: 0
A60: ED_INP212_00052 | D60: Subtransmission lines | E60: 3091.598325 | F60: 0 | G60: 0 | H60: 0 | I60: 0 | J60: 0 | K60: 3984.543803 | L60: 0 | M60: 0 | N60: 0 | O60: 0 | P60: 0 | Q60: 3203.800342 | R60: 0 | S60: 0 | T60: 0 | U60: 0 | V60: 0 | W60: 361.8931463 | X60: 0 | Y60: 0 | Z60: 0 | AA60: 0 | AB60: 0 | AC60: 0 | AD60: 0 | AE60: 0 | AF60: 0 | AG60: 0 | AH60: 0 | AI60: 0 | AJ60: 0 | AK60: 0 | AL60: 0 | AM60: 0 | AN60: 0
A61: ED_INP212_00053 | D61: HV feeders | E61: 1731.362238 | F61: 0 | G61: 0 | H61: 0 | I61: 0 | J61: 0 | K61: 1406.875414 | L61: 0 | M61: 0 | N61: 0 | O61: 0 | P61: 0 | Q61: 1535.804736 | R61: 0 | S61: 0 | T61: 0 | U61: 0 | V61: 0 | W61: 161.7183068 | X61: 0 | Y61: 0 | Z61: 0 | AA61: 0 | AB61: 0 | AC61: 0 | AD61: 0 | AE61: 0 | AF61: 0 | AG61: 0 | AH61: 0 | AI61: 0 | AJ61: 0 | AK61: 0 | AL61: 0 | AM61: 0 | AN61: 0
A62: ED_INP212_00054 | D62: Distribution substations | E62: 4716.745739 | F62: 0 | G62: 0 | H62: 0 | I62: 0 | J62: 0 | K62: 2620.85807 | L62: 0 | M62: 0 | N62: 0 | O62: 0 | P62: 0 | Q62: 2248.430628 | R62: 0 | S62: 0 | T62: 0 | U62: 0 | V62: 0 | W62: 242.7336743 | X62: 0 | Y62: 0 | Z62: 0 | AA62: 0 | AB62: 0 | AC62: 0 | AD62: 0 | AE62: 0 | AF62: 0 | AG62: 0 | AH62: 0 | AI62: 0 | AJ62: 0 | AK62: 0 | AL62: 0 | AM62: 0 | AN62: 0
A63: ED_INP212_00055 | D63: LV feeders | E63: 171.815699 | F63: 0 | G63: 0 | H63: 0 | I63: 0 | J63: 0 | K63: 312.9830421 | L63: 0 | M63: 0 | N63: 0 | O63: 0 | P63: 0 | Q63: 111.4368899 | R63: 0 | S63: 0 | T63: 0 | U63: 0 | V63: 0 | W63: 13.11299548 | X63: 0 | Y63: 0 | Z63: 0 | AA63: 0 | AB63: 0 | AC63: 0 | AD63: 0 | AE63: 0 | AF63: 0 | AG63: 0 | AH63: 0 | AI63: 0 | AJ63: 0 | AK63: 0 | AL63: 0 | AM63: 0 | AN63: 0
A64: ED_INP212_00056 | D64: Other assets | E64: 9129.451183 | F64: 21760.3414 | G64: 23658.74031 | H64: 21995.02169 | I64: 19724.37388 | J64: 16171.98586 | K64: 12021.98932 | L64: 49437.5956 | M64: 58355.51296 | N64: 56787.86196 | O64: 50029.48611 | P64: 40929.72304 | Q64: 16640.03588 | R64: 14632.40306 | S64: 19254.90385 | T64: 19762.5874 | U64: 15794.79732 | V64: 12445.78552 | W64: 952.3644716 | X64: 36104.96543 | Y64: 37363.92437 | Z64: 33701.23398 | AA64: 32517.22689 | AB64: 28636.38887 | AC64: 0 | AD64: 0 | AE64: 0 | AF64: 0 | AG64: 0 | AH64: 0 | AI64: 0 | AJ64: 0 | AK64: 0 | AL64: 0 | AM64: 0 | AN64: 0
A65: ED_INP212_00057 | C65: CONNECTIONS | D65: Simple and complex customer connections | E65: 31685.16116 | F65: 35688.3907 | G65: 37011.50816 | H65: 37931.62284 | I65: 40556.08125 | J65: 43126.24471 | K65: 37770.19852 | L65: 42542.23594 | M65: 44119.45401 | N65: 45216.27388 | O65: 48344.75142 | P65: 51408.50683 | Q65: 17590.71412 | R65: 19813.19505 | S65: 20547.75281 | T65: 21058.57471 | U65: 22515.60053 | V65: 23942.4833 | W65: 3055.345936 | X65: 3441.370519 | Y65: 3568.956474 | Z65: 3657.68156 | AA65: 3910.753599 | AB65: 4158.590069 | AC65: 0 | AD65: 0 | AE65: 0 | AF65: 0 | AG65: 0 | AH65: 0 | AI65: 0 | AJ65: 0 | AK65: 0 | AL65: 0 | AM65: 0 | AN65: 0
A66: ED_INP212_00058 | C66: EMERGENCY RESPONSE | D66: Major storms | E66: 0 | F66: 0 | G66: 0 | H66: 0 | I66: 0 | J66: 0 | K66: 0 | L66: 0 | M66: 0 | N66: 0 | O66: 0 | P66: 0 | Q66: 0 | R66: 0 | S66: 0 | T66: 0 | U66: 0 | V66: 0 | W66: 0 | X66: 0 | Y66: 0 | Z66: 0 | AA66: 0 | AB66: 0 | AC66: 0 | AD66: 0 | AE66: 0 | AF66: 0 | AG66: 0 | AH66: 0 | AI66: 0 | AJ66: 0 | AK66: 0 | AL66: 0 | AM66: 0 | AN66: 0
A67: ED_INP212_00059 | D67: Major event days | E67: -1563.000923 | F67: -1579.584298 | G67: -1594.950217 | H67: -1610.139258 | I67: -1626.618148 | J67: -1641.712934 | K67: 24775.3995 | L67: 25575.5357 | M67: 26378.46763 | N67: 27232.40451 | O67: 28133.79271 | P67: 29037.55257 | Q67: 1461.695308 | R67: 1484.589853 | S67: 1506.526842 | T67: 1534.561673 | U67: 1566.544872 | V67: 1600.845714 | W67: 7512.1215 | X67: 7629.78392 | Y67: 7742.525148 | Z67: 7886.605147 | AA67: 8050.977074 | AB67: 8227.260114 | AC67: 0 | AD67: 0 | AE67: 0 | AF67: 0 | AG67: 0 | AH67: 0 | AI67: 0 | AJ67: 0 | AK67: 0 | AL67: 0 | AM67: 0 | AN67: 0
A68: ED_INP212_00060 | C68: PUBLIC LIGHTING | D68: All public lighting services | E68: 0 | F68: 0 | G68: 0 | H68: 0 | I68: 0 | J68: 0 | K68: 0 | L68: 0 | M68: 0 | N68: 0 | O68: 0 | P68: 0 | Q68: 0 | R68: 0 | S68: 0 | T68: 0 | U68: 0 | V68: 0 | W68: 0 | X68: 0 | Y68: 0 | Z68: 0 | AA68: 0 | AB68: 0 | AC68: 0 | AD68: 0 | AE68: 0 | AF68: 0 | AG68: 0 | AH68: 0 | AI68: 0 | AJ68: 0 | AK68: 0 | AL68: 0 | AM68: 0 | AN68: 0
A69: ED_INP212_00061 | C69: METERING | D69: All metering services | E69: 9215.952146 | F69: 2905.425767 | G69: 2456.41698 | H69: 2942.672354 | I69: 2346.054132 | J69: 3256.376589 | K69: 4183.829726 | L69: 3448.182488 | M69: 3513.835578 | N69: 3563.544536 | O69: 3374.315796 | P69: 3756.174994 | Q69: 4501.192231 | R69: 5657.368361 | S69: 5593.659032 | T69: 5216.048327 | U69: 5187.889934 | V69: 5159.638891 | W69: 531.2568953 | X69: 456.3592829 | Y69: 457.9579569 | Z69: 456.0888648 | AA69: 431.4785596 | AB69: 470.43417 | AC69: 0 | AD69: 0 | AE69: 0 | AF69: 0 | AG69: 0 | AH69: 0 | AI69: 0 | AJ69: 0 | AK69: 0 | AL69: 0 | AM69: 0 | AN69: 0
A70: ED_INP212_00062 | C70: FEE-BASED SERVICES | D70: All fee-based services | E70: 0 | F70: 0 | G70: 0 | H70: 0 | I70: 0 | J70: 0 | K70: 0 | L70: 0 | M70: 0 | N70: 0 | O70: 0 | P70: 0 | Q70: 0 | R70: 0 | S70: 0 | T70: 0 | U70: 0 | V70: 0 | W70: 0 | X70: 0 | Y70: 0 | Z70: 0 | AA70: 0 | AB70: 0 | AC70: 0 | AD70: 0 | AE70: 0 | AF70: 0 | AG70: 0 | AH70: 0 | AI70: 0 | AJ70: 0 | AK70: 0 | AL70: 0 | AM70: 0 | AN70: 0
A71: ED_INP212_00063 | C71: QUOTED SERVICES | D71: All quoted services | E71: 0 | F71: 0 | G71: 0 | H71: 0 | I71: 0 | J71: 0 | K71: 0 | L71: 0 | M71: 0 | N71: 0 | O71: 0 | P71: 0 | Q71: 0 | R71: 0 | S71: 0 | T71: 0 | U71: 0 | V71: 0 | W71: 0 | X71: 0 | Y71: 0 | Z71: 0 | AA71: 0 | AB71: 0 | AC71: 0 | AD71: 0 | AE71: 0 | AF71: 0 | AG71: 0 | AH71: 0 | AI71: 0 | AJ71: 0 | AK71: 0 | AL71: 0 | AM71: 0 | AN71: 0
A72: ED_INP212_00064 | C72: REPLACEMENT | D72: Poles | E72: 9645.305267 | F72: 0 | G72: 0 | H72: 0 | I72: 0 | J72: 0 | K72: 9144.219637 | L72: 0 | M72: 0 | N72: 0 | O72: 0 | P72: 0 | Q72: 9882.588875 | R72: 0 | S72: 0 | T72: 0 | U72: 0 | V72: 0 | W72: 2030.364535 | X72: 0 | Y72: 0 | Z72: 0 | AA72: 0 | AB72: 0 | AC72: 0 | AD72: 0 | AE72: 0 | AF72: 0 | AG72: 0 | AH72: 0 | AI72: 0 | AJ72: 0 | AK72: 0 | AL72: 0 | AM72: 0 | AN72: 0
A73: ED_INP212_00065 | D73: Pole top structures | E73: 2658.726331 | F73: 0 | G73: 0 | H73: 0 | I73: 0 | J73: 0 | K73: 11520.41879 | L73: 0 | M73: 0 | N73: 0 | O73: 0 | P73: 0 | Q73: 850.5694805 | R73: 0 | S73: 0 | T73: 0 | U73: 0 | V73: 0 | W73: 1976.289581 | X73: 0 | Y73: 0 | Z73: 0 | AA73: 0 | AB73: 0 | AC73: 0 | AD73: 0 | AE73: 0 | AF73: 0 | AG73: 0 | AH73: 0 | AI73: 0 | AJ73: 0 | AK73: 0 | AL73: 0 | AM73: 0 | AN73: 0
A74: ED_INP212_00066 | D74: Overhead conductors | E74: 1342.577247 | F74: 0 | G74: 0 | H74: 0 | I74: 0 | J74: 0 | K74: 3107.477653 | L74: 0 | M74: 0 | N74: 0 | O74: 0 | P74: 0 | Q74: 664.1271526 | R74: 0 | S74: 0 | T74: 0 | U74: 0 | V74: 0 | W74: 524.7586326 | X74: 0 | Y74: 0 | Z74: 0 | AA74: 0 | AB74: 0 | AC74: 0 | AD74: 0 | AE74: 0 | AF74: 0 | AG74: 0 | AH74: 0 | AI74: 0 | AJ74: 0 | AK74: 0 | AL74: 0 | AM74: 0 | AN74: 0
A75: ED_INP212_00067 | D75: Underground cables | E75: 1244.669569 | F75: 0 | G75: 0 | H75: 0 | I75: 0 | J75: 0 | K75: 2824.418412 | L75: 0 | M75: 0 | N75: 0 | O75: 0 | P75: 0 | Q75: 1490.304427 | R75: 0 | S75: 0 | T75: 0 | U75: 0 | V75: 0 | W75: 392.7653498 | X75: 0 | Y75: 0 | Z75: 0 | AA75: 0 | AB75: 0 | AC75: 0 | AD75: 0 | AE75: 0 | AF75: 0 | AG75: 0 | AH75: 0 | AI75: 0 | AJ75: 0 | AK75: 0 | AL75: 0 | AM75: 0 | AN75: 0
A76: ED_INP212_00068 | D76: Service lines | E76: 117.5561244 | F76: 0 | G76: 0 | H76: 0 | I76: 0 | J76: 0 | K76: 3113.053464 | L76: 0 | M76: 0 | N76: 0 | O76: 0 | P76: 0 | Q76: 62.04700618 | R76: 0 | S76: 0 | T76: 0 | U76: 0 | V76: 0 | W76: 489.662006 | X76: 0 | Y76: 0 | Z76: 0 | AA76: 0 | AB76: 0 | AC76: 0 | AD76: 0 | AE76: 0 | AF76: 0 | AG76: 0 | AH76: 0 | AI76: 0 | AJ76: 0 | AK76: 0 | AL76: 0 | AM76: 0 | AN76: 0
A77: ED_INP212_00069 | D77: Transformers | E77: 6743.725227 | F77: 0 | G77: 0 | H77: 0 | I77: 0 | J77: 0 | K77: 3282.651739 | L77: 0 | M77: 0 | N77: 0 | O77: 0 | P77: 0 | Q77: 1419.764245 | R77: 0 | S77: 0 | T77: 0 | U77: 0 | V77: 0 | W77: 455.1146782 | X77: 0 | Y77: 0 | Z77: 0 | AA77: 0 | AB77: 0 | AC77: 0 | AD77: 0 | AE77: 0 | AF77: 0 | AG77: 0 | AH77: 0 | AI77: 0 | AJ77: 0 | AK77: 0 | AL77: 0 | AM77: 0 | AN77: 0
A78: ED_INP212_00070 | D78: Switchgear | E78: 6386.782602 | F78: 0 | G78: 0 | H78: 0 | I78: 0 | J78: 0 | K78: 5205.4716 | L78: 0 | M78: 0 | N78: 0 | O78: 0 | P78: 0 | Q78: 5749.837493 | R78: 0 | S78: 0 | T78: 0 | U78: 0 | V78: 0 | W78: 352.2834681 | X78: 0 | Y78: 0 | Z78: 0 | AA78: 0 | AB78: 0 | AC78: 0 | AD78: 0 | AE78: 0 | AF78: 0 | AG78: 0 | AH78: 0 | AI78: 0 | AJ78: 0 | AK78: 0 | AL78: 0 | AM78: 0 | AN78: 0
A79: ED_INP212_00071 | D79: Public lighting | E79: 0 | F79: 0 | G79: 0 | H79: 0 | I79: 0 | J79: 0 | K79: 0 | L79: 0 | M79: 0 | N79: 0 | O79: 0 | P79: 0 | Q79: 0 | R79: 0 | S79: 0 | T79: 0 | U79: 0 | V79: 0 | W79: 0 | X79: 0 | Y79: 0 | Z79: 0 | AA79: 0 | AB79: 0 | AC79: 0 | AD79: 0 | AE79: 0 | AF79: 0 | AG79: 0 | AH79: 0 | AI79: 0 | AJ79: 0 | AK79: 0 | AL79: 0 | AM79: 0 | AN79: 0
A80: ED_INP212_00072 | D80: SCADA network control and protections systems | E80: 3306.610453 | F80: 0 | G80: 0 | H80: 0 | I80: 0 | J80: 0 | K80: 3517.650722 | L80: 0 | M80: 0 | N80: 0 | O80: 0 | P80: 0 | Q80: 2470.228682 | R80: 0 | S80: 0 | T80: 0 | U80: 0 | V80: 0 | W80: 113.3157164 | X80: 0 | Y80: 0 | Z80: 0 | AA80: 0 | AB80: 0 | AC80: 0 | AD80: 0 | AE80: 0 | AF80: 0 | AG80: 0 | AH80: 0 | AI80: 0 | AJ80: 0 | AK80: 0 | AL80: 0 | AM80: 0 | AN80: 0
A81: ED_INP212_00073 | D81: Other | E81: 4622.285652 | F81: 32304.30782 | G81: 36447.68785 | H81: 37469.86409 | I81: 37485.75811 | J81: 36082.53289 | K81: 3627.696148 | L81: 52272.56832 | M81: 60242.62419 | N81: 63333.886 | O81: 64794.84212 | P81: 63780.99253 | Q81: 1336.422894 | R81: 15485.85165 | S81: 17629.32986 | T81: 18323.10601 | U81: 18587.51063 | V81: 18213.76486 | W81: 65.75195999 | X81: 22446.0757 | Y81: 25552.95514 | Z81: 26558.55382 | AA81: 26941.79694 | AB81: 26400.06853 | AC81: 0 | AD81: 0 | AE81: 0 | AF81: 0 | AG81: 0 | AH81: 0 | AI81: 0 | AJ81: 0 | AK81: 0 | AL81: 0 | AM81: 0 | AN81: 0
A82: ED_INP212_00074 | C82: NON-NETWORK EXPENDITURE | D82: IT and communications | E82: 9180.868 | F82: 9101.249 | G82: 4893.57 | H82: 5421.229 | I82: 6059.369 | J82: 7457.562 | K82: 25225.921 | L82: 25512.641 | M82: 31283.843 | N82: 29155.408 | O82: 29892.707 | P82: 27316.629 | Q82: 14324.202 | R82: 13979.77 | S82: 15670.465 | T82: 15184.941 | U82: 15901.055 | V82: 12387.835 | W82: 22076.882 | X82: 22305.343 | Y82: 23925.726 | Z82: 24312.503 | AA82: 25317.836 | AB82: 22018.885 | AC82: 0 | AD82: 0 | AE82: 0 | AF82: 0 | AG82: 0 | AH82: 0 | AI82: 0 | AJ82: 0 | AK82: 0 | AL82: 0 | AM82: 0 | AN82: 0
A83: ED_INP212_00075 | D83: Motor vehicles | E83: 24625.555 | F83: 38126.455 | G83: 24356.686 | H83: 19749.309 | I83: 22345.553 | J83: 23864.191 | K83: 3033.625 | L83: 3067.61 | M83: 3112.425 | N83: 3167.048 | O83: 3221.721 | P83: 3278.713 | Q83: 239.26 | R83: 241.94 | S83: 245.475 | T83: 249.783 | U83: 254.095 | V83: 258.59 | W83: 4870.199 | X83: 4924.758 | Y83: 4996.703 | Z83: 5084.394 | AA83: 5172.168 | AB83: 5263.664 | AC83: 0 | AD83: 0 | AE83: 0 | AF83: 0 | AG83: 0 | AH83: 0 | AI83: 0 | AJ83: 0 | AK83: 0 | AL83: 0 | AM83: 0 | AN83: 0
A84: ED_INP212_00076 | D84: Buildings and property | E84: 984.191 | F84: 484.299 | G84: 573.181 | H84: 475.824 | I84: 429.457 | J84: 427.325 | K84: 1969.239 | L84: 2114.215 | M84: 2535.017 | N84: 2172.759 | O84: 2010.975 | P84: 2047.374 | Q84: 5041.7 | R84: 8602.4 | S84: 11490.908 | T84: 8379.649 | U84: 6846.875 | V84: 6839.82 | W84: 7517.856 | X84: 11140.691 | Y84: 13748.954 | Z84: 10824.507 | AA84: 9392.363 | AB84: 9399.752 | AC84: 0 | AD84: 0 | AE84: 0 | AF84: 0 | AG84: 0 | AH84: 0 | AI84: 0 | AJ84: 0 | AK84: 0 | AL84: 0 | AM84: 0 | AN84: 0
A85: ED_INP212_00077 | D85: Other | E85: 10613.138 | F85: 12951.274 | G85: 12790.92 | H85: 10931.361 | I85: 9811.84 | J85: 10908.015 | K85: 4488.37 | L85: 6673.161 | M85: 7114.399 | N85: 4751.995 | O85: 3291.522 | P85: 2185.905 | Q85: 2092.867 | R85: 4137.596 | S85: 4646.432 | T85: 3163.488 | U85: 2233.248 | V85: 1276.168 | W85: 1494.195 | X85: 3543.316 | Y85: 4807.794 | Z85: 3502.202 | AA85: 2911.131 | AB85: 2087.038 | AC85: 0 | AD85: 0 | AE85: 0 | AF85: 0 | AG85: 0 | AH85: 0 | AI85: 0 | AJ85: 0 | AK85: 0 | AL85: 0 | AM85: 0 | AN85: 0

Sheet 2.13 Provisions
C1: REGULATORY REPORTING STATEMENT
C2: =TradingName -> SA Power Networks
C3: =RCP_1to5 -> 2015-16 to 2019-20
C4: 2.13 PROVISIONS
C6: Instructions
C7: In Table 2.13.1 provide, for each provision, the name and a brief description of the nature of the obligation in the spaces provided. Provision amounts must be inclusive of related party margins (RPMs) if the DNSP incurs RPMs. Provision amounts must only relate to standard control services. In Table 2.13.2 allocate, by provision, the total movements in provisions from Table 2.13.1 opex, as-incurred capex by asset class and other. 'Other' refers to movements in provisions that are recognised in equity, revenue, etc rather than as an expense. The total 'movement' (the sum of the movements allocated to opex, capex and other) is equal to the difference between the carrying amount at the end of the period and the carrying amount at the beginning of the period in Table 2.13.1. The DNSP must insert their Roll Forward Model asset classes in the as-incurred capex section of Table 2.13.2.
C12: TABLE 2.13.1 - CHANGES IN TOTAL PROVISIONS incl. RPM
D15: Actual ($000's)
D16: Previous period | F16: Current regulatory control period
A17: PRO2131 | D17: =PRCP_y4 -> 2008-09 | E17: =PRCP_y5 -> 2009-10 | F17: =CRCP -> 2010-11 | G17: 2011-12 | H17: 2012-13 | I17: 2013-14
A20: ED_PRO2131_00010 | C20: Annual Leave
C21: Accrual of employee annual leave entitlements
A22: ED_PRO2131_00003 | C22: Opening balance (the carrying amount at the beginning of the period) | D22: 5970 | E22: =D39 -> 7874 | F22: =E39 -> 10036 | G22: 12723 | H22: 13807 | I22: 15225
C23: Additional provisions made in the period, including increases to existing provisions
A24: ED_PRO2131_00005 | C24: Opex component | D24: 7527 | E24: 9386 | F24: 12310 | G24: 10503 | H24: 12084 | I24: 12440
A25: ED_PRO2131_00006 | C25: Capex component | D25: 0 | E25: 0 | F25: 0 | G25: 0 | H25: 0 | I25: 0
A26: ED_PRO2131_00007 | C26: Other component | D26: 0 | E26: 0 | F26: 0 | G26: 0 | H26: 0 | I26: 0
C27: Amounts used (that is, incurred and charged against the provision) during the period
A28: ED_PRO2131_00009 | C28: Opex component | D28: -5541 | E28: -7331 | F28: -9732 | G28: -9672 | H28: -10892 | I28: -12192
A29: ED_PRO2131_00010 | C29: Capex component | D29: 0 | E29: 0 | F29: 0 | G29: 0 | H29: 0 | I29: 0
A30: ED_PRO2131_00011 | C30: Other component | D30: 0 | E30: 0 | F30: 0 | G30: 0 | H30: 0 | I30: 0
C31: Unused amounts reversed during the period
A32: ED_PRO2131_00013 | C32: Opex component | D32: 0 | E32: 0 | F32: 0 | G32: 0 | H32: 0 | I32: 0
A33: ED_PRO2131_00014 | C33: Capex component | D33: 0 | E33: 0 | F33: 0 | G33: 0 | H33: 0 | I33: 0
A34: ED_PRO2131_00015 | C34: Other component | D34: 0 | E34: 0 | F34: 0 | G34: 0 | H34: 0 | I34: 0
C35: The increase during the period in the discounted amount arising from the passage of time and the effect of any change in the discount rate
A36: ED_PRO2131_00017 | C36: Opex component | D36: -82 | E36: 107 | F36: 109 | G36: 253 | H36: 226 | I36: 133
A37: ED_PRO2131_00018 | C37: Capex component | D37: 0 | E37: 0 | F37: 0 | G37: 0 | H37: 0 | I37: 0
A38: ED_PRO2131_00019 | C38: Other component | D38: 0 | E38: 0 | F38: 0 | G38: 0 | H38: 0 | I38: 0
C39: Closing balance (carrying amount at the end of the period) | D39: =D22+SUM(D24:D38) -> 7874 | E39: =E22+SUM(E24:E38) -> 10036 | F39: 12723 | G39: 13807 | H39: 15225 | I39: 15606
A40: ED_PRO2131_00020 | C40: Long Service Leave
C41: Accrual in recognition of future liability associated with long service leave entitlements
A42: ED_PRO2131_00003 | C42: Opening balance (the carrying amount at the beginning of the period) | D42: 16227 | E42: =D59 -> 24327 | F42: =E59 -> 30373 | G42: =F59 -> 38635 | H42: =G59 -> 46507 | I42: =H59 -> 43125
C43: Additional provisions made in the period, including increases to existing provisions
A44: ED_PRO2131_00005 | C44: Opex component | D44: 7597 | E44: 8188 | F44: 10239 | G44: 4128 | H44: 5083 | I44: 4406
A45: ED_PRO2131_00006 | C45: Capex component | D45: 0 | E45: 0 | F45: 0 | G45: 0 | H45: 0 | I45: 0
A46: ED_PRO2131_00007 | C46: Other component | D46: 0 | E46: 0 | F46: 0 | G46: 0 | H46: 0 | I46: 0
C47: Amounts used (that is, incurred and charged against the provision) during the period
A48: ED_PRO2131_00009 | C48: Opex component | D48: -1241 | E48: -882 | F48: -1455 | G48: -1698 | H48: -2975 | I48: -2353
A49: ED_PRO2131_00010 | C49: Capex component | D49: 0 | E49: 0 | F49: 0 | G49: 0 | H49: 0 | I49: 0
A50: ED_PRO2131_00011 | C50: Other component | D50: 0 | E50: 0 | F50: 0 | G50: 0 | H50: 0 | I50: 0
C51: Unused amounts reversed during the period
A52: ED_PRO2131_00013 | C52: Opex component | D52: -63 | E52: -154 | F52: -244 | G52: -247 | H52: -165 | I52: -214
A53: ED_PRO2131_00014 | C53: Capex component | D53: 0 | E53: 0 | F53: 0 | G53: 0 | H53: 0 | I53: 0
A54: ED_PRO2131_00015 | C54: Other component | D54: 0 | E54: 0 | F54: 0 | G54: 0 | H54: 0 | I54: 0
C55: The increase during the period in the discounted amount arising from the passage of time and the effect of any change in the discount rate
A56: ED_PRO2131_00017 | C56: Opex component | D56: 1807 | E56: -1106 | F56: -278 | G56: 5689 | H56: -5325 | I56: -890
A57: ED_PRO2131_00018 | C57: Capex component | D57: 0 | E57: 0 | F57: 0 | G57: 0 | H57: 0 | I57: 0
A58: ED_PRO2131_00019 | C58: Other component | D58: 0 | E58: 0 | F58: 0 | G58: 0 | H58: 0 | I58: 0
C59: Closing balance (carrying amount at the end of the period) | D59: =D42+SUM(D44:D58) -> 24327 | E59: =E42+SUM(E44:E58) -> 30373 | F59: 38635 | G59: 46507 | H59: 43125 | I59: 44074
A60: ED_PRO2131_00030 | C60: Workers Compensation
C61: Provision to recognise the potential future liability associated with workers compensation claims.
A62: ED_PRO2131_00003 | C62: Opening balance (the carrying amount at the beginning of the period) | D62: 252 | E62: =D79 -> 353 | F62: =E79 -> 280 | G62: =F79 -> 405 | H62: =G79 -> 965 | I62: =H79 -> 922
C63: Additional provisions made in the period, including increases to existing provisions
A64: ED_PRO2131_00005 | C64: Opex component | D64: 556 | E64: 372 | F64: 636 | G64: 1329 | H64: 1244 | I64: 852
A65: ED_PRO2131_00006 | C65: Capex component | D65: 0 | E65: 0 | F65: 0 | G65: 0 | H65: 0 | I65: 0
A66: ED_PRO2131_00007 | C66: Other component | D66: 0 | E66: 0 | F66: 0 | G66: 0 | H66: 0 | I66: 0
C67: Amounts used (that is, incurred and charged against the provision) during the period
A68: ED_PRO2131_00009 | C68: Opex component | D68: -279 | E68: -231 | F68: -291 | G68: -543 | H68: -750 | I68: -572
A69: ED_PRO2131_00010 | C69: Capex component | D69: 0 | E69: 0 | F69: 0 | G69: 0 | H69: 0 | I69: 0
A70: ED_PRO2131_00011 | C70: Other component | D70: 0 | E70: 0 | F70: 0 | G70: 0 | H70: 0 | I70: 0
C71: Unused amounts reversed during the period
A72: ED_PRO2131_00013 | C72: Opex component | D72: -176 | E72: -214 | F72: -220 | G72: -226 | H72: -537 | I72: -146
A73: ED_PRO2131_00014 | C73: Capex component | D73: 0 | E73: 0 | F73: 0 | G73: 0 | H73: 0 | I73: 0
A74: ED_PRO2131_00015 | C74: Other component | D74: 0 | E74: 0 | F74: 0 | G74: 0 | H74: 0 | I74: 0
C75: The increase during the period in the discounted amount arising from the passage of time and the effect of any change in the discount rate
A76: ED_PRO2131_00017 | C76: Opex component | D76: 0 | E76: 0 | F76: 0 | G76: 0 | H76: 0 | I76: 0
A77: ED_PRO2131_00018 | C77: Capex component | D77: 0 | E77: 0 | F77: 0 | G77: 0 | H77: 0 | I77: 0
A78: ED_PRO2131_00019 | C78: Other component | D78: 0 | E78: 0 | F78: 0 | G78: 0 | H78: 0 | I78: 0
C79: Closing balance (carrying amount at the end of the period) | D79: =D62+SUM(D64:D78) -> 353 | E79: =E62+SUM(E64:E78) -> 280 | F79: 405 | G79: 965 | H79: 922 | I79: 1056
A80: ED_PRO2131_00040 | C80: Self Insurance
C81: Provision for recognition of potential future liabilities associated with self insurance claims.
A82: ED_PRO2131_00003 | C82: Opening balance (the carrying amount at the beginning of the period) | D82: 1432 | E82: =D99 -> 1385 | F82: =E99 -> 1223 | G82: =F99 -> 15810 | H82: =G99 -> 15810 | I82: =H99 -> 16133
C83: Additional provisions made in the period, including increases to existing provisions
A84: ED_PRO2131_00005 | C84: Opex component | D84: 904 | E84: 1049 | F84: 16077 | G84: 2088 | H84: 2510 | I84: 2441
A85: ED_PRO2131_00006 | C85: Capex component | D85: 0 | E85: 0 | F85: 0 | G85: 0 | H85: 0 | I85: 0
A86: ED_PRO2131_00007 | C86: Other component | D86: 0 | E86: 0 | F86: 0 | G86: 0 | H86: 0 | I86: 0
C87: Amounts used (that is, incurred and charged against the provision) during the period
A88: ED_PRO2131_00009 | C88: Opex component | D88: -894 | E88: -1024 | F88: -1270 | G88: -1680 | H88: -1976 | I88: -15919
A89: ED_PRO2131_00010 | C89: Capex component | D89: 0 | E89: 0 | F89: 0 | G89: 0 | H89: 0 | I89: 0
A90: ED_PRO2131_00011 | C90: Other component | D90: 0 | E90: 0 | F90: 0 | G90: 0 | H90: 0 | I90: 0
C91: Unused amounts reversed during the period
A92: ED_PRO2131_00013 | C92: Opex component | D92: -57 | E92: -187 | F92: -220 | G92: -408 | H92: -211 | I92: -145
A93: ED_PRO2131_00014 | C93: Capex component | D93: 0 | E93: 0 | F93: 0 | G93: 0 | H93: 0 | I93: 0
A94: ED_PRO2131_00015 | C94: Other component | D94: 0 | E94: 0 | F94: 0 | G94: 0 | H94: 0 | I94: 0
C95: The increase during the period in the discounted amount arising from the passage of time and the effect of any change in the discount rate
A96: ED_PRO2131_00017 | C96: Opex component | D96: 0 | E96: 0 | F96: 0 | G96: 0 | H96: 0 | I96: 0
A97: ED_PRO2131_00018 | C97: Capex component | D97: 0 | E97: 0 | F97: 0 | G97: 0 | H97: 0 | I97: 0
A98: ED_PRO2131_00019 | C98: Other component | D98: 0 | E98: 0 | F98: 0 | G98: 0 | H98: 0 | I98: 0
C99: Closing balance (carrying amount at the end of the period) | D99: =D82+SUM(D84:D98) -> 1385 | E99: =E82+SUM(E84:E98) -> 1223 | F99: 15810 | G99: 15810 | H99: 16133 | I99: 2510
A100: ED_PRO2131_00050 | C100: Income Protection Scheme
C101: Provision for recognition of potential future liabilities associated with the employee income protection scheme
A102: ED_PRO2131_00003 | C102: Opening balance (the carrying amount at the beginning of the period) | D102: 0 | E102: =D119 -> 0 | F102: =E119 -> 0 | G102: =F119 -> 0 | H102: =G119 -> 0 | I102: =H119 -> 22
C103: Additional provisions made in the period, including increases to existing provisions
A104: ED_PRO2131_00005 | C104: Opex component | D104: 0 | E104: 0 | F104: 0 | G104: 0 | H104: 67 | I104: 143
A105: ED_PRO2131_00006 | C105: Capex component | D105: 0 | E105: 0 | F105: 0 | G105: 0 | H105: 0 | I105: 0
A106: ED_PRO2131_00007 | C106: Other component | D106: 0 | E106: 0 | F106: 0 | G106: 0 | H106: 0 | I106: 0
C107: Amounts used (that is, incurred and charged against the provision) during the period
A108: ED_PRO2131_00009 | C108: Opex component | D108: 0 | E108: 0 | F108: 0 | G108: 0 | H108: -45 | I108: -93
A109: ED_PRO2131_00010 | C109: Capex component | D109: 0 | E109: 0 | F109: 0 | G109: 0 | H109: 0 | I109: 0
A110: ED_PRO2131_00011 | C110: Other component | D110: 0 | E110: 0 | F110: 0 | G110: 0 | H110: 0 | I110: 0
C111: Unused amounts reversed during the period
A112: ED_PRO2131_00013 | C112: Opex component | D112: 0 | E112: 0 | F112: 0 | G112: 0 | H112: 0 | I112: -35
A113: ED_PRO2131_00014 | C113: Capex component | D113: 0 | E113: 0 | F113: 0 | G113: 0 | H113: 0 | I113: 0
A114: ED_PRO2131_00015 | C114: Other component | D114: 0 | E114: 0 | F114: 0 | G114: 0 | H114: 0 | I114: 0
C115: The increase during the period in the discounted amount arising from the passage of time and the effect of any change in the discount rate
A116: ED_PRO2131_00017 | C116: Opex component | D116: 0 | E116: 0 | F116: 0 | G116: 0 | H116: 0 | I116: 0
A117: ED_PRO2131_00018 | C117: Capex component | D117: 0 | E117: 0 | F117: 0 | G117: 0 | H117: 0 | I117: 0
A118: ED_PRO2131_00019 | C118: Other component | D118: 0 | E118: 0 | F118: 0 | G118: 0 | H118: 0 | I118: 0
C119: Closing balance (carrying amount at the end of the period) | D119: =D102+SUM(D104:D118) -> 0 | E119: =E102+SUM(E104:E118) -> 0 | F119: 0 | G119: 0 | H119: 22 | I119: 37
A120: ED_PRO2131_00060 | C120: Environmental - Demolition and Site Restoration
C121: Provision for potential future liabilities associated with meeting environmental obligations.
A122: ED_PRO2131_00003 | C122: Opening balance (the carrying amount at the beginning of the period) | D122: 1750 | E122: =D139 -> 2176 | F122: =E139 -> 2168 | G122: =F139 -> 2133 | H122: =G139 -> 2163 | I122: =H139 -> 1516
C123: Additional provisions made in the period, including increases to existing provisions
A124: ED_PRO2131_00005 | C124: Opex component | D124: 799 | E124: 770 | F124: 202 | G124: 285 | H124: 338 | I124: 382
A125: ED_PRO2131_00006 | C125: Capex component | D125: 0 | E125: 0 | F125: 0 | G125: 0 | H125: 0 | I125: 0
A126: ED_PRO2131_00007 | C126: Other component | D126: 0 | E126: 0 | F126: 0 | G126: 0 | H126: 0 | I126: 0
C127: Amounts used (that is, incurred and charged against the provision) during the period
A128: ED_PRO2131_00009 | C128: Opex component | D128: -373 | E128: -214 | F128: -237 | G128: -255 | H128: -395 | I128: -322
A129: ED_PRO2131_00010 | C129: Capex component | D129: 0 | E129: 0 | F129: 0 | G129: 0 | H129: 0 | I129: 0
A130: ED_PRO2131_00011 | C130: Other component | D130: 0 | E130: 0 | F130: 0 | G130: 0 | H130: 0 | I130: 0
C131: Unused amounts reversed during the period
A132: ED_PRO2131_00013 | C132: Opex component | D132: 0 | E132: -564 | F132: 0 | G132: 0 | H132: -590 | I132: -156
A133: ED_PRO2131_00014 | C133: Capex component | D133: 0 | E133: 0 | F133: 0 | G133: 0 | H133: 0 | I133: 0
A134: ED_PRO2131_00015 | C134: Other component | D134: 0 | E134: 0 | F134: 0 | G134: 0 | H134: 0 | I134: 0
C135: The increase during the period in the discounted amount arising from the passage of time and the effect of any change in the discount rate
A136: ED_PRO2131_00017 | C136: Opex component | D136: 0 | E136: 0 | F136: 0 | G136: 0 | H136: 0 | I136: 0
A137: ED_PRO2131_00018 | C137: Capex component | D137: 0 | E137: 0 | F137: 0 | G137: 0 | H137: 0 | I137: 0
A138: ED_PRO2131_00019 | C138: Other component | D138: 0 | E138: 0 | F138: 0 | G138: 0 | H138: 0 | I138: 0
C139: Closing balance (carrying amount at the end of the period) | D139: =D122+SUM(D124:D138) -> 2176 | E139: =E122+SUM(E124:E138) -> 2168 | F139: 2133 | G139: 2163 | H139: 1516 | I139: 1420
A140: ED_PRO2131_00070 | C140: Employee Bonuses
C141: Provision in recognition of estimated liability associated with employee bonus payments
A142: ED_PRO2131_00003 | C142: Opening balance (the carrying amount at the beginning of the period) | D142: 1525 | E142: =D159 -> 1498 | F142: =E159 -> 404 | G142: =F159 -> 3859 | H142: =G159 -> 3707 | I142: =H159 -> 4441
C143: Additional provisions made in the period, including increases to existing provisions
A144: ED_PRO2131_00005 | C144: Opex component | D144: 3310 | E144: 2026 | F144: 8720 | G144: 6980 | H144: 5771 | I144: 4383
A145: ED_PRO2131_00006 | C145: Capex component | D145: 0 | E145: 0 | F145: 0 | G145: 0 | H145: 0 | I145: 0
A146: ED_PRO2131_00007 | C146: Other component | D146: 0 | E146: 0 | F146: 0 | G146: 0 | H146: 0 | I146: 0
C147: Amounts used (that is, incurred and charged against the provision) during the period
A148: ED_PRO2131_00009 | C148: Opex component | D148: -2836 | E148: -3120 | F148: -5009 | G148: -5310 | H148: -4882 | I148: -5888
A149: ED_PRO2131_00010 | C149: Capex component | D149: 0 | E149: 0 | F149: 0 | G149: 0 | H149: 0 | I149: 0
A150: ED_PRO2131_00011 | C150: Other component | D150: 0 | E150: 0 | F150: 0 | G150: 0 | H150: 0 | I150: 0
C151: Unused amounts reversed during the period
A152: ED_PRO2131_00013 | C152: Opex component | D152: -501 | E152: 0 | F152: -256 | G152: -1822 | H152: -155 | I152: -367
A153: ED_PRO2131_00014 | C153: Capex component | D153: 0 | E153: 0 | F153: 0 | G153: 0 | H153: 0 | I153: 0
A154: ED_PRO2131_00015 | C154: Other component | D154: 0 | E154: 0 | F154: 0 | G154: 0 | H154: 0 | I154: 0
C155: The increase during the period in the discounted amount arising from the passage of time and the effect of any change in the discount rate
A156: ED_PRO2131_00017 | C156: Opex component | D156: 0 | E156: 0 | F156: 0 | G156: 0 | H156: 0 | I156: 0
A157: ED_PRO2131_00018 | C157: Capex component | D157: 0 | E157: 0 | F157: 0 | G157: 0 | H157: 0 | I157: 0
A158: ED_PRO2131_00019 | C158: Other component | D158: 0 | E158: 0 | F158: 0 | G158: 0 | H158: 0 | I158: 0
C159: Closing balance (carrying amount at the end of the period) | D159: =D142+SUM(D144:D158) -> 1498 | E159: =E142+SUM(E144:E158) -> 404 | F159: 3859 | G159: 3707 | H159: 4441 | I159: 2569
A160: ED_PRO2131_00080 | C160: Provision name
C161: Brief description of provision
A162: ED_PRO2131_00003 | C162: Opening balance (the carrying amount at the beginning of the period) | E162: =D179 -> 0 | F162: =E179 -> 0 | G162: =F179 -> 0 | H162: =G179 -> 0 | I162: =H179 -> 0
C163: Additional provisions made in the period, including increases to existing provisions
A164: ED_PRO2131_00005 | C164: Opex component
A165: ED_PRO2131_00006 | C165: Capex component
A166: ED_PRO2131_00007 | C166: Other component
C167: Amounts used (that is, incurred and charged against the provision) during the period
A168: ED_PRO2131_00009 | C168: Opex component
A169: ED_PRO2131_00010 | C169: Capex component
A170: ED_PRO2131_00011 | C170: Other component
C171: Unused amounts reversed during the period
A172: ED_PRO2131_00013 | C172: Opex component
A173: ED_PRO2131_00014 | C173: Capex component
A174: ED_PRO2131_00015 | C174: Other component
C175: The increase during the period in the discounted amount arising from the passage of time and the effect of any change in the discount rate
A176: ED_PRO2131_00017 | C176: Opex component
A177: ED_PRO2131_00018 | C177: Capex component
A178: ED_PRO2131_00019 | C178: Other component
C179: Closing balance (carrying amount at the end of the period) | D179: =D162+SUM(D164:D178) -> 0 | E179: =E162+SUM(E164:E178) -> 0 | F179: 0 | G179: 0 | H179: 0 | I179: 0
A180: ED_PRO2131_00090 | C180: Provision name
C181: Brief description of provision
A182: ED_PRO2131_00003 | C182: Opening balance (the carrying amount at the beginning of the period) | E182: =D199 -> 0 | F182: 0 | G182: =F199 -> 0 | H182: =G199 -> 0 | I182: =H199 -> 0
C183: Additional provisions made in the period, including increases to existing provisions
A184: ED_PRO2131_00005 | C184: Opex component
A185: ED_PRO2131_00006 | C185: Capex component
A186: ED_PRO2131_00007 | C186: Other component
C187: Amounts used (that is, incurred and charged against the provision) during the period
A188: ED_PRO2131_00009 | C188: Opex component
A189: ED_PRO2131_00010 | C189: Capex component
A190: ED_PRO2131_00011 | C190: Other component
C191: Unused amounts reversed during the period
A192: ED_PRO2131_00013 | C192: Opex component
A193: ED_PRO2131_00014 | C193: Capex component
A194: ED_PRO2131_00015 | C194: Other component
C195: The increase during the period in the discounted amount arising from the passage of time and the effect of any change in the discount rate
A196: ED_PRO2131_00017 | C196: Opex component
A197: ED_PRO2131_00018 | C197: Capex component
A198: ED_PRO2131_00019 | C198: Other component
C199: Closing balance (carrying amount at the end of the period) | D199: =D182+SUM(D184:D198) -> 0 | E199: =E182+SUM(E184:E198) -> 0 | F199: 0 | G199: 0 | H199: 0 | I199: 0
A200: ED_PRO2131_00100 | C200: Provision name
C201: Brief description of provision
A202: ED_PRO2131_00003 | C202: Opening balance (the carrying amount at the beginning of the period) | E202: =D219 -> 0 | F202: =E219 -> 0 | G202: =F219 -> 0 | H202: =G219 -> 0 | I202: =H219 -> 0
C203: Additional provisions made in the period, including increases to existing provisions
A204: ED_PRO2131_00005 | C204: Opex component
A205: ED_PRO2131_00006 | C205: Capex component
A206: ED_PRO2131_00007 | C206: Other component
C207: Amounts used (that is, incurred and charged against the provision) during the period
A208: ED_PRO2131_00009 | C208: Opex component
A209: ED_PRO2131_00010 | C209: Capex component
... 464 more rows

Sheet 2.14 Forecast price changes
C1: REGULATORY REPORTING STATEMENT
C2: =TradingName -> SA Power Networks
C3: =RCP_1to5 -> 2015-16 to 2019-20
C4: 2.14 FORECAST PRICE CHANGES
C6: Instructions
C7: The DNSP must provide all forecast price changes used to forecast opex and capex, including forecast changes in CPI. Forecast price changes must be expressed in real terms, except for CPI. If the same escalators are not used for capex and opex, report capex and opex escalators separately. Add additional rows as required. If price changes for a given year were not used to forecast either opex or capex enter '0' for that year.
C9: TABLE 2.14.1 - FORECAST LABOUR AND MATERIALS PRICE CHANGES
D11: Price changes (% YoY real) Current regulatory period | I11: Price changes (%YoY real) Forthcoming regulatory period
D12: Actual | H12: Forecast | I12: Forecast
D13: =CRCP -> 2010-11 | E13: 2011-12 | F13: 2012-13 | G13: 2013-14 | H13: 2014-15 | I13: =FRCP -> 2015-16 | J13: 2016-17 | K13: 2017-18 | L13: 2018-19 | M13: 2019-20
C14: Materials price changes
A15: ED_FOR21411_00001 | C15: Copper | D15: 8.44 | E15: -18.18 | F15: 2.78 | G15: -7.67 | H15: -3.3 | I15: 0 | J15: 0 | K15: 0 | L15: 0 | M15: 0
A16: ED_FOR21411_00002 | C16: Aluminium | D16: 4.39 | E16: -20.62 | F16: 7.69 | G16: -2.85 | H16: 7 | I16: 0 | J16: 0 | K16: 0 | L16: 0 | M16: 0
A17: ED_FOR21411_00003 | C17: Steel | D17: -5.26 | E17: -3.93 | F17: -2.49 | G17: -4.22 | H17: -2.3 | I17: 0 | J17: 0 | K17: 0 | L17: 0 | M17: 0
A18: ED_FOR21411_00004 | C18: Crude Oil | D18: 19.51 | E18: 6.97 | F18: 11.88 | G18: 4.24 | H18: -1.3 | I18: 0 | J18: 0 | K18: 0 | L18: 0 | M18: 0
A19: ED_FOR21411_00005 | C19: Materials (Weighted Average) | D19: 1.634163038 | E19: -2.174937669 | F19: 1.285885285 | G19: -0.8039277338 | H19: -0.37 | I19: 0 | J19: 0 | K19: 0 | L19: 0 | M19: 0
A20: ED_FOR21411_00006
A21: ED_FOR21411_00007
A22: ED_FOR21411_00008
A23: ED_FOR21411_00009
A24: ED_FOR21411_00010
A25: ED_FOR21411_00011
A26: ED_FOR21411_00012
A27: ED_FOR21411_00013
A28: ED_FOR21411_00014
A29: ED_FOR21411_00015
A30: ED_FOR21411_00016
A31: ED_FOR21411_00017
A32: ED_FOR21411_00018
A33: ED_FOR21411_00019
A34: ED_FOR21411_00020
A35: ED_FOR21411_00021
A36: ED_FOR21411_00022
A37: ED_FOR21411_00023
A38: ED_FOR21411_00024
A39: ED_FOR21411_00025
A40: ED_FOR21411_00026
A41: ED_FOR21411_00027
A42: ED_FOR21411_00028
A43: ED_FOR21411_00029
A44: ED_FOR21411_00030
A45: ED_FOR21411_00031
A46: ED_FOR21411_00032
A47: ED_FOR21411_00033
A48: ED_FOR21411_00034
A49: ED_FOR21411_00035
A50: ED_FOR21411_00036
A51: ED_FOR21411_00037
A52: ED_FOR21411_00038
A53: ED_FOR21411_00039
A54: ED_FOR21411_00040
A55: ED_FOR21411_00041
A56: ED_FOR21411_00042
A57: ED_FOR21411_00043
A58: ED_FOR21411_00044
A59: ED_FOR21411_00045
A60: ED_FOR21411_00046
A61: ED_FOR21411_00047
A62: ED_FOR21411_00048
A63: ED_FOR21411_00049
A64: ED_FOR21411_00050
C65: Labour and Other price changes
A66: ED_FOR21412_00001 | C66: Labour (Opex and Capex) | D66: 1.17 | E66: 3.42 | F66: 2 | G66: 1.57 | H66: 1.66 | I66: 2.15 | J66: 2.15 | K66: 2.26 | L66: 2.26 | M66: 2.26
A67: ED_FOR21412_00002 | C67: Ancillary Labour Costs | D67: 0.1666666667 | E67: 0.3666666667 | F67: 0.3666666667 | G67: 0.3666666667 | H67: 0 | I67: 0 | J67: 0 | K67: 0 | L67: 0 | M67: 0
A68: ED_FOR21412_00003 | C68: Services (Opex) | D68: 0.2 | E68: 1.6 | F68: 1 | G68: 0.3 | H68: 0.1 | I68: 0.51 | J68: 0.5 | K68: 0.92 | L68: 1.06 | M68: 1.23
A69: ED_FOR21412_00004 | C69: Services (Capex) | D69: 0.2 | E69: 1.6 | F69: 1 | G69: 0.3 | H69: 0.1 | I69: 0.5 | J69: 0.9 | K69: 1.1 | L69: 1.4 | M69: 1.8
A70: ED_FOR21412_00005 | C70: Land (Opex) | D70: 17.84 | E70: 1.25 | F70: -9.12 | G70: -1.26 | H70: 5.96 | I70: 0 | J70: 0 | K70: 0 | L70: 0 | M70: 0
A71: ED_FOR21412_00006 | C71: Land (Capex) | D71: 17.84 | E71: 1.25 | F71: -9.12 | G71: -1.26 | H71: 5.96 | I71: 5.9 | J71: 5.9 | K71: 5.9 | L71: 5.9 | M71: 5.9
A72: ED_FOR21412_00007
A73: ED_FOR21412_00008
A74: ED_FOR21412_00009
A75: ED_FOR21412_00010
A76: ED_FOR21412_00011
A77: ED_FOR21412_00012
A78: ED_FOR21412_00013
A79: ED_FOR21412_00014
A80: ED_FOR21412_00015
A81: ED_FOR21412_00016
A82: ED_FOR21412_00017
A83: ED_FOR21412_00018
A84: ED_FOR21412_00019
A85: ED_FOR21412_00020
A86: ED_FOR21412_00021
A87: ED_FOR21412_00022
A88: ED_FOR21412_00023
A89: ED_FOR21412_00024
A90: ED_FOR21412_00025
A91: ED_FOR21412_99999 | C91: CPI | D91: 0.0333 | E91: 0.0158 | F91: 0.025 | G91: 0.0293 | H91: 0.0133 | I91: 0.0206 | J91: 0.0206 | K91: 0.0206 | L91: 0.0206 | M91: 0.0206

Sheet 2.15 Insurance & Self-insurance
C1: REGULATORY REPORTING STATEMENT
C2: =TradingName -> SA Power Networks
C3: =RCP_1to5 -> 2015-16 to 2019-20
C4: 2.15 COMMERCIAL INSURANCE AND SELF-INSURANCE
C7: TABLE 2.15.1 - FORECAST COMMERCIAL INSURANCE PREMIUMS BY RISK CATEGORY
C9: Instructions
C10: The DNSP is required to provide a list of forecast commercial insurance premiums by risk category in table 2.15.1 below.
C12: Risk class [drop down] | D12: Risk category | E12: Deductables | F12: Policy limit | G12: Premiums ($000's, nominal) | I12: Forecast Premiums ($000's, real June 2015)
A13: INS2151 | G13: =CRCP_y4 -> 2013-14 | H13: =CRCP_y5 -> 2014-15 | I13: =FRCP -> 2015-16 | J13: 2016-17 | K13: 2017-18 | L13: 2018-19 | M13: 2019-20 | N13: Total
A14: ED_INS2151_00001 | C14: Liability | N14: =SUM(G14:M14) -> 0
A15: ED_INS2151_00002 | C15: Property | N15: =SUM(G15:M15) -> 0
A16: ED_INS2151_00003 | C16: Other insurnace | N16: 0
A17: ED_INS2151_00004 | C17: Other insurnace | N17: 0
A18: ED_INS2151_00005 | C18: Other insurnace | N18: 0
A19: ED_INS2151_00006 | C19: Other insurnace | N19: 0
A20: ED_INS2151_00007 | C20: Other insurnace | N20: 0
A21: ED_INS2151_00008 | C21: Other insurnace | N21: 0
A22: ED_INS2151_00009 | C22: Other insurnace | N22: 0
A23: ED_INS2151_00010 | C23: Other insurnace | N23: 0
A24: ED_INS2151_00011 | C24: Other insurnace | N24: 0
A25: ED_INS2151_00012 | C25: Other insurnace | N25: 0
A26: ED_INS2151_00013 | C26: Other insurnace | N26: 0
A27: ED_INS2151_00014 | C27: Other insurnace | N27: 0
A28: ED_INS2151_00015 | C28: Other insurnace | N28: 0
A29: ED_INS2151_00016 | C29: Other insurnace | N29: 0
A30: ED_INS2151_00017 | C30: Other insurnace | N30: 0
A31: ED_INS2151_00018 | C31: Other insurnace | N31: 0
A32: ED_INS2151_00019 | C32: Other insurnace | N32: 0
A33: ED_INS2151_00020 | C33: Other insurnace | N33: 0
A34: ED_INS2151_00021 | C34: Other insurnace | N34: 0
A35: ED_INS2151_00022 | N35: 0
A36: ED_INS2151_00023 | N36: 0
A37: ED_INS2151_00024 | N37: 0
A38: ED_INS2151_00025 | N38: 0
A39: ED_INS2151_00026 | N39: 0
A40: ED_INS2151_00027 | N40: 0
A41: ED_INS2151_00028 | N41: 0
A42: ED_INS2151_00029 | N42: 0
A43: ED_INS2151_00030 | N43: =SUM(G43:M43) -> 0
A44: ED_INS2151_00031 | N44: 0
A45: ED_INS2151_00032 | N45: 0
A46: ED_INS2151_00033 | N46: 0
A47: ED_INS2151_00034 | N47: 0
A48: ED_INS2151_00035 | N48: 0
A49: ED_INS2151_00036 | N49: 0
A50: ED_INS2151_00037 | N50: 0
A51: ED_INS2151_00038 | N51: 0
A52: ED_INS2151_00039 | N52: 0
A53: ED_INS2151_00040 | N53: 0
A54: ED_INS2151_00041 | N54: 0
A55: ED_INS2151_00042 | N55: 0
A56: ED_INS2151_00043 | N56: 0
A57: ED_INS2151_00044 | N57: 0
A58: ED_INS2151_00045 | N58: 0
A59: ED_INS2151_00046 | N59: 0
A60: ED_INS2151_00047 | N60: 0
A61: ED_INS2151_00048 | N61: 0
A62: ED_INS2151_00049 | N62: 0
A63: ED_INS2151_00050 | N63: 0
C64: Total forecast premiums | G64: =SUM(G14:G63) -> 0 | H64: 0 | I64: 0 | J64: 0 | K64: 0 | L64: 0 | M64: 0 | N64: 0
C67: TABLE 2.15.2 - INSURANCE PREMIUM - TOTAL PROPERTY
C69: Instructions
C70: The DNSP is required to provide actual and forecast insurance premium for total property in table 2.15.2 below.
D73: Current regulatory control period ($000's, nominal) | I73: Forthcoming regulatory control period ($000's, real June 2015)
A74: INS2152 | D74: =CRCP -> 2010-11 | E74: 2011-12 | F74: 2012-13 | G74: 2013-14 | H74: 2014-15 | I74: =FRCP -> 2015-16 | J74: 2016-17 | K74: 2017-18 | L74: 2018-19 | M74: 2019-20
C75: Base premium
A76: ED_INS21521_00001 | C76: Value of insured assets
A77: ED_INS21521_00002 | C77: Premium rate (%) | I77: =I78/I76 ->  | J77: =J78/J76 -> 
A78: ED_INS21521_00003 | C78: Premium (exposure x unit rate)
C79: Statutory charges
A80: ED_INS21522_00001 | C80: Stamp duty ($nominal)
A81: ED_INS21522_00002 | C81: FSL
A82: ED_INS21522_00003 | C82: Insert additional items if any
A83: ED_INS21522_00004
A84: ED_INS21522_00005
A85: ED_INS21522_00006
A86: ED_INS21522_00007
C87: Total premium (excludes GST) | I87: =I78+SUM(I80:I86) -> 0 | J87: =J78+SUM(J80:J86) -> 0 | K87: 0 | L87: 0 | M87: 0
A89: ED_INS2152_A9999 | C89: Change to exposure (%) | H89: =(I76-H76)/H76 ->  | I89: =(J76-I76)/I76 -> 
A90: ED_INS2152_B9999 | C90: Change to premium rates (%, real) | H90: =(I87-H87)/H87 ->  | I90: =(J87-I87)/I87 -> 
C93: TABLE 2.15.3 - INSURANCE PREMIUM - TOTAL LIABILITY
C95: Instruction
C96: The DNSP is required to provide actual and forecast insurance premium for total liability in table 2.15.3 below.
D99: Current regulatory control period ($000's, nominal) | I99: Forthcoming regulatory control period ($000's, real June 2015)
A100: INS2153 | D100: =CRCP -> 2010-11 | E100: 2011-12 | F100: 2012-13 | G100: 2013-14 | H100: 2014-15 | I100: =FRCP -> 2015-16 | J100: 2016-17 | K100: 2017-18 | L100: 2018-19 | M100: 2019-20
A101: ED_INS2153_00001 | C101: Change to premium rates (per cent, real) | E101: =(E114-D114)/D114 ->  | F101: =(F114-E114)/E114 -> 
C102: Base premium
A103: ED_INS21531_00001 | C103: Liability cap
A104: ED_INS21531_00002 | C104: Premium
C105: Statutory charges
A106: ED_INS21532_00001 | C106: Stamp duty
A107: ED_INS21532_00002 | C107: <Insert additional items if any>
A108: ED_INS21532_00003
A109: ED_INS21532_00004
A110: ED_INS21532_00005
A111: ED_INS21532_00006
A112: ED_INS21532_00007
A113: ED_INS21532_00008
C114: Total premium (excludes GST) | I114: =SUM(I106:I113)+I104 -> 0 | J114: 0 | K114: 0 | L114: 0 | M114: 0
C117: TABLE 2.15.4 - PROPOSED SELF-INSURANCE ALLOWANCES BY RISK CATEGORY
C119: Instruction
C120: The DNSP is required to provide a list of proposed self insurance allowances by risk category including a description of the risk and the proposed self-insurance allowance in table 2.15.4 below.
C122: Risk class [drop down] | D122: Risk category | E122: Commercially insured (Yes/No) | F122: Commercial insurance deductable ($000's) | G122: Commercial insurance limit ($000's) | H122: Self insurance limit ($000's) | I122: Proposed self insurance allowance ($000's, real June 2015)
A123: INS2154 | I123: =FRCP -> 2015-16 | J123: 2016-17 | K123: 2017-18 | L123: 2018-19 | M123: 2019-20 | N123: Total
A124: INS2154_00001 | C124: Liability | N124: =+SUM(I124:M124) -> 0
A125: INS2154_00002 | C125: Liability | N125: =+SUM(I125:M125) -> 0
A126: INS2154_00003 | C126: Liability | N126: 0
A127: INS2154_00004 | C127: Other insurnace | N127: 0
A128: INS2154_00005 | N128: 0
A129: INS2154_00006 | N129: 0
A130: INS2154_00007 | N130: 0
A131: INS2154_00008 | N131: 0
A132: INS2154_00009 | N132: =+SUM(I132:M132) -> 0
A133: INS2154_00010 | N133: =+SUM(I133:M133) -> 0
A134: INS2154_00011 | N134: =+SUM(I134:M134) -> 0
A135: INS2154_00012 | N135: 0
A136: INS2154_00013 | N136: 0
A137: INS2154_00014 | N137: 0
A138: INS2154_00015 | N138: 0
C139: Total | I139: =+SUM(I124:I138) -> 0 | J139: 0 | K139: 0 | L139: 0 | M139: 0 | N139: 0
C141: Date prepared:
C142: Prepared by:

Sheet 2.16 Opex Summary
C1: REGULATORY REPORTING STATEMENT
C2: =TradingName -> SA Power Networks
C3: =RCP_1to5 -> 2015-16 to 2019-20
C4: 2.16 OPEX SUMMARY
C6: Instructions
C7: Complete the tables below in accordance with the regulatory information notice. The DNSP must input forecast opex by category in Table 2.16.2 and Table 2.16.4 if it did not forecast its total opex using a Base Year approach. Otherwise input '0'. The DNSP's total forecast opex must reconcile to Table 2.16.1 (and if the DNSP owns and dual function assets) Table 2.16.3. If the DNSP did not forecast its total opex using a Base Year approach, total forecast opex must, in addition, reconcile to Table 2.16.2 (and if the DNSP owns any dual function assets) Table 2.16.4. If the DNSP does not own any dual function assets,Table 2.16.3 and 2.16.4 may be left blank. The total step changes in Table 2.16.1 and Table 2.16.3 must reconcile (in each year) to the total step changes for each year in Table 2.17.1 and Table 2.17.3 of worksheet '2.17 Step Changes', respectively.
C10: TABLE 2.16.1 - STANDARD CONTROL SERVICES - OPEX BY DRIVER | K10: TABLE 2.16.2 - STANDARD CONTROL SERVICES - OPEX BY CATEGORY
D12: Forecast ($000's) | E12: Forecast ($000's real June 2015) | L12: Forecast ($000's) | M12: Forecast ($000's real June 2015)
E13: Forthcoming regulatory period | M13: Forthcoming regulatory period
D14: =CRCP_y5 -> 2014-15 | E14: =FRCP -> 2015-16 | F14: 2016-17 | G14: 2017-18 | H14: 2018-19 | I14: 2019-20 | L14: =CRCP_y5 -> 2014-15 | M14: =FRCP -> 2015-16 | N14: 2016-17 | O14: 2017-18 | P14: 2018-19 | Q14: 2019-20
C15: Driver | J15: ED_OPX2162_00001 | K15: Vegetation management
A16: ED_OPX2161_00001 | C16: Efficient historic opex | D16: 239059.544 | E16: 239059.544 | F16: 239059.544 | G16: 239059.544 | H16: 239059.544 | I16: 239059.544 | J16: ED_OPX2162_00002 | K16: Maintenance
A17: ED_OPX2161_00002 | C17: Real price changes | D17: 0 | E17: 2915.185891 | F17: 5941.523087 | G17: 9652.594329 | H17: 13678.78598 | I17: 18069.97126 | J17: ED_OPX2162_00003 | K17: Emergency response
A18: ED_OPX2161_00003 | C18: Output growth | D18: 0 | E18: 2536.411788 | F18: 4886.614972 | G18: 7209.764723 | H18: 9730.195617 | I18: 12038.92918 | J18: ED_OPX2162_00004 | K18: Non-network
A19: ED_OPX2161_00004 | C19: Productivity growth | D19: 0 | E19: 0 | F19: 0 | G19: 0 | H19: 0 | I19: 0 | J19: ED_OPX2162_00005 | K19: Network overheads
A20: ED_OPX2161_00005 | C20: Step changes | D20: 7235.649769 | E20: 25261.27881 | F20: 31176.28627 | G20: 28914.48335 | H20: 28327.32427 | I20: 26322.92031 | J20: ED_OPX2162_00006 | K20: Corporate overheads
C21: Total opex | E21: =SUM(E16:E20) -> 269772.4204 | F21: =SUM(F16:F20) -> 281063.9683 | G21: =SUM(G16:G20) -> 284836.3864 | H21: =SUM(H16:H20) -> 290795.8498 | I21: =SUM(I16:I20) -> 295491.3647 | K21: Total opex | M21: =SUM(M15:M20) -> 0 | N21: =SUM(N15:N20) -> 0 | O21: 0 | P21: 0 | Q21: 0
C24: TABLE 2.16.3 - DUAL FUNCTION ASSETS - OPEX BY DRIVER | K24: TABLE 2.16.4 - DUAL FUNCTION ASSETS - OPEX BY CATEGORY
D26: Forecast ($000's) | E26: Forecast ($000's real June 2015) | L26: Forecast ($000's) | M26: Forecast ($000's real June 2015)
E27: Forthcoming regulatory period | M27: Forthcoming regulatory period
D28: =CRCP_y5 -> 2014-15 | E28: =FRCP -> 2015-16 | F28: 2016-17 | G28: 2017-18 | H28: 2018-19 | I28: 2019-20 | L28: =CRCP_y5 -> 2014-15 | M28: =FRCP -> 2015-16 | N28: 2016-17 | O28: 2017-18 | P28: 2018-19 | Q28: 2019-20
C29: Driver | J29: ED_OPX2164_00001 | K29: Vegetation management
A30: ED_OPX2163_00001 | C30: Efficent recurrent opex | J30: ED_OPX2164_00002 | K30: Maintenance
A31: ED_OPX2163_00002 | C31: Real price changes | J31: ED_OPX2164_00003 | K31: Emergency response
A32: ED_OPX2163_00003 | C32: Output growth | J32: ED_OPX2164_00004 | K32: Non-network
A33: ED_OPX2163_00004 | C33: Productivity growth | J33: ED_OPX2164_00005 | K33: Network overheads
A34: ED_OPX2163_00005 | C34: Step changes | J34: ED_OPX2164_00006 | K34: Corporate overheads
C35: Total opex | E35: =SUM(E30:E34) -> 0 | F35: =SUM(F30:F34) -> 0 | G35: =SUM(G30:G34) -> 0 | H35: =SUM(H30:H34) -> 0 | I35: =SUM(I30:I34) -> 0 | K35: Total opex | M35: =SUM(M29:M34) -> 0 | N35: =SUM(N29:N34) -> 0 | O35: 0 | P35: 0 | Q35: 0

Sheet 2.17 Step Changes
C1: REGULATORY REPORTING STATEMENT
C2: 0
C3: 2015-16 to 2019-20
C4: 2.17 STEP CHANGES
C7: Instructions
C8: Complete the Tables below in accordance with the regulatory information notice. If the DNSP does not own any dual function assets,Table 2.17.3 and 2.17.4 may be left blank. The total step changes in Table 2.17.1 and Table 2.17.3 must reconcile (in each year) to the total step changes for each year in Table 2.16.1 and Table 2.16.3 of worksheet '2.16 Opex Summary', respectively.
C12: TABLE 2.17.1 - FORECAST OPEX STEP CHANGES FOR STANDARD CONTROL SERVICES
E14: Current regulatory period | J14: Forthcoming regulatory period
E15: Actual ($000's) | I15: Forecast ($000's, real June 2015)
A16: STE2171 | C16: Step change | D16: Description | E16: 2010-11 | F16: 2011-12 | G16: 2012-13 | H16: 2013-14 | I16: 2014-15 | J16: 2015-16 | K16: 2016-17 | L16: 2017-18 | M16: 2018-19 | N16: 2019-20
A17: ED_STE2171_00001
A18: ED_STE2171_00001 | C18: Legal and regulatory obligations
C19: Asset Inspections
A20: ED_STE2171_00002 | C20: No Access Poles | D20: Roll out of a recurrent program to inspect pole footings that have access issues such as bitumen, concrete and paving | E20: 0 | F20: 0 | G20: 0 | H20: 0 | I20: 2000 | J20: 4737.588 | K20: 4737.588 | L20: 4737.588 | M20: 4737.588 | N20: 2901.682
A21: ED_STE2171_00003 | C21: Bushfire Inspection | D21: Shift to a 5 year bushfire inspection regime to align with newly established industry standards resulting from the Victorian Bushfire Safety Taskforce | E21: 0 | F21: 0 | G21: 0 | H21: 0 | I21: 0 | J21: 2313.489 | K21: 2592.597 | L21: 2664.958 | M21: 2697.004 | N21: 2660.823
A22: ED_STE2171_00004
A23: ED_STE2171_00005 | C23: WH&S
A24: ED_STE2171_00006 | C24: WH&S - Asset Inspection | D24: Commencement in 2014/15 of two person crews to undertake pre-bushfire season patrols to eliminate travel related risks | E24: 0 | F24: 0 | G24: 0 | H24: 0 | I24: 227 | J24: 568.552 | K24: 568.552 | L24: 568.552 | M24: 568.552 | N24: 568.552
A25: ED_STE2171_00007 | C25: WH&S - Fleet | D25: Increased fleet inspections and monitoring of our heavy fleet to comply with more stringent obligations under SA traffic legislation | E25: 0 | F25: 0 | G25: 0 | H25: 0 | I25: 212 | J25: 909.683 | K25: 1115.396 | L25: 1311.804 | M25: 1408.975 | N25: 1408.975
C27: New RIN Requirements | D27: New RIN requirements introduced in 2014 as part of the AER’s Better Regulation program | E27: 0 | F27: 0 | G27: 0 | H27: 1254.289641 | I27: 0 | J27: 2072.63 | K27: 211.915 | L27: 1383.132 | M27: 1383.132 | N27: 1383.132
C28: National Energy Customer Framework | D28: Under the NECF we will be required from 1 July 2015 to apply the AER’s guideline for calculating customer contributions | E28: 0 | F28: 0 | G28: 0 | H28: 0 | I28: 65 | J28: 258.433 | K28: 258.433 | L28: 258.433 | M28: 258.433 | N28: 258.433
C29: Demand Side Participation | D29: Incremental costs arising from AEMC's Distribution Network Pricing Arrangements Rule change; AEMC's Expanding Competition in Metering & Related Services Rule change & PV impact on LV network monitoring | E29: 0 | F29: 0 | G29: 0 | H29: 0 | I29: 0 | J29: 391.784 | K29: 2392.053 | L29: 3410.28 | M29: 3445.425 | N29: 3647.002
C30: Distribution licence fee | D30: SA Minister for Mineral Resources & Energy advised that the annual licence fee would be reduced by $1.1 million effective from 11 October 2015 | E30: 3320 | F30: 3320 | G30: 3320 | H30: 3324 | I30: 0 | J30: -765.995 | K30: -1062.675 | L30: -1062.675 | M30: -1062.675 | N30: -1062.675
C32: Impacts of proposed capital expenditure program
C33: Information Technology | D33: Additional operating expenditure for the ongoing maintenance and support of the forecast capital investment program | E33: 0 | F33: 0 | G33: 0 | H33: 0 | I33: 1874 | J33: 2798.31 | K33: 3153.684 | L33: 4357.823 | M33: 4512.885 | N33: 4569.74
C34: Telecommunications - Mobile Radio | D34: Migration of our mobile radio network to the SA Government network as our existing network has exceeded its equipment life expectancy | E34: 0 | F34: 0 | G34: 0 | H34: 0 | I34: 0 | J34: 0 | K34: 6950 | L34: 1950 | M34: 1950 | N34: 1950
C35: Data Quality | D35: Implementation of capabilities for data cleansing and enrichment, and increase coverage to all components of the customer data domain | E35: 0 | F35: 0 | G35: 0 | H35: 0 | I35: 0 | J35: 1046.136 | K35: 855.929 | L35: 665.723 | M35: 665.723 | N35: 665.723
C36: Non-network solution | D36: Bordertown non network solution commenced in the 2013/14 base year, with the forecast reflecting the incremental ongoing generation standby capacity & operational fees | E36: 0 | F36: 0 | G36: 0 | H36: 335.447 | I36: 100 | J36: 155.06 | K36: 206.746 | L36: 258.433 | M36: 310.119 | N36: 361.806
C38: Customer driven initiatives and changing community expectations
C39: Vegetation Management
C40: Change in NBFRA trimming cycle | D40: Shift from a three year to a two year inspection and cut cycle in metropolitan Adelaide and regional townships | E40: 0 | F40: 0 | G40: 0 | H40: 0 | I40: 2690 | J40: 2689.767 | K40: 2689.767 | L40: 2689.767 | M40: 2689.767 | N40: 2689.767
C41: Bushfire tree removal and replacement | D41: Implementation of a tree removal and replacement program in the bushfire areas to remove inappropriate, fast growing or large trees | E41: 0 | F41: 0 | G41: 0 | H41: 0 | I41: 44 | J41: 3071.214 | K41: 2585.361 | L41: 2100.541 | M41: 1615.721 | N41: 1129.868
C42: Non bushfire tree removal and replacement | D42: Implementation of a tree removal and replacement program in the non bushfire areas to remove inappropriate, fast growing or large trees | E42: 0 | F42: 0 | G42: 0 | H42: 0 | I42: 24 | J42: 1669.475 | K42: 1428.616 | L42: 1212.566 | M42: 997.55 | N42: 781.5
C43: Advanced tree trimming practices | D43: Engagement of a number of arborists to provide expert advice and input into advanced tree trimming practices | E43: 0 | F43: 0 | G43: 0 | H43: 0 | I43: 0 | J43: 372.143 | K43: 372.143 | L43: 372.143 | M43: 372.143 | N43: 372.143
C44: Community engagement and consultation | D44: Community engagement and consultation in support of the long term vegetation management strategy and targeted media campaigns | E44: 0 | F44: 0 | G44: 0 | H44: 0 | I44: 0 | J44: 256.365 | K44: 232.589 | L44: 238.792 | M44: 232.589 | N44: 237.758
C46: Customer Service
C47: Customer education and consultation | D47: Program to educate customers on the electricity industry so that they better understand who we are and what we do | E47: 0 | F47: 0 | G47: 0 | H47: 0 | I47: 0 | J47: 656.419 | K47: 25.843 | L47: 461.044 | M47: 97.171 | N47: 462.078
C48: Customer service team | D48: Introduction of a dedicated customer experience improvement team to develop a customer service capability | E48: 0 | F48: 0 | G48: 0 | H48: 0 | I48: 0 | J48: 0 | K48: 413.492 | L48: 413.492 | M48: 413.492 | N48: 413.492
C49: Self service products | D49: Implementation of a tailored digital advertising strategy to support the launch and communication of new self service options | E49: 0 | F49: 0 | G49: 0 | H49: 0 | I49: 0 | J49: 416.594 | K49: 283.242 | L49: 110.609 | M49: 103.373 | N49: 111.643
C51: Community Safety
C52: Bushfire communications | D52: New summer time media campaigns to better educate our customers about the bushfire dangers in respect to power lines and outages | E52: 0 | F52: 0 | G52: 0 | H52: 0 | I52: 0 | J52: 746.354 | K52: 546.844 | L52: 359.738 | M52: 552.012 | N52: 359.738
C53: Extreme weather communications | D53: New broad media campaign to better educate our customers about the dangers and implications of extreme weather outages and fallen power lines | E53: 0 | F53: 0 | G53: 0 | H53: 0 | I53: 0 | J53: 648.149 | K53: 462.078 | L53: 272.905 | M53: 222.252 | N53: 272.905
C54: Farmers and sailors communications | D54: Incremental programs targeting farmers and sailors with respect to the risks of equipment coming into contact with power lines | E54: 0 | F54: 0 | G54: 0 | H54: 0 | I54: 0 | J54: 249.129 | K54: 156.093 | L54: 178.835 | M54: 156.093 | N54: 178.835
C79: Total | E79: =SUM(E17:E78) -> 3320 | F79: =SUM(F17:F78) -> 3320 | G79: 3320 | H79: 4913.736641 | I79: 7236 | J79: 25261.279 | K79: 31176.286 | L79: 28914.483 | M79: 28327.324 | N79: 26322.92
C80: Check
C82: TABLE 2.17.2 - FORECAST CAPEX STEP CHANGES FOR STANDARD CONTROL SERVICES
E84: Current regulatory period | J84: Forthcoming regulatory period
E85: Actual ($000's) | I85: Forecast ($000's, real June 2015)
A86: STE2172 | C86: Step change | D86: Description | E86: 2010-11 | F86: 2011-12 | G86: 2012-13 | H86: 2013-14 | I86: 2014-15 | J86: 2015-16 | K86: 2016-17 | L86: 2017-18 | M86: 2018-19 | N86: 2019-20
A87: ED_STE2172_00001 | C87: Augmentation | E87: 128972 | F87: 150689 | G87: 144453 | H87: 103569 | I87: 116118 | J87: 127419.7733 | K87: 144225.7834 | L87: 137690.3271 | M87: 123122.3464 | N87: 102675.1006
A88: ED_STE2172_00002 | C88: Replacement | E88: 53518 | F88: 65935 | G88: 80016 | H88: 85482 | I88: 116891 | J88: 128250.5801 | K88: 145781.068 | L88: 151992.3299 | M88: 154434.1626 | N88: 151355.3636
A89: ED_STE2172_00003 | C89: Connections | E89: 22530 | F89: 35307 | G89: 38195 | H89: 30946 | I89: 23323 | J89: 34078.99357 | K89: 36409.17441 | L89: 37455.20811 | M89: 40063.30053 | N89: 42829.69416
A90: ED_STE2172_00004 | C90: Non-Network | D90: IT & Communications | E90: 20610 | F90: 26633 | G90: 25615 | H90: 27638 | I90: 52904.55 | J90: 51644.453 | K90: 55773.151 | L90: 52444.583 | M90: 54913.404 | N90: 46384.892
A91: ED_STE2172_00005 | C91: Non-Network | D91: Buildings & Property | E91: 9108 | F91: 19259 | G91: 15611 | H91: 10921 | I91: 11900 | J91: 18721.133 | K91: 24733.135 | L91: 18224.647 | M91: 15023.678 | N91: 15020.736
A92: ED_STE2172_00006 | C92: Non-Network | D92: Vehicles | E92: 16545 | F92: 13344 | G92: 18691 | H92: 23159 | I92: 23471.194 | J92: 33948.753 | K92: 20117.951 | L92: 15436.185 | M92: 17957.97 | N92: 19398.992
A93: ED_STE2172_00007 | C93: Non-Network | D93: Other | E93: 8922.2 | F93: 2626 | G93: -663 | H93: -1640 | I93: 6000 | J93: 15072.71258 | K93: 17358.24625 | L93: 10331.02912 | M93: 6208.10707 | N93: 4311.143741
A94: ED_STE2172_00008 | C94: Balancing Item | D94: Forecast Capex Adjustment | I94: -26034.283
A95: ED_STE2172_00009
A96: ED_STE2172_00010
A97: ED_STE2172_00011
A98: ED_STE2172_00012
A99: ED_STE2172_00013
A100: ED_STE2172_00014
A101: ED_STE2172_00015
A102: ED_STE2172_00016
C103: Total | E103: =SUM(E87:E102) -> 260205.2 | F103: =SUM(F87:F102) -> 313793 | G103: 321918 | H103: 280075 | I103: 324573.461 | J103: 409136.3985 | K103: 444398.509 | L103: 423574.3092 | M103: 411722.9686 | N103: 381975.9221
C105: TABLE 2.17.3 - FORECAST OPEX STEP CHANGES FOR DUAL FUNCTION ASSETS
E107: Current regulatory period | J107: Forthcoming regulatory period
E108: Actual ($000's) | I108: Forecast ($000's, real June 2015)
A109: STE2173 | C109: Step change | D109: Description | E109: 2010-11 | F109: 2011-12 | G109: 2012-13 | H109: 2013-14 | I109: 2014-15 | J109: 2015-16 | K109: 2016-17 | L109: 2017-18 | M109: 2018-19 | N109: 2019-20
A110: ED_STE2173_00001
A111: ED_STE2173_00002
A112: ED_STE2173_00003
A113: ED_STE2173_00004
A114: ED_STE2173_00005
A115: ED_STE2173_00006
A116: ED_STE2173_00007
A117: ED_STE2173_00008
A118: ED_STE2173_00009
A119: ED_STE2173_00010
A120: ED_STE2173_00011
A121: ED_STE2173_00012
C122: Total | E122: 0 | F122: 0 | G122: 0 | H122: 0 | I122: 0 | J122: 0 | K122: 0 | L122: 0 | M122: 0 | N122: 0
C123: Check
C125: TABLE 2.17.4 - FORECAST CAPEX STEP CHANGES FOR DUAL FUNCTION ASSETS
E127: Current regulatory period | J127: Forthcoming regulatory period
E128: Actual ($000's) | I128: Forecast ($000's, real June 2015)
A129: STE2174 | C129: Step change | D129: Description | E129: 2010-11 | F129: 2011-12 | G129: 2012-13 | H129: 2013-14 | I129: 2014-15 | J129: 2015-16 | K129: 2016-17 | L129: 2017-18 | M129: 2018-19 | N129: 2019-20
A130: ED_STE2174_00001
A131: ED_STE2174_00002
A132: ED_STE2174_00003
A133: ED_STE2174_00004
A134: ED_STE2174_00005
A135: ED_STE2174_00006
A136: ED_STE2174_00007
A137: ED_STE2174_00008
A138: ED_STE2174_00009
A139: ED_STE2174_00010
A140: ED_STE2174_00011
A141: ED_STE2174_00012
C142: Total | E142: 0 | F142: 0 | G142: 0 | H142: 0 | I142: 0 | J142: 0 | K142: 0 | L142: 0 | M142: 0 | N142: 0

Sheet 3.1 Revenue
C1: REGULATORY REPORTING STATEMENT
C2: =TradingName -> SA Power Networks
C3: =RCP_1to5 -> 2015-16 to 2019-20
C4: 3.1 REVENUE
E7: Standard control services | L7: Alternative control services
F8: Forecast ($ 000's, real June 2015) | M8: Forecast ($ 000's, real June 2015)
E9: =CRCP_y5 -> 2014-15 | F9: =FRCP -> 2015-16 | G9: 2016-17 | H9: 2017-18 | I9: 2018-19 | J9: 2019-20 | L9: =CRCP_y5 -> 2014-15 | M9: =FRCP -> 2015-16 | N9: 2016-17 | O9: 2017-18 | P9: 2018-19 | Q9: 2019-20
C11: TABLE 3.1.1 - REVENUE GROUPING BY CHARGEABLE QUANTITY
A12: ED_REV311_00001 | B12: DREV0101 | C12: Revenue from Fixed Customer Charges | E12: 93029.94659 | F12: 96521.15312 | G12: 122403.6612 | H12: 138104.0393 | I12: 141793.0181 | J12: 144789.1453
A13: ED_REV311_00002 | B13: DREV0102 | C13: Revenue from Energy Delivery charges where time of use is not a determinant | E13: 546022.1 | F13: 403097 | G13: 504639.7455 | H13: 568832.5088 | I13: 585353.3834 | J13: 597576.9566
A14: ED_REV311_00003 | B14: DREV0103 | C14: Revenue from On–Peak Energy Delivery charges | E14: 65682.9 | F14: 43952.5 | G14: 55068.37633 | H14: 72308.78661 | I14: 73790.51716 | J14: 74687.59807
A15: ED_REV311_00004 | B15: DREV0104 | C15: Revenue from Shoulder period Energy Delivery Charges | E15: 0 | F15: 0 | G15: 0 | H15: 0 | I15: 0 | J15: 0
A16: ED_REV311_00005 | B16: DREV0105 | C16: Revenue from Off–Peak Energy Delivery charges | E16: 23020.2 | F16: 15391.2 | G16: 19294.35145 | H16: 17629.81148 | I16: 18374.50936 | J16: 18985.98503
A17: ED_REV311_00006 | B17: DREV0106 | C17: Revenue from controlled load customer charges | E17: 21672 | F17: 17416 | G17: 21822.23477 | H17: 24600.65674 | I17: 25322.68954 | J17: 25851.11341
A18: ED_REV311_00007 | B18: DREV0107 | C18: Revenue from unmetered supplies | E18: 7656.9 | F18: 6006.2 | G18: 7542.014542 | H18: 8457.98638 | I18: 8702.638066 | J18: 8880.637474
A19: ED_REV311_00008 | B19: DREV0108 | C19: Revenue from Contracted Maximum Demand charges | E19: 161611.34 | F19: 85691.7 | G19: 107403.0556 | H19: 128328.4822 | I19: 124484.498 | J19: 127191.1773
A20: ED_REV311_00009 | B20: DREV0109 | C20: Revenue from Measured Maximum Demand charges
A21: ED_REV311_00010 | B21: DREV0110 | C21: Revenue from metering charges | L21: 27975.53032 | M21: 17802 | N21: 26954 | O21: 25820 | P21: 25016 | Q21: 24193
A22: ED_REV311_00011 | B22: DREV0111 | C22: Revenue from connection charges
A23: ED_REV311_00012 | B23: DREV0112 | C23: Revenue from public lighting charges
A24: ED_REV311_00013 | B24: DREV0113 | C24: Revenue from other Sources
B25: DREV01 | C25: Total revenue by chargeable quantity | E25: =SUM(E12:E24) -> 918695.3866 | F25: 668075.7531 | G25: 838173.4394 | H25: 958262.2715 | I25: 977821.2537 | J25: 997962.6132 | L25: =SUM(L12:L24) -> 27975.53032 | M25: 17802 | N25: 26954 | O25: 25820 | P25: 25016 | Q25: 24193
C27: TABLE 3.1.2 REVENUE GROUPING BY CUSTOMER TYPE OR CLASS
A28: ED_REV312_00001 | B28: DREV0201 | C28: Revenue from residential Customers | E28: 453151.0825 | F28: 351432.7697 | G28: 438888.0404 | H28: 495400.0408 | I28: 509872.2562 | J28: 520828.7557 | L28: 24126.9796 | M28: 15353.00621 | N28: 23245.97963 | O28: 22267.98227 | P28: 21574.58732 | Q28: 20864.80616
A29: ED_REV312_00002 | B29: DREV0202 | C29: Revenue from Non residential customers not on demand tariffs | E29: 178841.5641 | F29: 120218.7372 | G29: 150538.0903 | H29: 175839.1863 | I29: 180503.4588 | J29: 183806.4369 | L29: 3516.31986 | M29: 2237.581395 | N29: 3387.920959 | O29: 3245.38544 | P29: 3144.328512 | Q29: 3040.883422
A30: ED_REV312_00003 | B30: DREV0203 | C30: Revenue from Non-residential low voltage demand tariff customers | E30: 225303.6 | F30: 164933.1162 | G30: 209746.0234 | H30: 236355.9724 | I30: 243011.2127 | J30: 247935.3727 | L30: 261.654385 | M30: 166.5016287 | N30: 252.1000393 | O30: 241.4937677 | P30: 233.9739773 | Q30: 226.2764803
A31: ED_REV312_00004 | B31: DREV0204 | C31: Revenue from Non-residential high voltage demand tariff customers | E31: 53742.24 | F31: 39825.87 | G31: 49441.45693 | H31: 62463.2639 | I31: 56586.94942 | J31: 57795.66302 | L31: 70.5764775 | M31: 44.91076445 | N31: 67.99936776 | O31: 65.13852028 | P31: 63.11019455 | Q31: 61.03393575
A32: ED_REV312_00005 | B32: DREV0205 | C32: Revenue from unmetered supplies | E32: 7656.9 | F32: 6006.2 | G32: 7542.014542 | H32: 8457.98638 | I32: 8702.638066 | J32: 8880.637474
A33: ED_REV312_00006 | B33: DREV0206 | C33: Revenue from Other Customers
B34: DREV02 | C34: Total revenue by customer class | E34: =SUM(E28:E33) -> 918695.3866 | F34: 682416.6931 | G34: 856155.6255 | H34: 978516.4497 | I34: 998676.5152 | J34: 1019246.866 | L34: =SUM(L28:L33) -> 27975.53032 | M34: 17802 | N34: 26954 | O34: 25820 | P34: 25016 | Q34: 24193
C36: TABLE 3.1.3 REVENUE (penalties) ALLOWED (deducted) THROUGH INCENTIVE SCHEMES
A37: ED_REV313_00001 | B37: DREV0301 | C37: EBSS | E37: 0 | F37: -733.0718041 | G37: -4990.629394 | H37: -2707.725577 | I37: 3775.477808 | J37: 0
A38: ED_REV313_00002 | B38: DREV0302 | C38: STPIS | E38: 13400
A39: ED_REV313_00003 | B39: DREV0303 | C39: F-Factor
A40: ED_REV313_00004 | B40: DREV0304 | C40: S-Factor True up
A41: ED_REV313_00005 | B41: DREV0305 | C41: Other
B42: DREV03 | C42: Total revenue of incentive schemes | E42: =SUM(E37:E41) -> 13400 | F42: -733.0718041 | G42: -4990.629394 | H42: -2707.725577 | I42: 3775.477808 | J42: 0 | L42: =SUM(L37:L41) -> 0 | M42: 0 | N42: 0 | O42: 0 | P42: 0 | Q42: 0

Sheet 3.2 Opex
C1: REGULATORY REPORTING STATEMENT
C2: =TradingName -> SA Power Networks
C3: =RCP_1to5 -> 2015-16 to 2019-20
C4: 3.2 OPERATING EXPENDITURE
C6: Instructions
C7: Forecasts for opex in table 3.2.1 are to be for the opex categories that the DNSP has reported in their response to their annual reporting RIN.
E11: Standard control services | L11: Alternative control services
E12: Forecast ($ 000's, real June 2015) | L12: Forecast ($ 000's, real June 2015)
E13: =CRCP_y5 -> 2014-15 | F13: =FRCP -> 2015-16 | G13: 2016-17 | H13: 2017-18 | I13: 2018-19 | J13: 2019-20 | L13: =CRCP_y5 -> 2014-15 | M13: =FRCP -> 2015-16 | N13: 2016-17 | O13: 2017-18 | P13: 2018-19 | Q13: 2019-20
C15: TABLE 3.2.1 - OPEX CATEGORIES
C16: Table 3.2.1.1 Current opex categories and cost allocations
A17: ED_OPX3211_00001 | B17: DOPEX0101 | C17: Distribution licence fee | E17: 3436.121077 | F17: 2706.583678 | G17: 2443.68358 | H17: 2477.075361 | I17: 2513.302761 | J17: 2546.48733 | L17: 0 | M17: 0 | N17: 0 | O17: 0 | P17: 0 | Q17: 0
A18: ED_OPX3211_00002 | B18: DOPEX0102 | C18: Network operating costs | E18: 29174.85846 | F18: 30374.81572 | G18: 38623.92864 | H18: 34618.09353 | I18: 35580.07859 | J18: 36555.39936 | L18: 0 | M18: 0 | N18: 0 | O18: 0 | P18: 0 | Q18: 0
A19: ED_OPX3211_00003 | B19: DOPEX0103 | C19: Inspections | E19: 14600.41338 | F19: 20246.16049 | G19: 20772.6644 | H19: 21136.25617 | I19: 21490.04365 | J19: 19953.86178 | L19: 0 | M19: 0 | N19: 0 | O19: 0 | P19: 0 | Q19: 0
A20: ED_OPX3211_00004 | B20: DOPEX0104 | C20: Maintenance & repair | E20: 14556.72481 | F20: 14990.98469 | G20: 15419.58943 | H20: 15883.01015 | I20: 16375.65053 | J20: 16873.91772 | L20: 1519.816518 | M20: 2703.633045 | N20: 2704.312754 | O20: 2533.419272 | P20: 2554.961516 | Q20: 2537.186889
A21: ED_OPX3211_00005 | B21: DOPEX0105 | C21: Substation property maintenance | E21: 6964.244192 | F21: 7075.475298 | G21: 7182.435231 | H21: 7309.542408 | I21: 7451.654535 | J21: 7599.49355 | L21: 0 | M21: 0 | N21: 0 | O21: 0 | P21: 0 | Q21: 0
A22: ED_OPX3211_00006 | B22: DOPEX0106 | C22: Vegetation management | E22: 37322.84942 | F22: 44830.95527 | G22: 42826.50313 | H22: 42844.98575 | I22: 42954.95963 | J22: 43112.16008 | L22: 0 | M22: 0 | N22: 0 | O22: 0 | P22: 0 | Q22: 0
A23: ED_OPX3211_00007 | B23: DOPEX0107 | C23: Emergency response | E23: 34520.40531 | F23: 35519.89915 | G23: 36517.79082 | H23: 37609.10631 | I23: 38775.29414 | J23: 39959.68995 | L23: 0 | M23: 0 | N23: 0 | O23: 0 | P23: 0 | Q23: 0
A24: ED_OPX3211_00008 | B24: DOPEX0108 | C24: Demand management | E24: 1236.342 | F24: 1264.72497 | G24: 1292.738042 | H24: 1323.698686 | I24: 1357.115925 | J24: 1391.054017 | L24: 0 | M24: 0 | N24: 0 | O24: 0 | P24: 0 | Q24: 0
A25: ED_OPX3211_00009 | B25: DOPEX0109 | C25: Guarantee service level payments | E25: 10268.04773 | F25: 10376.99129 | G25: 10477.93684 | H25: 10577.72041 | I25: 10685.97755 | J25: 10785.14191 | L25: 0 | M25: 0 | N25: 0 | O25: 0 | P25: 0 | Q25: 0
A26: ED_OPX3211_00010 | B26: DOPEX0110 | C26: Network insurance | E26: 3104.2935 | F26: 3147.566389 | G26: 3188.845737 | H26: 3230.83601 | I26: 3275.919218 | J26: 3318.737193 | L26: 0 | M26: 0 | N26: 0 | O26: 0 | P26: 0 | Q26: 0
A27: ED_OPX3211_00011 | B27: DOPEX0111 | C27: Call centre | E27: 3054.674423 | F27: 3102.519813 | G27: 3148.364086 | H27: 3206.951728 | I27: 3273.790733 | J27: 3345.473185 | L27: 0 | M27: 0 | N27: 0 | O27: 0 | P27: 0 | Q27: 0
A28: ED_OPX3211_00012 | B28: DOPEX0112 | C28: Full retail contestability | E28: 15366.40788 | F28: 16931.84554 | G28: 17590.06608 | H28: 18362.17612 | I28: 18751.65141 | J28: 19280.02508 | L28: 0 | M28: 2352.743982 | N28: 2333.012124 | O28: 2170.26661 | P28: 2174.688295 | Q28: 2149.374208
A29: ED_OPX3211_00013 | B29: DOPEX0113 | C29: Meter reading | E29: 0 | F29: 0 | G29: 0 | H29: 0 | I29: 0 | J29: 0 | L29: 4087.981347 | M29: 3801.336144 | N29: 3754.990275 | O29: 3482.247384 | P29: 3481.25925 | Q29: 3432.052678
A30: ED_OPX3211_00014 | B30: DOPEX0114 | C30: Other customer services | E30: 6816.420692 | F30: 7021.104407 | G30: 8251.309787 | H30: 8786.070706 | I30: 9020.262521 | J30: 9360.75915 | L30: 134.9886402 | M30: 163.3563014 | N30: 163.4651345 | O30: 153.4072082 | P30: 154.8054549 | Q30: 154.0040347
A31: ED_OPX3211_00015 | B31: DOPEX0115 | C31: Corporate costs and other operating | E31: 67958.99843 | F31: 72182.79375 | G31: 73328.11248 | H31: 77470.86302 | I31: 79290.14862 | J31: 81409.1644 | L31: 848.2535684 | M31: 991.8431414 | N31: 991.9967173 | O31: 935.9971644 | P31: 943.6420345 | Q31: 937.2197515
A32: ED_OPX3211_00016 | B32: DOPEX0116
A33: ED_OPX3211_00017 | B33: DOPEX0117
A34: ED_OPX3211_00018 | B34: DOPEX0118
A35: ED_OPX3211_00019 | B35: DOPEX0119
A36: ED_OPX3211_00020 | B36: DOPEX0120
A37: ED_OPX3211_00021 | B37: DOPEX0121
A38: ED_OPX3211_00022 | B38: DOPEX0122
A39: ED_OPX3211_00023 | B39: DOPEX0123
A40: ED_OPX3211_00024 | B40: DOPEX0124
A41: ED_OPX3211_00025 | B41: DOPEX0125
A42: ED_OPX3211_00026 | B42: DOPEX0126
A43: ED_OPX3211_00027 | B43: DOPEX0127
A44: ED_OPX3211_00028 | B44: DOPEX0128
A45: ED_OPX3211_00029 | B45: DOPEX0129
A46: ED_OPX3211_00030 | B46: DOPEX0130
A47: ED_OPX3211_00031 | B47: DOPEX0131
A48: ED_OPX3211_00032 | B48: DOPEX0132
A49: ED_OPX3211_00033 | B49: DOPEX0133
A50: ED_OPX3211_00034 | B50: DOPEX0134
A51: ED_OPX3211_99999 | B51: DOPEX01 | C51: Total opex | E51: =SUM(E17:E50) -> 248380.8013 | F51: 269772.4204 | G51: 281063.9683 | H51: 284836.3864 | I51: 290795.8498 | J51: 295491.3647 | L51: =SUM(L17:L50) -> 6591.040074 | M51: 10012.91261 | N51: 9947.777004 | O51: 9275.337639 | P51: 9309.35655 | Q51: 9209.83756
C54: TABLE 3.2.2 - OPEX CONSISTENCY
C55: Table 3.2.2.1 Opex consistency - current cost allocation approach
A56: ED_OPX3221_00001 | B56: DOPEX0201 | C56: Opex for network services | E56: 245315.7896 | F56: 266610.38 | G56: 277804.6419 | H56: 281473.2968 | I56: 287323.0694 | J56: 291908.4729 | L56: 0 | M56: 0 | N56: 0 | O56: 0 | P56: 0 | Q56: 0
A57: ED_OPX3221_00002 | B57: DOPEX0202 | C57: Opex for metering | E57: 0 | F57: 0 | G57: 0 | H57: 0 | I57: 0 | J57: 0 | L57: 6528.138851 | M57: 9936.588635 | N57: 9871.286697 | O57: 9203.465189 | P57: 9236.7503 | Q57: 9137.542397
A58: ED_OPX3221_00003 | B58: DOPEX0203 | C58: Opex for connection services | E58: 3065.011731 | F58: 3162.04042 | G58: 3259.326397 | H58: 3363.089516 | I58: 3472.780458 | J58: 3582.891805 | L58: 62.90122211 | M58: 76.3239792 | N58: 76.4903074 | O58: 71.87245009 | P58: 72.60625027 | Q58: 72.29516317
A59: ED_OPX3221_00004 | B59: DOPEX0204 | C59: Opex for public lighting | E59: 0 | F59: 0 | G59: 0 | H59: 0 | I59: 0 | J59: 0 | L59: 0 | M59: 0 | N59: 0 | O59: 0 | P59: 0 | Q59: 0
A60: ED_OPX3221_00005 | B60: DOPEX0205 | C60: Opex for amounts payable for easement levy or similar direct charges on DNSP | E60: 0 | F60: 0 | G60: 0 | H60: 0 | I60: 0 | J60: 0 | L60: 0 | M60: 0 | N60: 0 | O60: 0 | P60: 0 | Q60: 0
A61: ED_OPX3221_00006 | B61: DOPEX0207 | C61: Opex for transmission connection point planning | E61: 0 | F61: 0 | G61: 0 | H61: 0 | I61: 0 | J61: 0 | L61: 0 | M61: 0 | N61: 0 | O61: 0 | P61: 0 | Q61: 0
A62: ED_OPX3221_99999 | C62: Total opex | E62: =SUM(E56:E61) -> 248380.8013 | F62: 269772.4204 | G62: 281063.9683 | H62: 284836.3864 | I62: 290795.8498 | J62: 295491.3647 | L62: =SUM(L56:L61) -> 6591.040074 | M62: 10012.91261 | N62: 9947.777004 | O62: 9275.337639 | P62: 9309.35655 | Q62: 9209.83756
C65: TABLE 3.2.4 - OPEX FOR HIGH VOLTAGE CUSTOMERS | F65: End user costs (not standard control services)
A66: ED_OPX324_00001 | B66: DOPEX0401 | C66: Opex for high voltage customers | E66: 1475.656031 | F66: 1321.531454 | G66: 1497.882422 | H66: 1404.216599 | I66: 1456.162282 | J66: 1503.876904

Sheet 3.3 Assets (RAB)
C1: REGULATORY REPORTING STATEMENT
C2: =TradingName -> SA Power Networks
C3: =RCP_1to5 -> 2015-16 to 2019-20
C4: 3.3 ASSETS
E6: Network services | L6: Standard control services | S6: Alternative control services
E7: Forecast ($000's, nominal) | L7: Forecast ($000's, nominal) | S7: Forecast ($000's, nominal)
E8: =CRCP_y5 -> 2014-15 | F8: =FRCP -> 2015-16 | G8: 2016-17 | H8: 2017-18 | I8: 2018-19 | J8: 2019-20 | L8: =CRCP_y5 -> 2014-15 | M8: =FRCP -> 2015-16 | N8: 2016-17 | O8: 2017-18 | P8: 2018-19 | Q8: 2019-20 | S8: =CRCP_y5 -> 2014-15 | T8: =FRCP -> 2015-16 | U8: 2016-17 | V8: 2017-18 | W8: 2018-19 | X8: 2019-20
C10: TABLE 3.3.1 REGULATORY ASSET BASE VALUES
C11: For total asset base:
A12: ED_RAB331_00001 | B12: DRAB0101 | C12: Opening value | E12: 3502347.521 | F12: =E18 -> 3591603.318 | G12: =F18 -> 3787208.117 | H12: =G18 -> 3983394.195 | I12: =H18 -> 4133628.436 | J12: =I18 -> 4248962.153 | L12: 3686531.7 | M12: =L18 -> 3778356.954 | N12: =M18 -> 3975637.433 | O12: =N18 -> 4173463.058 | P12: =O18 -> 4325361.035 | Q12: =P18 -> 4442301.793 | S12: 78846.08594 | T12: =S18 -> 84788.53329 | U12: =T18 -> 80478.4556 | V12: =U18 -> 75294.44034 | W12: =V18 -> 70611.1319 | X12: =W18 -> 64687.02679
A13: ED_RAB331_00002 | B13: DRAB0102 | C13: Inflation addition | E13: 0 | F13: 0 | G13: 0 | H13: 0 | I13: 0 | J13: 0 | L13: 0 | M13: 0 | N13: 0 | O13: 0 | P13: 0 | Q13: 0 | S13: 0 | T13: 0 | U13: 0 | V13: 0 | W13: 0 | X13: 0
A14: ED_RAB331_00003 | B14: DRAB0103 | C14: Straight line depreciation | E14: -232846.8354 | F14: -221175.9587 | G14: -245358.8445 | H14: -270490.1604 | I14: -293074.3469 | J14: -313601.3682 | L14: -241985.6086 | M14: -230425.2631 | N14: -254742.5893 | O14: -279947.8397 | P14: -302630.7702 | Q14: -323287.7928 | S14: -7415.922236 | T14: -8158.257397 | U14: -8629.553298 | V14: -8920.915984 | W14: -9265.140105 | X14: -9281.212578
B15: DRAB0104 | C15: Regulatory depreciation | E15: =SUM(E14+E13) -> -232846.8354 | F15: =SUM(F14+F13) -> -221175.9587 | G15: -245358.8445 | H15: -270490.1604 | I15: -293074.3469 | J15: -313601.3682 | L15: =SUM(L14+L13) -> -241985.6086 | M15: =SUM(M14+M13) -> -230425.2631 | N15: -254742.5893 | O15: -279947.8397 | P15: -302630.7702 | Q15: -323287.7928 | S15: =SUM(S14+S13) -> -7415.922236 | T15: =SUM(T14+T13) -> -8158.257397 | U15: -8629.553298 | V15: -8920.915984 | W15: -9265.140105 | X15: -9281.212578
A16: ED_RAB331_00005 | B16: DRAB0105 | C16: Actual additions (recognised in RAB) | E16: 324705.1169 | F16: 420802.5576 | G16: 444139.8231 | H16: 422724.6011 | I16: 410539.2642 | J16: 380110.4412 | L16: 336413.3482 | M16: 431727.5418 | N16: 455163.114 | O16: 433846.0172 | P16: 421702.7282 | Q16: 391193.7576 | S16: 13358.36958 | T16: 3848.179709 | U16: 3445.538042 | V16: 4237.607542 | W16: 3341.034995 | X16: 4801.620807
A17: ED_RAB331_00006 | B17: DRAB0106 | C17: Disposals | E17: -2602.484959 | F17: -4021.8 | G17: -2594.9 | H17: -2000.2 | I17: -2131.2 | J17: -3655.2 | L17: -2602.484959 | M17: -4021.8 | N17: -2594.9 | O17: -2000.2 | P17: -2131.2 | Q17: -3655.2 | S17: 0 | T17: 0 | U17: 0 | V17: 0 | W17: 0 | X17: 0
A18: ED_RAB331_00007 | B18: DRAB0107 | C18: Closing value for overhead distribution asset value | E18: =SUM(E12+E13+E14+E16+E17) -> 3591603.318 | F18: =SUM(F12+F13+F14+F16+F17) -> 3787208.117 | G18: 3983394.195 | H18: 4133628.436 | I18: 4248962.153 | J18: 4311816.026 | L18: =SUM(L12+L13+L14+L16+L17) -> 3778356.954 | M18: =SUM(M12+M13+M14+M16+M17) -> 3975637.433 | N18: 4173463.058 | O18: 4325361.035 | P18: 4442301.793 | Q18: 4506552.558 | S18: =SUM(S12+S13+S14+S16+S17) -> 84788.53329 | T18: =SUM(T12+T13+T14+T16+T17) -> 80478.4556 | U18: 75294.44034 | V18: 70611.1319 | W18: 64687.02679 | X18: 60207.43502
C20: TABLE 3.3.2 ASSET VALUE ROLL FORWARD
C21: For overhead network assets less than 33kV:
A22: ED_RAB3321_00001 | B22: DRAB0201 | C22: Opening value | E22: 550527.5809 | F22: =E28 -> 556815.9228 | G22: =F28 -> 600589.4884 | H22: =G28 -> 660549.3722 | I22: =H28 -> 719896.1236 | J22: =I28 -> 775276.617 | L22: 620556.586 | M22: =L28 -> 627977.9126 | N22: =M28 -> 672516.9462 | O22: =N28 -> 733221.2035 | P22: =O28 -> 793336.4573 | Q22: =P28 -> 849498.3072 | S22: 0 | T22: =S28 -> 0 | U22: =T28 -> 0 | V22: =U28 -> 0 | W22: =V28 -> 0 | X22: =W28 -> 0
A23: ED_RAB3321_00002 | B23: DRAB0202 | C23: Inflation addition | E23: 0 | F23: 0 | G23: 0 | H23: 0 | I23: 0 | J23: 0 | L23: 0 | M23: 0 | N23: 0 | O23: 0 | P23: 0 | Q23: 0 | S23: 0 | T23: 0 | U23: 0 | V23: 0 | W23: 0 | X23: 0
A24: ED_RAB3321_00003 | B24: DRAB0203 | C24: Straight line depreciation | E24: -32420.29055 | F24: -34065.61351 | G24: -35526.46924 | H24: -37337.92472 | I24: -39163.22918 | J24: -40937.127 | L24: -35787.69724 | M24: -37523.58043 | N24: -39015.62796 | O24: -40828.71678 | P24: -42664.0617 | Q24: -44460.89646 | S24: 0 | T24: 0 | U24: 0 | V24: 0 | W24: 0 | X24: 0
B25: DRAB0204 | C25: Regulatory depreciation | E25: =SUM(E24+E23) -> -32420.29055 | F25: =SUM(F24+F23) -> -34065.61351 | G25: =SUM(G24+G23) -> -35526.46924 | H25: -37337.92472 | I25: -39163.22918 | J25: -40937.127 | L25: =SUM(L24+L23) -> -35787.69724 | M25: -37523.58043 | N25: -39015.62796 | O25: -40828.71678 | P25: -42664.0617 | Q25: -44460.89646 | S25: =SUM(S24+S23) -> 0 | T25: 0 | U25: 0 | V25: 0 | W25: 0 | X25: 0
A26: ED_RAB3321_00005 | B26: DRAB0205 | C26: Actual additions (recognised in RAB) | E26: 38708.63241 | F26: 77839.17914 | G26: 95486.35303 | H26: 96684.67606 | I26: 94543.72265 | J26: 88096.33402 | L26: 43209.02384 | M26: 82062.61402 | N26: 99719.88524 | O26: 100943.9706 | P26: 98825.91157 | Q26: 92350.33922 | S26: 0 | T26: 0 | U26: 0 | V26: 0 | W26: 0 | X26: 0
A27: ED_RAB3321_00006 | B27: DRAB0206 | C27: Disposals | E27: 0 | F27: 0 | G27: 0 | H27: 0 | I27: 0 | J27: 0 | L27: 0 | M27: 0 | N27: 0 | O27: 0 | P27: 0 | Q27: 0 | S27: 0 | T27: 0 | U27: 0 | V27: 0 | W27: 0 | X27: 0
A28: ED_RAB3321_00007 | B28: DRAB0207 | C28: Closing value for overhead distribution asset value | E28: =SUM(E22+E23+E24+E26+E27) -> 556815.9228 | F28: =SUM(F22+F23+F24+F26+F27) -> 600589.4884 | G28: =SUM(G22+G23+G24+G26+G27) -> 660549.3722 | H28: 719896.1236 | I28: 775276.617 | J28: 822435.824 | L28: =SUM(L22+L23+L24+L26+L27) -> 627977.9126 | M28: 672516.9462 | N28: 733221.2035 | O28: 793336.4573 | P28: 849498.3072 | Q28: 897387.7499 | S28: =SUM(S22+S23+S24+S26+S27) -> 0 | T28: 0 | U28: 0 | V28: 0 | W28: 0 | X28: 0
C29: For underground network assets less than 33kV:
A30: ED_RAB3322_00001 | B30: DRAB0301 | C30: Opening value | E30: 861344.8205 | F30: =E36 -> 872609.6938 | G30: =F36 -> 916943.7328 | H30: =G36 -> 981977.6636 | I30: =H36 -> 1046073.49 | J30: =I36 -> 1105313.567 | L30: 975499.9937 | M30: =L36 -> 988201.3403 | N30: =M36 -> 1033445.591 | O30: =N36 -> 1099374.695 | P30: =O36 -> 1164365.755 | Q30: =P36 -> 1224431.517 | S30: 0 | T30: =S36 -> 0 | U30: =T36 -> 0 | V30: =U36 -> 0 | W30: =V36 -> 0 | X30: =W36 -> 0
A31: ED_RAB3322_00002 | B31: DRAB0302 | C31: Inflation addition | E31: 0 | F31: 0 | G31: 0 | H31: 0 | I31: 0 | J31: 0 | L31: 0 | M31: 0 | N31: 0 | O31: 0 | P31: 0 | Q31: 0 | S31: 0 | T31: 0 | U31: 0 | V31: 0 | W31: 0 | X31: 0
A32: ED_RAB3322_00003 | B32: DRAB0303 | C32: Straight line depreciation | E32: -59828.82302 | F32: -60135.8897 | G32: -62053.94065 | H32: -64415.77827 | I32: -66788.41515 | J32: -69097.89207 | L32: -65600.18958 | M32: -65927.2272 | N32: -67948.5268 | O32: -70382.66554 | P32: -72844.006 | Q32: -75260.54724 | S32: 0 | T32: 0 | U32: 0 | V32: 0 | W32: 0 | X32: 0
B33: DRAB0304 | C33: Regulatory depreciation | E33: =SUM(E32+E31) -> -59828.82302 | F33: =SUM(F32+F31) -> -60135.8897 | G33: =SUM(G32+G31) -> -62053.94065 | H33: -64415.77827 | I33: -66788.41515 | J33: -69097.89207 | L33: =SUM(L32+L31) -> -65600.18958 | M33: -65927.2272 | N33: -67948.5268 | O33: -70382.66554 | P33: -72844.006 | Q33: -75260.54724 | S33: =SUM(S32+S31) -> 0 | T33: 0 | U33: 0 | V33: 0 | W33: 0 | X33: 0
A34: ED_RAB3322_00005 | B34: DRAB0305 | C34: Actual additions (recognised in RAB) | E34: 71093.69638 | F34: 104469.9287 | G34: 127087.8715 | H34: 128511.6042 | I34: 126028.4927 | J34: 118128.8526 | L34: 78301.53626 | M34: 111171.478 | N34: 133877.6302 | O34: 135373.7258 | P34: 132909.7677 | Q34: 124958.1639 | S34: 0 | T34: 0 | U34: 0 | V34: 0 | W34: 0 | X34: 0
A35: ED_RAB3322_00006 | B35: DRAB0306 | C35: Disposals | E35: 0 | F35: 0 | G35: 0 | H35: 0 | I35: 0 | J35: 0 | L35: 0 | M35: 0 | N35: 0 | O35: 0 | P35: 0 | Q35: 0 | S35: 0 | T35: 0 | U35: 0 | V35: 0 | W35: 0 | X35: 0
A36: ED_RAB3322_00007 | B36: DRAB0307 | C36: Closing value for underground asset value | E36: =SUM(E30+E31+E32+E34+E35) -> 872609.6938 | F36: =SUM(F30+F31+F32+F34+F35) -> 916943.7328 | G36: =SUM(G30+G31+G32+G34+G35) -> 981977.6636 | H36: 1046073.49 | I36: 1105313.567 | J36: 1154344.528 | L36: =SUM(L30+L31+L32+L34+L35) -> 988201.3403 | M36: 1033445.591 | N36: 1099374.695 | O36: 1164365.755 | P36: 1224431.517 | Q36: 1274129.133 | S36: =SUM(S30+S31+S32+S34+S35) -> 0 | T36: 0 | U36: 0 | V36: 0 | W36: 0 | X36: 0
C37: For distribution substations and transformers:
A38: ED_RAB3323_00001 | B38: DRAB0401 | C38: Opening value | E38: 918508.6352 | F38: =E44 -> 929928.1475 | G38: =F44 -> 927038.6432 | H38: =G44 -> 917813.0078 | I38: =H44 -> 907879.828 | J38: =I44 -> 893968.9678 | L38: 918508.6352 | M38: =L44 -> 929928.1475 | N38: =M44 -> 927038.6432 | O38: =N44 -> 917813.0078 | P38: =O44 -> 907879.828 | Q38: =P44 -> 893968.9678 | S38: 0 | T38: =S44 -> 0 | U38: =T44 -> 0 | V38: =U44 -> 0 | W38: =V44 -> 0 | X38: =W44 -> 0
A39: ED_RAB3323_00002 | B39: DRAB0402 | C39: Inflation addition | E39: 0 | F39: 0 | G39: 0 | H39: 0 | I39: 0 | J39: 0 | L39: 0 | M39: 0 | N39: 0 | O39: 0 | P39: 0 | Q39: 0 | S39: 0 | T39: 0 | U39: 0 | V39: 0 | W39: 0 | X39: 0
A40: ED_RAB3323_00003 | B40: DRAB0403 | C40: Straight line depreciation | E40: -43242.92177 | F40: -47555.8261 | G40: -48548.41103 | H40: -49422.25049 | I40: -50299.78539 | J40: -51108.42817 | L40: -43242.92177 | M40: -47555.8261 | N40: -48548.41103 | O40: -49422.25049 | P40: -50299.78539 | Q40: -51108.42817 | S40: 0 | T40: 0 | U40: 0 | V40: 0 | W40: 0 | X40: 0
B41: DRAB0404 | C41: Regulatory depreciation | E41: =SUM(E40+E39) -> -43242.92177 | F41: =SUM(F40+F39) -> -47555.8261 | G41: =SUM(G40+G39) -> -48548.41103 | H41: -49422.25049 | I41: -50299.78539 | J41: -51108.42817 | L41: =SUM(L40+L39) -> -43242.92177 | M41: -47555.8261 | N41: -48548.41103 | O41: -49422.25049 | P41: -50299.78539 | Q41: -51108.42817 | S41: =SUM(S40+S39) -> 0 | T41: 0 | U41: 0 | V41: 0 | W41: 0 | X41: 0
A42: ED_RAB3323_00005 | B42: DRAB0405 | C42: Actual additions (recognised in RAB) | E42: 54662.434 | F42: 44666.32189 | G42: 39322.7756 | H42: 39489.07066 | I42: 36388.92516 | J42: 34020.69617 | L42: 54662.434 | M42: 44666.32189 | N42: 39322.7756 | O42: 39489.07066 | P42: 36388.92516 | Q42: 34020.69617 | S42: 0 | T42: 0 | U42: 0 | V42: 0 | W42: 0 | X42: 0
A43: ED_RAB3323_00006 | B43: DRAB0406 | C43: Disposals | E43: 0 | F43: 0 | G43: 0 | H43: 0 | I43: 0 | J43: 0 | L43: 0 | M43: 0 | N43: 0 | O43: 0 | P43: 0 | Q43: 0 | S43: 0 | T43: 0 | U43: 0 | V43: 0 | W43: 0 | X43: 0
A44: ED_RAB3323_00007 | B44: DRAB0407 | C44: Closing value for distribution substations and transformers asset value | E44: =SUM(E38+E39+E40+E42+E43) -> 929928.1475 | F44: =SUM(F38+F39+F40+F42+F43) -> 927038.6432 | G44: =SUM(G38+G39+G40+G42+G43) -> 917813.0078 | H44: 907879.828 | I44: 893968.9678 | J44: 876881.2358 | L44: =SUM(L38+L39+L40+L42+L43) -> 929928.1475 | M44: 927038.6432 | N44: 917813.0078 | O44: 907879.828 | P44: 893968.9678 | Q44: 876881.2358 | S44: =SUM(S38+S39+S40+S42+S43) -> 0 | T44: 0 | U44: 0 | V44: 0 | W44: 0 | X44: 0
C45: For overhead network assets 33kV and above:
A46: ED_RAB3324_00001 | B46: DRAB0501 | C46: Opening value | E46: 144864.515 | F46: =E52 -> 143102.5599 | G46: =F52 -> 148323.2467 | H46: =G52 -> 155954.2232 | I46: =H52 -> 163501.0624 | J46: =I52 -> 170455.7684 | L46: 144864.515 | M46: =L52 -> 143102.5599 | N46: =M52 -> 148323.2467 | O46: =N52 -> 155954.2232 | P46: =O52 -> 163501.0624 | Q46: =P52 -> 170455.7684 | S46: 0 | T46: =S52 -> 0 | U46: =T52 -> 0 | V46: =U52 -> 0 | W46: =V52 -> 0 | X46: =W52 -> 0
A47: ED_RAB3324_00002 | B47: DRAB0502 | C47: Inflation addition | E47: 0 | F47: 0 | G47: 0 | H47: 0 | I47: 0 | J47: 0 | L47: 0 | M47: 0 | N47: 0 | O47: 0 | P47: 0 | Q47: 0 | S47: 0 | T47: 0 | U47: 0 | V47: 0 | W47: 0 | X47: 0
A48: ED_RAB3324_00003 | B48: DRAB0503 | C48: Straight line depreciation | E48: -6233.941066 | F48: -6891.901786 | G48: -7112.130669 | H48: -7380.187164 | I48: -7651.587642 | J48: -7917.156618 | L48: -6233.941066 | M48: -6891.901786 | N48: -7112.130669 | O48: -7380.187164 | P48: -7651.587642 | Q48: -7917.156618 | S48: 0 | T48: 0 | U48: 0 | V48: 0 | W48: 0 | X48: 0
B49: DRAB0504 | C49: Regulatory depreciation | E49: =SUM(E48+E47) -> -6233.941066 | F49: =SUM(F48+F47) -> -6891.901786 | G49: =SUM(G48+G47) -> -7112.130669 | H49: -7380.187164 | I49: -7651.587642 | J49: -7917.156618 | L49: =SUM(L48+L47) -> -6233.941066 | M49: -6891.901786 | N49: -7112.130669 | O49: -7380.187164 | P49: -7651.587642 | Q49: -7917.156618 | S49: =SUM(S48+S47) -> 0 | T49: 0 | U49: 0 | V49: 0 | W49: 0 | X49: 0
A50: ED_RAB3324_00005 | B50: DRAB0505 | C50: Actual additions (recognised in RAB) | E50: 4471.985956 | F50: 12112.58854 | G50: 14743.10723 | H50: 14927.02629 | I50: 14606.29369 | J50: 13634.07842 | L50: 4471.985956 | M50: 12112.58854 | N50: 14743.10723 | O50: 14927.02629 | P50: 14606.29369 | Q50: 13634.07842 | S50: 0 | T50: 0 | U50: 0 | V50: 0 | W50: 0 | X50: 0
A51: ED_RAB3324_00006 | B51: DRAB0506 | C51: Disposals | E51: 0 | F51: 0 | G51: 0 | H51: 0 | I51: 0 | J51: 0 | L51: 0 | M51: 0 | N51: 0 | O51: 0 | P51: 0 | Q51: 0 | S51: 0 | T51: 0 | U51: 0 | V51: 0 | W51: 0 | X51: 0
A52: ED_RAB3324_00007 | B52: DRAB0507 | C52: Closing value for overhead asset 33kV and above value | E52: =SUM(E46+E47+E48+E50+E51) -> 143102.5599 | F52: =SUM(F46+F47+F48+F50+F51) -> 148323.2467 | G52: =SUM(G46+G47+G48+G50+G51) -> 155954.2232 | H52: 163501.0624 | I52: 170455.7684 | J52: 176172.6902 | L52: =SUM(L46+L47+L48+L50+L51) -> 143102.5599 | M52: 148323.2467 | N52: 155954.2232 | O52: 163501.0624 | P52: 170455.7684 | Q52: 176172.6902 | S52: =SUM(S46+S47+S48+S50+S51) -> 0 | T52: 0 | U52: 0 | V52: 0 | W52: 0 | X52: 0
C53: For underground network assets 33kV and above:
A54: ED_RAB3325_00001 | B54: DRAB0601 | C54: Opening value | E54: 25052.28944 | F54: =E60 -> 24747.58398 | G54: =F60 -> 25650.42865 | H54: =G60 -> 26970.09919 | I54: =H60 -> 28275.21935 | J54: =I60 -> 29477.93837 | L54: 25052.28944 | M54: =L60 -> 24747.58398 | N54: =M60 -> 25650.42865 | O54: =N60 -> 26970.09919 | P54: =O60 -> 28275.21935 | Q54: =P60 -> 29477.93837 | S54: 0 | T54: =S60 -> 0 | U54: =T60 -> 0 | V54: =U60 -> 0 | W54: =V60 -> 0 | X54: =W60 -> 0
A55: ED_RAB3325_00002 | B55: DRAB0602 | C55: Inflation addition | E55: 0 | F55: 0 | G55: 0 | H55: 0 | I55: 0 | J55: 0 | L55: 0 | M55: 0 | N55: 0 | O55: 0 | P55: 0 | Q55: 0 | S55: 0 | T55: 0 | U55: 0 | V55: 0 | W55: 0 | X55: 0
A56: ED_RAB3325_00003 | B56: DRAB0603 | C56: Straight line depreciation | E56: -1078.072818 | F56: -1191.857912 | G56: -1229.943413 | H56: -1276.30003 | I56: -1323.234943 | J56: -1369.161379 | L56: -1078.072818 | M56: -1191.857912 | N56: -1229.943413 | O56: -1276.30003 | P56: -1323.234943 | Q56: -1369.161379 | S56: 0 | T56: 0 | U56: 0 | V56: 0 | W56: 0 | X56: 0
B57: DRAB0604 | C57: Regulatory depreciation | E57: =SUM(E56+E55) -> -1078.072818 | F57: =SUM(F56+F55) -> -1191.857912 | G57: =SUM(G56+G55) -> -1229.943413 | H57: -1276.30003 | I57: -1323.234943 | J57: -1369.161379 | L57: =SUM(L56+L55) -> -1078.072818 | M57: -1191.857912 | N57: -1229.943413 | O57: -1276.30003 | P57: -1323.234943 | Q57: -1369.161379 | S57: =SUM(S56+S55) -> 0 | T57: 0 | U57: 0 | V57: 0 | W57: 0 | X57: 0
A58: ED_RAB3325_00005 | B58: DRAB0605 | C58: Actual additions (recognised in RAB) | E58: 773.367353 | F58: 2094.702583 | G58: 2549.613957 | H58: 2581.420184 | I58: 2525.953971 | J58: 2357.822954 | L58: 773.367353 | M58: 2094.702583 | N58: 2549.613957 | O58: 2581.420184 | P58: 2525.953971 | Q58: 2357.822954 | S58: 0 | T58: 0 | U58: 0 | V58: 0 | W58: 0 | X58: 0
A59: ED_RAB3325_00006 | B59: DRAB0606 | C59: Disposals | E59: 0 | F59: 0 | G59: 0 | H59: 0 | I59: 0 | J59: 0 | L59: 0 | M59: 0 | N59: 0 | O59: 0 | P59: 0 | Q59: 0 | S59: 0 | T59: 0 | U59: 0 | V59: 0 | W59: 0 | X59: 0
A60: ED_RAB3325_00007 | B60: DRAB0607 | C60: Closing value for underground asset 33kV and above value | E60: =SUM(E54+E55+E56+E58+E59) -> 24747.58398 | F60: =SUM(F54+F55+F56+F58+F59) -> 25650.42865 | G60: =SUM(G54+G55+G56+G58+G59) -> 26970.09919 | H60: 28275.21935 | I60: 29477.93837 | J60: 30466.59995 | L60: =SUM(L54+L55+L56+L58+L59) -> 24747.58398 | M60: 25650.42865 | N60: 26970.09919 | O60: 28275.21935 | P60: 29477.93837 | Q60: 30466.59995 | S60: =SUM(S54+S55+S56+S58+S59) -> 0 | T60: 0 | U60: 0 | V60: 0 | W60: 0 | X60: 0
C61: Zone substations and transformers
A62: ED_RAB3326_00001 | B62: DRAB0701 | C62: Opening value | E62: 494188.5328 | F62: =E68 -> 500569.8361 | G62: =F68 -> 500817.8829 | H62: =G68 -> 497670.78 | I62: =H68 -> 492845.1385 | J62: =I68 -> 489252.6841 | L62: 494188.5328 | M62: =L68 -> 500569.8361 | N62: =M68 -> 500817.8829 | O62: =N68 -> 497670.78 | P62: =O68 -> 492845.1385 | Q62: =P68 -> 489252.6841 | S62: 0 | T62: =S68 -> 0 | U62: =T68 -> 0 | V62: =U68 -> 0 | W62: =V68 -> 0 | X62: =W68 -> 0
A63: ED_RAB3326_00002 | B63: DRAB0702 | C63: Inflation addition | E63: 0 | F63: 0 | G63: 0 | H63: 0 | I63: 0 | J63: 0 | L63: 0 | M63: 0 | N63: 0 | O63: 0 | P63: 0 | Q63: 0 | S63: 0 | T63: 0 | U63: 0 | V63: 0 | W63: 0 | X63: 0
A64: ED_RAB3326_00003 | B64: DRAB0703 | C64: Straight line depreciation | E64: -22948.63501 | F64: -25237.45508 | G64: -25764.2111 | H64: -26227.94995 | I64: -26693.64994 | J64: -27122.78949 | L64: -22948.63501 | M64: -25237.45508 | N64: -25764.2111 | O64: -26227.94995 | P64: -26693.64994 | Q64: -27122.78949 | S64: 0 | T64: 0 | U64: 0 | V64: 0 | W64: 0 | X64: 0
B65: DRAB0704 | C65: Regulatory depreciation | E65: =SUM(E64+E63) -> -22948.63501 | F65: =SUM(F64+F63) -> -25237.45508 | G65: =SUM(G64+G63) -> -25764.2111 | H65: -26227.94995 | I65: -26693.64994 | J65: -27122.78949 | L65: =SUM(L64+L63) -> -22948.63501 | M65: -25237.45508 | N65: -25764.2111 | O65: -26227.94995 | P65: -26693.64994 | Q65: -27122.78949 | S65: =SUM(S64+S63) -> 0 | T65: 0 | U65: 0 | V65: 0 | W65: 0 | X65: 0
A66: ED_RAB3326_00005 | B66: DRAB0705 | C66: Actual additions (recognised in RAB) | E66: 29329.93831 | F66: 25485.50184 | G66: 22617.10821 | H66: 21402.30846 | I66: 23101.19555 | J66: 21312.26087 | L66: 29329.93831 | M66: 25485.50184 | N66: 22617.10821 | O66: 21402.30846 | P66: 23101.19555 | Q66: 21312.26087 | S66: 0 | T66: 0 | U66: 0 | V66: 0 | W66: 0 | X66: 0
A67: ED_RAB3326_00006 | B67: DRAB0706 | C67: Disposals | E67: 0 | F67: 0 | G67: 0 | H67: 0 | I67: 0 | J67: 0 | L67: 0 | M67: 0 | N67: 0 | O67: 0 | P67: 0 | Q67: 0 | S67: 0 | T67: 0 | U67: 0 | V67: 0 | W67: 0 | X67: 0
A68: ED_RAB3326_00007 | B68: DRAB0707 | C68: Closing value for zone substations and transformers | E68: =SUM(E62+E63+E64+E66+E67) -> 500569.8361 | F68: =SUM(F62+F63+F64+F66+F67) -> 500817.8829 | G68: =SUM(G62+G63+G64+G66+G67) -> 497670.78 | H68: 492845.1385 | I68: 489252.6841 | J68: 483442.1555 | L68: =SUM(L62+L63+L64+L66+L67) -> 500569.8361 | M68: 500817.8829 | N68: 497670.78 | O68: 492845.1385 | P68: 489252.6841 | Q68: 483442.1555 | S68: =SUM(S62+S63+S64+S66+S67) -> 0 | T68: 0 | U68: 0 | V68: 0 | W68: 0 | X68: 0
C69: For easements:
A70: ED_RAB3327_00001 | B70: DRAB0801 | C70: Opening value | E70: 5011.787024 | F70: =E74 -> 4939.909023 | G70: =F74 -> 5584.222754 | H70: =G74 -> 6236.390118 | I70: =H74 -> 6897.691358 | J70: =I74 -> 7569.73834 | L70: 5011.787024 | M70: =L74 -> 4939.909023 | N70: =M74 -> 5584.222754 | O70: =N74 -> 6236.390118 | P70: =O74 -> 6897.691358 | Q70: =P74 -> 7569.73834 | S70: 0 | T70: =S74 -> 0 | U70: =T74 -> 0 | V70: =U74 -> 0 | W70: =V74 -> 0 | X70: =W74 -> 0
A71: ED_RAB3327_00002 | B71: DRAB0802 | C71: Inflation addition | E71: 0 | F71: 0 | G71: 0 | H71: 0 | I71: 0 | J71: 0 | L71: 0 | M71: 0 | N71: 0 | O71: 0 | P71: 0 | Q71: 0 | S71: 0 | T71: 0 | U71: 0 | V71: 0 | W71: 0 | X71: 0
A72: ED_RAB3327_00003 | B72: DRAB0803 | C72: Actual additions (recognised in RAB) | E72: -71.87800179 | F72: 644.3137318 | G72: 652.1673633 | H72: 661.3012407 | I72: 672.0469819 | J72: 684.9602538 | L72: -71.87800179 | M72: 644.3137318 | N72: 652.1673633 | O72: 661.3012407 | P72: 672.0469819 | Q72: 684.9602538 | S72: 0 | T72: 0 | U72: 0 | V72: 0 | W72: 0 | X72: 0
A73: ED_RAB3327_00004 | B73: DRAB0804 | C73: Disposals | E73: 0 | F73: 0 | G73: 0 | H73: 0 | I73: 0 | J73: 0 | L73: 0 | M73: 0 | N73: 0 | O73: 0 | P73: 0 | Q73: 0 | S73: 0 | T73: 0 | U73: 0 | V73: 0 | W73: 0 | X73: 0
A74: ED_RAB3327_00005 | B74: DRAB0805 | C74: Closing value for easements asset value | E74: =SUM(E70+E71+E72+E73) -> 4939.909023 | F74: =SUM(F70+F71+F72+F73) -> 5584.222754 | G74: 6236.390118 | H74: 6897.691358 | I74: 7569.73834 | J74: 8254.698594 | L74: =SUM(L70+L71+L72+L73) -> 4939.909023 | M74: =SUM(M70+M71+M72+M73) -> 5584.222754 | N74: 6236.390118 | O74: 6897.691358 | P74: 7569.73834 | Q74: 8254.698594 | S74: =SUM(S70+S71+S72+S73) -> 0 | T74: =SUM(T70+T71+T72+T73) -> 0 | U74: 0 | V74: 0 | W74: 0 | X74: 0
C75: For meters:
A76: ED_RAB3328_00001 | B76: DRAB0901 | C76: Opening value | E76: 0 | F76: =E82 -> 0 | G76: =F82 -> 0 | H76: =G82 -> 0 | I76: =H82 -> 0 | J76: =I82 -> 0 | L76: 0 | M76: =L82 -> 0 | N76: =M82 -> 0 | O76: =N82 -> 0 | P76: =O82 -> 0 | Q76: =P82 -> 0 | S76: 78674.66602 | T76: =S82 -> 84634.26891 | U76: =T82 -> 80338.55475 | V76: =U82 -> 75168.90304 | W76: =V82 -> 70499.95813 | X76: =W82 -> 64590.21656
A77: ED_RAB3328_00002 | B77: DRAB0902 | C77: Inflation addition | E77: 0 | F77: 0 | G77: 0 | H77: 0 | I77: 0 | J77: 0 | L77: 0 | M77: 0 | N77: 0 | O77: 0 | P77: 0 | Q77: 0 | S77: 0 | T77: 0 | U77: 0 | V77: 0 | W77: 0 | X77: 0
A78: ED_RAB3328_00003 | B78: DRAB0903 | C78: Straight line depreciation | E78: 0 | F78: 0 | G78: 0 | H78: 0 | I78: 0 | J78: 0 | L78: 0 | M78: 0 | N78: 0 | O78: 0 | P78: 0 | Q78: 0 | S78: -7401.319776 | T78: -8143.89386 | U78: -8615.189761 | V78: -8906.552447 | W78: -9250.776569 | X78: -9266.849042
B79: DRAB0904 | C79: Regulatory depreciation | E79: =SUM(E78+E77) -> 0 | F79: =SUM(F78+F77) -> 0 | G79: =SUM(G78+G77) -> 0 | H79: 0 | I79: 0 | J79: 0 | L79: =SUM(L78+L77) -> 0 | M79: 0 | N79: 0 | O79: 0 | P79: 0 | Q79: 0 | S79: =SUM(S78+S77) -> -7401.319776 | T79: -8143.89386 | U79: -8615.189761 | V79: -8906.552447 | W79: -9250.776569 | X79: -9266.849042
A80: ED_RAB3328_00005 | B80: DRAB0905 | C80: Actual additions (recognised in RAB) | E80: 0 | F80: 0 | G80: 0 | H80: 0 | I80: 0 | J80: 0 | L80: 0 | M80: 0 | N80: 0 | O80: 0 | P80: 0 | Q80: 0 | S80: 13360.92266 | T80: 3848.179709 | U80: 3445.538042 | V80: 4237.607542 | W80: 3341.034995 | X80: 4801.620807
A81: ED_RAB3328_00006 | B81: DRAB0906 | C81: Disposals | E81: 0 | F81: 0 | G81: 0 | H81: 0 | I81: 0 | J81: 0 | L81: 0 | M81: 0 | N81: 0 | O81: 0 | P81: 0 | Q81: 0 | S81: 0 | T81: 0 | U81: 0 | V81: 0 | W81: 0 | X81: 0
A82: ED_RAB3328_00007 | B82: DRAB0907 | C82: Closing value for meters asset value | E82: =SUM(E76+E77+E78+E80+E81) -> 0 | F82: =SUM(F76+F77+F78+F80+F81) -> 0 | G82: =SUM(G76+G77+G78+G80+G81) -> 0 | H82: 0 | I82: 0 | J82: 0 | L82: =SUM(L76+L77+L78+L80+L81) -> 0 | M82: 0 | N82: 0 | O82: 0 | P82: 0 | Q82: 0 | S82: =SUM(S76+S77+S78+S80+S81) -> 84634.26891 | T82: 80338.55475 | U82: 75168.90304 | V82: 70499.95813 | W82: 64590.21656 | X82: 60124.98832
C83: For “other” asset items with long lives:
A84: ED_RAB3329_00001 | B84: DRAB1001 | C84: Opening value | E84: 419710.0841 | F84: =E90 -> 424724.8018 | G84: =F90 -> 484350.6705 | H84: =G90 -> 521210.0236 | I84: =H90 -> 540640.0048 | J84: =I90 -> 552909.5768 | L84: 419710.0841 | M84: =L90 -> 424724.8018 | N84: =M90 -> 484350.6705 | O84: =N90 -> 521210.0236 | P84: =O90 -> 540640.0048 | Q84: =P90 -> 552909.5768 | S84: 171.4199182 | T84: =S90 -> 154.2643807 | U84: =T90 -> 139.9008444 | V84: =U90 -> 125.537308 | W84: =V90 -> 111.1737716 | X84: =W90 -> 96.81023522
A85: ED_RAB3329_00002 | B85: DRAB1002 | C85: Inflation addition | E85: 0 | F85: 0 | G85: 0 | H85: 0 | I85: 0 | J85: 0 | L85: 0 | M85: 0 | N85: 0 | O85: 0 | P85: 0 | Q85: 0 | S85: 0 | T85: 0 | U85: 0 | V85: 0 | W85: 0 | X85: 0
A86: ED_RAB3329_00003 | B86: DRAB1003 | C86: Straight line depreciation | E86: -23588.69719 | F86: -18774.50999 | G86: -23587.2653 | H86: -27165.43509 | I86: -29915.79445 | J86: -32653.63599 | L86: -23588.69719 | M86: -18774.50999 | N86: -23587.2653 | O86: -27165.43509 | P86: -29915.79445 | Q86: -32653.63599 | S86: -14.6024598 | T86: -14.36353638 | U86: -14.36353638 | V86: -14.36353638 | W86: -14.36353638 | X86: -14.36353638
B87: DRAB1004 | C87: Regulatory depreciation | E87: =SUM(E86+E85) -> -23588.69719 | F87: =SUM(F86+F85) -> -18774.50999 | G87: =SUM(G86+G85) -> -23587.2653 | H87: -27165.43509 | I87: -29915.79445 | J87: -32653.63599 | L87: =SUM(L86+L85) -> -23588.69719 | M87: -18774.50999 | N87: -23587.2653 | O87: -27165.43509 | P87: -29915.79445 | Q87: -32653.63599 | S87: =SUM(S86+S85) -> -14.6024598 | T87: -14.36353638 | U87: -14.36353638 | V87: -14.36353638 | W87: -14.36353638 | X87: -14.36353638
A88: ED_RAB3329_00005 | B88: DRAB1005 | C88: Actual additions (recognised in RAB) | E88: 28603.4149 | F88: 79008.37869 | G88: 60827.61837 | H88: 46770.41637 | I88: 42406.86636 | J88: 37334.92149 | L88: 28603.4149 | M88: 79008.37869 | N88: 60827.61837 | O88: 46770.41637 | P88: 42406.86636 | Q88: 37334.92149 | S88: -2.55307762 | T88: 0 | U88: 0 | V88: 0 | W88: 0 | X88: 0
A89: ED_RAB3329_00006 | B89: DRAB1006 | C89: Disposals | E89: 0 | F89: -608 | G89: -381 | H89: -175 | I89: -221.5 | J89: -224.5 | L89: 0 | M89: -608 | N89: -381 | O89: -175 | P89: -221.5 | Q89: -224.5 | S89: 0 | T89: 0 | U89: 0 | V89: 0 | W89: 0 | X89: 0
A90: ED_RAB3329_00007 | B90: DRAB1007 | C90: Closing value for “other” asset (long life) value | E90: =SUM(E84+E85+E86+E88+E89) -> 424724.8018 | F90: =SUM(F84+F85+F86+F88+F89) -> 484350.6705 | G90: =SUM(G84+G85+G86+G88+G89) -> 521210.0236 | H90: 540640.0048 | I90: 552909.5768 | J90: 557366.3623 | L90: =SUM(L84+L85+L86+L88+L89) -> 424724.8018 | M90: 484350.6705 | N90: 521210.0236 | O90: 540640.0048 | P90: 552909.5768 | Q90: 557366.3623 | S90: =SUM(S84+S85+S86+S88+S89) -> 154.2643807 | T90: 139.9008444 | U90: 125.537308 | V90: 111.1737716 | W90: 96.81023522 | X90: 82.44669883
C91: For “other” asset items with short lives:
A92: ED_RAB33210_00001 | B92: DRAB1101 | C92: Opening value | E92: 83139.2763 | F92: =E98 -> 134164.8629 | G92: =F98 -> 177909.8008 | H92: =G98 -> 215012.6356 | I92: =H98 -> 227619.8786 | J92: =I98 -> 224737.2956 | L92: 83139.2763 | M92: =L98 -> 134164.8629 | N92: =M98 -> 177909.8008 | O92: =N98 -> 215012.6356 | P92: =O98 -> 227619.8786 | Q92: =P98 -> 224737.2956 | S92: 0 | T92: =S98 -> 0 | U92: =T98 -> 0 | V92: =U98 -> 0 | W92: =V98 -> 0 | X92: =W98 -> 0
A93: ED_RAB33210_00002 | B93: DRAB1102 | C93: Inflation addition | E93: 0 | F93: 0 | G93: 0 | H93: 0 | I93: 0 | J93: 0 | L93: 0 | M93: 0 | N93: 0 | O93: 0 | P93: 0 | Q93: 0 | S93: 0 | T93: 0 | U93: 0 | V93: 0 | W93: 0 | X93: 0
A94: ED_RAB33210_00003 | B94: DRAB1103 | C94: Straight line depreciation | E94: -43505.45396 | F94: -27322.90458 | G94: -41536.47307 | H94: -57264.33464 | I94: -71238.65017 | J94: -83395.17747 | L94: -43505.45396 | M94: -27322.90458 | N94: -41536.47307 | O94: -57264.33464 | P94: -71238.65017 | Q94: -83395.17747 | S94: 0 | T94: 0 | U94: 0 | V94: 0 | W94: 0 | X94: 0
B95: DRAB1104 | C95: Regulatory depreciation | E95: =SUM(E94+E93) -> -43505.45396 | F95: =SUM(F94+F93) -> -27322.90458 | G95: =SUM(G94+G93) -> -41536.47307 | H95: -57264.33464 | I95: -71238.65017 | J95: -83395.17747 | L95: =SUM(L94+L93) -> -43505.45396 | M95: -27322.90458 | N95: -41536.47307 | O95: -57264.33464 | P95: -71238.65017 | Q95: -83395.17747 | S95: =SUM(S94+S93) -> 0 | T95: 0 | U95: 0 | V95: 0 | W95: 0 | X95: 0
A96: ED_RAB33210_00005 | B96: DRAB1105 | C96: Actual additions (recognised in RAB) | E96: 97133.52555 | F96: 74481.64247 | G96: 80853.20785 | H96: 71696.77763 | I96: 70265.76717 | J96: 64540.51436 | L96: 97133.52555 | M96: 74481.64247 | N96: 80853.20785 | O96: 71696.77763 | P96: 70265.76717 | Q96: 64540.51436 | S96: 0 | T96: 0 | U96: 0 | V96: 0 | W96: 0 | X96: 0
A97: ED_RAB33210_00006 | B97: DRAB1106 | C97: Disposals | E97: -2602.484959 | F97: -3413.8 | G97: -2213.9 | H97: -1825.2 | I97: -1909.7 | J97: -3430.7 | L97: -2602.484959 | M97: -3413.8 | N97: -2213.9 | O97: -1825.2 | P97: -1909.7 | Q97: -3430.7 | S97: 0 | T97: 0 | U97: 0 | V97: 0 | W97: 0 | X97: 0
A98: ED_RAB33210_00007 | B98: DRAB1107 | C98: Closing value for “other” asset (short life) value | E98: =SUM(E92+E93+E94+E96+E97) -> 134164.8629 | F98: =SUM(F92+F93+F94+F96+F97) -> 177909.8008 | G98: =SUM(G92+G93+G94+G96+G97) -> 215012.6356 | H98: 227619.8786 | I98: 224737.2956 | J98: 202451.9325 | L98: =SUM(L92+L93+L94+L96+L97) -> 134164.8629 | M98: 177909.8008 | N98: 215012.6356 | O98: 227619.8786 | P98: 224737.2956 | Q98: 202451.9325 | S98: =SUM(S92+S93+S94+S96+S97) -> 0 | T98: 0 | U98: 0 | V98: 0 | W98: 0 | X98: 0
C100: TABE 3.3.3 TOTAL DISAGGREGATED RAB ASSET VALUES
A101: ED_RAB333_00001 | B101: DRAB1201 | C101: Distribution substations including transformers | E101: 553671.7519 | F101: 578702.7056 | G101: 630569.4303 | H101: 690222.7479 | I101: 747586.3703 | J101: 798856.2205 | L101: 624267.2493 | M101: 650247.4294 | N101: 702869.0749 | O101: 763278.8304 | P101: 821417.3822 | Q101: 873443.0285 | S101: 0 | T101: 0 | U101: 0 | V101: 0 | W101: 0 | X101: 0
A102: ED_RAB333_00002 | B102: DRAB1202 | C102: Underground distribution assets (cables, ducts etc) | E102: 866977.2571 | F102: 894776.7133 | G102: 949460.6982 | H102: 1014025.577 | I102: 1075693.528 | J102: 1129829.047 | L102: 981850.667 | M102: 1010823.466 | N102: 1066410.143 | O102: 1131870.225 | P102: 1194398.636 | Q102: 1249280.325 | S102: 0 | T102: 0 | U102: 0 | V102: 0 | W102: 0 | X102: 0
A103: ED_RAB333_00003 | B103: DRAB1203 | C103: Distribution substations including transformers | E103: 924218.3913 | F103: 928483.3954 | G103: 922425.8255 | H103: 912846.4179 | I103: 900924.3979 | J103: 885425.1018 | L103: 924218.3913 | M103: 928483.3954 | N103: 922425.8255 | O103: 912846.4179 | P103: 900924.3979 | Q103: 885425.1018 | S103: 0 | T103: 0 | U103: 0 | V103: 0 | W103: 0 | X103: 0
A104: ED_RAB333_00004 | B104: DRAB1204 | C104: Overhead assets 33kV and above (wires and towers / poles etc) | E104: 143983.5375 | F104: 145712.9033 | G104: 152138.735 | H104: 159727.6428 | I104: 166978.4154 | J104: 173314.2293 | L104: 143983.5375 | M104: 145712.9033 | N104: 152138.735 | O104: 159727.6428 | P104: 166978.4154 | Q104: 173314.2293 | S104: 0 | T104: 0 | U104: 0 | V104: 0 | W104: 0 | X104: 0
A105: ED_RAB333_00005 | B105: DRAB1205 | C105: Underground assets 33kV and above (cables, ducts etc) | E105: 24899.93671 | F105: 25199.00631 | G105: 26310.26392 | H105: 27622.65927 | I105: 28876.57886 | J105: 29972.26916 | L105: 24899.93671 | M105: 25199.00631 | N105: 26310.26392 | O105: 27622.65927 | P105: 28876.57886 | Q105: 29972.26916 | S105: 0 | T105: 0 | U105: 0 | V105: 0 | W105: 0 | X105: 0
A106: ED_RAB333_00006 | B106: DRAB1206 | C106: Zone substations | E106: 497379.1845 | F106: 500693.8595 | G106: 499244.3314 | H106: 495257.9592 | I106: 491048.9113 | J106: 486347.4198 | L106: 497379.1845 | M106: 500693.8595 | N106: 499244.3314 | O106: 495257.9592 | P106: 491048.9113 | Q106: 486347.4198 | S106: 0 | T106: 0 | U106: 0 | V106: 0 | W106: 0 | X106: 0
A107: ED_RAB333_00007 | B107: DRAB1207 | C107: Easements | E107: 4975.848023 | F107: 5262.065888 | G107: 5910.306436 | H107: 6567.040738 | I107: 7233.714849 | J107: 7912.218467 | L107: 4975.848023 | M107: 5262.065888 | N107: 5910.306436 | O107: 6567.040738 | P107: 7233.714849 | Q107: 7912.218467 | S107: 0 | T107: 0 | U107: 0 | V107: 0 | W107: 0 | X107: 0
A108: ED_RAB333_00008 | B108: DRAB1208 | C108: Meters | E108: 0 | F108: 0 | G108: 0 | H108: 0 | I108: 0 | J108: 0 | L108: 0 | M108: 0 | N108: 0 | O108: 0 | P108: 0 | Q108: 0 | S108: 81654.46746 | T108: 82486.41183 | U108: 77753.7289 | V108: 72834.43058 | W108: 67545.08734 | X108: 62357.60244
A109: ED_RAB333_00009 | B109: DRAB1209 | C109: Other assets with long lives (please specify) | E109: 422217.4429 | F109: 454537.7361 | G109: 502780.347 | H109: 530925.0142 | I109: 546774.7908 | J109: 555137.9695 | L109: 422217.4429 | M109: 454537.7361 | N109: 502780.347 | O109: 530925.0142 | P109: 546774.7908 | Q109: 555137.9695 | S109: 162.8421495 | T109: 147.0826126 | U109: 132.7190762 | V109: 118.3555398 | W109: 103.9920034 | X109: 89.62846702
A110: ED_RAB333_00010 | B110: DRAB1210 | C110: Other assets with short lives (please specify) | E110: 108652.0696 | F110: 156037.3319 | G110: 196461.2182 | H110: 221316.2571 | I110: 226178.5871 | J110: 213594.614 | L110: 108652.0696 | M110: 156037.3319 | N110: 196461.2182 | O110: 221316.2571 | P110: 226178.5871 | Q110: 213594.614 | S110: 0 | T110: 0 | U110: 0 | V110: 0 | W110: 0 | X110: 0
C112: Capital Contributions
A113: ED_RAB333_00011 | B113: DRAB13 | C113: Value of Capital Contributions or Contributed Assets | E113: 0 | F113: 0 | G113: 0 | H113: 0 | I113: 0 | J113: 0 | L113: -69607.269 | M113: -102206.2662 | N113: -102513.3817 | O113: -104284.8465 | P113: -109003.8612 | Q113: -114217.9616 | S113: 0 | T113: 0 | U113: 0 | V113: 0 | W113: 0 | X113: 0
C115: TABLE 3.3.4 - ASSET LIVES | E115: Forecast ( years ) | L115: Forecast ( years ) | S115: Forecast ( years )
C116: Table 3.3.4.1 - Asset Lives – estimated service life of new assets | E116: =CRCP_y5 -> 2014-15 | F116: =FRCP -> 2015-16 | G116: 2016-17 | H116: 2017-18 | I116: 2018-19 | J116: 2019-20 | L116: =CRCP_y5 -> 2014-15 | M116: =FRCP -> 2015-16 | N116: 2016-17 | O116: 2017-18 | P116: 2018-19 | Q116: 2019-20 | S116: =CRCP_y5 -> 2014-15 | T116: =FRCP -> 2015-16 | U116: 2016-17 | V116: 2017-18 | W116: 2018-19 | X116: 2019-20
A117: ED_RAB3341_00001 | B117: DRAB1401 | C117: Overhead network assets less than 33kV (wires and poles) | E117: 55 | F117: 55 | G117: 55 | H117: 55 | I117: 55 | J117: 55 | L117: 55 | M117: 55 | N117: 55 | O117: 55 | P117: 55 | Q117: 55 | S117: 0 | T117: 0 | U117: 0 | V117: 0 | W117: 0 | X117: 0
A118: ED_RAB3341_00002 | B118: DRAB1402 | C118: Underground network assets less than 33kV (cables) | E118: 55 | F118: 55 | G118: 55 | H118: 55 | I118: 55 | J118: 55 | L118: 55 | M118: 55 | N118: 55 | O118: 55 | P118: 55 | Q118: 55 | S118: 0 | T118: 0 | U118: 0 | V118: 0 | W118: 0 | X118: 0
A119: ED_RAB3341_00003 | B119: DRAB1403 | C119: Distribution substations including transformers | E119: 45 | F119: 45 | G119: 45 | H119: 45 | I119: 45 | J119: 45 | L119: 45 | M119: 45 | N119: 45 | O119: 45 | P119: 45 | Q119: 45 | S119: 0 | T119: 0 | U119: 0 | V119: 0 | W119: 0 | X119: 0
A120: ED_RAB3341_00004 | B120: DRAB1404 | C120: Overhead network assets 33kV and above (wires and towers / poles etc) | E120: 55 | F120: 55 | G120: 55 | H120: 55 | I120: 55 | J120: 55 | L120: 55 | M120: 55 | N120: 55 | O120: 55 | P120: 55 | Q120: 55 | S120: 0 | T120: 0 | U120: 0 | V120: 0 | W120: 0 | X120: 0
A121: ED_RAB3341_00005 | B121: DRAB1405 | C121: Underground network assets 33kV and above(cables, ducts etc) | E121: 55 | F121: 55 | G121: 55 | H121: 55 | I121: 55 | J121: 55 | L121: 55 | M121: 55 | N121: 55 | O121: 55 | P121: 55 | Q121: 55 | S121: 0 | T121: 0 | U121: 0 | V121: 0 | W121: 0 | X121: 0
A122: ED_RAB3341_00006 | B122: DRAB1406 | C122: Zone substations and transformers | E122: 45 | F122: 45 | G122: 45 | H122: 45 | I122: 45 | J122: 45 | L122: 45 | M122: 45 | N122: 45 | O122: 45 | P122: 45 | Q122: 45 | S122: 0 | T122: 0 | U122: 0 | V122: 0 | W122: 0 | X122: 0
A123: ED_RAB3341_00007 | B123: DRAB1407 | C123: Meters | E123: 0 | F123: 0 | G123: 0 | H123: 0 | I123: 0 | J123: 0 | L123: 0 | M123: 0 | N123: 0 | O123: 0 | P123: 0 | Q123: 0 | S123: 15 | T123: 15 | U123: 15 | V123: 15 | W123: 15 | X123: 15
A124: ED_RAB3341_00008 | B124: DRAB1408 | C124: “Other” assets with long lives | E124: 19.01191208 | F124: 19.83035987 | G124: 21.14950229 | H124: 22.08241176 | I124: 22.64161779 | J124: 23.46703245 | L124: 19.01191208 | M124: 19.83035987 | N124: 21.14950229 | O124: 22.08241176 | P124: 22.64161779 | Q124: 23.46703245 | S124: 15 | T124: 15 | U124: 15 | V124: 15 | W124: 15 | X124: 15
A125: ED_RAB3341_00009 | B125: DRAB1409 | C125: “Other” assets with short lives | E125: 5 | F125: 5 | G125: 5 | H125: 5 | I125: 5 | J125: 5 | L125: 5 | M125: 5 | N125: 5 | O125: 5 | P125: 5 | Q125: 5 | S125: 0 | T125: 0 | U125: 0 | V125: 0 | W125: 0 | X125: 0
C127: Table 3.3.4.2 - Asset Lives – estimated residual service life
A128: ED_RAB3342_00001 | B128: DRAB1501 | C128: Overhead network assets less than 33kV (wires and poles) | E128: 16.34539541 | F128: 16.90540888 | G128: 17.69111104 | H128: 18.38193986 | I128: 18.93822732 | J128: 20.09021845 | L128: 15.19437926 | M128: 17.23711706 | N128: 17.95846799 | O128: 18.59495851 | P128: 19.1066392 | Q128: 20.18375295 | S128: 0 | T128: 0 | U128: 0 | V128: 0 | W128: 0 | X128: 0
A129: ED_RAB3342_00002 | B129: DRAB1502 | C129: Underground network assets less than 33kV (cables) | E129: 14.51063081 | F129: 14.77655928 | G129: 15.24436543 | H129: 15.66249906 | I129: 15.99634278 | J129: 16.7059297 | L129: 13.60500755 | M129: 15.20924205 | N129: 15.6199639 | O129: 15.98437289 | P129: 16.26923483 | Q129: 16.92957572 | S129: 0 | T129: 0 | U129: 0 | V129: 0 | W129: 0 | X129: 0
A130: ED_RAB3342_00003 | B130: DRAB1503 | C130: Distribution substations including transformers | E130: 17.70915634 | F130: 19.09513872 | G130: 18.5708461 | H130: 18.04937776 | I130: 17.49161537 | J130: 17.15727263 | L130: 17.70915634 | M130: 19.09513872 | N130: 18.5708461 | O130: 18.04937776 | P130: 17.49161537 | Q130: 17.15727263 | S130: 0 | T130: 0 | U130: 0 | V130: 0 | W130: 0 | X130: 0
A131: ED_RAB3342_00004 | B131: DRAB1504 | C131: Overhead network assets 33kV and above (wires and towers / poles etc) | E131: 18.77286826 | F131: 20.85496648 | G131: 21.13147265 | H131: 21.36825323 | I131: 21.5299225 | J131: 22.2520153 | L131: 18.77286826 | M131: 20.85496648 | N131: 21.13147265 | O131: 21.36825323 | P131: 21.5299225 | Q131: 22.2520153 | S131: 0 | T131: 0 | U131: 0 | V131: 0 | W131: 0 | X131: 0
A132: ED_RAB3342_00005 | B132: DRAB1505 | C132: Underground network assets 33kV and above (cables, ducts etc) | E132: 18.77286826 | F132: 20.85496648 | G132: 21.13147265 | H132: 21.36825323 | I132: 21.5299225 | J132: 22.2520153 | L132: 18.77286826 | M132: 20.85496648 | N132: 21.13147265 | O132: 21.36825323 | P132: 21.5299225 | Q132: 22.2520153 | S132: 0 | T132: 0 | U132: 0 | V132: 0 | W132: 0 | X132: 0
A133: ED_RAB3342_00006 | B133: DRAB1506 | C133: Zone substations and transformers | E133: 17.67327299 | F133: 19.08859096 | G133: 18.56441411 | H133: 18.04305799 | I133: 17.48539559 | J133: 17.15105284 | L133: 17.67327299 | M133: 19.08859096 | N133: 18.56441411 | O133: 18.04305799 | P133: 17.48539559 | Q133: 17.15105284 | S133: 0 | T133: 0 | U133: 0 | V133: 0 | W133: 0 | X133: 0
A134: ED_RAB3342_00007 | B134: DRAB1507 | C134: Meters | E134: 0 | F134: 0 | G134: 0 | H134: 0 | I134: 0 | J134: 0 | L134: 0 | M134: 0 | N134: 0 | O134: 0 | P134: 0 | Q134: 0 | S134: 10.39235903 | T134: 9.325221728 | U134: 8.439730578 | V134: 7.620977288 | W134: 6.970030079 | X134: 6.4881804
A135: ED_RAB3342_00008 | B135: DRAB1508 | C135: “Other” assets with long lives | E135: 8.921390917 | F135: 11.23413855 | G135: 11.11125069 | H135: 10.73920806 | I135: 10.21452903 | J135: 10.35101568 | L135: 8.921390917 | M135: 11.23413855 | N135: 11.11125069 | O135: 10.73920806 | P135: 10.21452903 | Q135: 10.35101568 | S135: 10.74 | T135: 9.74 | U135: 8.74 | V135: 7.74 | W135: 6.74 | X135: 5.74
A136: ED_RAB3342_00009 | B136: DRAB1509 | C136: “Other” assets with short lives | E136: 4.607443938 | F136: 4.283218763 | G136: 3.754739088 | H136: 3.195173941 | I136: 2.694847621 | J136: 2.42762158 | L136: 4.607443938 | M136: 4.283218763 | N136: 3.754739088 | O136: 3.195173941 | P136: 2.694847621 | Q136: 2.42762158 | S136: 0 | T136: 0 | U136: 0 | V136: 0 | W136: 0 | X136: 0

Sheet 3.4 Operational data
C1: REGULATORY REPORTING STATEMENT
C2: =TradingName -> SA Power Networks
C3: =RCP_1to5 -> 2015-16 to 2019-20
C4: 3.4 OPERATIONAL DATA
E6: Standard control services
E7: Forecast
E8: =CRCP_y5 -> 2014-15 | F8: =FRCP -> 2015-16 | G8: 2016-17 | H8: 2017-18 | I8: 2018-19 | J8: 2019-20
D9: Unit
C10: TABLE 3.4.1 - ENERGY DELIVERY
A11: ED_OPD3410_00001 | B11: DOPED01 | C11: Total energy delivered | D11: GWh | E11: 10282.717 | F11: 10372.5 | G11: 10542.92152 | H11: 10543.55826 | I11: 10624.58184 | J11: 10705.16745
C14: Table 3.4.1.1 Energy grouping - delivery by chargeable quantity
A15: ED_OPD3411_00001 | B15: DOPED0201 | C15: Energy Delivery where time of use is not a determinant | D15: GWh | E15: 8703.717 | F15: 8966.5 | G15: 9103.92152 | H15: 9097.558264 | I15: 9166.581836 | J15: 9235.16745
A16: ED_OPD3411_00002 | B16: DOPED0202 | C16: Energy Delivery at On-peak times | D16: GWh | E16: 459 | F16: 390 | G16: 399 | H16: 467 | I16: 467 | J16: 467
A17: ED_OPD3411_00003 | B17: DOPED0203 | C17: Energy Delivery at Shoulder times | D17: GWh | E17: 0 | F17: 0 | G17: 0 | H17: 0 | I17: 0 | J17: 0
A18: ED_OPD3411_00004 | B18: DOPED0204 | C18: Energy Delivery at Off-peak times | D18: GWh | E18: 441 | F18: 338 | G18: 346 | H18: 282 | I18: 288 | J18: 294
A19: ED_OPD3411_00005 | B19: DOPED0205 | C19: Controlled load energy deliveries | D19: GWh | E19: 560 | F19: 560 | G19: 573 | H19: 576 | I19: 581 | J19: 586
A20: ED_OPD3411_00006 | B20: DOPED0206 | C20: Energy Delivery to unmetered supplies | D20: GWh | E20: 119 | F20: 118 | G20: 121 | H20: 121 | I20: 122 | J20: 123
C22: Table 3.4.1.2 Energy - received from TNSP and other DNSPs by time of receipt
A23: ED_OPD3412_00001 | B23: DOPED0301 | C23: Energy into DNSP network at On-peak times | D23: GWh | E23: 4658.928223 | F23: 4778.738741 | G23: 4804.545124 | H23: 4737.243313 | I23: 4707.190124 | J23: 4677.319281
A24: ED_OPD3412_00002 | B24: DOPED0302 | C24: Energy into DNSP network at Shoulder times | D24: GWh | E24: 0 | F24: 0 | G24: 0 | H24: 0 | I24: 0 | J24: 0
A25: ED_OPD3412_00003 | B25: DOPED0303 | C25: Energy into DNSP network at Off-peak times | D25: GWh | E25: 5541.071777 | F25: 5683.567787 | G25: 5714.260473 | H25: 5634.215418 | I25: 5598.471816 | J25: 5562.945085
A26: ED_OPD3412_00004 | B26: DOPED0304 | C26: Energy received from TNSP and other DNSPs not included in the above categories | D26: GWh | E26: 0 | F26: 0 | G26: 0 | H26: 0 | I26: 0 | J26: 0
C28: Table 3.4.1.3 Energy - received into DNSP system from embedded generation by time of receipt
A29: ED_OPD3413_00001 | B29: DOPED0401 | C29: Energy into DNSP network at On-peak times from non-residential embedded generation | D29: GWh | E29: 131.2886134 | F29: 131.2886134 | G29: 131.2886134 | H29: 131.2886134 | I29: 131.2886134 | J29: 131.2886134
A30: ED_OPD3413_00002 | B30: DOPED0402 | C30: Energy into DNSP network at Shoulder times from non-residential embedded generation | D30: GWh | E30: 0 | F30: 0 | G30: 0 | H30: 0 | I30: 0 | J30: 0
A31: ED_OPD3413_00003 | B31: DOPED0403 | C31: Energy into DNSP network at Off-peak times from non-residential embedded generation | D31: GWh | E31: 175.1113866 | F31: 175.1113866 | G31: 175.1113866 | H31: 175.1113866 | I31: 175.1113866 | J31: 175.1113866
A32: ED_OPD3413_00004 | B32: DOPED0404 | C32: Energy received from embedded generation not included in above categories from non-residential embedded generation | D32: GWh | E32: 0 | F32: 0 | G32: 0 | H32: 0 | I32: 0 | J32: 0
A33: ED_OPD3413_00005 | B33: DOPED0405 | C33: Energy into DNSP network at On-peak times from residential embedded generation | D33: GWh | E33: 368.543022 | F33: 409.0694396 | G33: 451.9398237 | H33: 495.7231773 | I33: 540.305794 | J33: 584.3101473
A34: ED_OPD3413_00006 | B34: DOPED0406 | C34: Energy into DNSP network at Shoulder times from residential embedded generation | D34: GWh | E34: 0 | F34: 0 | G34: 0 | H34: 0 | I34: 0 | J34: 0
A35: ED_OPD3413_00007 | B35: DOPED0407 | C35: Energy into DNSP network at Off-peak times from residential embedded generation | D35: GWh | E35: 184.416978 | F35: 204.6961829 | G35: 226.1482962 | H35: 248.0572547 | I35: 270.3661601 | J35: 292.3857057
A36: ED_OPD3413_00008 | B36: DOPED0408 | C36: Energy received from embedded generation not included in above categories from residential embedded generation | D36: GWh | E36: 0 | F36: 0 | G36: 0 | H36: 0 | I36: 0 | J36: 0
C38: Table 3.4.1.4 Energy grouping - customer type or class
A39: ED_OPD3414_00001 | B39: DOPED0501 | C39: Residential customers energy deliveries | D39: GWh | E39: 3603.717 | F39: 3760.5 | G39: 3848.92152 | H39: 3869.558264 | I39: 3904.581836 | J39: 3937.16745
A40: ED_OPD3414_00002 | B40: DOPED0502 | C40: Non residential customers not on demand tariffs energy deliveries | D40: GWh | E40: 1540 | F40: 1280 | G40: 1310 | H40: 1317 | I40: 1328 | J40: 1339
A41: ED_OPD3414_00003 | B41: DOPED0503 | C41: Non-residential low voltage demand tariff customers energy deliveries | D41: GWh | E41: 2995 | F41: 3211 | G41: 3286 | H41: 3304 | I41: 3331 | J41: 3360
A42: ED_OPD3414_00004 | B42: DOPED0504 | C42: Non-residential high voltage demand tariff customers energy deliveries | D42: GWh | E42: 2025 | F42: 2003 | G42: 1977 | H42: 1932 | I42: 1939 | J42: 1946
A43: ED_OPD3414_00005 | B43: DOPED0505 | C43: Other Customer Class Energy Deliveries | D43: GWh | E43: 119 | F43: 118 | G43: 121 | H43: 121 | I43: 122 | J43: 123
C45: TABLE 3.4.2 - CUSTOMER NUMBERS
C46: Table 3.4.2.1 Distribution customer numbers by customer type or class
A47: ED_OPD3421_00001 | B47: DOPCN0101 | C47: Residential customer numbers | D47: number | E47: 751463 | F47: 757850 | G47: 764292 | H47: 770788 | I47: 777340 | J47: 783947
A48: ED_OPD3421_00002 | B48: DOPCN0102 | C48: Non residential customers not on demand tariff customer numbers | D48: number | E48: 95300 | F48: 95300 | G48: 95300 | H48: 95300 | I48: 95300 | J48: 95300
A49: ED_OPD3421_00003 | B49: DOPCN0103 | C49: Low voltage demand tariff customer numbers | D49: number | E49: 4500 | F49: 4500 | G49: 4500 | H49: 4500 | I49: 4500 | J49: 4500
A50: ED_OPD3421_00004 | B50: DOPCN0104 | C50: High voltage demand tariff customer numbers | D50: number | E50: 228 | F50: 228 | G50: 228 | H50: 228 | I50: 228 | J50: 228
A51: ED_OPD3421_00005 | B51: DOPCN0105 | C51: Unmetered Customer Numbers | D51: number | E51: 1800 | F51: 1800 | G51: 1800 | H51: 1800 | I51: 1800 | J51: 1800
A52: ED_OPD3421_00006 | B52: DOPCN0106 | C52: Other Customer Numbers | D52: number | E52: 0 | F52: 0 | G52: 0 | H52: 0 | I52: 0 | J52: 0
B53: DOPCN01 | C53: Total customer numbers | D53: number | E53: 853291 | F53: 859678 | G53: 866120 | H53: 872616 | I53: 879168 | J53: 885775
C55: Table 3.4.2.2 Distribution customer numbers by location on the network
A56: ED_OPD3422_00001 | B56: DOPCN0201 | C56: Customers on CBD network | D56: number | E56: 5147 | F56: 5230 | G56: 5314 | H56: 5398 | I56: 5483 | J56: 5569
A57: ED_OPD3422_00002 | B57: DOPCN0202 | C57: Customers on Urban network | D57: number | E57: 591367 | F57: 596005 | G57: 600681 | H57: 605398 | I57: 610154 | J57: 614951
A58: ED_OPD3422_00003 | B58: DOPCN0203 | C58: Customers on Short rural network | D58: number | E58: 118103 | F58: 119623 | G58: 121156 | H58: 122702 | I58: 124262 | J58: 125834
A59: ED_OPD3422_00004 | B59: DOPCN0204 | C59: Customers on Long rural network | D59: number | E59: 138674 | F59: 138820 | G59: 138969 | H59: 139118 | I59: 139269 | J59: 139421
B60: DOPCN02 | C60: Total customer numbers | D60: number | E60: 853291 | F60: 859678 | G60: 866120 | H60: 872616 | I60: 879168 | J60: 885775
C62: Table 3.4.2.3 Distribution customer numbers by Aurora Feeder categories
A63: ED_OPD3423_00001 | C63: Critical Infrastructure | D63: number
A64: ED_OPD3423_00002 | C64: High Density Commercial | D64: number
A65: ED_OPD3423_00003 | C65: Urban | D65: number
A66: ED_OPD3423_00004 | C66: High Density Rural | D66: number
A67: ED_OPD3423_00005 | C67: Low Density Rural | D67: number
A68: ED_OPD3423_99999 | C68: Total customer numbers | D68: number
C70: Table 3.4.2.4 Unmetered Supply
A71: ED_OPD3424_00001 | C71: Number of unmetered connections reported in customer numbers in the economic benchmarking RIN | D71: number
A72: ED_OPD3424_00002 | C72: Unmetered connections not reported in customer numbers in the economic benchmarking RIN | D72: number
A73: ED_OPD3424_99999 | C73: Total unmetered connections | D73: number
C75: TABLE 3.4.3 - SYSTEM DEMAND
C76: Table 3.4.3.1 Annual system maximum demand characteristics at the zone substation level – MW measure
A77: ED_OPD3431_00001 | B77: DOPSD0101 | C77: Non-coincident Summated Raw System Annual Maximum Demand | D77: MW | E77: 0 | F77: 0 | G77: 0 | H77: 0 | I77: 0 | J77: 0
A78: ED_OPD3431_00002 | B78: DOPSD0102 | C78: Non–coincident Summated Weather Adjusted System Annual Maximum Demand 10% POE | D78: MW | E78: 2998.384113 | F78: 2996.618789 | G78: 2996.619622 | H78: 2980.972309 | I78: 2980.267392 | J78: 2980.005463
A79: ED_OPD3431_00003 | B79: DOPSD0103 | C79: Non–coincident Summated Weather Adjusted System Annual Maximum Demand 50% POE | D79: MW | E79: 2709.493792 | F79: 2706.821616 | G79: 2706.372434 | H79: 2690.397064 | I79: 2689.315329 | J79: 2688.675521
A80: ED_OPD3431_00004 | B80: DOPSD0104 | C80: Coincident Raw System Annual Maximum Demand | D80: MW | E80: 0 | F80: 0 | G80: 0 | H80: 0 | I80: 0 | J80: 0
A81: ED_OPD3431_00005 | B81: DOPSD0105 | C81: Coincident Weather Adjusted System Annual Maximum Demand 10% POE | D81: MW | E81: 2771.009216 | F81: 2771.889595 | G81: 2772.03452 | H81: 2759.109158 | I81: 2758.663707 | J81: 2758.713998
A82: ED_OPD3431_00006 | B82: DOPSD0106 | C82: Coincident Weather Adjusted System Annual Maximum Demand 50% POE | D82: MW | E82: 2500.7937 | F82: 2500.813081 | G82: 2500.503192 | H82: 2487.273498 | I82: 2486.469762 | J82: 2486.158563
C84: Table 3.4.3.2 Annual system maximum demand characteristics at the transmission connection point – MW measure
A85: ED_OPD3432_00001 | B85: DOPSD0107 | C85: Non-coincident Summated Raw System Annual Maximum Demand | D85: MW | E85: 0 | F85: 0 | G85: 0 | H85: 0 | I85: 0 | J85: 0
A86: ED_OPD3432_00002 | B86: DOPSD0108 | C86: Non–coincident Summated Weather Adjusted System Annual Maximum Demand 10% POE | D86: MW | E86: 2975.345822 | F86: 2937.313152 | G86: 2952.85761 | H86: 2939.089459 | I86: 2939.335801 | J86: 2939.577231
A87: ED_OPD3432_00003 | B87: DOPSD0109 | C87: Non–coincident Summated Weather Adjusted System Annual Maximum Demand 50% POE | D87: MW | E87: 2671.206526 | F87: 2633.195106 | G87: 2648.762709 | H87: 2635.01671 | I87: 2635.283537 | J87: 2635.545177
A88: ED_OPD3432_00004 | B88: DOPSD0110 | C88: Coincident Raw System Annual Maximum Demand | D88: MW | E88: 0 | F88: 0 | G88: 0 | H88: 0 | I88: 0 | J88: 0
A89: ED_OPD3432_00005 | B89: DOPSD0111 | C89: Coincident Weather Adjusted System Annual Maximum Demand 10% POE | D89: MW | E89: 2862.155016 | F89: 2826.374415 | G89: 2840.764727 | H89: 2827.400742 | I89: 2827.536084 | J89: 2827.670876
A90: ED_OPD3432_00006 | B90: DOPSD0112 | C90: Coincident Weather Adjusted System Annual Maximum Demand 50% POE | D90: MW | E90: 2591.046109 | F90: 2555.25121 | G90: 2569.62709 | H90: 2556.245318 | I90: 2556.364622 | J90: 2556.484064
C92: Table 3.4.3.3 Annual system maximum demand characteristics at the zone substation level – MVA measure
A93: ED_OPD3433_00001 | B93: DOPSD0201 | C93: Non–coincident Summated Raw System Annual Maximum Demand | D93: MVA | E93: 0 | F93: 0 | G93: 0 | H93: 0 | I93: 0 | J93: 0
A94: ED_OPD3433_00002 | B94: DOPSD0202 | C94: Non–coincident Summated Weather Adjusted System Annual Maximum Demand 10% POE | D94: MVA | E94: 3139.483006 | F94: 3137.672938 | G94: 3137.715863 | H94: 3120.926985 | I94: 3120.081458 | J94: 3119.842998
A95: ED_OPD3433_00003 | B95: DOPSD0203 | C95: Non–coincident Summated Weather Adjusted System Annual Maximum Demand 50% POE | D95: MVA | E95: 2837.35132 | F95: 2834.619817 | G95: 2834.203362 | H95: 2817.056194 | I95: 2815.82668 | J95: 2815.232706
A96: ED_OPD3433_00004 | B96: DOPSD0204 | C96: Coincident Raw System Annual Maximum Demand | D96: MVA | E96: 0 | F96: 0 | G96: 0 | H96: 0 | I96: 0 | J96: 0
A97: ED_OPD3433_00005 | B97: DOPSD0205 | C97: Coincident Weather Adjusted System Annual Maximum Demand 10% POE | D97: MVA | E97: 2898.876775 | F97: 2899.852434 | G97: 2900.059079 | H97: 2886.194585 | I97: 2885.644241 | J97: 2885.746848
A98: ED_OPD3433_00006 | B98: DOPSD0206 | C98: Coincident Weather Adjusted System Annual Maximum Demand 50% POE | D98: MVA | E98: 2616.36975 | F98: 2616.471181 | G98: 2616.212258 | H98: 2602.014153 | I98: 2601.098415 | J98: 2600.861402
C100: Table 3.4.3.4 Annual system maximum demand characteristics at the transmission connection point – MVA measure
A101: ED_OPD3434_00001 | B101: DOPSD0207 | C101: Non–coincident Summated Raw System Annual Maximum Demand | D101: MVA | E101: 0 | F101: 0 | G101: 0 | H101: 0 | I101: 0 | J101: 0
A102: ED_OPD3434_00002 | B102: DOPSD0208 | C102: Non–coincident Summated Weather Adjusted System Annual Maximum Demand 10% POE | D102: MVA | E102: 3020.606123 | F102: 2982.150717 | G102: 2998.720949 | H102: 2985.04184 | I102: 2985.297826 | J102: 2985.588638
A103: ED_OPD3434_00003 | B103: DOPSD0209 | C103: Non–coincident Summated Weather Adjusted System Annual Maximum Demand 50% POE | D103: MVA | E103: 2712.659867 | F103: 2674.214861 | G103: 2690.790434 | H103: 2677.125804 | I103: 2677.39044 | J103: 2677.690309
A104: ED_OPD3434_00004 | B104: DOPSD0210 | C104: Coincident Raw System Annual Maximum Demand | D104: MVA | E104: 0 | F104: 0 | G104: 0 | H104: 0 | I104: 0 | J104: 0
A105: ED_OPD3434_00005 | B105: DOPSD0211 | C105: Coincident Weather Adjusted System Annual Maximum Demand 10% POE | D105: MVA | E105: 2887.782122 | F105: 2854.748793 | G105: 2872.507013 | H105: 2862.004927 | I105: 2864.598034 | J105: 2867.622924
A106: ED_OPD3434_00006 | B106: DOPSD0212 | C106: Coincident Weather Adjusted System Annual Maximum Demand 50% POE | D106: MVA | E106: 2614.721931 | F106: 2581.487111 | G106: 2599.016563 | H106: 2588.274187 | I106: 2590.65366 | J106: 2593.439741
C108: Table 3.4.3.5 Power factor conversion between MVA and MW
A109: ED_OPD3435_00001 | B109: DOPSD0301 | C109: Average overall network power factor conversion between MVA and MW | D109: Factor | E109: 0.9850161528 | F109: 0.9849646882 | G109: 0.9847056995 | H109: 0.9846057833 | I109: 0.9846038729 | J109: 0.9845888324
A110: ED_OPD3435_00002 | B110: DOPSD0302 | C110: Average power factor conversion for low voltage distribution lines | D110: Factor | E110: 0.9365368839 | F110: 0.9365121809 | G110: 0.9364990252 | H110: 0.9365384401 | I110: 0.9365729156 | J110: 0.9365597264
A111: ED_OPD3435_00003 | B111: DOPSD0303 | C111: Average power factor conversion for 3.3 kV lines | D111: Factor | E111: 0.9491040829 | F111: 0.9495359736 | G111: 0.949915176 | H111: 0.950339094 | I111: 0.9507559973 | J111: 0.9511568083
A112: ED_OPD3435_00004 | B112: DOPSD0304 | C112: Average power factor conversion for 6.6 kV lines | D112: Factor | E112: 0.9289057066 | F112: 0.9289057066 | G112: 0.9289057066 | H112: 0.9289057066 | I112: 0.9289057066 | J112: 0.9289057066
A113: ED_OPD3435_00005 | B113: DOPSD0305 | C113: Average power factor conversion for 7.6 kV lines | D113: Factor | E113: 0.9566048905 | F113: 0.9565867488 | G113: 0.9565684626 | H113: 0.9566994735 | I113: 0.9567280149 | J113: 0.9567113857
A114: ED_OPD3435_00006 | B114: DOPSD0306 | C114: Average power factor conversion for 11 kV lines | D114: Factor | E114: 0.9335689178 | F114: 0.9337122565 | G114: 0.9338756709 | H114: 0.9340132221 | I114: 0.9341512 | J114: 0.9342973664
A115: ED_OPD3435_00007 | B115: DOPSD0307 | C115: Average power factor conversion for SWER lines | D115: Factor | E115: 0.9424146778 | F115: 0.9421598675 | G115: 0.9411548751 | H115: 0.9409117839 | I115: 0.9406814623 | J115: 0.940449007
A116: ED_OPD3435_00008 | B116: DOPSD0308 | C116: Average power factor conversion for 22 kV lines | D116: Factor | E116: 0 | F116: 0 | G116: 0 | H116: 0 | I116: 0 | J116: 0
A117: ED_OPD3435_00009 | B117: DOPSD0309 | C117: Average power factor conversion for 33 kV lines | D117: Factor | E117: 0.9466384869 | F117: 0.9464301335 | G117: 0.9454879373 | H117: 0.9452864992 | I117: 0.9450950235 | J117: 0.9449011541
A118: ED_OPD3435_00010 | B118: DOPSD0310 | C118: Average power factor conversion for 44 kV lines | D118: Factor | E118: 0 | F118: 0 | G118: 0 | H118: 0 | I118: 0 | J118: 0
A119: ED_OPD3435_00011 | B119: DOPSD0311 | C119: Average power factor conversion for 66 kV lines | D119: Factor | E119: 0.9909844809 | F119: 0.9910366333 | G119: 0.9910408712 | H119: 0.9909969348 | I119: 0.991016749 | J119: 0.9910226927
A120: ED_OPD3435_00012 | B120: DOPSD0312 | C120: Average power factor conversion for 110 kV lines | D120: Factor | E120: 0 | F120: 0 | G120: 0 | H120: 0 | I120: 0 | J120: 0
A121: ED_OPD3435_00013 | B121: DOPSD0313 | C121: Average power factor conversion for 132 kV lines | D121: Factor | E121: 0 | F121: 0 | G121: 0 | H121: 0 | I121: 0 | J121: 0
A122: ED_OPD3435_00013 | B122: DOPSD0314 | C122: Average power factor conversion for 220 kV lines | D122: Factor | E122: 0 | F122: 0 | G122: 0 | H122: 0 | I122: 0 | J122: 0
C124: Table 3.4.3.6 Demand supplied (for customers charged on this basis) – MW measure
A125: ED_OPD3436_00001 | B125: DOPSD0401 | C125: Summated Chargeable Contracted Maximum Demand | D125: MW | E125: 0 | F125: 0 | G125: 0 | H125: 0 | I125: 0 | J125: 0
A126: ED_OPD3436_00002 | B126: DOPSD0402 | C126: Summated Chargeable Measured Maximum Demand | D126: MW | E126: 0 | F126: 0 | G126: 0 | H126: 0 | I126: 0 | J126: 0
C127: Table 3.4.3.7 Demand supplied (for customers charged on this basis) – MVA measure
A128: ED_OPD3437_00001 | B128: DOPSD0403 | C128: Summated Chargeable Contracted Maximum Demand | D128: MVA | E128: 1886 | F128: 1790 | G128: 1719 | H128: 1726 | I128: 1739 | J128: 1749
A129: ED_OPD3437_00002 | B129: DOPSD0404 | C129: Summated Chargeable Measured Maximum Demand | D129: MVA | E129: 0 | F129: 0 | G129: 0 | H129: 0 | I129: 0 | J129: 0

Sheet 3.5 Physical assets
C1: REGULATORY REPORTING STATEMENT
C2: =TradingName -> SA Power Networks
C3: =RCP_1to5 -> 2015-16 to 2019-20
C4: 3.5 PHYSICAL ASSETS DATA
F7: Forecast
E8: =CRCP_y5 -> 2014-15 | F8: =FRCP -> 2015-16 | G8: 2016-17 | H8: 2017-18 | I8: 2018-19 | J8: 2019-20
D9: Unit
C10: TABLE 3.5.1 - NETWORK CAPACITIES VARIABLES
C11: Circuit length
C12: Table 3.5.1.1 Overhead network length of circuit at each voltage
A13: ED_PHA3511_00001 | B13: DPA0101 | C13: Overhead low voltage distribution | D13: km | E13: 18936.15907 | F13: 18915.34106 | G13: 18894.54593 | H13: 18873.77366 | I13: 18853.02423 | J13: 18832.29761
A14: ED_PHA3511_00002 | B14: DPA0102 | C14: Overhead 2.2 kV | D14: km | E14: 0 | F14: 0 | G14: 0 | H14: 0 | I14: 0 | J14: 0
A15: ED_PHA3511_00003 | B15: DPA0103 | C15: Overhead 7.6 kV | D15: km | E15: 287.0817706 | F15: 287.8703327 | G15: 288.661061 | H15: 289.4539612 | I15: 290.2490393 | J15: 291.0463014
A16: ED_PHA3511_00004 | B16: DPA0104 | C16: Overhead 11 kV | D16: km | E16: 17450.40284 | F16: 17463.37245 | G16: 17476.3517 | H16: 17489.34059 | I16: 17502.33914 | J16: 17515.34735
A17: ED_PHA3511_00005 | B17: DPA0105 | C17: Overhead SWER | D17: km | E17: 29112.33078 | F17: 29131.6744 | G17: 29151.03087 | H17: 29170.4002 | I17: 29189.78241 | J17: 29209.17749
A18: ED_PHA3511_00006 | B18: DPA0106 | C18: Overhead 22 kV | D18: km | E18: 0 | F18: 0 | G18: 0 | H18: 0 | I18: 0 | J18: 0
A19: ED_PHA3511_00007 | B19: DPA0107 | C19: Overhead 33 kV | D19: km | E19: 3966 | F19: 3981 | G19: 3996 | H19: 4011 | I19: 4026 | J19: 4041
A20: ED_PHA3511_00008 | B20: DPA0108 | C20: Overhead 44 kV | D20: km | E20: 0 | F20: 0 | G20: 0 | H20: 0 | I20: 0 | J20: 0
A21: ED_PHA3511_00009 | B21: DPA0109 | C21: Overhead 66 kV | D21: km | E21: 1437 | F21: 1449 | G21: 1451.75 | H21: 1456.75 | I21: 1483.25 | J21: 1483.25
A22: ED_PHA3511_00010 | B22: DPA0110 | C22: Overhead 132 kV | D22: km | E22: 0 | F22: 0 | G22: 0 | H22: 0 | I22: 0 | J22: 0
A23: ED_PHA3511_00011 | B23: DPA0111 | C23: Overhead 6.6kv | D23: km | E23: 0 | F23: 0 | G23: 0 | H23: 0 | I23: 0 | J23: 0
A24: ED_PHA3511_00012 | B24: DPA0112 | C24: Overhead 110kV | D24: km | E24: 0 | F24: 0 | G24: 0 | H24: 0 | I24: 0 | J24: 0
A25: ED_PHA3511_00013 | B25: DPA0113 | C25: Overhead 220kV | D25: km | E25: 0 | F25: 0 | G25: 0 | H25: 0 | I25: 0 | J25: 0
A26: ED_PHA3511_00014 | B26: DPA0114 | C26: Other | D26: km | E26: 0 | F26: 0 | G26: 0 | H26: 0 | I26: 0 | J26: 0
B27: DPA01 | C27: Total overhead circuit km | D27: km | E27: =SUM(E13:E26) -> 71188.97446 | F27: 71228.25823 | G27: 71258.33955 | H27: 71290.71842 | I27: 71344.64482 | J27: 71372.11876
C29: Table 3.5.1.2 Underground network circuit length at each voltage
A30: ED_PHA3512_00001 | B30: DPA0201 | C30: Underground low voltage distribution | D30: km | E30: 13163.33473 | F30: 13508.48844 | G30: 13862.69237 | H30: 14226.18383 | I30: 14599.20634 | J30: 14982.00981
A31: ED_PHA3512_00002 | B31: DPA0202 | C31: Underground 5 kV | D31: km | E31: 0 | F31: 0 | G31: 0 | H31: 0 | I31: 0 | J31: 0
A32: ED_PHA3512_00003 | B32: DPA0203 | C32: Underground 6.6 Kv | D32: km | E32: 0 | F32: 0 | G32: 0 | H32: 0 | I32: 0 | J32: 0
A33: ED_PHA3512_00004 | B33: DPA0204 | C33: Underground 7.6 kV | D33: km | E33: 112.4539616 | F33: 115.3496332 | G33: 118.319868 | H33: 121.3665857 | I33: 124.491756 | J33: 127.6973989
A34: ED_PHA3512_00005 | B34: DPA0205 | C34: Underground 11 kV | D34: km | E34: 3872.157888 | F34: 3983.770477 | G34: 4098.60023 | H34: 4216.739881 | I34: 4338.284836 | J34: 4463.33325
A35: ED_PHA3512_00006 | B35: DPA0206 | C35: Underground SWER | D35: km | E35: 60.6032484 | F35: 62.250063 | G35: 63.94162765 | H35: 65.67915837 | I35: 67.46390423 | J35: 69.29714825
A36: ED_PHA3512_00007 | B36: DPA0207 | C36: Underground 22 kV | D36: km | E36: 0 | F36: 0 | G36: 0 | H36: 0 | I36: 0 | J36: 0
A37: ED_PHA3512_00008 | B37: DPA0208 | C37: Underground 33 kV | D37: km | E37: 120 | F37: 124 | G37: 128 | H37: 132 | I37: 136 | J37: 140
A38: ED_PHA3512_00009 | B38: DPA0209 | C38: Underground 66 kV | D38: km | E38: 53.7 | F38: 55.7 | G38: 56.7 | H38: 56.7 | I38: 56.7 | J38: 56.7
A39: ED_PHA3512_00010 | B39: DPA0210 | C39: Underground 110 kV | D39: km | E39: 0 | F39: 0 | G39: 0 | H39: 0 | I39: 0 | J39: 0
A40: ED_PHA3512_00010 | B40: DPA0211 | C40: Underground 132 kV | D40: km | E40: 0 | F40: 0 | G40: 0 | H40: 0 | I40: 0 | J40: 0
A41: ED_PHA3512_00011 | B41: DPA0212 | C41: Other | D41: km | E41: 0 | F41: 0 | G41: 0 | H41: 0 | I41: 0 | J41: 0
B42: DPA02 | C42: Total underground circuit km | D42: km | E42: =SUM(E30:E41) -> 17382.24983 | F42: 17849.55861 | G42: 18328.2541 | H42: 18818.66945 | I42: 19322.14683 | J42: 19839.0376
C44: Circuit Capacity MVA
C45: Table 3.5.1.3 Estimated overhead network weighted average MVA capacity by voltage class
A46: ED_PHA3513_00001 | B46: DPA0301 | C46: Overhead low voltage distribution | D46: MVA | E46: 0.1663232888 | F46: 0.1663232888 | G46: 0.1663232888 | H46: 0.1663232888 | I46: 0.1663232888 | J46: 0.1663232888
A47: ED_PHA3513_00002 | B47: DPA0302 | C47: Overhead 6.6 kV | D47: MVA | E47: 0 | F47: 0 | G47: 0 | H47: 0 | I47: 0 | J47: 0
A48: ED_PHA3513_00003 | B48: DPA0303 | C48: Overhead 7.6 kV | D48: MVA | E48: 3.310972637 | F48: 3.318002656 | G48: 3.324970106 | H48: 3.33187582 | I48: 3.338720614 | J48: 3.34550529
A49: ED_PHA3513_00004 | B49: DPA0304 | C49: Overhead 11 kV | D49: MVA | E49: 4.051342937 | F49: 4.055774064 | G49: 4.060192194 | H49: 4.064597385 | I49: 4.068989693 | J49: 4.073369176
A50: ED_PHA3513_00005 | B50: DPA0305 | C50: Overhead SWER | D50: MVA | E50: 0.2 | F50: 0.2 | G50: 0.2 | H50: 0.2 | I50: 0.2 | J50: 0.2
A51: ED_PHA3513_00006 | B51: DPA0306 | C51: Overhead 22 kV | D51: MVA | E51: 0 | F51: 0 | G51: 0 | H51: 0 | I51: 0 | J51: 0
A52: ED_PHA3513_00007 | B52: DPA0307 | C52: Overhead 33 kV | D52: MVA | E52: 9.793848823 | F52: 9.793848823 | G52: 9.820737278 | H52: 10.16196769 | I52: 10.1895879 | J52: 11.05291731
A53: ED_PHA3513_00008 | B53: DPA0308 | C53: Overhead 44 kV | D53: MVA | E53: 0 | F53: 0 | G53: 0 | H53: 0 | I53: 0 | J53: 0
A54: ED_PHA3513_00009 | B54: DPA0309 | C54: Overhead 66 kV | D54: MVA | E54: 58.8167401 | F54: 58.8167401 | G54: 59.84457488 | H54: 60.09009807 | I54: 60.35211996 | J54: 60.70651654
A55: ED_PHA3513_00010 | B55: DPA0310 | C55: Overhead 110 kV | D55: MVA | E55: 0 | F55: 0 | G55: 0 | H55: 0 | I55: 0 | J55: 0
A56: ED_PHA3513_00011 | B56: DPA0311 | C56: Overhead 132 kV | D56: MVA | E56: 0 | F56: 0 | G56: 0 | H56: 0 | I56: 0 | J56: 0
A57: ED_PHA3513_00012 | B57: DPA0312 | C57: Overhead 220 kV | D57: MVA | E57: 0 | F57: 0 | G57: 0 | H57: 0 | I57: 0 | J57: 0
A58: ED_PHA3513_00013 | B58: DPA0313 | C58: Other | D58: MVA | E58: 0 | F58: 0 | G58: 0 | H58: 0 | I58: 0 | J58: 0
C60: Table 3.5.1.4 Estimated underground network weighted average MVA capacity by voltage class
A61: ED_PHA3514_00001 | B61: DPA0401 | C61: Underground low voltage distribution | D61: MVA | E61: 0.09567262463 | F61: 0.09567262463 | G61: 0.09567262463 | H61: 0.09567262463 | I61: 0.09567262463 | J61: 0.09567262463
A62: ED_PHA3514_00002 | B62: DPA0402 | C62: Underground 5 kV | D62: MVA | E62: 0 | F62: 0 | G62: 0 | H62: 0 | I62: 0 | J62: 0
A63: ED_PHA3514_00003 | B63: DPA0403 | C63: Underground 6.6 kV | D63: MVA | E63: 0 | F63: 0 | G63: 0 | H63: 0 | I63: 0 | J63: 0
A64: ED_PHA3514_00004 | B64: DPA0404 | C64: Underground 7.6 kV | D64: MVA | E64: 3.23409622 | F64: 3.238086855 | G64: 3.241910139 | H64: 3.245576382 | I64: 3.249095067 | J64: 3.252474925
A65: ED_PHA3514_00005 | B65: DPA0405 | C65: Underground 11 kV | D65: MVA | E65: 4.739635208 | F65: 4.746464894 | G65: 4.752866277 | H65: 4.758878421 | I65: 4.764535782 | J65: 4.769868863
A66: ED_PHA3514_00006 | B66: DPA0406 | C66: Underground SWER | D66: MVA | E66: 0.2 | F66: 0.2 | G66: 0.2 | H66: 0.2 | I66: 0.2 | J66: 0.2
A67: ED_PHA3514_00007 | B67: DPA0407 | C67: Underground 12.7 kV | D67: MVA | E67: 0 | F67: 0 | G67: 0 | H67: 0 | I67: 0 | J67: 0
A68: ED_PHA3514_00008 | B68: DPA0408 | C68: Underground 22 kV | D68: MVA | E68: 0 | F68: 0 | G68: 0 | H68: 0 | I68: 0 | J68: 0
A69: ED_PHA3514_00009 | B69: DPA0409 | C69: Underground 33 kV | D69: MVA | E69: 13.56296154 | F69: 13.56296154 | G69: 13.56296154 | H69: 13.56296154 | I69: 13.56296154 | J69: 13.56296154
A70: ED_PHA3514_00010 | B70: DPA0410 | C70: Underground 66 kV | D70: MVA | E70: 125.9943067 | F70: 125.9943067 | G70: 125.9943067 | H70: 126.2136267 | I70: 126.2136267 | J70: 126.2136267
A71: ED_PHA3514_00011 | B71: DPA0411 | C71: Underground 110 kV | D71: MVA | E71: 0 | F71: 0 | G71: 0 | H71: 0 | I71: 0 | J71: 0
A72: ED_PHA3514_00011 | B72: DPA0412 | C72: Underground 132 kV | D72: MVA | E72: 0 | F72: 0 | G72: 0 | H72: 0 | I72: 0 | J72: 0
A73: ED_PHA3514_00012 | B73: DPA0413 | C73: Other | D73: MVA | E73: 0 | F73: 0 | G73: 0 | H73: 0 | I73: 0 | J73: 0
C75: TABLE 3.5.2 - TRANSFORMER CAPACITIES VARIABLES
C76: Table 3.5.2.1 Distribution transformer total installed capacity
A77: ED_PHA3521_00001 | B77: DPA0501 | C77: Distribution transformer capacity owned by utility | D77: MVA | E77: 8955.26 | F77: 9252.53 | G77: 9555.3 | H77: 9855.37 | I77: 10167.44 | J77: 10489.51
A78: ED_PHA3521_00002 | B78: DPA0502 | C78: Distribution transformer capacity owned by High Voltage Customers | D78: MVA | E78: 648 | F78: 612 | G78: 588 | H78: 584 | I78: 589 | J78: 592
A79: ED_PHA3521_00003 | B79: DPA0503 | C79: Cold spare capacity included in DPA0501 | D79: MVA | E79: 140 | F79: 140 | G79: 140 | H79: 140 | I79: 140 | J79: 140
C81: Table 3.5.2.2 Zone substation transformer capacity
A82: ED_PHA3522_00001 | B82: DPA0601 | C82: Total installed capacity for first step transformation where there are two steps to reach distribution voltage | D82: MVA | E82: 357.9 | F82: 377.6 | G82: 377.6 | H82: 377.6 | I82: 377.6 | J82: 377.6
A83: ED_PHA3522_00002 | B83: DPA0602 | C83: Total installed capacity for second step transformation where there are two steps to reach distribution voltage | D83: MVA | E83: 125.515 | F83: 125.515 | G83: 128.015 | H83: 128.015 | I83: 130.015 | J83: 130.015
A84: ED_PHA3522_00003 | B84: DPA0603 | C84: Total zone substation transformer capacity where there is only a single step transformation to reach distribution voltage | D84: MVA | E84: 4672.225 | F84: 4722.575 | G84: 4746.675 | H84: 4769.175 | I84: 4823.975 | J84: 4830.525
A85: ED_PHA3522_00004 | B85: DPA0604 | C85: Total zone substation transformer capacity | D85: MVA | E85: 5680.09 | F85: 5750.14 | G85: 5776.74 | H85: 5799.24 | I85: 5856.04 | J85: 5862.59
A86: ED_PHA3522_00005 | B86: DPA0605 | C86: Cold spare capacity of zone substation transformers included in DPA0604 | D86: MVA | E86: 524.45 | F86: 524.45 | G86: 524.45 | H86: 524.45 | I86: 524.45 | J86: 524.45
C88: Table 3.5.2.3 Distribution - other transformer capacity
A89: ED_PHA3523_00001 | C89: Distribution other - transformer capacity owned by utility | D89: MVA
C91: TABLE 3.5.3 - PUBLIC LIGHTING
A92: ED_PHA353_00001 | B92: DPA0701 | C92: Public lighting luminaires | D92: Number
A93: ED_PHA353_00002 | B93: DPA0702 | C93: Public lighting poles | D93: Number
A94: ED_PHA353_00003 | B94: DPA0703 | C94: Public lighting columns (if relevant) | D94: Number

Sheet 3.6 Quality of service
C1: REGULATORY REPORTING STATEMENT
C2: =TradingName -> SA Power Networks
C3: =RCP_1to5 -> 2015-16 to 2019-20
C4: 3.6 QUALITY OF SERVICE DATA
F7: Forecast
E8: =CRCP_y5 -> 2014-15 | F8: =FRCP -> 2015-16 | G8: 2016-17 | H8: 2017-18 | I8: 2018-19 | J8: 2019-20
D9: Unit
C10: TABLE 3.6.1 - RELIABILITY
C11: Table 3.6.1.1 Inclusive of MEDs
A12: ED_QOS3611_00001 | C12: Whole of network unplanned SAIDI | D12: minutes/customer
A13: ED_QOS3611_00002 | C13: Whole of network unplanned SAIDI excluding excluded outages | D13: minutes/customer
A14: ED_QOS3611_00003 | C14: Whole of network unplanned SAIFI | D14: interruptions/customer
A15: ED_QOS3611_00004 | C15: Whole of network unplanned SAIFI excluding excluded outages | D15: interruptions/customer
C16: Table 3.6.1.2 Exclusive of MEDs
A17: ED_QOS3612_00001 | C17: Whole of network unplanned SAIDI | D17: minutes/customer
A18: ED_QOS3612_00002 | C18: Whole of network unplanned SAIDI excluding excluded outages | D18: minutes/customer
A19: ED_QOS3612_00003 | C19: Whole of network unplanned SAIFI | D19: interruptions/customer
A20: ED_QOS3612_00004 | C20: Whole of network unplanned SAIFI excluding excluded outages | D20: interruptions/customer
C22: TABLE 3.6.2 - ENERGY NOT SUPPLIED
A23: ED_QOS362_00001 | B23: DQS0201 | C23: Energy Not Supplied (planned) | D23: GWh | E23: 1.365 | F23: 1.377 | G23: 1.399 | H23: 1.399 | I23: 1.41 | J23: 1.421
A24: ED_QOS362_00002 | B24: DQS0202 | C24: Energy Not Supplied (unplanned) | D24: GWh | E24: 4.08 | F24: 4.116 | G24: 4.183 | H24: 4.184 | I24: 4.216 | J24: 4.248
B25: DQS02 | C25: Total | D25: GWh | E25: =SUM(E23:E24) -> 5.445 | F25: 5.493 | G25: 5.582 | H25: 5.583 | I25: 5.626 | J25: 5.669
C27: TABLE 3.6.3 - SYSTEM LOSSES
A28: ED_QOS363_00001 | B28: DQS03 | C28: System losses | D28: % | E28: 0.07022409913 | F28: 0.08873875056 | G28: 0.08348671432 | H28: 0.07687871134 | I28: 0.06987399559 | J28: 0.06287053503
C30: TABLE 3.6.4 - CAPACITY UTILISATION
A31: ED_QOS364_00001 | C31: Overall utilisation | D31: % | E31: 0.55272 | F31: 0.54567 | G31: 0.54316 | H31: 0.53816 | I31: 0.5328 | J31: 0.53216

Sheet 3.7 Operating Environment
C1: REGULATORY REPORTING STATEMENT
C2: =TradingName -> SA Power Networks
C3: =RCP_1to5 -> 2015-16 to 2019-20
C4: 3.7 OPERATING ENVIRONMENT FACTORS
F7: Forecast
E8: =CRCP_y5 -> 2014-15 | F8: =FRCP -> 2015-16 | G8: 2016-17 | H8: 2017-18 | I8: 2018-19 | J8: 2019-20
D9: Unit
B10: DOEF01 | C10: TABLE 3.7.1 - DENSITY FACTORS
A11: ED_OEF371_00001 | B11: DOEF0101 | C11: Customer density | D11: Customer / km | E11: 10.32299945 | F11: 10.3419758 | G11: 10.36085309 | H11: 10.37843966 | I11: 10.39243116 | J11: 10.40820626
A12: ED_OEF371_00002 | B12: DOEF0102 | C12: Energy density | D12: MWh/customer | E12: 12.051 | F12: 12.066 | G12: 12.173 | H12: 12.083 | I12: 12.085 | J12: 12.086
A13: ED_OEF371_00003 | B13: DOEF0103 | C13: Demand density | D13: kVA / customer | E13: 3.679264173 | F13: 3.649823466 | G13: 3.622726485 | H13: 3.576518177 | I13: 3.548902437 | J13: 3.522161947
B15: DOEF02 | C15: TABLE 3.7.2 - TERRAIN FACTORS
A16: ED_OEF372_00001 | B16: DOEF0201 | C16: Rural proportion | D16: % | E16: 0.736751558 | F16: 0.736751558 | G16: 0.736751558 | H16: 0.736751558 | I16: 0.736751558 | J16: 0.736751558
A17: ED_OEF372_00002 | B17: DOEF0202 | C17: Urban and CBD vegetation maintenance spans | D17: Number of spans | E17: 24859 | F17: 24755 | G17: 24118 | H17: 23482 | I17: 22845 | J17: 22209
A18: ED_OEF372_00003 | B18: DOEF0203 | C18: Rural vegetation maintenance spans | D18: Number of spans | E18: 69141 | F18: 67375 | G18: 65392 | H18: 63408 | I18: 61425 | J18: 59441
A19: ED_OEF372_00004 | B19: DOEF0204 | C19: Total vegetation maintenance spans | D19: Number of spans | E19: 94000 | F19: 92130 | G19: 89510 | H19: 86890 | I19: 84270 | J19: 81650
A20: ED_OEF372_00005 | B20: DOEF0205 | C20: Total number of spans | D20: Number of spans | E20: 744857 | F20: 744841 | G20: 744745 | H20: 744675 | I20: 744832 | J20: 744714
A21: ED_OEF372_00006 | B21: DOEF0206 | C21: Average urban and CBD vegetation maintenance span cycle | D21: Years | E21: 1.709839301 | F21: 1.709839301 | G21: 1.709839301 | H21: 1.709839301 | I21: 1.709839301 | J21: 1.709839301
A22: ED_OEF372_00007 | B22: DOEF0207 | C22: Average rural vegetation maintenance span cycle | D22: Years | E22: 1.055683641 | F22: 1.055683641 | G22: 1.055683641 | H22: 1.055683641 | I22: 1.055683641 | J22: 1.055683641
A23: ED_OEF372_00008 | B23: DOEF0208 | C23: Average number of trees per urban and CBD vegetation maintenance span | D23: Trees | E23: 4.321 | F23: 4.321 | G23: 4.321 | H23: 4.321 | I23: 4.321 | J23: 4.321
A24: ED_OEF372_00009 | B24: DOEF0209 | C24: Average number of trees per rural vegetation maintenance span | D24: Trees | E24: 9.555 | F24: 9.443 | G24: 9.443 | H24: 9.443 | I24: 9.443 | J24: 9.443
A25: ED_OEF372_00010 | B25: DOEF0210 | C25: Average number of defects per urban and CBD vegetation maintenance span | D25: Defects | E25: 2 | F25: 2 | G25: 2 | H25: 2 | I25: 2 | J25: 2
A26: ED_OEF372_00011 | B26: DOEF0211 | C26: Average number of defects per rural vegetation maintenance span | D26: Defects | E26: 1 | F26: 1 | G26: 1 | H26: 1 | I26: 1 | J26: 1
A27: ED_OEF372_00012 | B27: DOEF0212 | C27: Tropical proportion | D27: Spans | E27: 0 | F27: 0 | G27: 0 | H27: 0 | I27: 0 | J27: 0
A28: ED_OEF372_00013 | B28: DOEF0213 | C28: Standard vehicle access | D28: km | E28: 5786.145 | F28: 5818.759 | G28: 5851.68 | H28: 5885.578 | I28: 5921.787 | J28: 5957.246
A29: ED_OEF372_00014 | B29: DOEF0214 | C29: Bushfire risk | D29: Spans | E29: 424631 | F29: 424622 | G29: 424567 | H29: 424527 | I29: 424617 | J29: 424549
B31: DOEF03 | C31: TABLE 3.7.3 - SERVICE AREA FACTORS
A32: ED_OEF373_00001 | B32: DOEF0301 | C32: Route Line length | D32: km | E32: 82659.212 | F32: 83125.122 | G32: 83595.433 | H32: 84079.691 | I32: 84596.952 | J32: 85103.521

Sheet 4.2 Metering
C1: REGULATORY REPORTING STATEMENT
C2: =TradingName -> SA Power Networks
C3: =RCP_1to5 -> 2015-16 to 2019-20
C4: 4.2 METERING
C7: TABLE 4.2.1 - METERING DESCRIPTOR METRIC | L7: TABLE 4.2.2 - COST METRICS
C8: <<<GROUP-ROW>>>
E10: VOLUMES | N10: EXPENDITURE ($000's) | W10: VOLUMES
C11: ASSET CATEGORY | D11: ASSET SUBCATEGORY | E11: =CRCP_y5 -> 2014-15 | F11: =FRCP -> 2015-16 | G11: 2016-17 | H11: 2017-18 | I11: 2018-19 | J11: 2019-20 | L11: SERVICE SUBCATEGORY | M11: METER TYPE | N11: =CRCP_y5 -> 2014-15 | O11: =FRCP -> 2015-16 | P11: 2016-17 | Q11: 2017-18 | R11: 2018-19 | S11: 2019-20 | U11: SERVICE SUBCATEGORY | V11: METER TYPE | W11: =CRCP_y5 -> 2014-15 | X11: =FRCP -> 2015-16 | Y11: 2016-17 | Z11: 2017-18 | AA11: 2018-19 | AB11: 2019-20
A12: ED_MET421_00001 | C12: Meter Type 4 | D12: Single phase meter population | E12: 0 | F12: 0 | G12: 0 | H12: 0 | I12: 0 | J12: 0 | K12: ED_MET422_00001 | L12: Meter purchase | M12: Meter Type 4 | U12: Meter purchase | V12: Meter Type 4
A13: ED_MET421_00002 | D13: Multi phase meter population | E13: 0.589 | F13: 0.5732799715 | G13: 0.512283108 | H13: 0.4690382865 | I13: 0.4248225094 | J13: 0.4248225094 | K13: ED_MET422_00002 | M13: Meter Type 5 | V13: Meter Type 5
A14: ED_MET421_00003 | D14: Current transformer connected meter population | E14: 0.511 | F14: 0.4973617409 | G14: 0.4444425606 | H14: 0.4069245575 | I14: 0.3685641804 | J14: 0.3685641804 | K14: ED_MET422_00003 | M14: Meter Type 6 | V14: Meter Type 6
A15: ED_MET421_00004 | D15: Direct connect meter population | E15: 0.078 | F15: 0.07591823051 | G15: 0.06784054742 | H15: 0.06211372894 | I15: 0.05625832891 | J15: 0.05625832891 | K15: ED_MET422_00004 | L15: Meter testing | M15: Meter Type 4 | N15: 8.32741658 | O15: 52.26097281 | P15: 52.16768828 | Q15: 48.39637747 | R15: 48.40039198 | S15: 47.57929102 | U15: Meter testing | V15: Meter Type 4 | W15: 0.03696392103 | X15: 0.08698008052 | Y15: 0.09157446639 | Z15: 0.09616885227 | AA15: 0.1007632381 | AB15: 0.105357624
A16: ED_MET421_00005 | C16: Meter Type 5 | D16: Single phase meter population | E16: 0.134 | F16: 0.1304236268 | G16: 0.1165465815 | H16: 0.106708201 | I16: 0.09664892403 | J16: 0.09664892403 | K16: ED_MET422_00005 | M16: Meter Type 5 | N16: 0 | O16: 724.9997687 | P16: 727.2874135 | Q16: 689.534316 | R16: 702.4380843 | S16: 706.0918709 | V16: Meter Type 5 | W16: 0 | X16: 1.480946903 | Y16: 2.519250511 | Z16: 2.278554118 | AA16: 2.281857726 | AB16: 2.372161334
A17: ED_MET421_00006 | D17: Multi phase meter population | E17: 5.233 | F17: 5.093334619 | G17: 4.551404931 | H17: 4.167194148 | I17: 3.774356862 | J17: 3.774356862 | K17: ED_MET422_00006 | M17: Meter Type 6 | N17: 255.3971743 | O17: 321.0749913 | P17: 320.6358152 | Q17: 298.0107087 | R17: 298.5158089 | S17: 294.0337972 | V17: Meter Type 6 | W17: 1.9 | X17: 2.008399423 | Y17: 2.011896179 | Z17: 1.865392934 | AA17: 1.71888969 | AB17: 1.622386446
A18: ED_MET421_00007 | D18: Current transformer connected meter population | E18: 4.865 | F18: 4.735156301 | G18: 4.231336707 | H18: 3.87414476 | I18: 3.508932951 | J18: 3.508932951 | K18: ED_MET422_00007 | L18: Meter investigation | M18: Meter Type 4 | N18: 2.650662322 | O18: 3.530146883 | P18: 3.523845659 | Q18: 3.269099519 | R18: 3.269370693 | S18: 3.213906609 | U18: Meter investigation | V18: Meter Type 4 | W18: 0.07700816882 | X18: 0.0785483322 | Y18: 0.08008849558 | Z18: 0.08162865895 | AA18: 0.08316882233 | AB18: 0.0847089857
A19: ED_MET421_00008 | D19: Direct connect meter population | E19: 0.502 | F19: 0.4886019451 | G19: 0.4366148052 | H19: 0.3997575888 | I19: 0.3620728348 | J19: 0.3620728348 | K19: ED_MET422_00008 | M19: Meter Type 5 | N19: 0 | O19: 107.4146733 | P19: 107.7536067 | Q19: 102.1601751 | R19: 104.0719744 | S19: 104.6133129 | V19: Meter Type 5 | W19: 0 | X19: 2.328242001 | Y19: 2.373893805 | Z19: 2.419545609 | AA19: 2.465197413 | AB19: 2.510849217
A20: ED_MET421_00009 | C20: Meter Type 6 | D20: Single phase meter population | E20: 915.257109 | F20: 895.6673227 | G20: 805.2480086 | H20: 734.2394718 | I20: 662.0330277 | J20: 659.0842748 | K20: ED_MET422_00009 | M20: Meter Type 6 | N20: 804.2501062 | O20: 1071.792595 | P20: 1070.326564 | Q20: 994.8008389 | R20: 996.4869331 | S20: 981.5253599 | V20: Meter Type 6 | W20: 7.067 | X20: 7.165 | Y20: 7.263 | Z20: 7.361 | AA20: 7.459 | AB20: 7.557
A21: ED_MET421_00010 | D21: Multi phase meter population | E21: 199.9331755 | F21: 196.1462554 | G21: 176.8388439 | H21: 160.9396697 | I21: 144.8104583 | J21: 143.8662111 | K21: ED_MET422_00010 | L21: Scheduled meter reading | M21: Meter Type 4 | U21: Scheduled meter reading | V21: Meter Type 4
A22: ED_MET421_00011 | D22: Current transformer connected meter population | E22: 0.5 | F22: 0.5 | G22: 0.5 | H22: 0.5 | I22: 0.5 | J22: 0.5 | K22: ED_MET422_00011 | M22: Meter Type 5 | V22: Meter Type 5
A23: ED_MET421_00012 | D23: Direct connect meter population | E23: 1114.690285 | F23: 1091.313578 | G23: 981.5868525 | H23: 894.6791415 | I23: 806.3434859 | J23: 802.4504859 | K23: ED_MET422_00012 | M23: Meter Type 6 | V23: Meter Type 6
K24: ED_MET422_00013 | L24: Special meter reading | M24: Meter Type 4 | U24: Special meter reading | V24: Meter Type 4
K25: ED_MET422_00014 | M25: Meter Type 5 | V25: Meter Type 5
K26: ED_MET422_00015 | M26: Meter Type 6 | V26: Meter Type 6
K27: ED_MET422_00016 | L27: New meter installation | M27: Meter Type 4 | N27: 0 | O27: 0 | P27: 0 | Q27: 0 | R27: 0 | S27: 0 | U27: New meter installation | V27: Meter Type 4 | W27: 0 | X27: 0 | Y27: 0 | Z27: 0 | AA27: 0 | AB27: 0
K28: ED_MET422_00017 | M28: Meter Type 5 | N28: 0 | O28: 0 | P28: 0 | Q28: 0 | R28: 0 | S28: 0 | V28: Meter Type 5 | W28: 0 | X28: 0 | Y28: 0 | Z28: 0 | AA28: 0 | AB28: 0
K29: ED_MET422_00018 | M29: Meter Type 6 | N29: 3710.167 | O29: 0 | P29: 0 | Q29: 0 | R29: 0 | S29: 0 | V29: Meter Type 6 | W29: 0 | X29: 0 | Y29: 0 | Z29: 0 | AA29: 0 | AB29: 0
K30: ED_MET422_00019 | L30: Meter replacement | M30: Meter Type 4 | N30: 41.38609276 | O30: 0 | P30: 0 | Q30: 0 | R30: 0 | S30: 0 | U30: Meter replacement | V30: Meter Type 4 | W30: 0.0690704501 | X30: 0 | Y30: 0 | Z30: 0 | AA30: 0 | AB30: 0
K31: ED_MET422_00020 | M31: Meter Type 5 | N31: 0 | O31: 0 | P31: 0 | Q31: 0 | R31: 0 | S31: 0 | V31: Meter Type 5 | W31: 0.9 | X31: 0 | Y31: 0 | Z31: 0 | AA31: 0 | AB31: 0
K32: ED_MET422_00021 | M32: Meter Type 6 | N32: 9117.120907 | O32: 2916.477 | P32: 3085.888 | Q32: 3844.113 | R32: 2981.453 | S32: 4376.522 | V32: Meter Type 6 | W32: 16.3 | X32: 14.93601459 | Y32: 15.85483159 | Z32: 19.61976702 | AA32: 15.11574407 | AB32: 22.04398416
K33: ED_MET422_00022 | L33: Meter maintenance | M33: Meter Type 4 | N33: 5.015604126 | O33: 135.5229349 | P33: 135.2810299 | Q33: 125.5012825 | R33: 125.5116929 | S33: 123.3824174 | U33: Meter maintenance | V33: Meter Type 4 | W33: 0.02836990596 | X33: 0.03039632781 | Y33: 0.03242274966 | Z33: 0.03444917152 | AA33: 0.03647559337 | AB33: 0.03850201523
K34: ED_MET422_00023 | M34: Meter Type 5 | N34: 0 | O34: 199.9127571 | P34: 200.5435565 | Q34: 190.1334486 | R34: 193.6915572 | S34: 194.6990589 | V34: Meter Type 5 | W34: 0.6199059561 | X34: 0.664184953 | Y34: 0.7084639498 | Z34: 0.7527429467 | AA34: 0.7970219436 | AB34: 0.8413009404
K35: ED_MET422_00024 | M35: Meter Type 6 | N35: 400.0860365 | O35: 8.539160102 | P35: 8.52747998 | Q35: 7.925753242 | R35: 7.939186651 | S35: 7.819985167 | V35: Meter Type 6 | W35: 0.035 | X35: 0.036 | Y35: 0.037 | Z35: 0.038 | AA35: 0.039 | AB35: 0.04
K36: ED_MET422_00025 | L36: Remote meter reading | M36: Meter Type 4 | N36: 0 | O36: 0 | P36: 0 | Q36: 0 | R36: 0 | S36: 0 | U36: Remote meter reading | V36: Meter Type 4 | W36: 0 | X36: 0 | Y36: 0 | Z36: 0 | AA36: 0 | AB36: 0
K37: ED_MET422_00026 | L37: Remote meter re-configuration | M37: Meter Type 4 | N37: 0 | O37: 0 | P37: 0 | Q37: 0 | R37: 0 | S37: 0 | U37: Remote meter re-configuration | V37: Meter Type 4 | W37: 0 | X37: 0 | Y37: 0 | Z37: 0 | AA37: 0 | AB37: 0
K38: ED_MET422_00027 | L38: Other metering | M38: Meter Type 4 | N38: 0 | O38: 0 | P38: 0 | Q38: 0 | R38: 0 | S38: 0
K39: ED_MET422_00028 | M39: Meter Type 5 | N39: 0 | O39: 15.68360236 | P39: 15.55204937 | Q39: 14.467887 | R39: 14.4978072 | S39: 14.3301061
K40: ED_MET422_00029 | M40: Meter Type 6 | N40: 0 | O40: 2337.060398 | P40: 2317.459951 | Q40: 2155.799113 | R40: 2160.190193 | S40: 2135.043894
K41: ED_MET422_00030 | M41: Meter Type 7 | N41: 0 | O41: 0 | P41: 0 | Q41: 0 | R41: 0 | S41: 0
K42: ED_MET422_00031 | L42: IT infrastructure capex | M42: Meter Type 5 / 6 | N42: 0 | O42: 771.729 | P42: 221.93 | Q42: 221.993 | R42: 222.011 | S42: 221.715
K43: ED_MET422_00032 | L43: IT infrastructure opex | M43: Meter Type 4 | N43: 0 | O43: 0 | P43: 0 | Q43: 0 | R43: 0 | S43: 0
K44: ED_MET422_00033 | L44: Communications infrastructure capex | M44: Meter Type 4
K45: ED_MET422_00034 | L45: Communications infrastructure opex | M45: Meter Type 4

Sheet 5.2 Asset Age Profile
C1: REGULATORY REPORTING STATEMENT
C2: =TradingName -> SA Power Networks
C3: =RCP_1to5 -> 2015-16 to 2019-20
C4: 5.2 ASSET AGE PROFILE
C6: TABLE 5.2.1 - ASSET AGE PROFILE
E9: ECONOMIC LIFE (YEARS) | G9: INSTALLED ASSETS -˃ QUANTITY CURRENTLY IN COMMISSION BY YEAR
C10: ASSET GROUP | D10: ASSET CATEGORY | E10: MEAN | F10: STANDARD DEVIATION | G10: 2013-14 | H10: 2012-13 | I10: 2011-12 | J10: 2010-11 | K10: 2009-10 | L10: 2008-09 | M10: 2007-08 | N10: 2006-07 | O10: 2005-06 | P10: 2004-05 | Q10: 2003-04 | R10: 2002-03 | S10: 2001-02 | T10: 2000-01 | U10: 1999-00 | V10: 1998-99 | W10: 1997-98 | X10: 1996-97 | Y10: 1995-96 | Z10: 1994-95 | AA10: 1993-94 | AB10: 1992-93 | AC10: 1991-92 | AD10: 1990-91 | AE10: 1989-90 | AF10: 1988-89 | AG10: 1987-88 | AH10: 1986-87 | AI10: 1985-86 | AJ10: 1984-85 | AK10: 1983-84 | AL10: 1982-83 | AM10: 1981-82 | AN10: 1980-81 | AO10: 1979-80 | AP10: 1978-79 | AQ10: 1977-78 | AR10: 1976-77 | AS10: 1975-76 | AT10: 1974-75 | AU10: 1973-74 | AV10: 1972-73 | AW10: 1971-72 | AX10: 1970-71 | AY10: 1969-70 | AZ10: 1968-69 | BA10: 1967-68 | BB10: 1966-67 | BC10: 1965-66 | BD10: 1964-65 | BE10: 1963-64 | BF10: 1962-63 | BG10: 1961-62 | BH10: 1960-61 | BI10: 1959-60 | BJ10: 1958-59 | BK10: 1957-58 | BL10: 1956-57 | BM10: 1955-56 | BN10: 1954-55 | BO10: 1953-54 | BP10: 1952-53 | BQ10: 1951-52 | BR10: 1950-51 | BS10: 1949-50 | BT10: 1948-49 | BU10: 1947-48 | BV10: 1946-47 | BW10: 1945-46 | BX10: 1944-45 | BY10: 1943-44 | BZ10: 1942-43 | CA10: 1941-42 | CB10: 1940-41 | CC10: 1939-40 | CD10: 1938-39 | CE10: 1937-38 | CF10: 1936-37 | CG10: 1935-36 | CH10: 1934-35 | CI10: 1933-34 | CJ10: 1932-33 | CK10: 1931-32 | CL10: 1930-31 | CM10: 1929-30 | CN10: 1928-29 | CO10: 1927-28 | CP10: 1926-27 | CQ10: 1925-26 | CR10: 1924-25 | CS10: 1923-24 | CT10: 1922-23 | CU10: 1921-22 | CV10: 1920-21 | CW10: 1919-20 | CX10: 1918-19 | CY10: 1917-18 | CZ10: 1916-17 | DA10: 1915-16 | DB10: 1914-15 | DC10: 1913-14 | DD10: 1912-13 | DE10: 1911-12 | DF10: 1910-11
A11: ED_REP221_00001 | C11: POLES BY: Highest operating voltage; Material type; Staking (if wood) | D11: Staking of a wooden pole | E11: 0 | F11: 0 | G11: 0 | H11: 0 | I11: 0 | J11: 0 | K11: 0 | L11: 0 | M11: 0 | N11: 0 | O11: 0 | P11: 0 | Q11: 0 | R11: 0 | S11: 0 | T11: 0 | U11: 0 | V11: 0 | W11: 0 | X11: 0 | Y11: 0 | Z11: 0 | AA11: 0 | AB11: 0 | AC11: 0 | AD11: 0 | AE11: 0 | AF11: 0 | AG11: 0 | AH11: 0 | AI11: 0 | AJ11: 0 | AK11: 0 | AL11: 0 | AM11: 0 | AN11: 0 | AO11: 0 | AP11: 0 | AQ11: 0 | AR11: 0 | AS11: 0 | AT11: 0 | AU11: 0 | AV11: 0 | AW11: 0 | AX11: 0 | AY11: 0 | AZ11: 0 | BA11: 0 | BB11: 0 | BC11: 0 | BD11: 0 | BE11: 0 | BF11: 0 | BG11: 0 | BH11: 0 | BI11: 0 | BJ11: 0 | BK11: 0 | BL11: 0 | BM11: 0 | BN11: 0 | BO11: 0 | BP11: 0 | BQ11: 0 | BR11: 0 | BS11: 0 | BT11: 0 | BU11: 0 | BV11: 0 | BW11: 0 | BX11: 0 | BY11: 0 | BZ11: 0 | CA11: 0 | CB11: 0 | CC11: 0 | CD11: 0 | CE11: 0 | CF11: 0 | CG11: 0 | CH11: 0 | CI11: 0 | CJ11: 0 | CK11: 0 | CL11: 0 | CM11: 0 | CN11: 0 | CO11: 0 | CP11: 0 | CQ11: 0 | CR11: 0 | CS11: 0 | CT11: 0 | CU11: 0 | CV11: 0 | CW11: 0 | CX11: 0 | CY11: 0 | CZ11: 0 | DA11: 0 | DB11: 0 | DC11: 0 | DD11: 0 | DE11: 0 | DF11: 0
A12: ED_REP221_00002 | D12: ˂ = 1 kV; Wood | E12: 0 | F12: 0 | G12: 0 | H12: 0 | I12: 0 | J12: 0 | K12: 0 | L12: 0 | M12: 0 | N12: 0 | O12: 0 | P12: 0 | Q12: 0 | R12: 0 | S12: 0 | T12: 0 | U12: 0 | V12: 0 | W12: 0 | X12: 0 | Y12: 0 | Z12: 0 | AA12: 0 | AB12: 0 | AC12: 0 | AD12: 0 | AE12: 0 | AF12: 0 | AG12: 0 | AH12: 0 | AI12: 0 | AJ12: 0 | AK12: 0 | AL12: 0 | AM12: 0 | AN12: 0 | AO12: 0 | AP12: 0 | AQ12: 0 | AR12: 0 | AS12: 0 | AT12: 0 | AU12: 0 | AV12: 0 | AW12: 0 | AX12: 0 | AY12: 0 | AZ12: 0 | BA12: 0 | BB12: 0 | BC12: 0 | BD12: 0 | BE12: 0 | BF12: 0 | BG12: 0 | BH12: 0 | BI12: 0 | BJ12: 0 | BK12: 0 | BL12: 0 | BM12: 0 | BN12: 0 | BO12: 0 | BP12: 0 | BQ12: 0 | BR12: 0 | BS12: 0 | BT12: 0 | BU12: 0 | BV12: 0 | BW12: 0 | BX12: 0 | BY12: 0 | BZ12: 0 | CA12: 0 | CB12: 0 | CC12: 0 | CD12: 0 | CE12: 0 | CF12: 0 | CG12: 0 | CH12: 0 | CI12: 0 | CJ12: 0 | CK12: 0 | CL12: 0 | CM12: 0 | CN12: 0 | CO12: 0 | CP12: 0 | CQ12: 0 | CR12: 0 | CS12: 0 | CT12: 0 | CU12: 0 | CV12: 0 | CW12: 0 | CX12: 0 | CY12: 0 | CZ12: 0 | DA12: 0 | DB12: 0 | DC12: 0 | DD12: 0 | DE12: 0 | DF12: 0
A13: ED_REP221_00003 | D13: > 1 kV & < = 11 kV; Wood | E13: 0 | F13: 0 | G13: 0 | H13: 0 | I13: 0 | J13: 0 | K13: 0 | L13: 0 | M13: 0 | N13: 0 | O13: 0 | P13: 0 | Q13: 0 | R13: 0 | S13: 0 | T13: 0 | U13: 0 | V13: 0 | W13: 0 | X13: 0 | Y13: 0 | Z13: 0 | AA13: 0 | AB13: 0 | AC13: 0 | AD13: 0 | AE13: 0 | AF13: 0 | AG13: 0 | AH13: 0 | AI13: 0 | AJ13: 0 | AK13: 0 | AL13: 0 | AM13: 0 | AN13: 0 | AO13: 0 | AP13: 0 | AQ13: 0 | AR13: 0 | AS13: 0 | AT13: 0 | AU13: 0 | AV13: 0 | AW13: 0 | AX13: 0 | AY13: 0 | AZ13: 0 | BA13: 0 | BB13: 0 | BC13: 0 | BD13: 0 | BE13: 0 | BF13: 0 | BG13: 0 | BH13: 0 | BI13: 0 | BJ13: 0 | BK13: 0 | BL13: 0 | BM13: 0 | BN13: 0 | BO13: 0 | BP13: 0 | BQ13: 0 | BR13: 0 | BS13: 0 | BT13: 0 | BU13: 0 | BV13: 0 | BW13: 0 | BX13: 0 | BY13: 0 | BZ13: 0 | CA13: 0 | CB13: 0 | CC13: 0 | CD13: 0 | CE13: 0 | CF13: 0 | CG13: 0 | CH13: 0 | CI13: 0 | CJ13: 0 | CK13: 0 | CL13: 0 | CM13: 0 | CN13: 0 | CO13: 0 | CP13: 0 | CQ13: 0 | CR13: 0 | CS13: 0 | CT13: 0 | CU13: 0 | CV13: 0 | CW13: 0 | CX13: 0 | CY13: 0 | CZ13: 0 | DA13: 0 | DB13: 0 | DC13: 0 | DD13: 0 | DE13: 0 | DF13: 0
A14: ED_REP221_00004 | D14: ˃ 11 kV & < = 22 kV; Wood | E14: 0 | F14: 0 | G14: 0 | H14: 0 | I14: 0 | J14: 0 | K14: 0 | L14: 0 | M14: 0 | N14: 0 | O14: 0 | P14: 0 | Q14: 0 | R14: 0 | S14: 0 | T14: 0 | U14: 0 | V14: 0 | W14: 0 | X14: 0 | Y14: 0 | Z14: 0 | AA14: 0 | AB14: 0 | AC14: 0 | AD14: 0 | AE14: 0 | AF14: 0 | AG14: 0 | AH14: 0 | AI14: 0 | AJ14: 0 | AK14: 0 | AL14: 0 | AM14: 0 | AN14: 0 | AO14: 0 | AP14: 0 | AQ14: 0 | AR14: 0 | AS14: 0 | AT14: 0 | AU14: 0 | AV14: 0 | AW14: 0 | AX14: 0 | AY14: 0 | AZ14: 0 | BA14: 0 | BB14: 0 | BC14: 0 | BD14: 0 | BE14: 0 | BF14: 0 | BG14: 0 | BH14: 0 | BI14: 0 | BJ14: 0 | BK14: 0 | BL14: 0 | BM14: 0 | BN14: 0 | BO14: 0 | BP14: 0 | BQ14: 0 | BR14: 0 | BS14: 0 | BT14: 0 | BU14: 0 | BV14: 0 | BW14: 0 | BX14: 0 | BY14: 0 | BZ14: 0 | CA14: 0 | CB14: 0 | CC14: 0 | CD14: 0 | CE14: 0 | CF14: 0 | CG14: 0 | CH14: 0 | CI14: 0 | CJ14: 0 | CK14: 0 | CL14: 0 | CM14: 0 | CN14: 0 | CO14: 0 | CP14: 0 | CQ14: 0 | CR14: 0 | CS14: 0 | CT14: 0 | CU14: 0 | CV14: 0 | CW14: 0 | CX14: 0 | CY14: 0 | CZ14: 0 | DA14: 0 | DB14: 0 | DC14: 0 | DD14: 0 | DE14: 0 | DF14: 0
A15: ED_REP221_00005 | D15: > 22 kV & < = 66 kV; Wood | E15: 0 | F15: 0 | G15: 0 | H15: 0 | I15: 0 | J15: 0 | K15: 0 | L15: 0 | M15: 0 | N15: 0 | O15: 0 | P15: 0 | Q15: 0 | R15: 0 | S15: 0 | T15: 0 | U15: 0 | V15: 0 | W15: 0 | X15: 0 | Y15: 0 | Z15: 0 | AA15: 0 | AB15: 0 | AC15: 0 | AD15: 0 | AE15: 0 | AF15: 0 | AG15: 0 | AH15: 0 | AI15: 0 | AJ15: 0 | AK15: 0 | AL15: 0 | AM15: 0 | AN15: 0 | AO15: 0 | AP15: 0 | AQ15: 0 | AR15: 0 | AS15: 0 | AT15: 0 | AU15: 0 | AV15: 0 | AW15: 0 | AX15: 0 | AY15: 0 | AZ15: 0 | BA15: 0 | BB15: 0 | BC15: 0 | BD15: 0 | BE15: 0 | BF15: 0 | BG15: 0 | BH15: 0 | BI15: 0 | BJ15: 0 | BK15: 0 | BL15: 0 | BM15: 0 | BN15: 0 | BO15: 0 | BP15: 0 | BQ15: 0 | BR15: 0 | BS15: 0 | BT15: 0 | BU15: 0 | BV15: 0 | BW15: 0 | BX15: 0 | BY15: 0 | BZ15: 0 | CA15: 0 | CB15: 0 | CC15: 0 | CD15: 0 | CE15: 0 | CF15: 0 | CG15: 0 | CH15: 0 | CI15: 0 | CJ15: 0 | CK15: 0 | CL15: 0 | CM15: 0 | CN15: 0 | CO15: 0 | CP15: 0 | CQ15: 0 | CR15: 0 | CS15: 0 | CT15: 0 | CU15: 0 | CV15: 0 | CW15: 0 | CX15: 0 | CY15: 0 | CZ15: 0 | DA15: 0 | DB15: 0 | DC15: 0 | DD15: 0 | DE15: 0 | DF15: 0
A16: ED_REP221_00006 | D16: > 66 kV & < = 132 kV; Wood | E16: 0 | F16: 0 | G16: 0 | H16: 0 | I16: 0 | J16: 0 | K16: 0 | L16: 0 | M16: 0 | N16: 0 | O16: 0 | P16: 0 | Q16: 0 | R16: 0 | S16: 0 | T16: 0 | U16: 0 | V16: 0 | W16: 0 | X16: 0 | Y16: 0 | Z16: 0 | AA16: 0 | AB16: 0 | AC16: 0 | AD16: 0 | AE16: 0 | AF16: 0 | AG16: 0 | AH16: 0 | AI16: 0 | AJ16: 0 | AK16: 0 | AL16: 0 | AM16: 0 | AN16: 0 | AO16: 0 | AP16: 0 | AQ16: 0 | AR16: 0 | AS16: 0 | AT16: 0 | AU16: 0 | AV16: 0 | AW16: 0 | AX16: 0 | AY16: 0 | AZ16: 0 | BA16: 0 | BB16: 0 | BC16: 0 | BD16: 0 | BE16: 0 | BF16: 0 | BG16: 0 | BH16: 0 | BI16: 0 | BJ16: 0 | BK16: 0 | BL16: 0 | BM16: 0 | BN16: 0 | BO16: 0 | BP16: 0 | BQ16: 0 | BR16: 0 | BS16: 0 | BT16: 0 | BU16: 0 | BV16: 0 | BW16: 0 | BX16: 0 | BY16: 0 | BZ16: 0 | CA16: 0 | CB16: 0 | CC16: 0 | CD16: 0 | CE16: 0 | CF16: 0 | CG16: 0 | CH16: 0 | CI16: 0 | CJ16: 0 | CK16: 0 | CL16: 0 | CM16: 0 | CN16: 0 | CO16: 0 | CP16: 0 | CQ16: 0 | CR16: 0 | CS16: 0 | CT16: 0 | CU16: 0 | CV16: 0 | CW16: 0 | CX16: 0 | CY16: 0 | CZ16: 0 | DA16: 0 | DB16: 0 | DC16: 0 | DD16: 0 | DE16: 0 | DF16: 0
A17: ED_REP221_00007 | D17: > 132 kV; Wood | E17: 0 | F17: 0 | G17: 0 | H17: 0 | I17: 0 | J17: 0 | K17: 0 | L17: 0 | M17: 0 | N17: 0 | O17: 0 | P17: 0 | Q17: 0 | R17: 0 | S17: 0 | T17: 0 | U17: 0 | V17: 0 | W17: 0 | X17: 0 | Y17: 0 | Z17: 0 | AA17: 0 | AB17: 0 | AC17: 0 | AD17: 0 | AE17: 0 | AF17: 0 | AG17: 0 | AH17: 0 | AI17: 0 | AJ17: 0 | AK17: 0 | AL17: 0 | AM17: 0 | AN17: 0 | AO17: 0 | AP17: 0 | AQ17: 0 | AR17: 0 | AS17: 0 | AT17: 0 | AU17: 0 | AV17: 0 | AW17: 0 | AX17: 0 | AY17: 0 | AZ17: 0 | BA17: 0 | BB17: 0 | BC17: 0 | BD17: 0 | BE17: 0 | BF17: 0 | BG17: 0 | BH17: 0 | BI17: 0 | BJ17: 0 | BK17: 0 | BL17: 0 | BM17: 0 | BN17: 0 | BO17: 0 | BP17: 0 | BQ17: 0 | BR17: 0 | BS17: 0 | BT17: 0 | BU17: 0 | BV17: 0 | BW17: 0 | BX17: 0 | BY17: 0 | BZ17: 0 | CA17: 0 | CB17: 0 | CC17: 0 | CD17: 0 | CE17: 0 | CF17: 0 | CG17: 0 | CH17: 0 | CI17: 0 | CJ17: 0 | CK17: 0 | CL17: 0 | CM17: 0 | CN17: 0 | CO17: 0 | CP17: 0 | CQ17: 0 | CR17: 0 | CS17: 0 | CT17: 0 | CU17: 0 | CV17: 0 | CW17: 0 | CX17: 0 | CY17: 0 | CZ17: 0 | DA17: 0 | DB17: 0 | DC17: 0 | DD17: 0 | DE17: 0 | DF17: 0
A18: ED_REP221_00008 | D18: ˂ = 1 kV; Concrete | E18: 0 | F18: 0 | G18: 0 | H18: 0 | I18: 0 | J18: 0 | K18: 0 | L18: 0 | M18: 0 | N18: 0 | O18: 0 | P18: 0 | Q18: 0 | R18: 0 | S18: 0 | T18: 0 | U18: 0 | V18: 0 | W18: 0 | X18: 0 | Y18: 0 | Z18: 0 | AA18: 0 | AB18: 0 | AC18: 0 | AD18: 0 | AE18: 0 | AF18: 0 | AG18: 0 | AH18: 0 | AI18: 0 | AJ18: 0 | AK18: 0 | AL18: 0 | AM18: 0 | AN18: 0 | AO18: 0 | AP18: 0 | AQ18: 0 | AR18: 0 | AS18: 0 | AT18: 0 | AU18: 0 | AV18: 0 | AW18: 0 | AX18: 0 | AY18: 0 | AZ18: 0 | BA18: 0 | BB18: 0 | BC18: 0 | BD18: 0 | BE18: 0 | BF18: 0 | BG18: 0 | BH18: 0 | BI18: 0 | BJ18: 0 | BK18: 0 | BL18: 0 | BM18: 0 | BN18: 0 | BO18: 0 | BP18: 0 | BQ18: 0 | BR18: 0 | BS18: 0 | BT18: 0 | BU18: 0 | BV18: 0 | BW18: 0 | BX18: 0 | BY18: 0 | BZ18: 0 | CA18: 0 | CB18: 0 | CC18: 0 | CD18: 0 | CE18: 0 | CF18: 0 | CG18: 0 | CH18: 0 | CI18: 0 | CJ18: 0 | CK18: 0 | CL18: 0 | CM18: 0 | CN18: 0 | CO18: 0 | CP18: 0 | CQ18: 0 | CR18: 0 | CS18: 0 | CT18: 0 | CU18: 0 | CV18: 0 | CW18: 0 | CX18: 0 | CY18: 0 | CZ18: 0 | DA18: 0 | DB18: 0 | DC18: 0 | DD18: 0 | DE18: 0 | DF18: 0
A19: ED_REP221_00009 | D19: > 1 kV & < = 11 kV; Concrete | E19: 73 | F19: 8.544003745 | G19: 3118.926536 | H19: 3112.915113 | I19: 1993.788566 | J19: 1559.96422 | K19: 1445.747187 | L19: 1466.787166 | M19: 1412.684361 | N19: 1208.295985 | O19: 1094.078952 | P19: 1080.052299 | Q19: 1174.231256 | R19: 1072.037068 | S19: 1287.446386 | T19: 1555.956605 | U19: 1691.213618 | V19: 1136.158912 | W19: 487.9271517 | X19: 1844.5049 | Y19: 2412.584356 | Z19: 2367.498685 | AA19: 2510.770928 | AB19: 3998.598075 | AC19: 5189.861695 | AD19: 5085.6637 | AE19: 5647.731733 | AF19: 6167.719806 | AG19: 4892.296266 | AH19: 5154.795062 | AI19: 5933.274317 | AJ19: 6592.527019 | AK19: 7126.541745 | AL19: 6336.039645 | AM19: 6316.001569 | AN19: 7011.322808 | AO19: 7329.928217 | AP19: 7993.188534 | AQ19: 9486.025199 | AR19: 9609.07363 | AS19: 9119.706048 | AT19: 9902.192918 | AU19: 9405.936863 | AV19: 9480.829943 | AW19: 11946.88976 | AX19: 13189.75112 | AY19: 12548.55412 | AZ19: 12556.67048 | BA19: 12348.37838 | BB19: 15675.2524 | BC19: 18258.49065 | BD19: 17340.0352 | BE19: 18396.01785 | BF19: 19045.04126 | BG19: 18428.75162 | BH19: 17925.98892 | BI19: 15561.55105 | BJ19: 15189.1063 | BK19: 14543.55631 | BL19: 14752.20099 | BM19: 17498.78686 | BN19: 13896.4448 | BO19: 11800.03838 | BP19: 12374.75114 | BQ19: 8180.364879 | BR19: 4478.211438 | BS19: 3632.607199 | BT19: 1552.53714 | BU19: 1170.463665 | BV19: 1127.352811 | BW19: 1198.074501 | BX19: 1197.39472 | BY19: 836.2811196 | BZ19: 1051.935275 | CA19: 1721.048721 | CB19: 2563.232447 | CC19: 3099.069597 | CD19: 3056.587798 | CE19: 2451.476508 | CF19: 3392.114251 | CG19: 3857.584474 | CH19: 2555.237579 | CI19: 1253.860413 | CJ19: 467.4096824 | CK19: 50.42594084 | CL19: 0 | CM19: 0 | CN19: 0 | CO19: 0 | CP19: 0 | CQ19: 0 | CR19: 0 | CS19: 0 | CT19: 0 | CU19: 0 | CV19: 0 | CW19: 0 | CX19: 0 | CY19: 0 | CZ19: 0 | DA19: 0 | DB19: 0 | DC19: 0 | DD19: 0 | DE19: 0 | DF19: 0
A20: ED_REP221_00010 | D20: ˃ 11 kV & < = 22 kV; Concrete | E20: 73 | F20: 8.544003745 | G20: 298.5673331 | H20: 250.4759506 | I20: 344.654908 | J20: 267.5083152 | K20: 228.4340669 | L20: 269.5121228 | M20: 307.5844673 | N20: 303.5768521 | O20: 124.2360715 | P20: 147.2798589 | Q20: 146.2779551 | R20: 157.2988969 | S20: 142.2703399 | T20: 149.2836665 | U20: 217.4131251 | V20: 148.2817627 | W20: 38.07234448 | X20: 480.9138251 | Y20: 876.6658269 | Z20: 884.6810574 | AA20: 560.0642254 | AB20: 1113.115124 | AC20: 1492.836665 | AD20: 1420.699592 | AE20: 1588.017527 | AF20: 1543.933759 | AG20: 1368.600594 | AH20: 1612.063218 | AI20: 2095.982754 | AJ20: 2115.018926 | AK20: 1716.261213 | AL20: 1637.110813 | AM20: 1708.245983 | AN20: 1652.13937 | AO20: 1379.621536 | AP20: 1213.305504 | AQ20: 1564.973739 | AR20: 2468.031254 | AS20: 4433.91757 | AT20: 4952.903739 | AU20: 4810.084664 | AV20: 4844.547072 | AW20: 5110.957918 | AX20: 6318.368502 | AY20: 6361.679951 | AZ20: 6078.392114 | BA20: 6073.017481 | BB20: 6724.446497 | BC20: 6690.910584 | BD20: 5865.105563 | BE20: 7270.433975 | BF20: 8182.091765 | BG20: 6351.822173 | BH20: 5252.514276 | BI20: 5271.631028 | BJ20: 3874.465078 | BK20: 2168.79832 | BL20: 1686.389524 | BM20: 1559.300975 | BN20: 1143.941154 | BO20: 1047.274305 | BP20: 1135.504854 | BQ20: 3113.68991 | BR20: 2905.309976 | BS20: 380.1340155 | BT20: 41.69837415 | BU20: 79.51782978 | BV20: 116.7330603 | BW20: 141.1907494 | BX20: 68.5486913 | BY20: 27.00137342 | BZ20: 290.6167769 | CA20: 507.8362144 | CB20: 262.1048408 | CC20: 184.10842 | CD20: 516.8658936 | CE20: 830.0885645 | CF20: 616.7480456 | CG20: 324.8594265 | CH20: 405.346986 | CI20: 236.6140301 | CJ20: 185.2183596 | CK20: 150.3080929 | CL20: 0 | CM20: 0 | CN20: 0 | CO20: 0 | CP20: 0 | CQ20: 0 | CR20: 0 | CS20: 0 | CT20: 0 | CU20: 0 | CV20: 0 | CW20: 0 | CX20: 0 | CY20: 0 | CZ20: 0 | DA20: 0 | DB20: 0 | DC20: 0 | DD20: 0 | DE20: 0 | DF20: 0
A21: ED_REP221_00011 | D21: > 22 kV & < = 66 kV; Concrete | E21: 73 | F21: 8.544003745 | G21: 36.06853688 | H21: 61.11613194 | I21: 103.1960916 | J21: 96.18276501 | K21: 79.15040038 | L21: 60.11422813 | M21: 82.15611178 | N21: 80.15230418 | O21: 39.07424829 | P21: 33.06282547 | Q21: 29.05521026 | R21: 65.12374714 | S21: 13.02474943 | T21: 55.10470912 | U21: 22.04188365 | V21: 2.003807604 | W21: 3.005711407 | X21: 104.1979954 | Y21: 175.3331654 | Z21: 225.4283555 | AA21: 292.5559102 | AB21: 418.7957893 | AC21: 375.7139258 | AD21: 289.5501988 | AE21: 368.7005992 | AF21: 423.8053083 | AG21: 394.7500981 | AH21: 345.6568118 | AI21: 215.4093175 | AJ21: 164.3122236 | AK21: 160.3046084 | AL21: 214.4074137 | AM21: 219.4169327 | AN21: 254.4835658 | AO21: 221.4207403 | AP21: 153.2912817 | AQ21: 418.7957893 | AR21: 1106.959581 | AS21: 871.5252897 | AT21: 314.4667757 | AU21: 389.6488663 | AV21: 576.9524701 | AW21: 778.4137452 | AX21: 876.5176705 | AY21: 809.4097986 | AZ21: 635.9854164 | BA21: 651.9205438 | BB21: 951.0820376 | BC21: 1120.483381 | BD21: 1064.90745 | BE21: 997.7602731 | BF21: 925.2925871 | BG21: 869.9000817 | BH21: 596.3839184 | BI21: 372.5204935 | BJ21: 363.7274177 | BK21: 439.4580417 | BL21: 629.485744 | BM21: 1212.961445 | BN21: 1204.92886 | BO21: 726.5373181 | BP21: 2043.849416 | BQ21: 1785.979945 | BR21: 128.974041 | BS21: 75.63891125 | BT21: 114.4280965 | BU21: 227.8864634 | BV21: 349.0502601 | BW21: 382.9252881 | BX21: 169.6764819 | BY21: 180.3566096 | BZ21: 298.6505229 | CA21: 229.799719 | CB21: 199.6201841 | CC21: 432.408093 | CD21: 674.9318235 | CE21: 567.2918344 | CF21: 227.8864634 | CG21: 79.51782978 | CH21: 67.8810742 | CI21: 34.91026673 | CJ21: 84.36647794 | CK21: 50.42594084 | CL21: 0 | CM21: 0 | CN21: 0 | CO21: 0 | CP21: 0 | CQ21: 0 | CR21: 0 | CS21: 0 | CT21: 0 | CU21: 0 | CV21: 0 | CW21: 0 | CX21: 0 | CY21: 0 | CZ21: 0 | DA21: 0 | DB21: 0 | DC21: 0 | DD21: 0 | DE21: 0 | DF21: 0
A22: ED_REP221_00012 | D22: > 66 kV & < = 132 kV; Concrete | E22: 0 | F22: 0 | G22: 0 | H22: 0 | I22: 0 | J22: 0 | K22: 0 | L22: 0 | M22: 0 | N22: 0 | O22: 0 | P22: 0 | Q22: 0 | R22: 0 | S22: 0 | T22: 0 | U22: 0 | V22: 0 | W22: 0 | X22: 0 | Y22: 0 | Z22: 0 | AA22: 0 | AB22: 0 | AC22: 0 | AD22: 0 | AE22: 0 | AF22: 0 | AG22: 0 | AH22: 0 | AI22: 0 | AJ22: 0 | AK22: 0 | AL22: 0 | AM22: 0 | AN22: 0 | AO22: 0 | AP22: 0 | AQ22: 0 | AR22: 0 | AS22: 0 | AT22: 0 | AU22: 0 | AV22: 0 | AW22: 0 | AX22: 0 | AY22: 0 | AZ22: 0 | BA22: 0 | BB22: 0 | BC22: 0 | BD22: 0 | BE22: 0 | BF22: 0 | BG22: 0 | BH22: 0 | BI22: 0 | BJ22: 0 | BK22: 0 | BL22: 0 | BM22: 0 | BN22: 0 | BO22: 0 | BP22: 0 | BQ22: 0 | BR22: 0 | BS22: 0 | BT22: 0 | BU22: 0 | BV22: 0 | BW22: 0 | BX22: 0 | BY22: 0 | BZ22: 0 | CA22: 0 | CB22: 0 | CC22: 0 | CD22: 0 | CE22: 0 | CF22: 0 | CG22: 0 | CH22: 0 | CI22: 0 | CJ22: 0 | CK22: 0 | CL22: 0 | CM22: 0 | CN22: 0 | CO22: 0 | CP22: 0 | CQ22: 0 | CR22: 0 | CS22: 0 | CT22: 0 | CU22: 0 | CV22: 0 | CW22: 0 | CX22: 0 | CY22: 0 | CZ22: 0 | DA22: 0 | DB22: 0 | DC22: 0 | DD22: 0 | DE22: 0 | DF22: 0
A23: ED_REP221_00013 | D23: > 132 kV; Concrete | E23: 0 | F23: 0 | G23: 0 | H23: 0 | I23: 0 | J23: 0 | K23: 0 | L23: 0 | M23: 0 | N23: 0 | O23: 0 | P23: 0 | Q23: 0 | R23: 0 | S23: 0 | T23: 0 | U23: 0 | V23: 0 | W23: 0 | X23: 0 | Y23: 0 | Z23: 0 | AA23: 0 | AB23: 0 | AC23: 0 | AD23: 0 | AE23: 0 | AF23: 0 | AG23: 0 | AH23: 0 | AI23: 0 | AJ23: 0 | AK23: 0 | AL23: 0 | AM23: 0 | AN23: 0 | AO23: 0 | AP23: 0 | AQ23: 0 | AR23: 0 | AS23: 0 | AT23: 0 | AU23: 0 | AV23: 0 | AW23: 0 | AX23: 0 | AY23: 0 | AZ23: 0 | BA23: 0 | BB23: 0 | BC23: 0 | BD23: 0 | BE23: 0 | BF23: 0 | BG23: 0 | BH23: 0 | BI23: 0 | BJ23: 0 | BK23: 0 | BL23: 0 | BM23: 0 | BN23: 0 | BO23: 0 | BP23: 0 | BQ23: 0 | BR23: 0 | BS23: 0 | BT23: 0 | BU23: 0 | BV23: 0 | BW23: 0 | BX23: 0 | BY23: 0 | BZ23: 0 | CA23: 0 | CB23: 0 | CC23: 0 | CD23: 0 | CE23: 0 | CF23: 0 | CG23: 0 | CH23: 0 | CI23: 0 | CJ23: 0 | CK23: 0 | CL23: 0 | CM23: 0 | CN23: 0 | CO23: 0 | CP23: 0 | CQ23: 0 | CR23: 0 | CS23: 0 | CT23: 0 | CU23: 0 | CV23: 0 | CW23: 0 | CX23: 0 | CY23: 0 | CZ23: 0 | DA23: 0 | DB23: 0 | DC23: 0 | DD23: 0 | DE23: 0 | DF23: 0
A24: ED_REP221_00014 | D24: ˂ = 1 kV; Steel | E24: 0 | F24: 0 | G24: 0 | H24: 0 | I24: 0 | J24: 0 | K24: 0 | L24: 0 | M24: 0 | N24: 0 | O24: 0 | P24: 0 | Q24: 0 | R24: 0 | S24: 0 | T24: 0 | U24: 0 | V24: 0 | W24: 0 | X24: 0 | Y24: 0 | Z24: 0 | AA24: 0 | AB24: 0 | AC24: 0 | AD24: 0 | AE24: 0 | AF24: 0 | AG24: 0 | AH24: 0 | AI24: 0 | AJ24: 0 | AK24: 0 | AL24: 0 | AM24: 0 | AN24: 0 | AO24: 0 | AP24: 0 | AQ24: 0 | AR24: 0 | AS24: 0 | AT24: 0 | AU24: 0 | AV24: 0 | AW24: 0 | AX24: 0 | AY24: 0 | AZ24: 0 | BA24: 0 | BB24: 0 | BC24: 0 | BD24: 0 | BE24: 0 | BF24: 0 | BG24: 0 | BH24: 0 | BI24: 0 | BJ24: 0 | BK24: 0 | BL24: 0 | BM24: 0 | BN24: 0 | BO24: 0 | BP24: 0 | BQ24: 0 | BR24: 0 | BS24: 0 | BT24: 0 | BU24: 0 | BV24: 0 | BW24: 0 | BX24: 0 | BY24: 0 | BZ24: 0 | CA24: 0 | CB24: 0 | CC24: 0 | CD24: 0 | CE24: 0 | CF24: 0 | CG24: 0 | CH24: 0 | CI24: 0 | CJ24: 0 | CK24: 0 | CL24: 0 | CM24: 0 | CN24: 0 | CO24: 0 | CP24: 0 | CQ24: 0 | CR24: 0 | CS24: 0 | CT24: 0 | CU24: 0 | CV24: 0 | CW24: 0 | CX24: 0 | CY24: 0 | CZ24: 0 | DA24: 0 | DB24: 0 | DC24: 0 | DD24: 0 | DE24: 0 | DF24: 0
A25: ED_REP221_00015 | D25: > 1 kV & < = 11 kV; Steel | E25: 0 | F25: 0 | G25: 0 | H25: 0 | I25: 0 | J25: 0 | K25: 0 | L25: 0 | M25: 0 | N25: 0 | O25: 0 | P25: 0 | Q25: 0 | R25: 0 | S25: 0 | T25: 0 | U25: 0 | V25: 0 | W25: 0 | X25: 0 | Y25: 0 | Z25: 0 | AA25: 0 | AB25: 0 | AC25: 0 | AD25: 0 | AE25: 0 | AF25: 0 | AG25: 0 | AH25: 0 | AI25: 0 | AJ25: 0 | AK25: 0 | AL25: 0 | AM25: 0 | AN25: 0 | AO25: 0 | AP25: 0 | AQ25: 0 | AR25: 0 | AS25: 0 | AT25: 0 | AU25: 0 | AV25: 0 | AW25: 0 | AX25: 0 | AY25: 0 | AZ25: 0 | BA25: 0 | BB25: 0 | BC25: 0 | BD25: 0 | BE25: 0 | BF25: 0 | BG25: 0 | BH25: 0 | BI25: 0 | BJ25: 0 | BK25: 0 | BL25: 0 | BM25: 0 | BN25: 0 | BO25: 0 | BP25: 0 | BQ25: 0 | BR25: 0 | BS25: 0 | BT25: 0 | BU25: 0 | BV25: 0 | BW25: 0 | BX25: 0 | BY25: 0 | BZ25: 0 | CA25: 0 | CB25: 0 | CC25: 0 | CD25: 0 | CE25: 0 | CF25: 0 | CG25: 0 | CH25: 0 | CI25: 0 | CJ25: 0 | CK25: 0 | CL25: 0 | CM25: 0 | CN25: 0 | CO25: 0 | CP25: 0 | CQ25: 0 | CR25: 0 | CS25: 0 | CT25: 0 | CU25: 0 | CV25: 0 | CW25: 0 | CX25: 0 | CY25: 0 | CZ25: 0 | DA25: 0 | DB25: 0 | DC25: 0 | DD25: 0 | DE25: 0 | DF25: 0
A26: ED_REP221_00016 | D26: ˃ 11 kV & < = 22 kV; Steel | E26: 0 | F26: 0 | G26: 0 | H26: 0 | I26: 0 | J26: 0 | K26: 0 | L26: 0 | M26: 0 | N26: 0 | O26: 0 | P26: 0 | Q26: 0 | R26: 0 | S26: 0 | T26: 0 | U26: 0 | V26: 0 | W26: 0 | X26: 0 | Y26: 0 | Z26: 0 | AA26: 0 | AB26: 0 | AC26: 0 | AD26: 0 | AE26: 0 | AF26: 0 | AG26: 0 | AH26: 0 | AI26: 0 | AJ26: 0 | AK26: 0 | AL26: 0 | AM26: 0 | AN26: 0 | AO26: 0 | AP26: 0 | AQ26: 0 | AR26: 0 | AS26: 0 | AT26: 0 | AU26: 0 | AV26: 0 | AW26: 0 | AX26: 0 | AY26: 0 | AZ26: 0 | BA26: 0 | BB26: 0 | BC26: 0 | BD26: 0 | BE26: 0 | BF26: 0 | BG26: 0 | BH26: 0 | BI26: 0 | BJ26: 0 | BK26: 0 | BL26: 0 | BM26: 0 | BN26: 0 | BO26: 0 | BP26: 0 | BQ26: 0 | BR26: 0 | BS26: 0 | BT26: 0 | BU26: 0 | BV26: 0 | BW26: 0 | BX26: 0 | BY26: 0 | BZ26: 0 | CA26: 0 | CB26: 0 | CC26: 0 | CD26: 0 | CE26: 0 | CF26: 0 | CG26: 0 | CH26: 0 | CI26: 0 | CJ26: 0 | CK26: 0 | CL26: 0 | CM26: 0 | CN26: 0 | CO26: 0 | CP26: 0 | CQ26: 0 | CR26: 0 | CS26: 0 | CT26: 0 | CU26: 0 | CV26: 0 | CW26: 0 | CX26: 0 | CY26: 0 | CZ26: 0 | DA26: 0 | DB26: 0 | DC26: 0 | DD26: 0 | DE26: 0 | DF26: 0
A27: ED_REP221_00017 | D27: > 22 kV & < = 66 kV; Steel | E27: 0 | F27: 0 | G27: 0 | H27: 0 | I27: 0 | J27: 0 | K27: 0 | L27: 0 | M27: 0 | N27: 0 | O27: 0 | P27: 0 | Q27: 0 | R27: 0 | S27: 0 | T27: 0 | U27: 0 | V27: 0 | W27: 0 | X27: 0 | Y27: 0 | Z27: 0 | AA27: 0 | AB27: 0 | AC27: 0 | AD27: 0 | AE27: 0 | AF27: 0 | AG27: 0 | AH27: 0 | AI27: 0 | AJ27: 0 | AK27: 0 | AL27: 0 | AM27: 0 | AN27: 0 | AO27: 0 | AP27: 0 | AQ27: 0 | AR27: 0 | AS27: 0 | AT27: 0 | AU27: 0 | AV27: 0 | AW27: 0 | AX27: 0 | AY27: 0 | AZ27: 0 | BA27: 0 | BB27: 0 | BC27: 0 | BD27: 0 | BE27: 0 | BF27: 0 | BG27: 0 | BH27: 0 | BI27: 0 | BJ27: 0 | BK27: 0 | BL27: 0 | BM27: 0 | BN27: 0 | BO27: 0 | BP27: 0 | BQ27: 0 | BR27: 0 | BS27: 0 | BT27: 0 | BU27: 0 | BV27: 0 | BW27: 0 | BX27: 0 | BY27: 0 | BZ27: 0 | CA27: 0 | CB27: 0 | CC27: 0 | CD27: 0 | CE27: 0 | CF27: 0 | CG27: 0 | CH27: 0 | CI27: 0 | CJ27: 0 | CK27: 0 | CL27: 0 | CM27: 0 | CN27: 0 | CO27: 0 | CP27: 0 | CQ27: 0 | CR27: 0 | CS27: 0 | CT27: 0 | CU27: 0 | CV27: 0 | CW27: 0 | CX27: 0 | CY27: 0 | CZ27: 0 | DA27: 0 | DB27: 0 | DC27: 0 | DD27: 0 | DE27: 0 | DF27: 0
A28: ED_REP221_00018 | D28: > 66 kV & < = 132 kV; Steel | E28: 0 | F28: 0 | G28: 0 | H28: 0 | I28: 0 | J28: 0 | K28: 0 | L28: 0 | M28: 0 | N28: 0 | O28: 0 | P28: 0 | Q28: 0 | R28: 0 | S28: 0 | T28: 0 | U28: 0 | V28: 0 | W28: 0 | X28: 0 | Y28: 0 | Z28: 0 | AA28: 0 | AB28: 0 | AC28: 0 | AD28: 0 | AE28: 0 | AF28: 0 | AG28: 0 | AH28: 0 | AI28: 0 | AJ28: 0 | AK28: 0 | AL28: 0 | AM28: 0 | AN28: 0 | AO28: 0 | AP28: 0 | AQ28: 0 | AR28: 0 | AS28: 0 | AT28: 0 | AU28: 0 | AV28: 0 | AW28: 0 | AX28: 0 | AY28: 0 | AZ28: 0 | BA28: 0 | BB28: 0 | BC28: 0 | BD28: 0 | BE28: 0 | BF28: 0 | BG28: 0 | BH28: 0 | BI28: 0 | BJ28: 0 | BK28: 0 | BL28: 0 | BM28: 0 | BN28: 0 | BO28: 0 | BP28: 0 | BQ28: 0 | BR28: 0 | BS28: 0 | BT28: 0 | BU28: 0 | BV28: 0 | BW28: 0 | BX28: 0 | BY28: 0 | BZ28: 0 | CA28: 0 | CB28: 0 | CC28: 0 | CD28: 0 | CE28: 0 | CF28: 0 | CG28: 0 | CH28: 0 | CI28: 0 | CJ28: 0 | CK28: 0 | CL28: 0 | CM28: 0 | CN28: 0 | CO28: 0 | CP28: 0 | CQ28: 0 | CR28: 0 | CS28: 0 | CT28: 0 | CU28: 0 | CV28: 0 | CW28: 0 | CX28: 0 | CY28: 0 | CZ28: 0 | DA28: 0 | DB28: 0 | DC28: 0 | DD28: 0 | DE28: 0 | DF28: 0
A29: ED_REP221_00019 | D29: > 132 kV; Steel | E29: 0 | F29: 0 | G29: 0 | H29: 0 | I29: 0 | J29: 0 | K29: 0 | L29: 0 | M29: 0 | N29: 0 | O29: 0 | P29: 0 | Q29: 0 | R29: 0 | S29: 0 | T29: 0 | U29: 0 | V29: 0 | W29: 0 | X29: 0 | Y29: 0 | Z29: 0 | AA29: 0 | AB29: 0 | AC29: 0 | AD29: 0 | AE29: 0 | AF29: 0 | AG29: 0 | AH29: 0 | AI29: 0 | AJ29: 0 | AK29: 0 | AL29: 0 | AM29: 0 | AN29: 0 | AO29: 0 | AP29: 0 | AQ29: 0 | AR29: 0 | AS29: 0 | AT29: 0 | AU29: 0 | AV29: 0 | AW29: 0 | AX29: 0 | AY29: 0 | AZ29: 0 | BA29: 0 | BB29: 0 | BC29: 0 | BD29: 0 | BE29: 0 | BF29: 0 | BG29: 0 | BH29: 0 | BI29: 0 | BJ29: 0 | BK29: 0 | BL29: 0 | BM29: 0 | BN29: 0 | BO29: 0 | BP29: 0 | BQ29: 0 | BR29: 0 | BS29: 0 | BT29: 0 | BU29: 0 | BV29: 0 | BW29: 0 | BX29: 0 | BY29: 0 | BZ29: 0 | CA29: 0 | CB29: 0 | CC29: 0 | CD29: 0 | CE29: 0 | CF29: 0 | CG29: 0 | CH29: 0 | CI29: 0 | CJ29: 0 | CK29: 0 | CL29: 0 | CM29: 0 | CN29: 0 | CO29: 0 | CP29: 0 | CQ29: 0 | CR29: 0 | CS29: 0 | CT29: 0 | CU29: 0 | CV29: 0 | CW29: 0 | CX29: 0 | CY29: 0 | CZ29: 0 | DA29: 0 | DB29: 0 | DC29: 0 | DD29: 0 | DE29: 0 | DF29: 0
A30: ED_REP221_00020 | D30: Other
A31: ED_REP221_00033 | C31: POLE TOP STRUCTURES BY: Highest operating voltage | D31: ˂ = 1 kV | E31: 50 | F31: 7.071067812 | G31: 11590.42447 | H31: 11590.42447 | I31: 11590.42447 | J31: 11590.42447 | K31: 11590.42447 | L31: 11590.42447 | M31: 11590.42447 | N31: 11590.42447 | O31: 14802.11113 | P31: 18013.7978 | Q31: 27275.53638 | R31: 36537.27495 | S31: 26945.65826 | T31: 19432.66863 | U31: 20137.53106 | V31: 18763.76644 | W31: 19530.57196 | X31: 20297.37748 | Y31: 36521.89311 | Z31: 52746.40874 | AA31: 50190.52891 | AB31: 47634.64908 | AC31: 47377.52292 | AD31: 58635.99064 | AE31: 70096.50092 | AF31: 70041.4173 | AG31: 70041.4173 | AH31: 70041.4173 | AI31: 73891.03461 | AJ31: 77740.65192 | AK31: 77740.65192 | AL31: 77740.65192 | AM31: 77740.65192 | AN31: 96789.19027 | AO31: 115837.7286 | AP31: 115837.7286 | AQ31: 115837.7286 | AR31: 115837.7286 | AS31: 167720.26 | AT31: 219602.7913 | AU31: 219602.7913 | AV31: 219602.7913 | AW31: 219602.7913 | AX31: 228196.667 | AY31: 235987.3612 | AZ31: 235184.1797 | BA31: 235184.1797 | BB31: 235184.1797 | BC31: 233679.2537 | BD31: 232174.3277 | BE31: 232174.3277 | BF31: 232174.3277 | BG31: 232174.3277 | BH31: 213358.5956 | BI31: 194542.8635 | BJ31: 194542.8635 | BK31: 194542.8635 | BL31: 194542.8635 | BM31: 164868.3836 | BN31: 135193.9038 | BO31: 135193.9038 | BP31: 135193.9038 | BQ31: 135193.9038 | BR31: 68503.23328 | BS31: 1812.562793 | BT31: 1812.562793 | BU31: 1812.562793 | BV31: 1812.562793 | BW31: 1513.240497 | BX31: 1213.918201 | BY31: 1213.918201 | BZ31: 1213.918201 | CA31: 1213.918201 | CB31: 1396.837382 | CC31: 1579.756563 | CD31: 1579.756563 | CE31: 1579.756563 | CF31: 1579.756563 | CG31: 789.8782816 | CH31: 0 | CI31: 0 | CJ31: 0 | CK31: 0 | CL31: 0 | CM31: 0 | CN31: 0 | CO31: 0 | CP31: 0 | CQ31: 0 | CR31: 0 | CS31: 0 | CT31: 0 | CU31: 0 | CV31: 0 | CW31: 0 | CX31: 0 | CY31: 0 | CZ31: 0 | DA31: 0 | DB31: 0 | DC31: 0 | DD31: 0 | DE31: 0 | DF31: 0
A32: ED_REP221_00034 | D32: > 1 kV & < = 11 kV | E32: 50 | F32: 7.071067812 | G32: 6007.918898 | H32: 6007.918898 | I32: 6007.918898 | J32: 6007.918898 | K32: 6007.918898 | L32: 6007.918898 | M32: 6007.918898 | N32: 6007.918898 | O32: 7672.702881 | P32: 9337.486864 | Q32: 14138.32693 | R32: 18939.167 | S32: 13967.33398 | T32: 10072.9613 | U32: 10438.3281 | V32: 9726.234557 | W32: 10123.70968 | X32: 10521.1848 | Y32: 18931.1938 | Z32: 27341.20279 | AA32: 26016.35755 | AB32: 24691.51231 | AC32: 24558.23046 | AD32: 30394.07894 | AE32: 36334.65657 | AF32: 36306.10387 | AG32: 36306.10387 | AH32: 36306.10387 | AI32: 38301.56043 | AJ32: 40297.017 | AK32: 40297.017 | AL32: 40297.017 | AM32: 40297.017 | AN32: 50170.86362 | AO32: 60044.71025 | AP32: 60044.71025 | AQ32: 60044.71025 | AR32: 60044.71025 | AS32: 86938.12052 | AT32: 113831.5308 | AU32: 113831.5308 | AV32: 113831.5308 | AW32: 113831.5308 | AX32: 118286.1829 | AY32: 122324.5042 | AZ32: 121908.1736 | BA32: 121908.1736 | BB32: 121908.1736 | BC32: 121128.0923 | BD32: 120348.011 | BE32: 120348.011 | BF32: 120348.011 | BG32: 120348.011 | BH32: 110594.8399 | BI32: 100841.6688 | BJ32: 100841.6688 | BK32: 100841.6688 | BL32: 100841.6688 | BM32: 85459.84492 | BN32: 70078.021 | BO32: 70078.021 | BP32: 70078.021 | BQ32: 70078.021 | BR32: 35508.78321 | BS32: 939.545423 | BT32: 939.545423 | BU32: 939.545423 | BV32: 939.545423 | BW32: 784.391133 | BX32: 629.236843 | BY32: 629.236843 | BZ32: 629.236843 | CA32: 629.236843 | CB32: 724.0533535 | CC32: 818.8698641 | CD32: 818.8698641 | CE32: 818.8698641 | CF32: 818.8698641 | CG32: 409.4349321 | CH32: 0 | CI32: 0 | CJ32: 0 | CK32: 0 | CL32: 0 | CM32: 0 | CN32: 0 | CO32: 0 | CP32: 0 | CQ32: 0 | CR32: 0 | CS32: 0 | CT32: 0 | CU32: 0 | CV32: 0 | CW32: 0 | CX32: 0 | CY32: 0 | CZ32: 0 | DA32: 0 | DB32: 0 | DC32: 0 | DD32: 0 | DE32: 0 | DF32: 0
A33: ED_REP221_00035 | D33: ˃ 11 kV & < = 22 kV | E33: 50 | F33: 7.071067812 | G33: 670.0565445 | H33: 670.0565445 | I33: 670.0565445 | J33: 670.0565445 | K33: 670.0565445 | L33: 670.0565445 | M33: 670.0565445 | N33: 670.0565445 | O33: 855.7280594 | P33: 1041.399574 | Q33: 1576.831953 | R33: 2112.264332 | S33: 1557.761298 | T33: 1123.426224 | U33: 1164.175179 | V33: 1084.756174 | W33: 1129.086135 | X33: 1173.416095 | Y33: 2111.375089 | Z33: 3049.334084 | AA33: 2901.57556 | AB33: 2753.817037 | AC33: 2738.95226 | AD33: 3389.817981 | AE33: 4052.364028 | AF33: 4049.179577 | AG33: 4049.179577 | AH33: 4049.179577 | AI33: 4271.730639 | AJ33: 4494.281701 | AK33: 4494.281701 | AL33: 4494.281701 | AM33: 4494.281701 | AN33: 5595.500886 | AO33: 6696.72007 | AP33: 6696.72007 | AQ33: 6696.72007 | AR33: 6696.72007 | AS33: 9696.11235 | AT33: 12695.50463 | AU33: 12695.50463 | AV33: 12695.50463 | AW33: 12695.50463 | AX33: 13192.32704 | AY33: 13642.71656 | AZ33: 13596.28366 | BA33: 13596.28366 | BB33: 13596.28366 | BC33: 13509.28205 | BD33: 13422.28045 | BE33: 13422.28045 | BF33: 13422.28045 | BG33: 13422.28045 | BH33: 12334.52008 | BI33: 11246.7597 | BJ33: 11246.7597 | BK33: 11246.7597 | BL33: 11246.7597 | BM33: 9531.241909 | BN33: 7815.724113 | BO33: 7815.724113 | BP33: 7815.724113 | BQ33: 7815.724113 | BR33: 3960.255287 | BS33: 104.786461 | BT33: 104.786461 | BU33: 104.786461 | BV33: 104.786461 | BW33: 87.48227482 | BX33: 70.17808859 | BY33: 70.17808859 | BZ33: 70.17808859 | CA33: 70.17808859 | CB33: 80.75286906 | CC33: 91.32764954 | CD33: 91.32764954 | CE33: 91.32764954 | CF33: 91.32764954 | CG33: 45.66382477 | CH33: 0 | CI33: 0 | CJ33: 0 | CK33: 0 | CL33: 0 | CM33: 0 | CN33: 0 | CO33: 0 | CP33: 0 | CQ33: 0 | CR33: 0 | CS33: 0 | CT33: 0 | CU33: 0 | CV33: 0 | CW33: 0 | CX33: 0 | CY33: 0 | CZ33: 0 | DA33: 0 | DB33: 0 | DC33: 0 | DD33: 0 | DE33: 0 | DF33: 0
